Workbook

Sheet Sheet1 (hidden)

Sheet Points
B2: Overview - What Happened to HT Media
B4: Summary Pages
C5: First, Look at the last period ROIC
C6: Graph the statements with actual and forecast
B9: DCF Page
C10: Fixed reduction in Cap Exp
C11: Out of Order
C12: No Depreciation to Cap/Exp Stats
C13: No ROIC in Last Period
C14: Merged Cells
C15: Error in Discounting

Sheet fin summary
A1: Financial summary of HT Media, March fiscal year-ends, 2008-14E (Rs mn)
B3: 2005 | C3: 2006 | D3: 2007 | E3: 2008 | F3: 2009 | G3: 2010 | H3: 2011 | I3: 2012E | J3: 2013E | K3: 2014E
A4: Profit model
A5: Net sales | B5: ='profit model (F)'!G4 ->  | C5: ='profit model (F)'!H4 -> 8210.105 | D5: ='profit model (F)'!I4 -> 10396.575 | E5: ='profit model (F)'!J4 -> 12032.51 | F5: ='profit model (F)'!K4 -> 13466.1 | G5: ='profit model (F)'!L4 -> 14129.2 | H5: ='profit model (F)'!M4 -> 17673.9 | I5: ='profit model (F)'!N4 -> 20010.08639 | J5: ='profit model (F)'!O4 -> 23529.70664 | K5: ='profit model (F)'!P4 -> 27652.07733
A6: EBITDA | B6: ='profit model (F)'!G8 ->  | C6: ='profit model (F)'!H8 -> 1183.988 | D6: ='profit model (F)'!I8 -> 1680.372 | E6: ='profit model (F)'!J8 -> 1698.97 | F6: ='profit model (F)'!K8 -> 878.8 | G6: ='profit model (F)'!L8 -> 2498.8 | H6: ='profit model (F)'!M8 -> 3171.2 | I6: ='profit model (F)'!N8 -> 2798.190664 | J6: ='profit model (F)'!O8 -> 3128.114417 | K6: ='profit model (F)'!P8 -> 4532.448794
A7: Other income | B7: ='profit model (F)'!G9 ->  | C7: ='profit model (F)'!H9 -> 177.338 | D7: ='profit model (F)'!I9 -> 366.856 | E7: ='profit model (F)'!J9 -> 438.66 | F7: ='profit model (F)'!K9 -> 330.4 | G7: ='profit model (F)'!L9 -> 408.8 | H7: ='profit model (F)'!M9 -> 477.7 | I7: ='profit model (F)'!N9 -> 796.7584558 | J7: ='profit model (F)'!O9 -> 805.3469322 | K7: ='profit model (F)'!P9 -> 859.5423934
A8: Interest | B8: ='profit model (F)'!G10 ->  | C8: ='profit model (F)'!H10 -> -135.4 | D8: ='profit model (F)'!I10 -> -142.9 | E8: ='profit model (F)'!J10 -> -177.9 | F8: ='profit model (F)'!K10 -> -322.8 | G8: ='profit model (F)'!L10 -> -295.1 | H8: ='profit model (F)'!M10 -> -236 | I8: ='profit model (F)'!N10 -> -331.025 | J8: ='profit model (F)'!O10 -> -281.025 | K8: ='profit model (F)'!P10 -> -281.025
A9: Depreciation | B9: ='profit model (F)'!G11 ->  | C9: ='profit model (F)'!H11 -> -385.364 | D9: ='profit model (F)'!I11 -> -435.988 | E9: ='profit model (F)'!J11 -> -569.87 | F9: ='profit model (F)'!K11 -> -688.1 | G9: ='profit model (F)'!L11 -> -706.9 | H9: ='profit model (F)'!M11 -> -841.9 | I9: ='profit model (F)'!N11 -> -919.8691806 | J9: ='profit model (F)'!O11 -> -996.0494889 | K9: ='profit model (F)'!P11 -> -1077.476691
A10: Pretax profits | B10: ='profit model (F)'!G12 ->  | C10: ='profit model (F)'!H12 -> 840.562 | D10: ='profit model (F)'!I12 -> 1468.34 | E10: ='profit model (F)'!J12 -> 1389.86 | F10: ='profit model (F)'!K12 -> 198.3 | G10: ='profit model (F)'!L12 -> 1905.6 | H10: ='profit model (F)'!M12 -> 2571 | I10: ='profit model (F)'!N12 -> 2344.054939 | J10: ='profit model (F)'!O12 -> 2656.38686 | K10: ='profit model (F)'!P12 -> 4033.489496
A11: Extraordinary items | B11: ='profit model (F)'!G13 ->  | C11: ='profit model (F)'!H13 -> -228.888 | D11: ='profit model (F)'!I13 -> 2.166 | E11: ='profit model (F)'!J13 -> 0 | F11: ='profit model (F)'!K13 -> -189.4 | G11: ='profit model (F)'!L13 -> -20.8 | H11: ='profit model (F)'!M13 -> 0 | I11: ='profit model (F)'!N13 -> 0 | J11: ='profit model (F)'!O13 -> 0 | K11: ='profit model (F)'!P13 -> 0
A12: Tax | B12: ='profit model (F)'!G14 ->  | C12: ='profit model (F)'!H14 -> -64.84 | D12: ='profit model (F)'!I14 -> -572.776 | E12: ='profit model (F)'!J14 -> -519.67 | F12: ='profit model (F)'!K14 -> -40 | G12: ='profit model (F)'!L14 -> -561.5 | H12: ='profit model (F)'!M14 -> -931.5 | I12: ='profit model (F)'!N14 -> -663.7981963 | J12: ='profit model (F)'!O14 -> -801.3119832 | K12: ='profit model (F)'!P14 -> -1284.300388
A13: Deferred taxation | B13: ='profit model (F)'!G15 ->  | C13: ='profit model (F)'!H15 -> -174.128 | D13: ='profit model (F)'!I15 -> 27.011 | E13: ='profit model (F)'!J15 -> 143.07 | F13: ='profit model (F)'!K15 -> -84.9 | G13: ='profit model (F)'!L15 -> 25 | H13: ='profit model (F)'!M15 -> 218.7 | I13: ='profit model (F)'!N15 -> 41.26331148 | J13: ='profit model (F)'!O15 -> 64.59273806 | K13: ='profit model (F)'!P15 -> 88.03076974
A14: Net income | B14: ='profit model (F)'!G16 ->  | C14: ='profit model (F)'!H16 -> 372.706 | D14: ='profit model (F)'!I16 -> 924.741 | E14: ='profit model (F)'!J16 -> 1013.26 | F14: ='profit model (F)'!K16 -> -116 | G14: ='profit model (F)'!L16 -> 1348.3 | H14: ='profit model (F)'!M16 -> 1858.2 | I14: ='profit model (F)'!N16 -> 1721.520055 | J14: ='profit model (F)'!O16 -> 1919.667615 | K14: ='profit model (F)'!P16 -> 2837.219878
A15: Minority interest | B15: ='profit model (F)'!G17 ->  | C15: ='profit model (F)'!H17 -> 0 | D15: ='profit model (F)'!I17 -> -45.691 | E15: ='profit model (F)'!J17 -> 0 | F15: ='profit model (F)'!K17 -> -125 | G15: ='profit model (F)'!L17 -> -10.9 | H15: ='profit model (F)'!M17 -> 49.1 | I15: ='profit model (F)'!N17 -> 64.36743222 | J15: ='profit model (F)'!O17 -> 166.9453445 | K15: ='profit model (F)'!P17 -> 265.9394637
A16: Adjusted net income | B16: ='profit model (F)'!G18 ->  | C16: ='profit model (F)'!H18 -> 601.594 | D16: ='profit model (F)'!I18 -> 969.0710772 | E16: ='profit model (F)'!J18 -> 1013.26 | F16: ='profit model (F)'!K18 -> 79.10569844 | G16: ='profit model (F)'!L18 -> 1374.143997 | H16: ='profit model (F)'!M18 -> 1809.1 | I16: ='profit model (F)'!N18 -> 1657.152622 | J16: ='profit model (F)'!O18 -> 1752.722271 | K16: ='profit model (F)'!P18 -> 2571.280414
A17: Earnings per share (Rs) | B17: ='profit model (F)'!G22 ->  | C17: ='profit model (F)'!H22 -> 2.568401009 | D17: ='profit model (F)'!I22 -> 4.137280512 | E17: ='profit model (F)'!J22 -> 4.325549626 | F17: ='profit model (F)'!K22 -> 0.3366199933 | G17: ='profit model (F)'!L22 -> 5.844934056 | H17: ='profit model (F)'!M22 -> 7.691751701 | I17: ='profit model (F)'!N22 -> 7.045716932 | J17: ='profit model (F)'!O22 -> 7.45205047 | K17: ='profit model (F)'!P22 -> 10.93231469
A19: Balance sheet
A20: Total equity | B20: ='balance model (F)'!G7 ->  | C20: ='balance model (F)'!H7 -> 6932.348 | D20: ='balance model (F)'!I7 -> 7642.054 | E20: ='balance model (F)'!J7 -> 8528.77 | F20: ='balance model (F)'!K7 -> 8485.4 | G20: ='balance model (F)'!L7 -> 9711.3 | H20: ='balance model (F)'!M7 -> 13022 | I20: ='balance model (F)'!N7 -> 14569.54942 | J20: ='balance model (F)'!O7 -> 15774.25569 | K20: ='balance model (F)'!P7 -> 17249.50411
A21: Minority interest | B21: ='balance model (F)'!G8 ->  | C21: ='balance model (F)'!H8 -> 0 | D21: ='balance model (F)'!I8 -> 0.108 | E21: ='balance model (F)'!J8 -> 0.52 | F21: ='balance model (F)'!K8 -> -69.4 | G21: ='balance model (F)'!L8 -> 218.2 | H21: ='balance model (F)'!M8 -> 1298.8 | I21: ='balance model (F)'!N8 -> 1363.167432 | J21: ='balance model (F)'!O8 -> 1530.112777 | K21: ='balance model (F)'!P8 -> 1796.05224
A22: Deferred taxation liability | B22: ='balance model (F)'!G9 ->  | C22: ='balance model (F)'!H9 -> 295.842 | D22: ='balance model (F)'!I9 -> 272.599 | E22: ='balance model (F)'!J9 -> 121.61 | F22: ='balance model (F)'!K9 -> 206.5 | G22: ='balance model (F)'!L9 -> 178.1 | H22: ='balance model (F)'!M9 -> -85.5 | I22: ='balance model (F)'!N9 -> -126.7633115 | J22: ='balance model (F)'!O9 -> -191.3560495 | K22: ='balance model (F)'!P9 -> -279.3868193
A23: Total borrowings | B23: ='balance model (F)'!G13 ->  | C23: ='balance model (F)'!H13 -> 1695.726 | D23: ='balance model (F)'!I13 -> 1657.55 | E23: ='balance model (F)'!J13 -> 2230.67 | F23: ='balance model (F)'!K13 -> 3706.2 | G23: ='balance model (F)'!L13 -> 4020.9 | H23: ='balance model (F)'!M13 -> 3122.5 | I23: ='balance model (F)'!N13 -> 3122.5 | J23: ='balance model (F)'!O13 -> 3122.5 | K23: ='balance model (F)'!P13 -> 3122.5
A24: Current liabilities | B24: ='balance model (F)'!G14 ->  | C24: ='balance model (F)'!H14 -> 1809.406 | D24: ='balance model (F)'!I14 -> 2112.507 | E24: ='balance model (F)'!J14 -> 2803.7 | F24: ='balance model (F)'!K14 -> 5399 | G24: ='balance model (F)'!L14 -> 5764.5 | H24: ='balance model (F)'!M14 -> 6037 | I24: ='balance model (F)'!N14 -> 6536.751512 | J24: ='balance model (F)'!O14 -> 7416.58246 | K24: ='balance model (F)'!P14 -> 8189.499395
A25: Total liabilities and equity | B25: ='balance model (F)'!G15 ->  | C25: ='balance model (F)'!H15 -> 10733.322 | D25: ='balance model (F)'!I15 -> 11684.818 | E25: ='balance model (F)'!J15 -> 13685.27 | F25: ='balance model (F)'!K15 -> 17727.7 | G25: ='balance model (F)'!L15 -> 19893 | H25: ='balance model (F)'!M15 -> 23394.8 | I25: ='balance model (F)'!N15 -> 25465.20506 | J25: ='balance model (F)'!O15 -> 27652.09488 | K25: ='balance model (F)'!P15 -> 30078.16892
A26: Cash | B26: ='balance model (F)'!G17 ->  | C26: ='balance model (F)'!H17 -> 2677.504 | D26: ='balance model (F)'!I17 -> 1104.139 | E26: ='balance model (F)'!J17 -> 773.97 | F26: ='balance model (F)'!K17 -> 705.4 | G26: ='balance model (F)'!L17 -> 1086.8 | H26: ='balance model (F)'!M17 -> 1152.4 | I26: ='balance model (F)'!N17 -> 3002.611395 | J26: ='balance model (F)'!O17 -> 4117.111909 | K26: ='balance model (F)'!P17 -> 5568.156472
A27: Other current assets | B27: ='balance model (F)'!G18 ->  | C27: ='balance model (F)'!H18 -> 3275.594 | D27: ='balance model (F)'!I18 -> 2863.031 | E27: ='balance model (F)'!J18 -> 4424.9 | F27: ='balance model (F)'!K18 -> 6270.3 | G27: ='balance model (F)'!L18 -> 5622.8 | H27: ='balance model (F)'!M18 -> 6403.8 | I27: ='balance model (F)'!N18 -> 7763.862841 | J27: ='balance model (F)'!O18 -> 8960.801641 | K27: ='balance model (F)'!P18 -> 10098.23281
A28: Total fixed assets | B28: ='balance model (F)'!G21+'balance model (F)'!G22 ->  | C28: ='balance model (F)'!H21+'balance model (F)'!H22 -> 3736.403 | D28: ='balance model (F)'!I21+'balance model (F)'!I22 -> 4108.697 | E28: ='balance model (F)'!J21+'balance model (F)'!J22 -> 4751.6 | F28: ='balance model (F)'!K21+'balance model (F)'!K22 -> 6718 | G28: ='balance model (F)'!L21+'balance model (F)'!L22 -> 7572.5 | H28: ='balance model (F)'!M21+'balance model (F)'!M22 -> 7558.9 | I28: ='balance model (F)'!N21+'balance model (F)'!N22 -> 7469.030819 | J28: ='balance model (F)'!O21+'balance model (F)'!O22 -> 7344.48133 | K28: ='balance model (F)'!P21+'balance model (F)'!P22 -> 7182.079639
A29: Intangible assets | B29: ='balance model (F)'!G24 ->  | C29: ='balance model (F)'!H24 -> 182.419 | D29: ='balance model (F)'!I24 -> 1098.18 | E29: ='balance model (F)'!J24 -> 1077.75 | F29: ='balance model (F)'!K24 -> 998.2 | G29: ='balance model (F)'!L24 -> 834.3 | H29: ='balance model (F)'!M24 -> 684.7 | I29: ='balance model (F)'!N24 -> 684.7 | J29: ='balance model (F)'!O24 -> 684.7 | K29: ='balance model (F)'!P24 -> 684.7
A30: Investments | B30: ='balance model (F)'!G25 ->  | C30: ='balance model (F)'!H25 -> 861.402 | D30: ='balance model (F)'!I25 -> 2510.017 | E30: ='balance model (F)'!J25 -> 2656.36 | F30: ='balance model (F)'!K25 -> 3035 | G30: ='balance model (F)'!L25 -> 4754.7 | H30: ='balance model (F)'!M25 -> 7595 | I30: ='balance model (F)'!N25 -> 6595 | J30: ='balance model (F)'!O25 -> 6595 | K30: ='balance model (F)'!P25 -> 6595
A31: Total assets | B31: ='balance model (F)'!G27 ->  | C31: ='balance model (F)'!H27 -> 10733.322 | D31: ='balance model (F)'!I27 -> 11684.818 | E31: ='balance model (F)'!J27 -> 13685.27 | F31: ='balance model (F)'!K27 -> 17727.7 | G31: ='balance model (F)'!L27 -> 19893 | H31: ='balance model (F)'!M27 -> 23394.8 | I31: ='balance model (F)'!N27 -> 25515.20506 | J31: ='balance model (F)'!O27 -> 27702.09488 | K31: ='balance model (F)'!P27 -> 30128.16892
A33: Free cash flow
A34: Operating cash flow, excl. working capital | B34: ='cash model (F)'!G14 ->  | C34: ='cash model (F)'!H14 -> 892.908 | D34: ='cash model (F)'!I14 -> 1336.795 | E34: ='cash model (F)'!J14 -> 1242.15 | F34: ='cash model (F)'!K14 -> 586.2 | G34: ='cash model (F)'!L14 -> 2307.6 | H34: ='cash model (F)'!M14 -> 2819.8 | I34: ='cash model (F)'!N14 -> 2134.392468 | J34: ='cash model (F)'!O14 -> 2326.802434 | K34: ='cash model (F)'!P14 -> 3248.148406
A35: Working capital changes | B35: ='cash model (F)'!G12 ->  | C35: ='cash model (F)'!H12 -> -231.623 | D35: ='cash model (F)'!I12 -> -226.034 | E35: ='cash model (F)'!J12 -> -130.91 | F35: ='cash model (F)'!K12 -> 1313.2 | G35: ='cash model (F)'!L12 -> 1695.1 | H35: ='cash model (F)'!M12 -> -328.1 | I35: ='cash model (F)'!N12 -> -860.3113288 | J35: ='cash model (F)'!O12 -> -317.1078517 | K35: ='cash model (F)'!P12 -> -364.5142361
A36: Capital expenditure | B36: ='cash model (F)'!G16+'cash model (F)'!G17 ->  | C36: ='cash model (F)'!H16+'cash model (F)'!H17 -> -327.037 | D36: ='cash model (F)'!I16+'cash model (F)'!I17 -> -866.694 | E36: ='cash model (F)'!J16+'cash model (F)'!J17 -> -1196.38 | F36: ='cash model (F)'!K16+'cash model (F)'!K17 -> -2597 | G36: ='cash model (F)'!L16+'cash model (F)'!L17 -> -1574.8 | H36: ='cash model (F)'!M16+'cash model (F)'!M17 -> -773.2 | I36: ='cash model (F)'!N16+'cash model (F)'!N17 -> -830 | J36: ='cash model (F)'!O16+'cash model (F)'!O17 -> -871.5 | K36: ='cash model (F)'!P16+'cash model (F)'!P17 -> -915.075
A37: Investments | B37: ='cash model (F)'!G18 ->  | C37: ='cash model (F)'!H18 -> 387.678 | D37: ='cash model (F)'!I18 -> -319.222 | E37: ='cash model (F)'!J18 -> -325.33 | F37: ='cash model (F)'!K18 -> -1126.4 | G37: ='cash model (F)'!L18 -> -1778.4 | H37: ='cash model (F)'!M18 -> -3097.7 | I37: ='cash model (F)'!N18 -> 1000 | J37: ='cash model (F)'!O18 -> 0 | K37: ='cash model (F)'!P18 -> 0
A38: Other income | B38: =-'cash model (F)'!G8 ->  | C38: =-'cash model (F)'!H8 -> 130.04 | D38: =-'cash model (F)'!I8 -> 196.621 | E38: =-'cash model (F)'!J8 -> 298.29 | F38: =-'cash model (F)'!K8 -> 205.7 | G38: =-'cash model (F)'!L8 -> 145.7 | H38: =-'cash model (F)'!M8 -> 291.2 | I38: =-'cash model (F)'!N8 -> 796.7584558 | J38: =-'cash model (F)'!O8 -> 805.3469322 | K38: =-'cash model (F)'!P8 -> 859.5423934
A39: Free cash flow | B39: =SUM(B34:B38) ->  | C39: 851.966 | D39: 121.466 | E39: -112.18 | F39: -1618.3 | G39: 795.2 | H39: -1088 | I39: 2240.839595 | J39: 1943.541514 | K39: 2828.101563
A41: Ratios (%)
A42: Debt/equity | B42: ='balance model (F)'!G30 ->  | C42: ='balance model (F)'!H30 -> 23.45989798 | D42: ='balance model (F)'!I30 -> 20.94280065 | E42: ='balance model (F)'!J30 -> 25.78695965 | F42: ='balance model (F)'!K30 -> 42.63969903 | G42: ='balance model (F)'!L30 -> 40.65868506 | H42: ='balance model (F)'!M30 -> 24.13713137 | I42: ='balance model (F)'!N30 -> 21.61978981 | J42: ='balance model (F)'!O30 -> 20.03799082 | K42: ='balance model (F)'!P30 -> 18.39999068
A43: Net debt/equity | B43: ='balance model (F)'!G32 ->  | C43: ='balance model (F)'!H32 -> -13.5826258 | D43: ='balance model (F)'!I32 -> 6.992233267 | E43: ='balance model (F)'!J32 -> 16.83972265 | F43: ='balance model (F)'!K32 -> 34.52409715 | G43: ='balance model (F)'!L32 -> 29.6691407 | H43: ='balance model (F)'!M32 -> 15.22900321 | I43: ='balance model (F)'!N32 -> 0.8300933359 | J43: ='balance model (F)'!O32 -> -6.382713949 | K43: ='balance model (F)'!P32 -> -14.41154725
A44: ROAE (%) | B44: ='balance model (F)'!G34 ->  | C44: ='balance model (F)'!H34 -> 0 | D44: ='balance model (F)'!I34 -> 12.79906392 | E44: ='balance model (F)'!J34 -> 12.23372148 | F44: ='balance model (F)'!K34 -> 0.9122871783 | G44: ='balance model (F)'!L34 -> 14.79061203 | H44: ='balance model (F)'!M34 -> 15.85129173 | I44: ='balance model (F)'!N34 -> 12.10515582 | J44: ='balance model (F)'!O34 -> 11.67481925 | K44: ='balance model (F)'!P34 -> 15.79749379
A45: ROACE (%) | B45: ='balance model (F)'!G35 ->  | C45: ='balance model (F)'!H35 -> 0 | D45: ='balance model (F)'!I35 -> 10.62623992 | E45: ='balance model (F)'!J35 -> 9.598209319 | F45: ='balance model (F)'!K35 -> 3.573897978 | G45: ='balance model (F)'!L35 -> 11.80038671 | H45: ='balance model (F)'!M35 -> 11.94552258 | I45: ='balance model (F)'!N35 -> 11.4056896 | J45: ='balance model (F)'!O35 -> 11.31121334 | K45: ='balance model (F)'!P35 -> 15.15919307
A47: Source: Company data, Kotak Institutional Equities estimates

Sheet cons revenues
A1: Derivation of revenues of HT Media, March fiscal year-ends, 2007-20E (Rs mn)
C3: 2006 | D3: 2007 | E3: 2008 | F3: 2009 | G3: 2010 | H3: 2011E | I3: 2012E | J3: 2013E | K3: 2014E | L3: 2015E | M3: 2016E | N3: 2017E | O3: 2018E | P3: 2019E | Q3: 2020E
A4: Revenues (Rs mn)
A5: HT Delhi-NCR | D5: ='HT Delhi-NCR'!D5 -> 5900 | E5: ='HT Delhi-NCR'!E5 -> 6302.38 | F5: ='HT Delhi-NCR'!F5 -> 6446.704502 | G5: ='HT Delhi-NCR'!G5 -> 5802.034052 | H5: ='HT Delhi-NCR'!H5 -> 6857.424046 | I5: ='HT Delhi-NCR'!I5 -> 7200.295248 | J5: ='HT Delhi-NCR'!J5 -> 7937.605482 | K5: ='HT Delhi-NCR'!K5 -> 9080.620671 | L5: ='HT Delhi-NCR'!L5 -> 8938.962988 | M5: ='HT Delhi-NCR'!M5 -> 9096.288737 | N5: ='HT Delhi-NCR'!N5 -> 9838.545898 | O5: ='HT Delhi-NCR'!O5 -> 10641.37124 | P5: ='HT Delhi-NCR'!P5 -> 11179.82463 | Q5: ='HT Delhi-NCR'!Q5 -> 11745.52375
A6: HT Mumbai | D6: ='HT Mumbai'!D5 -> 800 | E6: ='HT Mumbai'!E5 -> 1010.08 | F6: ='HT Mumbai'!F5 -> 1112.704128 | G6: ='HT Mumbai'!G5 -> 1123.608628 | H6: ='HT Mumbai'!H5 -> 1409.00522 | I6: ='HT Mumbai'!I5 -> 1589.92149 | J6: ='HT Mumbai'!J5 -> 1904.407961 | K6: ='HT Mumbai'!K5 -> 2382.033478 | L6: ='HT Mumbai'!L5 -> 2599.751338 | M6: ='HT Mumbai'!M5 -> 2865.965875 | N6: ='HT Mumbai'!N5 -> 3220.199257 | O6: ='HT Mumbai'!O5 -> 3618.215885 | P6: ='HT Mumbai'!P5 -> 3988.721191 | Q6: ='HT Mumbai'!Q5 -> 4314.200841
A7: HT Others | D7: ='HT Others'!D5 -> 750 | E7: ='HT Others'!E5 -> 907.2 | F7: ='HT Others'!F5 -> 1000.09728 | G7: ='HT Others'!G5 -> 1050.502183 | H7: ='HT Others'!H5 -> 1256.400611 | I7: ='HT Others'!I5 -> 1411.189166 | J7: ='HT Others'!J5 -> 1614.400406 | K7: ='HT Others'!K5 -> 1899.503518 | L7: ='HT Others'!L5 -> 1987.640481 | M7: ='HT Others'!M5 -> 2106.89891 | N7: ='HT Others'!N5 -> 2367.311615 | O7: ='HT Others'!O5 -> 2659.91133 | P7: ='HT Others'!P5 -> 2932.286251 | Q7: ='HT Others'!Q5 -> 3232.552363
A8: HT Mint | D8: ='HT Mint'!D5 -> 50 | E8: ='HT Mint'!E5 -> 200 | F8: ='HT Mint'!F5 -> 300 | G8: ='HT Mint'!G5 -> 450 | H8: ='HT Mint'!H5 -> 630.99 | I8: ='HT Mint'!I5 -> 745.767081 | J8: ='HT Mint'!J5 -> 926.9884817 | K8: ='HT Mint'!K5 -> 1161.33117 | L8: ='HT Mint'!L5 -> 1215.216936 | M8: ='HT Mint'!M5 -> 1251.916488 | N8: ='HT Mint'!N5 -> 1391.880751 | O8: ='HT Mint'!O5 -> 1608.17902 | P8: ='HT Mint'!P5 -> 1823.996644 | Q8: ='HT Mint'!Q5 -> 2068.776994
A9: Hindustan | D9: =Hindustan!D5 -> 1273.6 | E9: =Hindustan!E5 -> 1651.7 | F9: =Hindustan!F5 -> 2439.9 | G9: =Hindustan!G5 -> 2979.9936 | H9: =Hindustan!H5 -> 3772.9548 | I9: =Hindustan!I5 -> 4402.504143 | J9: =Hindustan!J5 -> 5252.698853 | K9: =Hindustan!K5 -> 6379.559859 | L9: =Hindustan!L5 -> 7402.594239 | M9: =Hindustan!M5 -> 7921.978248 | N9: =Hindustan!N5 -> 9567.186461 | O9: =Hindustan!O5 -> 10928.5583 | P9: =Hindustan!P5 -> 12321.1615 | Q9: =Hindustan!Q5 -> 13884.02915
A10: Print advertising revenues | D10: =SUM(D5:D9) -> 8773.6 | E10: 10071.36 | F10: 11299.40591 | G10: 11406.13846 | H10: 13926.77468 | I10: 15349.67713 | J10: 17636.10118 | K10: 20903.0487 | L10: 22144.16598 | M10: 23243.04826 | N10: 26385.12398 | O10: 29456.23578 | P10: 32245.99022 | Q10: 35245.0831
A11: actual | D11: ='cons finstats'!D6 -> 8749.09 | E11: ='cons finstats'!E6 -> 10073.51 | F11: ='cons finstats'!F6 -> 11282.1 | G11: ='cons finstats'!G6 -> 11409.7
A13: Circulation revenues | D13: ='HT Delhi-NCR'!D10+'HT Mumbai'!D10+'HT Others'!D10+'HT Mint'!D10+Hindustan!D10 -> 1368.704 | E13: ='HT Delhi-NCR'!E10+'HT Mumbai'!E10+'HT Others'!E10+'HT Mint'!E10+Hindustan!E10 -> 1487.3064 | F13: ='HT Delhi-NCR'!F10+'HT Mumbai'!F10+'HT Others'!F10+'HT Mint'!F10+Hindustan!F10 -> 1563.2788 | G13: ='HT Delhi-NCR'!G10+'HT Mumbai'!G10+'HT Others'!G10+'HT Mint'!G10+Hindustan!G10 -> 1860.03792 | H13: ='HT Delhi-NCR'!H10+'HT Mumbai'!H10+'HT Others'!H10+'HT Mint'!H10+Hindustan!H10 -> 1808.1765 | I13: ='HT Delhi-NCR'!I10+'HT Mumbai'!I10+'HT Others'!I10+'HT Mint'!I10+Hindustan!I10 -> 1981.7298 | J13: ='HT Delhi-NCR'!J10+'HT Mumbai'!J10+'HT Others'!J10+'HT Mint'!J10+Hindustan!J10 -> 2214.980775 | K13: ='HT Delhi-NCR'!K10+'HT Mumbai'!K10+'HT Others'!K10+'HT Mint'!K10+Hindustan!K10 -> 2334.53628 | L13: ='HT Delhi-NCR'!L10+'HT Mumbai'!L10+'HT Others'!L10+'HT Mint'!L10+Hindustan!L10 -> 2364.75234 | M13: ='HT Delhi-NCR'!M10+'HT Mumbai'!M10+'HT Others'!M10+'HT Mint'!M10+Hindustan!M10 -> 2555.45685 | N13: ='HT Delhi-NCR'!N10+'HT Mumbai'!N10+'HT Others'!N10+'HT Mint'!N10+Hindustan!N10 -> 2778.6159 | O13: ='HT Delhi-NCR'!O10+'HT Mumbai'!O10+'HT Others'!O10+'HT Mint'!O10+Hindustan!O10 -> 2959.1928 | P13: ='HT Delhi-NCR'!P10+'HT Mumbai'!P10+'HT Others'!P10+'HT Mint'!P10+Hindustan!P10 -> 3189.006 | Q13: ='HT Delhi-NCR'!Q10+'HT Mumbai'!Q10+'HT Others'!Q10+'HT Mint'!Q10+Hindustan!Q10 -> 3357.702
A14: HT-Burda JV | D14: ='HT-Burda'!D4 -> 0 | E14: ='HT-Burda'!E4 -> 0 | F14: ='HT-Burda'!F4 -> 0 | G14: ='HT-Burda'!G4 -> 90 | H14: ='HT-Burda'!H4 -> 645.5163 | I14: ='HT-Burda'!I4 -> 1113.40125 | J14: ='HT-Burda'!J4 -> 1833.2028 | K14: ='HT-Burda'!K4 -> 2324.52828 | L14: ='HT-Burda'!L4 -> 2730.84966 | M14: ='HT-Burda'!M4 -> 3096.642948 | N14: ='HT-Burda'!N4 -> 3476.096588 | O14: ='HT-Burda'!O4 -> 3869.560276 | P14: ='HT-Burda'!P4 -> 4277.392905 | Q14: ='HT-Burda'!Q4 -> 4364.251163
A15: Fever FM | D15: ='Fever-FM'!D6 -> 21.4 | E15: ='Fever-FM'!E6 -> 257.9 | F15: ='Fever-FM'!F6 -> 338.7192859 | G15: ='Fever-FM'!G6 -> 437.1749053 | H15: ='Fever-FM'!H6 -> 631.91856 | I15: ='Fever-FM'!I6 -> 674.063208 | J15: ='Fever-FM'!J6 -> 785.0853834 | K15: ='Fever-FM'!K6 -> 863.5939218 | L15: ='Fever-FM'!L6 -> 1020.382169 | M15: ='Fever-FM'!M6 -> 1122.420386 | N15: ='Fever-FM'!N6 -> 1003.16322 | O15: ='Fever-FM'!O6 -> 272.6546187 | P15: ='Fever-FM'!P6 -> 0 | Q15: ='Fever-FM'!Q6 -> 0
A16: Internet | D16: =Internet!D6 -> 0 | E16: =Internet!E6 -> 0 | F16: =Internet!F6 -> 10 | G16: =Internet!G6 -> 40 | H16: =Internet!H6 -> 80 | I16: =Internet!I6 -> 200 | J16: =Internet!J6 -> 300 | K16: =Internet!K6 -> 390 | L16: =Internet!L6 -> 468 | M16: =Internet!M6 -> 538.2 | N16: =Internet!N6 -> 618.93 | O16: =Internet!O6 -> 711.7695 | P16: =Internet!P6 -> 818.534925 | Q16: =Internet!Q6 -> 941.3151637
A17: Other operating | D17: =SUM('cons finstats'!D11:D13) -> 265.909 | E17: =SUM('cons finstats'!E11:E13) -> 281.94 | F17: =SUM('cons finstats'!F11:F13) -> 354.1 | G17: =SUM('cons finstats'!G11:G13) -> 369.3 | H17: =SUM('cons finstats'!H11:H13) -> 592 | I17: =SUM('cons finstats'!I11:I13) -> 691.215 | J17: =SUM('cons finstats'!J11:J13) -> 760.3365 | K17: =SUM('cons finstats'!K11:K13) -> 836.37015 | L17: =SUM('cons finstats'!L11:L13) -> 920.007165 | M17: =SUM('cons finstats'!M11:M13) -> 966.0075233 | N17: =SUM('cons finstats'!N11:N13) -> 1014.307899 | O17: =SUM('cons finstats'!O11:O13) -> 1065.023294 | P17: =SUM('cons finstats'!P11:P13) -> 1118.274459 | Q17: =SUM('cons finstats'!Q11:Q13) -> 1174.188182
A18: Total revenues | D18: =D10+SUM(D13:D17) -> 10429.613 | E18: =E10+SUM(E13:E17) -> 12098.5064 | F18: 13565.504 | G18: 14202.65129 | H18: 17684.38604 | I18: 20010.08639 | J18: 23529.70664 | K18: 27652.07733 | L18: 29648.15732 | M18: 31521.77596 | N18: 35276.23759 | O18: 38334.43627 | P18: 41649.19851 | Q18: 45082.53961
A19: actual | D19: ='cons finstats'!D14 -> 10396.575 | E19: ='cons finstats'!E14 -> 12032.51 | F19: ='cons finstats'!F14 -> 13466.1 | G19: ='cons finstats'!G14 -> 14129.2
A21: Common-size (%)
A22: HT Delhi-NCR | D22: =D5/D$18*100 -> 56.56969247 | E22: 52.09221528 | F22: 47.52277913 | G22: 40.85176728 | H22: 38.77671541 | I22: 35.98332915 | J22: 33.73440053 | K22: 32.83883725 | L22: 30.15014692 | M22: 28.85715814 | N22: 27.89000917 | O22: 27.7593002 | P22: 26.84283259 | Q22: 26.05337644
A23: HT Mumbai | D23: =D6/D$18*100 -> 7.670466776 | E23: 8.348799154 | F23: 8.202453284 | G23: 7.911259705 | H23: 7.967509967 | I23: 7.945600332 | J23: 8.093632403 | K23: 8.6143021 | L23: 8.768677628 | M23: 9.092019047 | N23: 9.128522419 | O23: 9.438552479 | P23: 9.576945859 | Q23: 9.569560362
A24: HT Others | D24: =D7/D$18*100 -> 7.191062602 | E24: 7.498446254 | F24: 7.372356238 | G24: 7.396521689 | H24: 7.1045758 | I24: 7.052389174 | J24: 6.86111574 | K24: 6.869297721 | L24: 6.704094489 | M24: 6.683947351 | N24: 6.710782602 | O24: 6.938699481 | P24: 7.040438606 | Q24: 7.170297838
A25: HT Mint | D25: =D8/D$18*100 -> 0.4794041735 | E25: 1.653096617 | F25: 2.211491737 | G25: 3.168422507 | H25: 3.568062802 | I25: 3.726955829 | J25: 3.939651674 | K25: 4.199797202 | L25: 4.098794145 | M25: 3.971592492 | N25: 3.945661006 | O25: 4.195128913 | P25: 4.379427959 | Q25: 4.58886525
A26: Hindustan | D26: =D9/D$18*100 -> 12.21138311 | E26: 13.65209841 | F26: 17.9860623 | G26: 20.98195287 | H26: 21.33494933 | I26: 22.00142497 | J26: 22.32369036 | K26: 23.07081592 | L26: 24.96814274 | M26: 25.1317637 | N26: 27.12076773 | O26: 28.50846227 | P26: 29.58318994 | Q26: 30.79691
A27: Print advertising revenues | D27: =D10/D$18*100 -> 84.12200913 | E27: 83.24465572 | F27: 83.29514269 | G27: 80.30992405 | H27: 78.75181331 | I27: 76.70969946 | J27: 74.9524907 | K27: 75.5930502 | L27: 74.68985592 | M27: 73.73648072 | N27: 74.79574293 | O27: 76.84014335 | P27: 77.42283495 | Q27: 78.17900989
A28: Circulation revenues | D28: =D13/D$18*100 -> 13.1232482 | E28: 12.29330589 | F28: 11.52392716 | G28: 13.09641335 | H28: 10.22470611 | I28: 9.903654396 | J28: 9.413550321 | K28: 8.442534904 | L28: 7.976051647 | M28: 8.106957086 | N28: 7.876735417 | O28: 7.719411287 | P28: 7.656824415 | Q28: 7.447898963
A29: HT-Burda JV | D29: =D14/D$18*100 -> 0 | E29: 0 | F29: 0 | G29: 0.6336845014 | H29: 3.650204755 | I29: 5.564200116 | J29: 7.791014261 | K29: 8.406342325 | L29: 9.210857966 | M29: 9.823821321 | N29: 9.85393235 | O29: 10.09421463 | P29: 10.27004854 | Q29: 9.680579667
A30: Fever FM | D30: =D15/D$18*100 -> 0.2051849863 | E30: 2.131668088 | F30: 2.49691634 | G30: 3.078121798 | H30: 3.573313536 | I30: 3.368617181 | J30: 3.336571065 | K30: 3.123070689 | L30: 3.441637731 | M30: 3.560777752 | N30: 2.843736431 | O30: 0.711252454 | P30: 0 | Q30: 0
A31: Internet | D31: =D16/D$18*100 -> 0 | E31: 0 | F31: 0.07371639125 | G31: 0.2816375562 | H31: 0.4523764627 | I31: 0.9994959349 | J31: 1.274984022 | K31: 1.410382285 | L31: 1.578512941 | M31: 1.707391108 | N31: 1.754523845 | O31: 1.856736578 | P31: 1.965307748 | Q31: 2.087981671
A32: Other operating | D32: =D17/D$18*100 -> 2.549557687 | E32: 2.330370301 | F32: 2.610297414 | G32: 2.600218737 | H32: 3.347585824 | I32: 3.454332913 | J32: 3.231389628 | K32: 3.024619598 | L32: 3.103083794 | M32: 3.06457201 | N32: 2.875329028 | O32: 2.778241701 | P32: 2.684984344 | Q32: 2.604529807
A33: Total revenues | D33: =D18/D$18*100 -> 100 | E33: 100 | F33: 100 | G33: 100 | H33: 100 | I33: 100 | J33: 100 | K33: 100 | L33: 100 | M33: 100 | N33: 100 | O33: 100 | P33: 100 | Q33: 100
A35: Growth (%)
A36: HT Delhi-NCR | E36: =(E5/D5-1)*100 -> 6.82 | F36: 2.29 | G36: -10 | H36: 18.19 | I36: 5 | J36: 10.24 | K36: 14.4 | L36: -1.56 | M36: 1.76 | N36: 8.16 | O36: 8.16 | P36: 5.06 | Q36: 5.06
A37: HT Mumbai | E37: =(E6/D6-1)*100 -> 26.26 | F37: 10.16 | G37: 0.98 | H37: 25.4 | I37: 12.84 | J37: 19.78 | K37: 25.08 | L37: 9.14 | M37: 10.24 | N37: 12.36 | O37: 12.36 | P37: 10.24 | Q37: 8.16
A38: HT Others | E38: =(E7/D7-1)*100 -> 20.96 | F38: 10.24 | G38: 5.04 | H38: 19.6 | I38: 12.32 | J38: 14.4 | K38: 17.66 | L38: 4.64 | M38: 6 | N38: 12.36 | O38: 12.36 | P38: 10.24 | Q38: 10.24
A39: HT Mint | E39: =(E8/D8-1)*100 -> 300 | F39: 50 | G39: 50 | H39: 40.22 | I39: 18.19 | J39: 24.3 | K39: 25.28 | L39: 4.64 | M39: 3.02 | N39: 11.18 | O39: 15.54 | P39: 13.42 | Q39: 13.42
A40: Hindustan | E40: =(E9/D9-1)*100 -> 29.6875 | F40: 47.72053036 | G40: 22.13589082 | H40: 26.60949339 | I40: 16.68584377 | J40: 19.31161634 | K40: 21.45299089 | L40: 16.03612792 | M40: 7.016243122 | N40: 20.76764366 | O40: 14.22959452 | P40: 12.74278968 | Q40: 12.68441815
A41: Advertising revenues | E41: =(E10/D10-1)*100 -> 14.79164767 | F41: 12.19344666 | G41: 0.9445855297 | H41: 22.09894454 | I41: 10.21702788 | J41: 14.89558402 | K41: 18.52420486 | L41: 5.937494117 | M41: 4.962400823 | N41: 13.51834617 | O41: 11.63955796 | P41: 9.470845009 | Q41: 9.300669208
A42: Circulation revenues | E42: =(E13/D13-1)*100 -> 8.665306743 | F42: 5.108053055 | G42: 18.98312188 | H42: -2.788191544 | I42: 9.59824995 | J42: 11.77006951 | K42: 5.397586577 | L42: 1.294306722 | M42: 8.064460146 | N42: 8.732647941 | O42: 6.498807554 | P42: 7.76607729 | Q42: 5.289924196
A43: HT-Burda JV | I43: =(I14/H14-1)*100 -> 72.48228279 | J43: 64.64889006 | K43: 26.8014799 | L43: 17.47973486 | M43: 13.39485265 | N43: 12.25370978 | O43: 11.31912414 | P43: 10.53950837 | Q43: 2.030635484
A44: Fever FM | F44: =(F15/E15-1)*100 -> 31.33745091 | G44: 29.06702496 | H44: 44.54593628 | I44: 6.669316375 | J44: 16.47058824 | K44: 10 | L44: 18.15532081 | M44: 10 | N44: -10.625 | O44: -72.82051282 | P44: -100
A45: Internet | H45: =(H16/G16-1)*100 -> 100 | I45: 150 | J45: 50 | K45: 30 | L45: 20 | M45: 15 | N45: 15 | O45: 15 | P45: 15 | Q45: 15
A46: Other operating | E46: =(E17/D17-1)*100 -> 6.028754198 | F46: 25.59409804 | G46: 4.29257272 | H46: 60.30327647 | I46: 16.75929054 | J46: 10 | K46: 10 | L46: 10 | M46: 5 | N46: 5 | O46: 5 | P46: 5 | Q46: 5
A47: Total revenues | E47: =(E18/D18-1)*100 -> 16.00148922 | F47: 12.12544381 | G47: 4.69681991 | H47: 24.51468164 | I47: 13.15115122 | J47: 17.58923068 | K47: 17.51985585 | L47: 7.218553474 | M47: 6.319511288 | N47: 11.91069193 | O47: 8.669288137 | P47: 8.646957041 | Q47: 8.243474607
A49: Source: Company data, Kotak Institutional Equities estimates

Sheet cons expenses
A1: Derivation of expenses of HT Media, March fiscal year-ends, 2007-20E (Rs mn)
C3: 2006 | D3: 2007 | E3: 2008 | F3: 2009 | G3: 2010 | H3: 2011 | I3: 2012E | J3: 2013E | K3: 2014E | L3: 2015E | M3: 2016E | N3: 2017E | O3: 2018E | P3: 2019E | Q3: 2020E
A4: Expenses (Rs mn)
A5: Newsprint costs | D5: =D53 -> 4314.843987 | E5: 4670.887012 | F5: 5681.606951 | G5: 4746.055283 | H5: 6211.254635 | I5: 7444.033774 | J5: 9266.647469 | K5: 10407.94463 | L5: 10416.12606 | M5: 11025.59651 | N5: 12152.30841 | O5: 13410.30323 | P5: 14766.22402 | Q5: 15857.83527
A6: Employee costs | D6: =D67 -> 1551.15 | E6: 1904.225 | F6: 2377.78 | G6: 2503.287744 | H6: 3011.602906 | I6: 3547.717261 | J6: 4266.608661 | K6: 5048.96499 | L6: 5807.497998 | M6: 6150.573782 | N6: 6712.640002 | O6: 7103.254248 | P6: 7700.703568 | Q6: 8444.440219
A7: SG&A and other costs | D7: =D84 -> 2770.745 | E7: 3707.52 | F7: 4580.4 | G7: 4350.3 | H7: 5244.8 | I7: 6220.144688 | J7: 6868.336095 | K7: 7662.718914 | L7: 8376.344267 | M7: 8861.446763 | N7: 9618.661657 | O7: 10151.56881 | P7: 10912.388 | Q7: 11844.17865
A8: Total expenses | D8: =SUM(D5:D7) -> 8636.738987 | E8: 10282.63201 | F8: 12639.78695 | G8: 11599.64303 | H8: 14467.65754 | I8: 17211.89572 | J8: 20401.59222 | K8: 23119.62853 | L8: 24599.96832 | M8: 26037.61706 | N8: 28483.61007 | O8: 30665.12629 | P8: 33379.31559 | Q8: 36146.45414
A9: actual | D9: ='cons finstats'!D18+'cons finstats'!D22+'cons finstats'!D37 -> 8716.203 | E9: ='cons finstats'!E18+'cons finstats'!E22+'cons finstats'!E37 -> 10333.54 | F9: ='cons finstats'!F18+'cons finstats'!F22+'cons finstats'!F37 -> 12587.3 | G9: ='cons finstats'!G18+'cons finstats'!G22+'cons finstats'!G37 -> 11630.4
A11: Common-size (%)
A12: Newsprint costs | D12: =D5/D$8*100 -> 49.95918012 | E12: 45.42501382 | F12: 44.95017972 | G12: 40.9155288 | H12: 42.93199931 | I12: 43.24935436 | J12: 45.42119736 | K12: 45.01778484 | L12: 42.34203037 | M12: 42.34487544 | N12: 42.66421419 | O12: 43.7314463 | P12: 44.23764766 | Q12: 43.87106744
A13: Employee costs | D13: =D6/D$8*100 -> 17.95990364 | E13: 18.51884807 | F13: 18.81186771 | G13: 21.58073087 | H13: 20.81610584 | I13: 20.61200764 | J13: 20.91311607 | K13: 21.83843474 | L13: 23.60774584 | M13: 23.62187665 | N13: 23.56667566 | O13: 23.16394911 | P13: 23.07028599 | Q13: 23.36173885
A14: SG&A and other costs | D14: =D7/D$8*100 -> 32.08091624 | E14: 36.05613811 | F14: 36.23795257 | G14: 37.50374033 | H14: 36.25189486 | I14: 36.138638 | J14: 33.66568657 | K14: 33.14378041 | L14: 34.05022379 | M14: 34.03324791 | N14: 33.76911015 | O14: 33.10460459 | P14: 32.69206635 | Q14: 32.76719371
A15: Total expenses | D15: =D8/D$8*100 -> 100 | E15: 100 | F15: 100 | G15: 100 | H15: 100 | I15: 100 | J15: 100 | K15: 100 | L15: 100 | M15: 100 | N15: 100 | O15: 100 | P15: 100 | Q15: 100
A17: Growth (%)
A18: Newsprint costs | E18: =(E5/D5-1)*100 -> 8.251585147 | F18: 21.63871522 | G18: -16.46632152 | H18: 30.87194026 | I18: 19.84750603 | J18: 24.4842212 | K18: 12.31618193 | L18: 0.07860752605 | M18: 5.851220015 | N18: 10.21905615 | O18: 10.3519001 | P18: 10.11103747 | Q18: 7.392622876
A19: Employee costs | E19: =(E6/D6-1)*100 -> 22.76214422 | F19: 24.86864735 | G19: 5.278358132 | H19: 20.30590222 | I19: 17.80162832 | J19: 20.2634919 | K19: 18.33672574 | L19: 15.02353471 | M19: 5.907462813 | N19: 9.138435521 | O19: 5.81908528 | P19: 8.410924051 | Q19: 9.658035065
A20: SG&A and other costs | E20: =(E7/D7-1)*100 -> 33.80949889 | F20: 23.54350078 | G20: -5.023578727 | H20: 20.56180034 | I20: 18.59641335 | J20: 10.42084131 | K20: 11.56586993 | L20: 9.31295225 | M20: 5.791339044 | N20: 8.545048159 | O20: 5.540346129 | P20: 7.494597214 | Q20: 8.53883357
A21: Total expenses | E21: =(E8/D8-1)*100 -> 19.05688047 | F21: 22.92365356 | G21: -8.229125445 | H21: 24.72502392 | I21: 18.96808916 | J21: 18.5319302 | K21: 13.32266756 | L21: 6.402956635 | M21: 5.844108067 | N21: 9.394073988 | O21: 7.658847372 | P21: 8.851061861 | Q21: 8.289979907
A23: Source: Company data, Kotak Institutional Equities estimates
A25: Print standalone | D25: ='HT Delhi-NCR'!D79+'HT Mumbai'!D79+'HT Others'!D79+'HT Mint'!D79 -> 95716.8 | E25: ='HT Delhi-NCR'!E79+'HT Mumbai'!E79+'HT Others'!E79+'HT Mint'!E79 -> 113529.6 | F25: ='HT Delhi-NCR'!F79+'HT Mumbai'!F79+'HT Others'!F79+'HT Mint'!F79 -> 105786 | G25: ='HT Delhi-NCR'!G79+'HT Mumbai'!G79+'HT Others'!G79+'HT Mint'!G79 -> 101122.56 | H25: ='HT Delhi-NCR'!H79+'HT Mumbai'!H79+'HT Others'!H79+'HT Mint'!H79 -> 118720.8 | I25: ='HT Delhi-NCR'!I79+'HT Mumbai'!I79+'HT Others'!I79+'HT Mint'!I79 -> 125278.56 | J25: ='HT Delhi-NCR'!J79+'HT Mumbai'!J79+'HT Others'!J79+'HT Mint'!J79 -> 136429.92 | K25: ='HT Delhi-NCR'!K79+'HT Mumbai'!K79+'HT Others'!K79+'HT Mint'!K79 -> 149094 | L25: ='HT Delhi-NCR'!L79+'HT Mumbai'!L79+'HT Others'!L79+'HT Mint'!L79 -> 134799.84 | M25: ='HT Delhi-NCR'!M79+'HT Mumbai'!M79+'HT Others'!M79+'HT Mint'!M79 -> 134954.64 | N25: ='HT Delhi-NCR'!N79+'HT Mumbai'!N79+'HT Others'!N79+'HT Mint'!N79 -> 144072.36 | O25: ='HT Delhi-NCR'!O79+'HT Mumbai'!O79+'HT Others'!O79+'HT Mint'!O79 -> 152772.48 | P25: ='HT Delhi-NCR'!P79+'HT Mumbai'!P79+'HT Others'!P79+'HT Mint'!P79 -> 163938.6 | Q25: ='HT Delhi-NCR'!Q79+'HT Mumbai'!Q79+'HT Others'!Q79+'HT Mint'!Q79 -> 174938.4
A26: Print consolidated | D26: =D25+Hindustan!D43 -> 137601.675 | E26: =E25+Hindustan!E43 -> 161925.48 | F26: =F25+Hindustan!F43 -> 158814 | G26: =G25+Hindustan!G43 -> 160860.06 | H26: =H25+Hindustan!H43 -> 189757.8 | I26: =I25+Hindustan!I43 -> 202228.56 | J26: =J25+Hindustan!J43 -> 222148.17 | K26: =K25+Hindustan!K43 -> 243945 | L26: =L25+Hindustan!L43 -> 237406.59 | M26: =M25+Hindustan!M43 -> 240700.14 | N26: =N25+Hindustan!N43 -> 258201.36 | O26: =O25+Hindustan!O43 -> 276783.48 | P26: =P25+Hindustan!P43 -> 295644.6 | Q26: =Q25+Hindustan!Q43 -> 312476.4
A27: Print + Burda | D27: =D26+'HT-Burda'!D16 -> 137601.675 | E27: =E26+'HT-Burda'!E16 -> 161925.48 | F27: =F26+'HT-Burda'!F16 -> 158814 | G27: =G26+'HT-Burda'!G16 -> 160860.06 | H27: =H26+'HT-Burda'!H16 -> 202757.8 | I27: =I26+'HT-Burda'!I16 -> 225228.56 | J27: =J26+'HT-Burda'!J16 -> 255148.17 | K27: =K26+'HT-Burda'!K16 -> 283945 | L27: =L26+'HT-Burda'!L16 -> 282406.59 | M27: =M26+'HT-Burda'!M16 -> 290700.14 | N27: =N26+'HT-Burda'!N16 -> 313201.36 | O27: =O26+'HT-Burda'!O16 -> 336783.48 | P27: =P26+'HT-Burda'!P16 -> 360644.6 | Q27: =Q26+'HT-Burda'!Q16 -> 377476.4
E28: =(E27/D27-1)*100 -> 17.67696869 | F28: =(F27/E27-1)*100 -> -1.92155058 | G28: 1.2883373 | H28: 26.04608005 | I28: 11.08256255 | J28: 13.28411015 | K28: 11.2863165 | L28: -0.5417985878 | M28: 2.936740959 | N28: 7.740354029 | O28: 7.529379821 | P28: 7.085003101 | Q28: 4.667143221
A30: Key assumptions
A32: A. Imported np price
A33: Landed price (US$/ton) | D33: 680 | E33: 620 | F33: 710 | G33: 600 | H33: 620 | I33: 650 | J33: =650 -> 650 | K33: =J33*(1+2%) -> 663 | L33: 676.26 | M33: 689.7852 | N33: 703.580904 | O33: 717.6525221 | P33: 732.0055725 | Q33: 746.645684
A34: Forex rate (Rs/US Dollar) | D34: 46 | E34: 42 | F34: 45 | G34: 47 | H34: 46 | I34: 47 | J34: 52 | K34: =J34-1 -> 51 | L34: =K34-1 -> 50 | M34: =L34 -> 50 | N34: 50 | O34: 50 | P34: 50 | Q34: 50
A35: Import tariff (%) | D35: 5.1 | E35: 5.1 | F35: 3.1 | G35: 0 | H35: =G35 -> 0 | I35: =H35 -> 0 | J35: 0 | K35: 0 | L35: 0 | M35: 0 | N35: 0 | O35: 0 | P35: 0 | Q35: 0
A36: India price (Rs/ton) | D36: =D33*D34*(1+D35%) -> 32875.28 | E36: 27368.04 | F36: 32940.45 | G36: 28200 | H36: 28520 | I36: 30550 | J36: 33800 | K36: 33813 | L36: =L33*L34*(1+L35%) -> 33813 | M36: 34489.26 | N36: 35179.0452 | O36: 35882.6261 | P36: 36600.27863 | Q36: 37332.2842
A37: Discount to landed price (%) | D37: 5 | E37: =D37 -> 5 | F37: =E37 -> 5 | G37: 5 | H37: 5 | I37: 5 | J37: 5 | K37: 5 | L37: 5 | M37: 5 | N37: 5 | O37: 5 | P37: 5 | Q37: 5
A38: Transport cost (Rs/ton) | D38: 2500 | E38: 2750 | F38: 2750 | G38: 2750 | H38: =G38+250 -> 3000 | I38: =H38+250 -> 3250 | J38: =I38+250 -> 3500 | K38: =J38+250 -> 3750 | L38: =K38+250 -> 4000 | M38: =L38+100 -> 4100 | N38: =M38+100 -> 4200 | O38: =N38+100 -> 4300 | P38: =O38+100 -> 4400 | Q38: =P38+100 -> 4500
A39: Net imported price (Rs/ton) | D39: =D36*(1-D37%)+D38 -> 33731.516 | E39: =E36*(1-E37%)+E38 -> 28749.638 | F39: 34043.4275 | G39: 29540 | H39: 30094 | I39: 32272.5 | J39: 35610 | K39: 35872.35 | L39: =L36*(1-L37%)+L38 -> 36122.35 | M39: 36864.797 | N39: 37620.09294 | O39: 38388.4948 | P39: 39170.26469 | Q39: 39965.66999
A40: B. Domestic np price
A41: India price (Rs/ton) | D41: =D39*(1-18%) -> 27659.84312 | E41: =E39*(1-14%) -> 24724.68868 | F41: =F39*(1-20%) -> 27234.742 | G41: =G39*(1-14%) -> 25404.4 | H41: =H39*(1-20%) -> 24075.2 | I41: =I39*(1-6%) -> 30336.15 | J41: =J39*(1-12%) -> 31336.8 | K41: =K39*(1-12%) -> 31567.668 | L41: =L39*(1-12%) -> 31787.668 | M41: 32441.02136 | N41: 33105.68179 | O41: 33781.87542 | P41: 34469.83293 | Q41: 35169.78959
A42: Discount to landed price (%) | D42: 0 | E42: 0 | F42: 0 | G42: 0 | H42: =G42 -> 0 | I42: 0 | J42: 0 | K42: 0 | L42: 0 | M42: 0 | N42: 0 | O42: 0 | P42: 0 | Q42: 0
A43: Net domestic price (Rs/ton) | D43: =D41 -> 27659.84312 | E43: 24724.68868 | F43: 27234.742 | G43: 25404.4 | H43: 24075.2 | I43: 30336.15 | J43: 31336.8 | K43: 31567.668 | L43: 31787.668 | M43: 32441.02136 | N43: 33105.68179 | O43: 33781.87542 | P43: 34469.83293 | Q43: 35169.78959
A45: Newsprint costs
A46: HT Delhi-NCR | D46: ='HT Delhi-NCR'!D87 -> 2067.780574 | E46: ='HT Delhi-NCR'!E87 -> 2037.164849 | F46: ='HT Delhi-NCR'!F87 -> 2287.195421 | G46: ='HT Delhi-NCR'!G87 -> 1801.055596 | H46: ='HT Delhi-NCR'!H87 -> 2016.394301 | I46: ='HT Delhi-NCR'!I87 -> 2258.976892 | J46: ='HT Delhi-NCR'!J87 -> 2576.456543 | K46: ='HT Delhi-NCR'!K87 -> 2770.131053 | L46: ='HT Delhi-NCR'!L87 -> 2425.696717 | M46: ='HT Delhi-NCR'!M87 -> 2503.059848 | N46: ='HT Delhi-NCR'!N87 -> 2652.587185 | O46: ='HT Delhi-NCR'!O87 -> 2855.178267 | P46: ='HT Delhi-NCR'!P87 -> 3047.717463 | Q46: ='HT Delhi-NCR'!Q87 -> 3249.677815
A47: HT Mumbai | D47: ='HT Mumbai'!D87 -> 511.5602982 | E47: ='HT Mumbai'!E87 -> 537.8115202 | F47: ='HT Mumbai'!F87 -> 502.9712153 | G47: ='HT Mumbai'!G87 -> 491.1969807 | H47: ='HT Mumbai'!H87 -> 627.3226714 | I47: ='HT Mumbai'!I87 -> 823.2715783 | J47: ='HT Mumbai'!J87 -> 1065.265686 | K47: ='HT Mumbai'!K87 -> 1185.416442 | L47: ='HT Mumbai'!L87 -> 1131.991801 | M47: ='HT Mumbai'!M87 -> 1089.243626 | N47: ='HT Mumbai'!N87 -> 1226.646138 | O47: ='HT Mumbai'!O87 -> 1359.608698 | P47: ='HT Mumbai'!P87 -> 1517.355778 | Q47: ='HT Mumbai'!Q87 -> 1686.765617
A48: HT Others | D48: ='HT Others'!D87-'M-Now'!D5 -> 435.4351208 | E48: ='HT Others'!E87-'M-Now'!E5 -> 538.0759654 | F48: ='HT Others'!F87-'M-Now'!F5 -> 775.6449191 | G48: ='HT Others'!G87-'M-Now'!G5 -> 415.8645033 | H48: ='HT Others'!H87 -> 474.0671707 | I48: ='HT Others'!I87 -> 607.4291223 | J48: ='HT Others'!J87 -> 724.9329965 | K48: ='HT Others'!K87 -> 822.2342094 | L48: ='HT Others'!L87 -> 714.8480135 | M48: ='HT Others'!M87 -> 772.4549291 | N48: ='HT Others'!N87 -> 895.3653748 | O48: ='HT Others'!O87 -> 994.6317733 | P48: ='HT Others'!P87 -> 1124.833251 | Q48: ='HT Others'!Q87 -> 1265.60598
A49: HT Mint | D49: ='HT Mint'!D87 -> 92.16799432 | E49: ='HT Mint'!E87 -> 184.4346777 | F49: ='HT Mint'!F87 -> 218.3953961 | G49: ='HT Mint'!G87 -> 197.6467046 | H49: ='HT Mint'!H87 -> 256.9353494 | I49: ='HT Mint'!I87 -> 305.8999258 | J49: ='HT Mint'!J87 -> 402.0636787 | K49: ='HT Mint'!K87 -> 475.0302681 | L49: ='HT Mint'!L87 -> 460.0883491 | M49: ='HT Mint'!M87 -> 469.544855 | N49: ='HT Mint'!N87 -> 500.9452451 | O49: ='HT Mint'!O87 -> 551.6445129 | P49: ='HT Mint'!P87 -> 618.9058503 | Q49: ='HT Mint'!Q87 -> 664.7090233
A50: Hindustan | D50: =-Hindustan!D17 -> 1207.9 | E50: =-Hindustan!E17 -> 1315.4 | F50: =-Hindustan!F17 -> 1737.9 | G50: =-Hindustan!G17 -> 1718.091499 | H50: =-Hindustan!H17 -> 2249.702143 | I50: =-Hindustan!I17 -> 2557.735256 | J50: =-Hindustan!J17 -> 3087.772564 | K50: =-Hindustan!K17 -> 3433.259857 | L50: =-Hindustan!L17 -> 3732.894277 | M50: =-Hindustan!M17 -> 3979.405432 | N50: =-Hindustan!N17 -> 4393.838331 | O50: =-Hindustan!O17 -> 4885.268357 | P50: =-Hindustan!P17 -> 5402.13103 | Q50: =-Hindustan!Q17 -> 5873.754578
A51: Metro Now | D51: =-50%*'M-Now'!D5 -> 0 | E51: =-50%*'M-Now'!E5 -> 58 | F51: =-50%*'M-Now'!F5 -> 159.5 | G51: =-50%*'M-Now'!G5+50 -> 52.2 | H51: =-50%*'M-Now'!H5 -> 0 | I51: =-50%*'M-Now'!I5 -> 0 | J51: =-50%*'M-Now'!J5 -> 0 | K51: =-50%*'M-Now'!K5 -> 0 | L51: =-50%*'M-Now'!L5 -> 0 | M51: =-50%*'M-Now'!M5 -> 0 | N51: =-50%*'M-Now'!N5 -> 0 | O51: =-50%*'M-Now'!O5 -> 0 | P51: =-50%*'M-Now'!P5 -> 0 | Q51: =-50%*'M-Now'!Q5 -> 0
A52: HT-Burda JV | D52: =-'HT-Burda'!D5 -> 0 | E52: =-'HT-Burda'!E5 -> 0 | F52: =-'HT-Burda'!F5 -> 0 | G52: =-'HT-Burda'!G5 -> 70 | H52: =-'HT-Burda'!H5 -> 586.833 | I52: =-'HT-Burda'!I5 -> 890.721 | J52: =-'HT-Burda'!J5 -> 1410.156 | K52: =-'HT-Burda'!K5 -> 1721.8728 | L52: =-'HT-Burda'!L5 -> 1950.6069 | M52: =-'HT-Burda'!M5 -> 2211.88782 | N52: =-'HT-Burda'!N5 -> 2482.926134 | O52: =-'HT-Burda'!O5 -> 2763.971626 | P52: =-'HT-Burda'!P5 -> 3055.280646 | Q52: =-'HT-Burda'!Q5 -> 3117.322259
A53: Newsprint costs (Rs mn) | D53: =SUM(D46:D52) -> 4314.843987 | E53: =SUM(E46:E52) -> 4670.887012 | F53: 5681.606951 | G53: 4746.055283 | H53: 6211.254635 | I53: 7444.033774 | J53: 9266.647469 | K53: 10407.94463 | L53: 10416.12606 | M53: 11025.59651 | N53: 12152.30841 | O53: 13410.30323 | P53: 14766.22402 | Q53: 15857.83527
A54: growth (%) | E54: =(E53/D53-1)*100 -> 8.251585147 | F54: 21.63871522 | G54: -16.46632152 | H54: 30.87194026 | I54: 19.84750603 | J54: 24.4842212 | K54: 12.31618193 | L54: 0.07860752605 | M54: 5.851220015 | N54: 10.21905615 | O54: 10.3519001 | P54: 10.11103747 | Q54: 7.392622876
A55: actual | D55: ='cons finstats'!D18 -> 4349.234 | E55: ='cons finstats'!E18 -> 4643.23 | F55: ='cons finstats'!F18 -> 5587.7 | G55: ='cons finstats'!G18 -> 4760.3
A57: Employee costs
A58: HT Delhi-NCR | D58: ='HT Delhi-NCR'!D97 -> 705 | E58: ='HT Delhi-NCR'!E97 -> 775.5 | F58: ='HT Delhi-NCR'!F97 -> 882 | G58: ='HT Delhi-NCR'!G97 -> 864 | H58: ='HT Delhi-NCR'!H97 -> 950.4 | I58: ='HT Delhi-NCR'!I97 -> 1067.22 | J58: ='HT Delhi-NCR'!J97 -> 1231.8768 | K58: ='HT Delhi-NCR'!K97 -> 1407.022848 | L58: ='HT Delhi-NCR'!L97 -> 1577.778048 | M58: ='HT Delhi-NCR'!M97 -> 1607.830963 | N58: ='HT Delhi-NCR'!N97 -> 1752.686014 | O58: ='HT Delhi-NCR'!O97 -> 1892.900896 | P58: ='HT Delhi-NCR'!P97 -> 2025.053421 | Q58: ='HT Delhi-NCR'!Q97 -> 2185.942986
A59: HT Mumbai | D59: ='HT Mumbai'!D97 -> 231 | E59: ='HT Mumbai'!E97 -> 272.25 | F59: ='HT Mumbai'!F97 -> 336.6 | G59: ='HT Mumbai'!G97 -> 336.6 | H59: ='HT Mumbai'!H97 -> 392.04 | I59: ='HT Mumbai'!I97 -> 455.202 | J59: ='HT Mumbai'!J97 -> 550.07568 | K59: ='HT Mumbai'!K97 -> 646.1376768 | L59: ='HT Mumbai'!L97 -> 727.2805478 | M59: ='HT Mumbai'!M97 -> 727.2805478 | N59: ='HT Mumbai'!N97 -> 785.4629917 | O59: ='HT Mumbai'!O97 -> 867.5795772 | P59: ='HT Mumbai'!P97 -> 960.5069896 | Q59: ='HT Mumbai'!Q97 -> 1039.799907
A60: HT Others | D60: ='HT Others'!D97 -> 213.75 | E60: ='HT Others'!E97 -> 259.875 | F60: ='HT Others'!F97 -> 310.5 | G60: ='HT Others'!G97 -> 310.5 | H60: ='HT Others'!H97 -> 356.4 | I60: ='HT Others'!I97 -> 408.375 | J60: ='HT Others'!J97 -> 484.8228 | K60: ='HT Others'!K97 -> 563.49216 | L60: ='HT Others'!L97 -> 631.1112192 | M60: ='HT Others'!M97 -> 642.3810624 | N60: ='HT Others'!N97 -> 718.1144087 | O60: ='HT Others'!O97 -> 801.8538516 | P60: ='HT Others'!P97 -> 877.8327903 | Q60: ='HT Others'!Q97 -> 945.2726428
A61: HT Mint | D61: ='HT Mint'!D97 -> 18 | E61: ='HT Mint'!E97 -> 59.4 | F61: ='HT Mint'!F97 -> 108 | G61: ='HT Mint'!G97 -> 129.6 | H61: ='HT Mint'!H97 -> 190.08 | I61: ='HT Mint'!I97 -> 222.156 | J61: ='HT Mint'!J97 -> 278.08704 | K61: ='HT Mint'!K97 -> 327.849984 | L61: ='HT Mint'!L97 -> 360.6349824 | M61: ='HT Mint'!M97 -> 360.6349824 | N61: ='HT Mint'!N97 -> 389.485781 | O61: ='HT Mint'!O97 -> 441.6768756 | P61: ='HT Mint'!P97 -> 512.7658204 | Q61: ='HT Mint'!Q97 -> 567.1635857
A62: Hindustan | D62: =-Hindustan!D18 -> 313.6 | E62: =-Hindustan!E18 -> 348.4 | F62: =-Hindustan!F18 -> 463.6 | G62: =-Hindustan!G18 -> 537.3 | H62: =-Hindustan!H18 -> 632.952 | I62: =-Hindustan!I18 -> 738.34872 | J62: =-Hindustan!J18 -> 886.1372688 | K62: =-Hindustan!K18 -> 1127.235936 | L62: =-Hindustan!L18 -> 1383.771318 | M62: =-Hindustan!M18 -> 1623.791665 | N62: =-Hindustan!N18 -> 1855.227271 | O62: =-Hindustan!O18 -> 2099.623995 | P62: =-Hindustan!P18 -> 2386.179767 | Q62: =-Hindustan!Q18 -> 2722.735239
A63: Metro Now | D63: =-50%*'M-Now'!E6 -> 21 | E63: =-50%*'M-Now'!F6 -> 22.5 | F63: =-50%*'M-Now'!G6 -> 5.8 | G63: =-50%*'M-Now'!H6 -> 0 | H63: =-50%*'M-Now'!I6 -> 0 | I63: =-50%*'M-Now'!J6 -> 0 | J63: =-50%*'M-Now'!K6 -> 0 | K63: =-50%*'M-Now'!L6 -> 0 | L63: =-50%*'M-Now'!M6 -> 0 | M63: =-50%*'M-Now'!N6 -> 0 | N63: =-50%*'M-Now'!O6 -> 0 | O63: =-50%*'M-Now'!P6 -> 0 | P63: =-50%*'M-Now'!Q6 -> 0 | Q63: =-50%*'M-Now'!R6 -> 0
A64: HT-Burda JV | D64: =-'HT-Burda'!D6 -> 0 | E64: =-'HT-Burda'!E6 -> 0 | F64: =-'HT-Burda'!F6 -> 0 | G64: =-'HT-Burda'!G6 -> 25 | H64: =-'HT-Burda'!H6 -> 137.5 | I64: =-'HT-Burda'!I6 -> 193.6 | J64: =-'HT-Burda'!J6 -> 237.16 | K64: =-'HT-Burda'!K6 -> 280.79744 | L64: =-'HT-Burda'!L6 -> 325.573248 | M64: =-'HT-Burda'!M6 -> 333.92128 | N64: =-'HT-Burda'!N6 -> 360.6349824 | O64: =-'HT-Burda'!O6 -> 389.485781 | P64: =-'HT-Burda'!P6 -> 412.8549279 | Q64: =-'HT-Burda'!Q6 -> 437.6262235
A65: Fever FM | D65: =-'Fever-FM'!D9 -> 48.8 | E65: =-'Fever-FM'!E9 -> 116.3 | F65: =-'Fever-FM'!F9 -> 156.28 | G65: =-'Fever-FM'!G9 -> 174.287744 | H65: =-'Fever-FM'!H9 -> 200.4309056 | I65: =-'Fever-FM'!I9 -> 230.4955414 | J65: =-'Fever-FM'!J9 -> 265.0698727 | K65: =-'Fever-FM'!K9 -> 304.8303536 | L65: =-'Fever-FM'!L9 -> 350.5549066 | M65: =-'Fever-FM'!M9 -> 403.1381426 | N65: =-'Fever-FM'!N9 -> 373.0602577 | O65: =-'Fever-FM'!O9 -> 104.2516287 | P65: =-'Fever-FM'!P9 -> 0 | Q65: =-'Fever-FM'!Q9 -> 0
A66: Internet | D66: =-Internet!D8 -> 0 | E66: =-Internet!E8 -> 50 | F66: =-Internet!F8 -> 115 | G66: =-Internet!G8 -> 126 | H66: =-Internet!H8 -> 151.8 | I66: =-Internet!I8 -> 232.32 | J66: =-Internet!J8 -> 333.3792 | K66: =-Internet!K8 -> 391.598592 | L66: =-Internet!L8 -> 450.793728 | M66: =-Internet!M8 -> 451.5951391 | N66: =-Internet!N8 -> 477.9682952 | O66: =-Internet!O8 -> 505.8816436 | P66: =-Internet!P8 -> 525.5098514 | Q66: =-Internet!Q8 -> 545.8996336
A67: Employee costs (Rs mn) | D67: =SUM(D58:D66) -> 1551.15 | E67: 1904.225 | F67: 2377.78 | G67: 2503.287744 | H67: 3011.602906 | I67: 3547.717261 | J67: 4266.608661 | K67: 5048.96499 | L67: 5807.497998 | M67: 6150.573782 | N67: 6712.640002 | O67: 7103.254248 | P67: 7700.703568 | Q67: 8444.440219
A68: growth (%) | E68: =(E67/D67-1)*100 -> 22.76214422 | F68: 24.86864735 | G68: 5.278358132 | H68: 20.30590222 | I68: 17.80162832 | J68: 20.2634919 | K68: 18.33672574 | L68: 15.02353471 | M68: 5.907462813 | N68: 9.138435521 | O68: 5.81908528 | P68: 8.410924051 | Q68: 9.658035065
A69: actual | D69: ='cons finstats'!D22 -> 1596.224 | E69: ='cons finstats'!E22 -> 1982.79 | F69: ='cons finstats'!F22 -> 2419.2 | G69: ='cons finstats'!G22 -> 2519.8
A71: SG&A and other costs
A72: HT Delhi-NCR | D72: =D88%*D$76 -> 1191.550317 | E72: 1325.427039 | F72: 1438.822247 | G72: 1527.129201 | H72: 1897.245501 | I72: 2334.535629 | J72: 2562.513811 | K72: 2887.373257 | L72: 2987.870316 | M72: 3069.821139 | N72: 3296.432063 | O72: 3510.11095 | P72: 3652.072911 | Q72: 3827.11534
A73: HT Mumbai | D73: =D89%*D$76 -> 424.2168667 | E73: 549.7688287 | F73: 724.0470599 | G73: 626.7462944 | H73: 721.3867857 | I73: 801.5817908 | J73: 942.9334231 | K73: 1006.532948 | L73: 1141.359863 | M73: 1258.842278 | N73: 1400.062827 | O73: 1545.585766 | P73: 1683.334429 | Q73: 1816.256056
A74: HT Others | D74: =D90%*D$76 -> 187.1545 | E74: 292.6728078 | F74: 349.1157441 | G74: 334.8543436 | H74: 408.0252047 | I74: 503.4750629 | J74: 575.0038313 | K74: 645.2684028 | L74: 711.2945885 | M74: 762.4027852 | N74: 851.3886114 | O74: 943.0641195 | P74: 1031.406818 | Q74: 1135.915715
A75: HT Mint | D75: =D91%*D$76 -> 68.62331667 | E75: 168.9717248 | F75: 220.3237489 | G75: 197.1581612 | H75: 270.8691079 | I75: 266.0700189 | J75: 330.1671175 | K75: 394.5085135 | L75: 434.8760447 | M75: 453.0187057 | N75: 500.5810863 | O75: 570.1753715 | P75: 641.5753493 | Q75: 726.9661969
A76: Print SG&A costs (Rs mn) | D76: =D84-SUM(D79:D83) -> 1871.545 | E76: =E84-SUM(E79:E83) -> 2291.02 | F76: 2627.22 | G76: 2685.888 | H76: 3297.5266 | I76: 3905.662501 | J76: 4410.618182 | K76: 4933.683122 | L76: 5275.400812 | M76: 5544.084908 | N76: 6048.464588 | O76: 6568.936207 | P76: 7008.389508 | Q76: 7506.253308
A77: growth (%) | E77: =(E76/D76-1)*100 -> 22.41330024 | F77: 14.67468638 | G77: 2.233082878 | H77: 22.77230472 | I77: 18.44218334 | J77: 12.92880993 | K77: 11.85922058 | L77: 6.926218848 | M77: 5.093150368 | N77: 9.097618247 | O77: 8.605020525 | P77: 6.689870116 | Q77: 7.103826058
A79: Hindustan | D79: =-Hindustan!D19 -> 718.6 | E79: =-Hindustan!E19 -> 850.4 | F79: =-Hindustan!F19 -> 1154.8 | G79: =-Hindustan!G19 -> 1130 | H79: =-Hindustan!H19 -> 1216.7 | I79: =-Hindustan!I19 -> 1495.614571 | J79: =-Hindustan!J19 -> 1588.800881 | K79: =-Hindustan!K19 -> 1812.337982 | L79: =-Hindustan!L19 -> 2104.882012 | M79: =-Hindustan!M19 -> 2276.528271 | N79: =-Hindustan!N19 -> 2540.343231 | O79: =-Hindustan!O19 -> 2859.044357 | P79: =-Hindustan!P19 -> 3209.614046 | Q79: =-Hindustan!Q19 -> 3601.787457
A80: Metro Now | D80: =-50%*'M-Now'!D7 -> 0 | E80: =-50%*'M-Now'!E7 -> 81 | F80: =-50%*'M-Now'!F7 -> 66.5 | G80: =-50%*'M-Now'!G7 -> 3.6 | H80: =-50%*'M-Now'!H7 -> 0 | I80: =-50%*'M-Now'!I7 -> 0 | J80: =-50%*'M-Now'!J7 -> 0 | K80: =-50%*'M-Now'!K7 -> 0 | L80: =-50%*'M-Now'!L7 -> 0 | M80: =-50%*'M-Now'!M7 -> 0 | N80: =-50%*'M-Now'!N7 -> 0 | O80: =-50%*'M-Now'!O7 -> 0 | P80: =-50%*'M-Now'!P7 -> 0 | Q80: =-50%*'M-Now'!Q7 -> 0
A81: HT-Burda JV | D81: =-'HT-Burda'!D7 -> 0 | E81: =-'HT-Burda'!E7 -> 0 | F81: =-'HT-Burda'!F7 -> 0 | G81: =-'HT-Burda'!G7 -> 15 | H81: =-'HT-Burda'!H7 -> 96.827445 | I81: =-'HT-Burda'!I7 -> 111.340125 | J81: =-'HT-Burda'!J7 -> 146.656224 | K81: =-'HT-Burda'!K7 -> 151.0943382 | L81: =-'HT-Burda'!L7 -> 163.8509796 | M81: =-'HT-Burda'!M7 -> 170.3153621 | N81: =-'HT-Burda'!N7 -> 191.1853123 | O81: =-'HT-Burda'!O7 -> 193.4780138 | P81: =-'HT-Burda'!P7 -> 213.8696452 | Q81: =-'HT-Burda'!Q7 -> 218.2125581
A82: Fever FM | D82: =-SUM('Fever-FM'!D7:D8)-SUM('Fever-FM'!D10:D11) -> 180.6 | E82: =-SUM('Fever-FM'!E7:E8)-SUM('Fever-FM'!E10:E11) -> 455.1 | F82: =-SUM('Fever-FM'!F7:F8)-SUM('Fever-FM'!F10:F11) -> 481.88 | G82: =-SUM('Fever-FM'!G7:G8)-SUM('Fever-FM'!G10:G11) -> 315.812 | H82: =-SUM('Fever-FM'!H7:H8)-SUM('Fever-FM'!H10:H11) -> 388.7459552 | I82: =-SUM('Fever-FM'!I7:I8)-SUM('Fever-FM'!I10:I11) -> 417.52749 | J82: =-SUM('Fever-FM'!J7:J8)-SUM('Fever-FM'!J10:J11) -> 399.7608067 | K82: =-SUM('Fever-FM'!K7:K8)-SUM('Fever-FM'!K10:K11) -> 416.4034721 | L82: =-SUM('Fever-FM'!L7:L8)-SUM('Fever-FM'!L10:L11) -> 452.0264639 | M82: =-SUM('Fever-FM'!M7:M8)-SUM('Fever-FM'!M10:M11) -> 471.0358225 | N82: =-SUM('Fever-FM'!N7:N8)-SUM('Fever-FM'!N10:N11) -> 422.1113855 | O82: =-SUM('Fever-FM'!O7:O8)-SUM('Fever-FM'!O10:O11) -> 85.51383286 | P82: =-SUM('Fever-FM'!P7:P8)-SUM('Fever-FM'!P10:P11) -> 0 | Q82: =-SUM('Fever-FM'!Q7:Q8)-SUM('Fever-FM'!Q10:Q11) -> 0
A83: Internet | D83: =-Internet!D7-Internet!D9 -> 0 | E83: =-Internet!E7-Internet!E9 -> 30 | F83: =-Internet!F7-Internet!F9 -> 250 | G83: =-Internet!G7-Internet!G9 -> 200 | H83: =-Internet!H7-Internet!H9 -> 245 | I83: =-Internet!I7-Internet!I9 -> 290 | J83: =-Internet!J7-Internet!J9 -> 322.5 | K83: =-Internet!K7-Internet!K9 -> 349.2 | L83: =-Internet!L7-Internet!L9 -> 380.184 | M83: =-Internet!M7-Internet!M9 -> 399.4824 | N83: =-Internet!N7-Internet!N9 -> 416.55714 | O83: =-Internet!O7-Internet!O9 -> 444.596394 | P83: =-Internet!P7-Internet!P9 -> 480.5147994 | Q83: =-Internet!Q7-Internet!Q9 -> 517.9253253
A84: SG&A and other costs (Rs mn) | D84: ='cons finstats'!D37 -> 2770.745 | E84: ='cons finstats'!E37 -> 3707.52 | F84: ='cons finstats'!F37 -> 4580.4 | G84: ='cons finstats'!G37 -> 4350.3 | H84: ='cons finstats'!H37 -> 5244.8 | I84: ='cons finstats'!I37 -> 6220.144688 | J84: ='cons finstats'!J37 -> 6868.336095 | K84: ='cons finstats'!K37 -> 7662.718914 | L84: ='cons finstats'!L37 -> 8376.344267 | M84: ='cons finstats'!M37 -> 8861.446763 | N84: ='cons finstats'!N37 -> 9618.661657 | O84: ='cons finstats'!O37 -> 10151.56881 | P84: ='cons finstats'!P37 -> 10912.388 | Q84: ='cons finstats'!Q37 -> 11844.17865
A85: growth (%) | E85: =(E84/D84-1)*100 -> 33.80949889 | F85: 23.54350078 | G85: -5.023578727 | H85: 20.56180034 | I85: 18.59641335 | J85: 10.42084131 | K85: 11.56586993 | L85: 9.31295225 | M85: 5.791339044 | N85: 8.545048159 | O85: 5.540346129 | P85: 7.494597214 | Q85: 8.53883357
A87: SG&A and other costs (%)
A88: HT Delhi-NCR | D88: ='cons revenues'!D5/SUM('cons revenues'!D$5:D$8)*100-15 -> 63.66666667 | E88: ='cons revenues'!E5/SUM('cons revenues'!E$5:E$8)*100-17 -> 57.85314134 | F88: ='cons revenues'!F5/SUM('cons revenues'!F$5:F$8)*100-18 -> 54.76595972 | G88: ='cons revenues'!G5/SUM('cons revenues'!G$5:G$8)*100-12 -> 56.85751605 | H88: ='cons revenues'!H5/SUM('cons revenues'!H$5:H$8)*100-10 -> 57.53541159 | I88: ='cons revenues'!I5/SUM('cons revenues'!I$5:I$8)*100-6 -> 59.77310195 | J88: ='cons revenues'!J5/SUM('cons revenues'!J$5:J$8)*100-6 -> 58.098745 | K88: ='cons revenues'!K5/SUM('cons revenues'!K$5:K$8)*100-4 -> 58.52368679 | L88: ='cons revenues'!L5/SUM('cons revenues'!L$5:L$8)*100-4 -> 56.63778778 | M88: ='cons revenues'!M5/SUM('cons revenues'!M$5:M$8)*100-4 -> 55.37110614 | N88: ='cons revenues'!N5/SUM('cons revenues'!N$5:N$8)*100-4 -> 54.50031186 | O88: ='cons revenues'!O5/SUM('cons revenues'!O$5:O$8)*100-4 -> 53.43499829 | P88: ='cons revenues'!P5/SUM('cons revenues'!P$5:P$8)*100-4 -> 52.11001624 | Q88: ='cons revenues'!Q5/SUM('cons revenues'!Q$5:Q$8)*100-4 -> 50.98569397
A89: HT Mumbai | D89: ='cons revenues'!D6/SUM('cons revenues'!D$5:D$8)*100+12 -> 22.66666667 | E89: ='cons revenues'!E6/SUM('cons revenues'!E$5:E$8)*100+12 -> 23.99668395 | F89: ='cons revenues'!F6/SUM('cons revenues'!F$5:F$8)*100+15 -> 27.55943773 | G89: ='cons revenues'!G6/SUM('cons revenues'!G$5:G$8)*100+10 -> 23.33478888 | H89: ='cons revenues'!H6/SUM('cons revenues'!H$5:H$8)*100+8 -> 21.87660247 | I89: ='cons revenues'!I6/SUM('cons revenues'!I$5:I$8)*100+6 -> 20.52358059 | J89: ='cons revenues'!J6/SUM('cons revenues'!J$5:J$8)*100+6 -> 21.37871346 | K89: ='cons revenues'!K6/SUM('cons revenues'!K$5:K$8)*100+4 -> 20.40124838 | L89: ='cons revenues'!L6/SUM('cons revenues'!L$5:L$8)*100+4 -> 21.63550986 | M89: ='cons revenues'!M6/SUM('cons revenues'!M$5:M$8)*100+4 -> 22.70604255 | N89: ='cons revenues'!N6/SUM('cons revenues'!N$5:N$8)*100+4 -> 23.14740885 | O89: ='cons revenues'!O6/SUM('cons revenues'!O$5:O$8)*100+4 -> 23.5287072 | P89: ='cons revenues'!P6/SUM('cons revenues'!P$5:P$8)*100+4 -> 24.01884808 | Q89: ='cons revenues'!Q6/SUM('cons revenues'!Q$5:Q$8)*100+4 -> 24.19657293
A90: HT Others | D90: ='cons revenues'!D7/SUM('cons revenues'!D$5:D$8)*100 -> 10 | E90: ='cons revenues'!E7/SUM('cons revenues'!E$5:E$8)*100+2 -> 12.77478188 | F90: ='cons revenues'!F7/SUM('cons revenues'!F$5:F$8)*100+2 -> 13.2884092 | G90: ='cons revenues'!G7/SUM('cons revenues'!G$5:G$8)*100 -> 12.46717449 | H90: ='cons revenues'!H7/SUM('cons revenues'!H$5:H$8)*100 -> 12.3736744 | I90: ='cons revenues'!I7/SUM('cons revenues'!I$5:I$8)*100 -> 12.8909004 | J90: ='cons revenues'!J7/SUM('cons revenues'!J$5:J$8)*100 -> 13.03680816 | K90: ='cons revenues'!K7/SUM('cons revenues'!K$5:K$8)*100 -> 13.07883759 | L90: ='cons revenues'!L7/SUM('cons revenues'!L$5:L$8)*100 -> 13.4832331 | M90: ='cons revenues'!M7/SUM('cons revenues'!M$5:M$8)*100 -> 13.75164338 | N90: ='cons revenues'!N7/SUM('cons revenues'!N$5:N$8)*100 -> 14.07611137 | O90: ='cons revenues'!O7/SUM('cons revenues'!O$5:O$8)*100 -> 14.35642073 | P90: ='cons revenues'!P7/SUM('cons revenues'!P$5:P$8)*100 -> 14.71674509 | Q90: ='cons revenues'!Q7/SUM('cons revenues'!Q$5:Q$8)*100 -> 15.13292542
A91: HT Mint | D91: ='cons revenues'!D8/SUM('cons revenues'!D$5:D$8)*100+3 -> 3.666666667 | E91: ='cons revenues'!E8/SUM('cons revenues'!E$5:E$8)*100+5 -> 7.375392831 | F91: ='cons revenues'!F8/SUM('cons revenues'!F$5:F$8)*100+5 -> 8.38619335 | G91: ='cons revenues'!G8/SUM('cons revenues'!G$5:G$8)*100+2 -> 7.340520574 | H91: ='cons revenues'!H8/SUM('cons revenues'!H$5:H$8)*100+2 -> 8.214311537 | I91: ='cons revenues'!I8/SUM('cons revenues'!I$5:I$8)*100 -> 6.812417069 | J91: ='cons revenues'!J8/SUM('cons revenues'!J$5:J$8)*100 -> 7.485733379 | K91: ='cons revenues'!K8/SUM('cons revenues'!K$5:K$8)*100 -> 7.996227235 | L91: ='cons revenues'!L8/SUM('cons revenues'!L$5:L$8)*100 -> 8.243469267 | M91: ='cons revenues'!M8/SUM('cons revenues'!M$5:M$8)*100 -> 8.171207931 | N91: ='cons revenues'!N8/SUM('cons revenues'!N$5:N$8)*100 -> 8.276167926 | O91: ='cons revenues'!O8/SUM('cons revenues'!O$5:O$8)*100 -> 8.679873781 | P91: ='cons revenues'!P8/SUM('cons revenues'!P$5:P$8)*100 -> 9.154390586 | Q91: ='cons revenues'!Q8/SUM('cons revenues'!Q$5:Q$8)*100 -> 9.68480768

Sheet HT Delhi-NCR
A1: Derivation of financials of HT English Delhi-NCR, March fiscal year-ends, 2007-20E (Rs mn)
B3: 2005 | C3: 2006 | D3: 2007 | E3: 2008 | F3: 2009 | G3: 2010 | H3: 2011 | I3: 2012E | J3: 2013E | K3: 2014E | L3: 2015E | M3: 2016E | N3: 2017E | O3: 2018E | P3: 2019E | Q3: 2020E
A4: Revenues from advertising
A5: Total advertising revenues | D5: =D41 -> 5900 | E5: 6302.38 | F5: 6446.704502 | G5: 5802.034052 | H5: 6857.424046 | I5: 7200.295248 | J5: 7937.605482 | K5: 9080.620671 | L5: 8938.962988 | M5: 9096.288737 | N5: 9838.545898 | O5: 10641.37124 | P5: 11179.82463 | Q5: 11745.52375
A6: growth (%) | E6: =(E5/D5-1)*100 -> 6.82 | F6: 2.29 | G6: -10 | H6: 18.19 | I6: 5 | J6: 10.24 | K6: 14.4 | L6: -1.56 | M6: 1.76 | N6: 8.16 | O6: 8.16 | P6: 5.06 | Q6: 5.06
A7: actual | D7: 5900 | E7: 6300 | F7: 6400 | G7: 5900
A9: Revenues from circulation
A10: Total circulation revenues | D10: =D72 -> 406.08 | E10: 395.928 | F10: 391.716 | G10: 439.992 | H10: 430.92 | I10: 461.7 | J10: 492.48 | K10: 537.795 | L10: 523.26 | M10: 574.56 | N10: 604.8 | O10: 622.08 | P10: 671.328 | Q10: 722.304
A11: growth (%) | E11: =(E10/D10-1)*100 -> -2.5 | F11: -1.063829787 | G11: 12.3242349 | H11: -2.06185567 | I11: 7.142857143 | J11: 6.666666667 | K11: 9.201388889 | L11: -2.702702703 | M11: 9.803921569 | N11: 5.263157895 | O11: 2.857142857 | P11: 7.916666667 | Q11: 7.593307593
A12: actual | D12: 400 | E12: 400 | F12: 400 | G12: 450
A14: Other operating revenue | D14: =+'cons revenues'!D17*60% -> 159.5454 | E14: =+'cons revenues'!E17*60% -> 169.164 | F14: =+'cons revenues'!F17*60% -> 212.46 | G14: =+'cons revenues'!G17*60% -> 221.58 | H14: =+'cons revenues'!H17*60% -> 355.2 | I14: =+'cons revenues'!I17*60% -> 414.729 | J14: =+'cons revenues'!J17*55% -> 418.185075 | K14: =+'cons revenues'!K17*55% -> 460.0035825 | L14: =+'cons revenues'!L17*55% -> 506.0039408 | M14: =+'cons revenues'!M17*50% -> 483.0037616 | N14: =+'cons revenues'!N17*50% -> 507.1539497 | O14: =+'cons revenues'!O17*50% -> 532.5116472 | P14: =+'cons revenues'!P17*50% -> 559.1372296 | Q14: =+'cons revenues'!Q17*50% -> 587.094091
A16: Operating expenses
A17: Newsprint costs | D17: =-D87 -> -2067.780574 | E17: -2037.164849 | F17: -2287.195421 | G17: -1801.055596 | H17: -2016.394301 | I17: -2258.976892 | J17: -2576.456543 | K17: -2770.131053 | L17: -2425.696717 | M17: -2503.059848 | N17: -2652.587185 | O17: -2855.178267 | P17: -3047.717463 | Q17: -3249.677815
A18: Employee costs | D18: =-D97 -> -705 | E18: -775.5 | F18: -882 | G18: -864 | H18: -950.4 | I18: -1067.22 | J18: -1231.8768 | K18: -1407.022848 | L18: -1577.778048 | M18: -1607.830963 | N18: -1752.686014 | O18: -1892.900896 | P18: -2025.053421 | Q18: -2185.942986
A19: SG&A and other costs | D19: =-'cons expenses'!D72 -> -1191.550317 | E19: =-'cons expenses'!E72 -> -1325.427039 | F19: =-'cons expenses'!F72 -> -1438.822247 | G19: =-'cons expenses'!G72 -> -1527.129201 | H19: =-'cons expenses'!H72 -> -1897.245501 | I19: =-'cons expenses'!I72 -> -2334.535629 | J19: =-'cons expenses'!J72 -> -2562.513811 | K19: =-'cons expenses'!K72 -> -2887.373257 | L19: =-'cons expenses'!L72 -> -2987.870316 | M19: =-'cons expenses'!M72 -> -3069.821139 | N19: =-'cons expenses'!N72 -> -3296.432063 | O19: =-'cons expenses'!O72 -> -3510.11095 | P19: =-'cons expenses'!P72 -> -3652.072911 | Q19: =-'cons expenses'!Q72 -> -3827.11534
A20: Total operating expenses | D20: =SUM(D17:D19) -> -3964.33089 | E20: -4138.091888 | F20: -4608.017668 | G20: -4192.184797 | H20: -4864.039802 | I20: -5660.73252 | J20: -6370.847154 | K20: -7064.527159 | L20: -6991.345081 | M20: -7180.71195 | N20: -7701.705263 | O20: -8258.190113 | P20: -8724.843795 | Q20: -9262.736142
A21: growth (%) | E21: =(E20/D20-1)*100 -> 4.383110349 | F21: 11.35609824 | G21: -9.02411625 | H21: 16.02636902 | I21: 16.37923928 | J21: 12.54457142 | K21: 10.88834794 | L21: -1.035909072 | M21: 2.708589935 | N21: 7.255454846 | O21: 7.225475794 | P21: 5.650798497 | Q21: 6.165065634
A23: Total EBITDA | D23: =D5+D10+D14+D20 -> 2501.29451 | E23: 2729.380112 | F23: 2442.862834 | G23: 2271.421255 | H23: 2779.504244 | I23: 2415.991728 | J23: 2477.423403 | K23: 3013.892095 | L23: 2976.881848 | M23: 2973.140549 | N23: 3248.794584 | O23: 3537.772778 | P23: 3685.446062 | Q23: 3792.185703
A24: growth (%) | E24: =(E23/D23-1)*100 -> 9.1187024 | F24: -10.49752201 | G24: -7.018059985 | H24: 22.36850551 | I24: -13.07832202 | J24: 2.542710473 | K24: 21.65429985 | L24: -1.227988439 | M24: -0.1256784751 | N24: 9.271476788 | O24: 8.894935822 | P24: 4.174187936 | Q24: 2.896247548
A25: EBITDA margin (%) | D25: =D23/(D5+D10+D14)*100 -> 38.68604126 | E25: 39.74359287 | F25: 34.64620955 | G25: 35.1417032 | H25: 36.36407702 | I25: 29.9130149 | J25: 27.99895626 | K25: 29.90441278 | L25: 29.86370464 | M25: 29.28091135 | N25: 29.66800264 | O25: 29.99138613 | P25: 29.69669608 | Q25: 29.04793876
A27: Source: Company data, Kotak Institutional Equities estimates
A30: Key assumptions
A32: Advertising revenues
A33: Pagination (#) | D33: 48 | E33: 50 | F33: 48 | G33: 44 | H33: =G33+4+2 -> 50 | I33: =H33 -> 50 | J33: =I33+2 -> 52 | K33: =J33+2 -> 54 | L33: =K33-4 -> 50 | M33: =L33+2 -> 52 | N33: =M33+2 -> 54 | O33: =N33+2 -> 56 | P33: =O33+1 -> 57 | Q33: =P33+1 -> 58
A34: Ad:Total ratio (%) | D34: 48 | E34: 45 | F34: 50 | G34: 54 | H34: =G34-3 -> 51 | I34: =H34 -> 51 | J34: =I34 -> 51 | K34: 51 | L34: 51 | M34: =L34+1 -> 52 | N34: 52 | O34: 52 | P34: 52 | Q34: 52
A35: Volume growth (%) | E35: =(E33-D33)*2+(E34-D34)*2 -> -2 | F35: =(F33-E33)*2+(F34-E34)*2 -> 6 | G35: 0 | H35: 6 | I35: 0 | J35: 4 | K35: 4 | L35: -8 | M35: 6 | N35: 4 | O35: 4 | P35: 2 | Q35: 2
A37: Color:BW ratio (%) | D37: 80 | E37: =D37+2 -> 82 | F37: =E37+2 -> 84 | G37: =F37-4 -> 80 | H37: =G37+2 -> 82 | I37: =H37+2 -> 84 | J37: =I37+2 -> 86 | K37: =J37+2 -> 88 | L37: =K37+2 -> 90 | M37: =L37-4 -> 86 | N37: =M37+2 -> 88 | O37: =N37+2 -> 90 | P37: =O37 -> 90 | Q37: =P37 -> 90
A38: Rate increase (%) | E38: 8.5 | F38: -4 | G38: -9 | H38: 11 | I38: 4.5 | J38: 5.5 | K38: 9.5 | L38: 6.5 | M38: -3 | N38: 3.5 | O38: 3.5 | P38: 3 | Q38: 3
A39: Yield growth (%) | E39: =(E37-D37)/4+E38 -> 9 | F39: -3.5 | G39: -10 | H39: 11.5 | I39: 5 | J39: 6 | K39: 10 | L39: 7 | M39: -4 | N39: 4 | O39: 4 | P39: 3 | Q39: 3
A41: Advertising revenues (Rs mn) | D41: 5900 | E41: =D41*(1+E35%)*(1+E39%) -> 6302.38 | F41: 6446.704502 | G41: 5802.034052 | H41: 6857.424046 | I41: 7200.295248 | J41: 7937.605482 | K41: 9080.620671 | L41: 8938.962988 | M41: 9096.288737 | N41: 9838.545898 | O41: 10641.37124 | P41: 11179.82463 | Q41: 11745.52375
A42: Advertising growth (%) | E42: =(E41/D41-1)*100 -> 6.82 | F42: 2.29 | G42: -10 | H42: 18.19 | I42: 5 | J42: 10.24 | K42: 14.4 | L42: -1.56 | M42: 1.76 | N42: 8.16 | O42: 8.16 | P42: 5.06 | Q42: 5.06
E43: 7 | F43: 2 | G43: -7
A44: Readership
A45: IRS Round | E45: R1 2007 | F45: R1 2008 | G45: R1 2009 | H45: Q1 2010 | I45: Q1 2011 | J45: Q1 2012
A46: HT Delhi (mn) | E46: 1881 | F46: 1862 | G46: 1991 | H46: 2012 | I46: 1954 | J46: 1921
A47: TOI Delhi (mn) | E47: 2051 | F47: 2113 | G47: 1954 | H47: 1948 | I47: 1890 | J47: 1891
A48: Mail Today (mn) | E48: 0 | F48: 0 | G48: 187 | H48: 187 | I48: 221 | J48: 211
A51: Total ( mn) | E51: =SUM(E46:E50) -> 3932 | F51: =SUM(F46:F50) -> 3975 | G51: =SUM(G46:G50) -> 4132 | H51: =SUM(H46:H50) -> 4147 | I51: =SUM(I46:I48) -> 4065 | J51: 4023 | K51: 0 | L51: 0 | M51: 0 | N51: 0 | O51: 0 | P51: 0 | Q51: 0
A52: HT Delhi (%) | E52: =E46/E$51*100 -> 47.83825025 | F52: 46.8427673 | G52: 48.18489835 | H52: 48.51700024 | I52: =I46/I$51*100 -> 48.06888069 | J52: 47.750435 | K52: 45
A53: TOI Delhi (%) | E53: 52.16174975 | F53: 53.1572327 | G53: 47.28944821 | H53: 46.97371594 | I53: 46.49446494 | J53: 47.00472284 | K53: 45
A54: Mail Today (%) | E54: 0 | F54: 0 | G54: 4.525653437 | H54: 4.50928382 | I54: 5.436654367 | J54: 5.244842158 | K54: 10
A57: Total (%) | E57: =SUM(E52:E56) -> 100 | F57: 100 | G57: 100 | H57: 100 | I57: =SUM(I52:I56) -> 100 | J57: =SUM(J52:J56) -> 100 | K57: 100 | L57: 0 | M57: =SUM(M52:M54) -> 0 | N57: =SUM(N52:N54) -> 0 | O57: =SUM(O52:O54) -> 0 | P57: =SUM(P52:P54) -> 0 | Q57: =SUM(Q52:Q54) -> 0
A59: Circulation revenues
A60: Print order (mn) | D60: 0.8 | E60: 0.9 | F60: 0.9 | G60: 0.9 | H60: =G60 -> 0.9 | I60: =H60 -> 0.9 | J60: =I60 -> 0.9 | K60: =J60+0.025 -> 0.925 | L60: =K60-0.025 -> 0.9 | M60: =L60-0.025 -> 0.875 | N60: =M60 -> 0.875 | O60: =N60+0.025 -> 0.9 | P60: =O60+0.025 -> 0.925 | Q60: =P60+0.025 -> 0.95
A61: growth (%) | E61: =(E60/D60-1)*100 -> 12.5 | F61: 0 | G61: 0 | H61: 0 | I61: 0 | J61: 0 | K61: 2.777777778 | L61: -2.702702703 | M61: -2.777777778 | N61: 0 | O61: 2.857142857 | P61: 2.777777778 | Q61: 2.702702703
A62: Unsold copies (%) | D62: 6 | E62: 6 | F62: 7 | G62: 3 | H62: 5 | I62: =H62 -> 5 | J62: =I62 -> 5 | K62: =J62 -> 5 | L62: =K62 -> 5 | M62: =L62-1 -> 4 | N62: =M62 -> 4 | O62: =N62 -> 4 | P62: =O62 -> 4 | Q62: =P62 -> 4
A63: Circulation (mn) | D63: =D60*(1-D62%) -> 0.752 | E63: 0.846 | F63: 0.837 | G63: 0.873 | H63: 0.855 | I63: 0.855 | J63: 0.855 | K63: 0.87875 | L63: 0.855 | M63: 0.84 | N63: 0.84 | O63: 0.864 | P63: 0.888 | Q63: 0.912
A64: growth (%) | E64: =(E63/D63-1)*100 -> 12.5 | F64: -1.063829787 | G64: 4.301075269 | H64: -2.06185567 | I64: 0 | J64: 0 | K64: 2.777777778 | L64: -2.702702703 | M64: -1.754385965 | N64: 0 | O64: 2.857142857 | P64: 2.777777778 | Q64: 2.702702703
A66: Cover price (Rs/day) | D66: 3 | E66: 2.8 | F66: 2.8 | G66: 3 | H66: 3 | I66: =H66+0.1 -> 3.1 | J66: =I66+0.1 -> 3.2 | K66: 3.3 | L66: 3.4 | M66: =L66+0.2 -> 3.6 | N66: 3.7 | O66: 3.8 | P66: 3.9 | Q66: 4
A67: growth (%) | E67: =(E66/D66-1)*100 -> -6.666666667 | F67: 0 | G67: 7.142857143 | H67: 0 | I67: 3.333333333 | J67: 3.225806452 | K67: 3.125 | L67: 3.03030303 | M67: 5.882352941 | N67: 2.777777778 | O67: 2.702702703 | P67: 2.631578947 | Q67: 2.564102564
A68: Commission (Rs/day) | D68: 1.5 | E68: 1.5 | F68: 1.5 | G68: =F68+0.1 -> 1.6 | H68: =G68 -> 1.6 | I68: =H68 -> 1.6 | J68: =I68 -> 1.6 | K68: =J68 -> 1.6 | L68: =K68+0.1 -> 1.7 | M68: =L68 -> 1.7 | N68: =M68 -> 1.7 | O68: =N68+0.1 -> 1.8 | P68: =O68 -> 1.8 | Q68: =P68 -> 1.8
A69: Net realization (Rs/day) | D69: =D66-D68 -> 1.5 | E69: 1.3 | F69: 1.3 | G69: 1.4 | H69: 1.4 | I69: 1.5 | J69: 1.6 | K69: 1.7 | L69: 1.7 | M69: 1.9 | N69: 2 | O69: 2 | P69: 2.1 | Q69: 2.2
A70: growth (%) | E70: =(E69/D69-1)*100 -> -13.33333333 | F70: 0 | G70: 7.692307692 | H70: 0 | I70: 7.142857143 | J70: 6.666666667 | K70: 6.25 | L70: 0 | M70: 11.76470588 | N70: 5.263157895 | O70: 0 | P70: 5 | Q70: 4.761904762
A72: Circulation revenues (Rs mn) | D72: =D63*10^3*360*D69/10^3 -> 406.08 | E72: =E63*10^3*360*E69/10^3 -> 395.928 | F72: 391.716 | G72: 439.992 | H72: 430.92 | I72: 461.7 | J72: 492.48 | K72: 537.795 | L72: 523.26 | M72: 574.56 | N72: 604.8 | O72: 622.08 | P72: 671.328 | Q72: 722.304
A73: Circulation growth (%) | E73: =(E72/D72-1)*100 -> -2.5 | F73: -1.063829787 | G73: 12.3242349 | H73: -2.06185567 | I73: 7.142857143 | J73: 6.666666667 | K73: 9.201388889 | L73: -2.702702703 | M73: 9.803921569 | N73: 5.263157895 | O73: 2.857142857 | P73: 7.916666667 | Q73: 7.593307593
A75: Newsprint costs
A76: Pagination (#) | D76: =D33 -> 48 | E76: 50 | F76: 48 | G76: 44 | H76: 50 | I76: 50 | J76: 52 | K76: 54 | L76: 50 | M76: 52 | N76: 54 | O76: 56 | P76: 57 | Q76: 58
A77: Print order ('000) | D77: =D60 -> 0.8 | E77: 0.9 | F77: 0.9 | G77: 0.9 | H77: 0.9 | I77: 0.9 | J77: 0.9 | K77: 0.925 | L77: 0.9 | M77: 0.875 | N77: 0.875 | O77: 0.9 | P77: 0.925 | Q77: 0.95
A78: Total pagination (bn #) | D78: =D76*D77*360/10^3 -> 13.824 | E78: =E76*E77*360/10^3 -> 16.2 | F78: 15.552 | G78: 14.256 | H78: 16.2 | I78: 16.2 | J78: 16.848 | K78: 17.982 | L78: 16.2 | M78: 16.38 | N78: 17.01 | O78: 18.144 | P78: 18.981 | Q78: 19.836
A79: Newsprint quantity (tons) | D79: =4.6*D78*10^3 -> 63590.4 | E79: =4.5*E78*10^3 -> 72900 | F79: =4.5*F78*10^3 -> 69984 | G79: =4.4*G78*10^3 -> 62726.4 | H79: =4.4*H78*10^3 -> 71280 | I79: =4.4*I78*10^3 -> 71280 | J79: =4.4*J78*10^3 -> 74131.2 | K79: =4.4*K78*10^3 -> 79120.8 | L79: =4.3*L78*10^3 -> 69660 | M79: =4.3*M78*10^3 -> 70434 | N79: =4.3*N78*10^3 -> 73143 | O79: =4.2*O78*10^3 -> 76204.8 | P79: =4.2*P78*10^3 -> 79720.2 | Q79: =4.2*Q78*10^3 -> 83311.2
A80: growth (%) | E80: =(E79/D79-1)*100 -> 14.63994565 | F80: -4 | G80: -10.37037037 | H80: 13.63636364 | I80: 0 | J80: 4 | K80: 6.730769231 | L80: -11.95741196 | M80: 1.111111111 | N80: 3.846153846 | O80: 4.186046512 | P80: 4.613095238 | Q80: 4.504504505
A82: Imported np (%) | D82: 80 | E82: 80 | F82: 80 | G82: 80 | H82: =G82-10 -> 70 | I82: =H82 -> 70 | J82: =I82+10 -> 80 | K82: =J82 -> 80 | L82: =K82-10 -> 70 | M82: 70 | N82: =M82 -> 70 | O82: =N82+10 -> 80 | P82: 80 | Q82: 80
A83: Domestic np (%) | D83: =100-D82 -> 20 | E83: 20 | F83: 20 | G83: 20 | H83: 30 | I83: 30 | J83: 20 | K83: 20 | L83: 30 | M83: 30 | N83: =100-N82 -> 30 | O83: =100-O82 -> 20 | P83: 20 | Q83: 20
A84: Average newsprint price (Rs/ton) | D84: =D82%*'cons expenses'!D39+D83%*'cons expenses'!D43 -> 32517.18142 | E84: =E82%*'cons expenses'!E39+E83%*'cons expenses'!E43 -> 27944.64814 | F84: =F82%*'cons expenses'!F39+F83%*'cons expenses'!F43 -> 32681.6904 | G84: =G82%*'cons expenses'!G39+G83%*'cons expenses'!G43 -> 28712.88 | H84: =H82%*'cons expenses'!H39+H83%*'cons expenses'!H43 -> 28288.36 | I84: =I82%*'cons expenses'!I39+I83%*'cons expenses'!I43 -> 31691.595 | J84: =J82%*'cons expenses'!J39+J83%*'cons expenses'!J43 -> 34755.36 | K84: =K82%*'cons expenses'!K39+K83%*'cons expenses'!K43 -> 35011.4136 | L84: =L82%*'cons expenses'!L39+L83%*'cons expenses'!L43 -> 34821.9454 | M84: =M82%*'cons expenses'!M39+M83%*'cons expenses'!M43 -> 35537.66431 | N84: =N82%*'cons expenses'!N39+N83%*'cons expenses'!N43 -> 36265.76959 | O84: =O82%*'cons expenses'!O39+O83%*'cons expenses'!O43 -> 37467.17092 | P84: =P82%*'cons expenses'!P39+P83%*'cons expenses'!P43 -> 38230.17834 | Q84: =Q82%*'cons expenses'!Q39+Q83%*'cons expenses'!Q43 -> 39006.49391
A85: growth (%)
A87: Newsprint costs (Rs mn) | D87: =+D79*D84/10^6 -> 2067.780574 | E87: 2037.164849 | F87: 2287.195421 | G87: 1801.055596 | H87: 2016.394301 | I87: 2258.976892 | J87: 2576.456543 | K87: 2770.131053 | L87: 2425.696717 | M87: 2503.059848 | N87: 2652.587185 | O87: 2855.178267 | P87: 3047.717463 | Q87: 3249.677815
A88: Newsprint growth (%) | E88: =(E87/D87-1)*100 -> -1.480607996 | F88: 12.27345798 | G88: -21.25484427 | H88: 11.95624973 | I88: 12.03051361 | J88: 14.05413454 | K88: 7.517088167 | L88: -12.43386432 | M88: 3.18931591 | N88: 5.973781957 | O88: 7.637490013 | P88: 6.743508765 | Q88: 6.626610055
A90: Employee costs
A91: Year-end employees (#) | C91: 1200 | D91: 1150 | E91: 1200 | F91: 1250 | G91: 1150 | H91: 1200 | I91: =H91+50 -> 1250 | J91: =I91+25 -> 1275 | K91: =J91+25 -> 1300 | L91: =K91+25 -> 1325 | M91: =L91+25 -> 1350 | N91: =M91 -> 1350 | O91: =N91 -> 1350 | P91: =O91+25 -> 1375 | Q91: =P91+25 -> 1400
A92: growth (%) | E92: =(E91/D91-1)*100 -> 4.347826087 | F92: 4.166666667 | G92: -8 | H92: 4.347826087 | I92: 4.166666667 | J92: 2 | K92: 1.960784314 | L92: 1.923076923 | M92: 1.886792453 | N92: 0 | O92: 0 | P92: 1.851851852 | Q92: 1.818181818
A93: Average employees (#) | D93: =AVERAGE(C91:D91) -> 1175 | E93: 1175 | F93: 1225 | G93: 1200 | H93: =AVERAGE(G91:H91)+25 -> 1200 | I93: 1225 | J93: 1262.5 | K93: 1287.5 | L93: 1312.5 | M93: 1337.5 | N93: 1350 | O93: 1350 | P93: 1362.5 | Q93: 1387.5
A94: Employee cost (Rs/month) | D94: 50000 | E94: 55000 | F94: 60000 | G94: 60000 | H94: =G94*(1+H95%) -> 66000 | I94: 72600 | J94: 81312 | K94: 91069.44 | L94: 100176.384 | M94: 100176.384 | N94: 108190.4947 | O94: 116845.7343 | P94: 123856.4784 | Q94: 131287.8671
A95: growth (%) | E95: =(E94/D94-1)*100 -> 10 | F95: =(F94/E94-1)*100 -> 9.090909091 | G95: =(G94/F94-1)*100 -> 0 | H95: 10 | I95: 10 | J95: 12 | K95: 12 | L95: 10 | M95: 0 | N95: 8 | O95: 8 | P95: 6 | Q95: 6
A97: Employee costs (Rs mn) | D97: =+D93*D94*12/10^6 -> 705 | E97: 775.5 | F97: 882 | G97: 864 | H97: 950.4 | I97: 1067.22 | J97: 1231.8768 | K97: 1407.022848 | L97: 1577.778048 | M97: 1607.830963 | N97: 1752.686014 | O97: 1892.900896 | P97: 2025.053421 | Q97: 2185.942986
A98: Employee growth (%) | E98: =(E97/D97-1)*100 -> 10 | F98: 13.73307544 | G98: -2.040816327 | H98: 10 | I98: 12.29166667 | J98: 15.42857143 | K98: 14.21782178 | L98: 12.13592233 | M98: 1.904761905 | N98: 9.009345794 | O98: 8 | P98: 6.981481481 | Q98: 7.944954128

Sheet HTD DCF
A1: Discounted cash flow analysis of HT Delhi (Rs mn)
B3: 2012E | C3: 2013E | D3: 2014E | E3: 2015E | F3: 2016E | G3: 2017E | H3: 2018E | I3: 2019E | J3: 2020E | K3: 2021E | L3: 2022E | M3: 2023E | N3: 2024E
A4: EBIT | B4: ='HT Delhi-NCR'!I23+'cons revenues'!I22%*'profit model'!I11 -> 2084.992173 | C4: ='HT Delhi-NCR'!J23+'cons revenues'!J22%*'profit model'!J11 -> 2141.412079 | D4: ='HT Delhi-NCR'!K23+'cons revenues'!K22%*'profit model'!K11 -> 2660.061278 | E4: ='HT Delhi-NCR'!L23+'cons revenues'!L22%*'profit model'!L11 -> 2628.074957 | F4: ='HT Delhi-NCR'!M23+'cons revenues'!M22%*'profit model'!M11 -> 2614.23899 | G4: ='HT Delhi-NCR'!N23+'cons revenues'!N22%*'profit model'!N11 -> 2873.612422 | H4: ='HT Delhi-NCR'!O23+'cons revenues'!O22%*'profit model'!O11 -> 3126.264174 | I4: ='HT Delhi-NCR'!P23+'cons revenues'!P22%*'profit model'!P11 -> 3243.429048 | J4: ='HT Delhi-NCR'!Q23+'cons revenues'!Q22%*'profit model'!Q11 -> 3318.247404 | K4: =J4*(1+$B$16%) -> 3384.612352 | L4: =K4*(1+$B$16%) -> 3452.304599 | M4: =L4*(1+$B$16%) -> 3521.350691 | N4: =M4*(1+$B$16%) -> 3591.777705
A5: Tax expense | B5: =-'profit model'!I35%*B4 -> -590.4358385 | C5: =-'profit model'!J35%*C4 -> -645.9673421 | D5: =-'profit model'!K35%*D4 -> -846.9881315 | E5: =-'profit model'!L35%*E4 -> -863.1792641 | F5: =-'profit model'!M35%*F4 -> -877.1671235 | G5: =-'profit model'!N35%*G4 -> -969.8025596 | H5: =-'profit model'!O35%*H4 -> -1060.379361 | I5: =-'profit model'!P35%*I4 -> -1111.525259 | J5: =-'profit model'!Q35%*J4 -> -1148.419236
A6: Changes in working capital | B6: ='cons revenues'!I22%*'cash model'!I11 -> -309.5686572 | C6: ='cons revenues'!J22%*'cash model'!J11 -> -106.9744328 | D6: ='cons revenues'!K22%*'cash model'!K11 -> -119.7022368 | E6: ='cons revenues'!L22%*'cash model'!L11 -> -5.004165516 | F6: ='cons revenues'!M22%*'cash model'!M11 -> -39.75211348 | G6: ='cons revenues'!N22%*'cash model'!N11 -> -99.063384 | H6: ='cons revenues'!O22%*'cash model'!O11 -> -89.60359473 | I6: ='cons revenues'!P22%*'cash model'!P11 -> -74.00546769 | J6: ='cons revenues'!Q22%*'cash model'!Q11 -> -58.70064718
A7: Cash flow from operations | B7: =SUM(B4:B6) -> 1184.987677 | C7: =SUM(C4:C6) -> 1388.470304 | D7: 1693.37091 | E7: 1759.891528 | F7: 1697.319753 | G7: 1804.746478 | H7: 1976.281218 | I7: 2057.898321 | J7: 2111.127521
A8: Capital expenditure | B8: =-40%*'capex est'!I14 -> -84 | C8: =-40%*'capex est'!J14 -> -88.2 | D8: =-40%*'capex est'!K14 -> -92.61 | E8: =-40%*'capex est'!L14 -> -97.2405 | F8: =-40%*'capex est'!M14 -> -102.102525 | G8: =-40%*'capex est'!N14 -> -241.2172153 | H8: =-40%*'capex est'!O14 -> -253.2780761 | I8: =-40%*'capex est'!P14 -> -265.9419799 | J8: =-40%*'capex est'!Q14 -> -279.2390789
A9: Cash flows for minority interest | B9: =0 -> 0 | C9: =0 -> 0 | D9: =0 -> 0 | E9: =0 -> 0 | F9: =0 -> 0 | G9: =0 -> 0 | H9: =0 -> 0 | I9: =0 -> 0 | J9: =0 -> 0
A10: Free cash flow to the firm | B10: =SUM(B7:B9) -> 1100.987677 | C10: 1300.270304 | D10: 1600.76091 | E10: 1662.651028 | F10: 1595.217228 | G10: 1563.529263 | H10: 1723.003141 | I10: 1791.956341 | J10: =SUM(J7:J9) -> 1831.888442 | K10: =J10*(1+$B$16%) -> 1868.526211 | L10: =K10*(1+$B$16%) -> 1905.896735 | M10: =L10*(1+$B$16%) -> 1944.01467 | N10: =M10*(1+$B$16%) -> 1982.894963
A11: Dicounted cash flow-now | B11: =B10*B22 -> 983.0247119 | C11: 1036.567525 | D11: 1139.389997 | E11: 1056.644786 | F11: 904.8880937 | G11: 791.8866728 | H11: 779.1571613 | I11: 723.5164324 | J11: 660.1872471 | K11: 601.2419572
A12: Discounted cash flow-1 year forward | C12: =C10*B22 -> 1160.955628 | D12: 1276.116796 | E12: 1183.442161 | F12: 1013.789387 | G12: 886.9130736 | H12: 872.6560207 | I12: 810.3384043 | J12: 739.6393314 | K12: 673.3909921 | L12: 613.2667963
A13: Discounted cash flow-2 year forward | D13: =D10*B22 -> 1429.250812 | E13: 1325.45522 | F13: 1135.444114 | G13: 993.6511128 | H13: 977.3747432 | I13: 907.5790128 | J13: 828.3960512 | K13: 754.432118 | L13: 686.8588119 | M13: 625.5321323
A15: Discount rate (%) | B15: 12
A16: Growth from 2020E to perpetuity (%) | B16: 2
A18: Fiscal year-end (March 31, XXXX) | B18: ='cons DCF'!B18 -> 2012-03-31 | C18: ='cons DCF'!C18 -> 2013-03-31 | D18: ='cons DCF'!D18 -> 2014-03-31 | E18: ='cons DCF'!E18 -> 2015-03-31 | F18: ='cons DCF'!F18 -> 2016-03-31 | G18: ='cons DCF'!G18 -> 2017-03-31 | H18: ='cons DCF'!H18 -> 2018-03-31 | I18: ='cons DCF'!I18 -> 2019-03-31 | J18: ='cons DCF'!J18 -> 2020-03-31 | K18: ='cons DCF'!K18 -> 2021-03-31 | L18: ='cons DCF'!L18 -> 2022-03-31 | M18: ='cons DCF'!M18 -> 2023-03-31 | N18: ='cons DCF'!N18 -> 2024-03-31
A19: Today | B19: ='cons DCF'!B19 -> 2011-04-01 | C19: =B19 -> 2011-04-01 | D19: =+C19 -> 2011-04-01 | E19: 2011-04-01 | F19: 2011-04-01 | G19: 2011-04-01 | H19: 2011-04-01 | I19: 2011-04-01 | J19: 2011-04-01 | K19: 2011-04-01 | L19: 2011-04-01 | M19: 2011-04-01 | N19: 2011-04-01
A20: Days left | B20: =B18-B19 -> 365 | C20: 730 | D20: 1095 | E20: 1460 | F20: 1826 | G20: 2191 | H20: 2556 | I20: 2921 | J20: 3287 | K20: 3652 | L20: 4017 | M20: 4382 | N20: 4748
A21: Years left | B21: =B20/365 -> 1 | C21: 2 | D21: 3 | E21: 4 | F21: 5.002739726 | G21: 6.002739726 | H21: 7.002739726 | I21: 8.002739726 | J21: 9.005479452 | K21: 10.00547945 | L21: 11.00547945 | M21: 12.00547945 | N21: 13.00821918
A22: Discount factor at WACC | B22: =1/(1+$B$15%)^B21 -> 0.8928571429 | C22: 0.7971938776 | D22: 0.7117802478 | E22: 0.6355180784 | F22: 0.567250703 | G22: 0.5064738419 | H22: 0.4522087874 | I22: 0.4037578459 | J22: 0.3603861632 | K22: 0.32177336 | L22: 0.2872976429 | M22: 0.2565157526 | N22: 0.2289608209
B24: + 1-year | D24: + 2-years | G24: Sensitivity of share price to different levels of WACC and growth rate (Rs)
A25: Total PV of free cash flow (a) | B25: =+SUM(B11:K11) -> 8676.504585 | C25: =B25/$B$30 -> 0.5858871964 | D25: =+SUM(C12:L12) -> 9230.508591 | E25: =D25/$D$30 -> 0.5960616023 | H25: WACC (%)
A26: FCF in terminal year | B26: =L10 -> 1905.896735 | D26: =M10 -> 1944.01467 | G26: =D34 -> 65.86911916 | H26: 10.5 | I26: 11 | J26: 11.5 | K26: 12 | L26: 12.5 | M26: 13 | N26: 13.5
A27: Exit FCF multiple (X) | B27: =1/($B$15%-$B$16%) -> 10 | D27: =1/($B$15%-$B$16%) -> 10 | G27: 0 | H27: 69.09463977 | I27: 65.78273135 | J27: 62.7628244 | K27: 59.99829197 | L27: 57.45837217 | M27: 55.11704003 | N27: 52.95213014
A28: Terminal value | B28: =B26*B27 -> 19058.96735 | D28: =D26*D27 -> 19440.1467 | F28: Growth rate (%) | G28: 0.5 | H28: 70.93818395 | I28: 67.40650398 | J28: 64.19944722 | K28: 61.27455875 | L28: 58.59646371 | M28: 56.13545104 | N28: 53.8663842
A29: PV of terminal value (b) | B29: =B28*K22 -> 6132.667963 | C29: =B29/$B$30 -> 0.4141128036 | D29: =D28*K22 -> 6255.321323 | E29: =D29/$D$30 -> 0.4039383977 | G29: 1 | H29: 72.97578542 | I29: 69.19265388 | J29: 65.77289126 | K29: 62.66684978 | L29: 59.83351972 | M29: 57.23872964 | N29: 54.85377859
A30: EV (a) + (b) | B30: =B29+B25 -> 14809.17255 | D30: =D29+D25 -> 15485.82991 | G30: 1.5 | H30: 75.23978705 | I30: 71.16681955 | J30: 67.5036797 | K30: 64.19173996 | L30: 61.18303538 | M30: 58.43794551 | N30: 55.92345585
A31: EV (US$ mn) | B31: =+B30/46 -> 321.9385337 | D31: =+D30/46 -> 336.6484764 | G31: 2 | H31: 77.77014181 | I31: 73.36033696 | J31: 69.4166564 | K31: 65.86911916 | L31: 62.66107634 | M31: 59.746181 | N31: 57.08614851
A32: Net debt/ (cash) | B32: =0 -> 0 | D32: =0 -> 0 | G32: 2.5 | H32: 80.61679092 | I32: 75.81191525 | J32: 71.54218607 | K32: 67.72306458 | L32: 64.28692139 | M32: 61.17901035 | N32: 58.35454051
A33: Equity value | B33: =+B30-B32 -> 14809.17255 | D33: =+D30-D32 -> 15485.82991 | G33: 3 | H33: 83.84299325 | I33: 78.56994082 | J33: 73.91777805 | K33: 69.78300395 | L33: 66.08390803 | M33: 62.75512263 | N33: 59.74373175
A34: Implied share price (Rs) | B34: =+B33/'profit model'!F24 -> 63.01775552 | D34: =+D33/'profit model'!G24 -> 65.86911916 | G34: 3.5 | H34: 87.53008162 | I34: 81.69570314 | J34: 76.59031903 | K34: 72.08528912 | L34: 68.08055985 | M34: 64.49714147 | N34: 61.27184212
A35: Exit EV/EBITDA multiple (X) | B35: =B28/L4 -> 5.52065057 | D35: =D28/M4 -> 5.52065057 | G35: 4 | H35: 91.78441436 | I35: 85.26800292 | J35: 79.6191988 | K35: 74.67535993 | L35: 70.31211188 | M35: 66.43271796 | N35: 62.9608062

Sheet HT Mumbai
A1: Derivation of financials of HT English Mumbai, March fiscal year-ends, 2007-20E (Rs mn)
B3: 2005 | C3: 2006 | D3: 2007 | E3: 2008 | F3: 2009 | G3: 2010 | H3: 2011 | I3: 2012E | J3: 2013E | K3: 2014E | L3: 2015E | M3: 2016E | N3: 2017E | O3: 2018E | P3: 2019E | Q3: 2020E
A4: Revenues from advertising
A5: Total advertising revenues | D5: =D41 -> 800 | E5: 1010.08 | F5: 1112.704128 | G5: 1123.608628 | H5: 1409.00522 | I5: 1589.92149 | J5: 1904.407961 | K5: 2382.033478 | L5: 2599.751338 | M5: 2865.965875 | N5: 3220.199257 | O5: 3618.215885 | P5: 3988.721191 | Q5: 4314.200841
A6: growth (%) | E6: =(E5/D5-1)*100 -> 26.26 | F6: 10.16 | G6: 0.98 | H6: 25.4 | I6: 12.84 | J6: 19.78 | K6: 25.08 | L6: 9.14 | M6: 10.24 | N6: 12.36 | O6: 12.36 | P6: 10.24 | Q6: 8.16
A7: actual | D7: 800 | E7: 1000 | F7: 1100 | G7: 1100
A9: Revenues from circulation
A10: Total circulation revenues | D10: =D72 -> -42.3 | E10: -45.684 | F10: -41.85 | G10: -41.904 | H10: -58.59 | I10: -54.144 | J10: -30.78 | K10: 0 | L10: 17.1 | M10: 46.656 | N10: 82.08 | O10: 86.4 | P10: 108.864 | Q10: 133.056
A11: growth (%) | E11: =(E10/D10-1)*100 -> 8 | F11: -8.392434988 | G11: 0.1290322581 | H11: 39.81958763 | I11: -7.588325653 | J11: -43.15159574 | K11: -100 | M11: 172.8421053 | N11: 75.92592593 | O11: 5.263157895 | P11: 26 | Q11: 22.22222222
A12: actual | D12: -50 | E12: -50 | F12: -50 | G12: -30
A14: Other operating revenue | D14: =+'cons revenues'!D17*25% -> 66.47725 | E14: =+'cons revenues'!E17*25% -> 70.485 | F14: =+'cons revenues'!F17*25% -> 88.525 | G14: =+'cons revenues'!G17*25% -> 92.325 | H14: =+'cons revenues'!H17*25% -> 148 | I14: =+'cons revenues'!I17*25% -> 172.80375 | J14: =+'cons revenues'!J17*30% -> 228.10095 | K14: =+'cons revenues'!K17*30% -> 250.911045 | L14: =+'cons revenues'!L17*30% -> 276.0021495 | M14: =+'cons revenues'!M17*35% -> 338.1026331 | N14: =+'cons revenues'!N17*35% -> 355.0077648 | O14: =+'cons revenues'!O17*35% -> 372.758153 | P14: =+'cons revenues'!P17*35% -> 391.3960607 | Q14: =+'cons revenues'!Q17*35% -> 410.9658637
A16: Operating expenses
A17: Newsprint costs | D17: =-D87 -> -511.5602982 | E17: -537.8115202 | F17: -502.9712153 | G17: -491.1969807 | H17: -627.3226714 | I17: -823.2715783 | J17: -1065.265686 | K17: -1185.416442 | L17: -1131.991801 | M17: -1089.243626 | N17: -1226.646138 | O17: -1359.608698 | P17: -1517.355778 | Q17: -1686.765617
A18: Employee costs | D18: =-D97 -> -231 | E18: -272.25 | F18: -336.6 | G18: -336.6 | H18: -392.04 | I18: -455.202 | J18: -550.07568 | K18: -646.1376768 | L18: -727.2805478 | M18: -727.2805478 | N18: -785.4629917 | O18: -867.5795772 | P18: -960.5069896 | Q18: -1039.799907
A19: SG&A and other costs | D19: =-'cons expenses'!D73 -> -424.2168667 | E19: =-'cons expenses'!E73 -> -549.7688287 | F19: =-'cons expenses'!F73 -> -724.0470599 | G19: =-'cons expenses'!G73 -> -626.7462944 | H19: =-'cons expenses'!H73 -> -721.3867857 | I19: =-'cons expenses'!I73 -> -801.5817908 | J19: =-'cons expenses'!J73 -> -942.9334231 | K19: =-'cons expenses'!K73 -> -1006.532948 | L19: =-'cons expenses'!L73 -> -1141.359863 | M19: =-'cons expenses'!M73 -> -1258.842278 | N19: =-'cons expenses'!N73 -> -1400.062827 | O19: =-'cons expenses'!O73 -> -1545.585766 | P19: =-'cons expenses'!P73 -> -1683.334429 | Q19: =-'cons expenses'!Q73 -> -1816.256056
A20: Total operating expenses | D20: =SUM(D17:D19) -> -1166.777165 | E20: -1359.830349 | F20: -1563.618275 | G20: -1454.543275 | H20: -1740.749457 | I20: -2080.055369 | J20: -2558.274789 | K20: -2838.087067 | L20: -3000.632212 | M20: -3075.366452 | N20: -3412.171956 | O20: -3772.774042 | P20: -4161.197197 | Q20: -4542.821581
A21: growth (%) | E21: =(E20/D20-1)*100 -> 16.54584867 | F21: 14.98627579 | G21: -6.975807444 | H21: 19.67670449 | I21: 19.49194415 | J21: 22.99070627 | K21: 10.937538 | L21: 5.727278311 | M21: 2.490616484 | N21: 10.9517194 | O21: 10.56810999 | P21: 10.29542589 | Q21: 9.171023759
A23: Total EBITDA | D23: =D5+D10+D14+D20 -> -342.5999148 | E23: -324.9493488 | F23: -404.2391472 | G23: -280.5136467 | H23: -242.3342369 | I23: -371.4741287 | J23: -456.5458781 | K23: -205.1425438 | L23: -107.7787244 | M23: 175.3580557 | N23: 245.115065 | O23: 304.5999961 | P23: 327.7840551 | Q23: 315.4011237
A24: growth (%) | E24: =(E23/D23-1)*100 -> -5.151946989 | F24: 24.40066387 | G24: -30.60700611 | H24: -13.6105356 | I24: 53.28999047 | J24: 22.90112361 | K24: -55.06639013 | L24: -47.46154434 | M24: -262.7019217 | N24: 39.77975749 | O24: 24.26816609 | P24: 7.611312941 | Q24: -3.777771114
A25: EBITDA margin (%) | D25: =D23/(D5+D10+D14)*100 -> -41.56871775 | E25: -31.39968256 | F25: -34.86686429 | G25: -23.89323403 | H25: -16.17270258 | I25: -21.74167198 | J25: -21.72239606 | K25: -7.791373574 | L25: -3.725689008 | M25: 5.394429928 | N25: 6.702100863 | O25: 7.470494326 | P25: 7.301969793 | Q25: 6.492109212
A27: Source: Company data, Kotak Institutional Equities estimates
A30: Key assumptions
A32: Advertising revenues
A33: Pagination (#) | D33: 38 | E33: 44 | F33: 38 | G33: 36 | H33: =G33+4 -> 40 | I33: =H33+1 -> 41 | J33: =I33+2 -> 43 | K33: =J33+2 -> 45 | L33: =K33-3 -> 42 | M33: =L33+2 -> 44 | N33: =M33+2 -> 46 | O33: =N33+2 -> 48 | P33: =O33+2 -> 50 | Q33: =P33+2 -> 52
A34: Ad:Total ratio (%) | D34: 22 | E34: 25 | F34: 35 | G34: 38 | H34: =G34+1 -> 39 | I34: =H34+1 -> 40 | J34: =I34+1 -> 41 | K34: =J34+1 -> 42 | L34: =K34+4 -> 46 | M34: 47 | N34: 48 | O34: 49 | P34: 50 | Q34: =P34 -> 50
A35: Volume growth (%) | E35: =(E33-D33)*2+(E34-D34)*2 -> 18 | F35: 8 | G35: 2 | H35: 10 | I35: 4 | J35: 6 | K35: 6 | L35: 2 | M35: 6 | N35: 6 | O35: 6 | P35: 6 | Q35: 4
A37: Color:BW ratio (%) | D37: 80 | E37: =D37+2 -> 82 | F37: =E37+2 -> 84 | G37: =F37-4 -> 80 | H37: =G37+2 -> 82 | I37: =H37+2 -> 84 | J37: =I37+2 -> 86 | K37: =J37+2 -> 88 | L37: =K37+2 -> 90 | M37: =L37-4 -> 86 | N37: =M37+2 -> 88 | O37: =N37+2 -> 90 | P37: =O37 -> 90 | Q37: =P37 -> 90
A38: Rate increase (%) | E38: 6.5 | F38: 1.5 | G38: 0 | H38: 13.5 | I38: 8 | J38: 12.5 | K38: 17.5 | L38: 6.5 | M38: 5 | N38: 5.5 | O38: 5.5 | P38: 4 | Q38: 4
A39: Yield growth (%) | E39: =(E37-D37)/4+E38 -> 7 | F39: 2 | G39: -1 | H39: 14 | I39: 8.5 | J39: 13 | K39: 18 | L39: 7 | M39: 4 | N39: 6 | O39: 6 | P39: 4 | Q39: 4
A41: Advertising revenues (Rs mn) | D41: 800 | E41: =D41*(1+E35%)*(1+E39%) -> 1010.08 | F41: 1112.704128 | G41: 1123.608628 | H41: 1409.00522 | I41: 1589.92149 | J41: 1904.407961 | K41: 2382.033478 | L41: 2599.751338 | M41: 2865.965875 | N41: 3220.199257 | O41: 3618.215885 | P41: 3988.721191 | Q41: 4314.200841
A42: Advertising growth (%) | E42: =(E41/D41-1)*100 -> 26.26 | F42: 10.16 | G42: 0.98 | H42: 25.4 | I42: 12.84 | J42: 19.78 | K42: 25.08 | L42: 9.14 | M42: 10.24 | N42: 12.36 | O42: 12.36 | P42: 10.24 | Q42: 8.16
E43: 25 | F43: 10 | G43: -10
A44: Readership
A45: IRS Round | E45: R1 2007 | F45: R1 2008 | G45: R1 2009 | H45: Q1 2010 | I45: Q1 2011 | J45: Q1 2012
A46: TOI Mumbai (mn) | E46: 1524 | F46: 1571 | G46: 1520 | H46: 1451 | I46: 1605 | J46: 1600
A47: DNA Mumbai (mn) | E47: 501 | F47: 622 | G47: 705 | H47: 610 | I47: 644 | J47: 729
A48: HT Mumbai (mn) | E48: 320 | F48: 381 | G48: 548 | H48: 538 | I48: 688 | J48: 791
A49: Mumbai Mirror (mn) | E49: 721 | F49: 737 | G49: 865 | H49: 811 | I49: 769 | J49: 771
A50: Mid-Day (mn) | E50: 466 | F50: 538 | G50: 479 | H50: 417 | I50: 317 | J50: 403
A51: Total ( mn) | E51: =SUM(E46:E50) -> 3532 | F51: =SUM(F46:F50) -> 3849 | G51: =SUM(G46:G50) -> 4117 | H51: =SUM(H46:H50) -> 3827 | I51: =SUM(I46:I50) -> 4023 | J51: 4294 | K51: 0 | L51: 0 | M51: 0 | N51: 0 | O51: 0 | P51: 0 | Q51: 0
A52: TOI Mumbai (%) | E52: =E46/E$51*100 -> 43.14835787 | F52: 40.81579631 | G52: 36.92008744 | H52: 37.91481578 | I52: =I46/I$51*100 -> 39.8956003 | J52: 37.26129483 | K52: =J52-2 -> 35.26129483 | L52: =K52 -> 35.26129483
A53: DNA Mumbai (%) | E53: 14.18459796 | F53: 16.16004157 | G53: 17.1241195 | H53: 15.9393781 | I53: 16.00795426 | J53: 16.97717746 | K53: =J53+1 -> 17.97717746 | L53: =K53 -> 17.97717746
A54: HT Mumbai (%) | E54: 9.06002265 | F54: 9.898674981 | G54: 13.3106631 | H54: 14.05800888 | I54: 17.10166542 | J54: 18.42105263 | K54: =J54+1 -> 19.42105263 | L54: =K54 -> 19.42105263
A55: Mumbai Mirror (%) | E55: =E49/E$51*100 -> 20.41336353 | F55: 19.14783061 | G55: 21.0104445 | H55: 21.19153384 | I55: 19.11508824 | J55: 17.95528645 | K55: =J55-1 -> 16.95528645 | L55: =K55 -> 16.95528645
A56: Mid-Day (%) | E56: 13.19365798 | F56: 13.97765653 | G56: 11.63468545 | H56: 10.89626339 | I56: 7.879691772 | J56: 9.385188635 | K56: =J56+1 -> 10.38518864 | L56: =K56 -> 10.38518864
A57: Total (%) | E57: =SUM(E52:E56) -> 100 | F57: 100 | G57: 100 | H57: 100 | I57: =SUM(I52:I56) -> 100 | J57: =SUM(J52:J56) -> 100 | K57: 100 | L57: 100 | M57: =SUM(M52:M54) -> 0 | N57: =SUM(N52:N54) -> 0 | O57: =SUM(O52:O54) -> 0 | P57: =SUM(P52:P54) -> 0 | Q57: =SUM(Q52:Q54) -> 0
A59: Circulation revenues
A60: Print order (mn) | D60: 0.25 | E60: 0.27 | F60: 0.25 | G60: 0.3 | H60: 0.35 | I60: =H60+0.05 -> 0.4 | J60: =I60+0.05 -> 0.45 | K60: =J60+0.025 -> 0.475 | L60: =K60+0.025 -> 0.5 | M60: =L60-0.05 -> 0.45 | N60: =M60+0.025 -> 0.475 | O60: =N60+0.025 -> 0.5 | P60: =O60+0.025 -> 0.525 | Q60: =P60+0.025 -> 0.55
A61: growth (%) | E61: =(E60/D60-1)*100 -> 8 | F61: -7.407407407 | G61: 20 | H61: 16.66666667 | I61: 14.28571429 | J61: 12.5 | K61: 5.555555556 | L61: 5.263157895 | M61: -10 | N61: 5.555555556 | O61: 5.263157895 | P61: 5 | Q61: 4.761904762
A62: Unsold copies (%) | D62: 6 | E62: 6 | F62: 7 | G62: 3 | H62: 7 | I62: 6 | J62: 5 | K62: =J62 -> 5 | L62: =K62 -> 5 | M62: =L62-1 -> 4 | N62: =M62 -> 4 | O62: =N62 -> 4 | P62: =O62 -> 4 | Q62: =P62 -> 4
A63: Circulation (mn) | D63: =D60*(1-D62%) -> 0.235 | E63: 0.2538 | F63: 0.2325 | G63: 0.291 | H63: 0.3255 | I63: 0.376 | J63: 0.4275 | K63: 0.45125 | L63: 0.475 | M63: 0.432 | N63: 0.456 | O63: 0.48 | P63: 0.504 | Q63: 0.528
A64: growth (%) | E64: =(E63/D63-1)*100 -> 8 | F64: -8.392434988 | G64: 25.16129032 | H64: 11.8556701 | I64: 15.51459293 | J64: 13.69680851 | K64: 5.555555556 | L64: 5.263157895 | M64: -9.052631579 | N64: 5.555555556 | O64: 5.263157895 | P64: 5 | Q64: 4.761904762
A66: Cover price (Rs/day) | D66: 1 | E66: 1 | F66: 1 | G66: 1.2 | H66: 1.1 | I66: =H66+0.1 -> 1.2 | J66: =I66+0.2 -> 1.4 | K66: =J66+0.2 -> 1.6 | L66: =K66+0.2 -> 1.8 | M66: =L66+0.2 -> 2 | N66: =M66+0.2 -> 2.2 | O66: =N66+0.1 -> 2.3 | P66: =O66+0.1 -> 2.4 | Q66: =P66+0.1 -> 2.5
A67: growth (%) | E67: =(E66/D66-1)*100 -> 0 | F67: 0 | G67: 20 | H67: -8.333333333 | I67: 9.090909091 | J67: 16.66666667 | K67: 14.28571429 | L67: 12.5 | M67: 11.11111111 | N67: 10 | O67: 4.545454545 | P67: 4.347826087 | Q67: 4.166666667
A68: Commission (Rs/day) | D68: 1.5 | E68: 1.5 | F68: 1.5 | G68: =F68+0.1 -> 1.6 | H68: =G68 -> 1.6 | I68: =H68 -> 1.6 | J68: =I68 -> 1.6 | K68: =J68 -> 1.6 | L68: =K68+0.1 -> 1.7 | M68: =L68 -> 1.7 | N68: =M68 -> 1.7 | O68: =N68+0.1 -> 1.8 | P68: =O68 -> 1.8 | Q68: =P68 -> 1.8
A69: Net realization (Rs/day) | D69: =D66-D68 -> -0.5 | E69: -0.5 | F69: -0.5 | G69: -0.4 | H69: -0.5 | I69: -0.4 | J69: -0.2 | K69: 0 | L69: 0.1 | M69: 0.3 | N69: 0.5 | O69: 0.5 | P69: 0.6 | Q69: 0.7
A70: growth (%) | E70: =(E69/D69-1)*100 -> 0 | F70: 0 | G70: -20 | H70: 25 | I70: -20 | J70: -50 | K70: -100 | M70: 200 | N70: 66.66666667 | O70: 0 | P70: 20 | Q70: 16.66666667
A72: Circulation revenues (Rs mn) | D72: =D63*10^3*360*D69/10^3 -> -42.3 | E72: -45.684 | F72: -41.85 | G72: -41.904 | H72: -58.59 | I72: -54.144 | J72: -30.78 | K72: 0 | L72: 17.1 | M72: 46.656 | N72: 82.08 | O72: 86.4 | P72: 108.864 | Q72: 133.056
A73: Circulation growth (%) | E73: =(E72/D72-1)*100 -> 8 | F73: -8.392434988 | G73: 0.1290322581 | H73: 39.81958763 | I73: -7.588325653 | J73: -43.15159574 | K73: -100 | M73: 172.8421053 | N73: 75.92592593 | O73: 5.263157895 | P73: 26 | Q73: 22.22222222
A75: Newsprint costs
A76: Pagination (#) | D76: =D33 -> 38 | E76: 44 | F76: 38 | G76: 36 | H76: 40 | I76: 41 | J76: 43 | K76: 45 | L76: 42 | M76: 44 | N76: 46 | O76: 48 | P76: 50 | Q76: 52
A77: Print order ('000) | D77: =D60 -> 0.25 | E77: 0.27 | F77: 0.25 | G77: 0.3 | H77: 0.35 | I77: 0.4 | J77: 0.45 | K77: 0.475 | L77: 0.5 | M77: 0.45 | N77: 0.475 | O77: 0.5 | P77: 0.525 | Q77: 0.55
A78: Total pagination (bn #) | D78: =D76*D77*360/10^3 -> 3.42 | E78: 4.2768 | F78: 3.42 | G78: 3.888 | H78: 5.04 | I78: 5.904 | J78: 6.966 | K78: 7.695 | L78: 7.56 | M78: 7.128 | N78: 7.866 | O78: 8.64 | P78: 9.45 | Q78: 10.296
A79: Newsprint quantity (tons) | D79: =4.6*D78*10^3 -> 15732 | E79: =4.5*E78*10^3 -> 19245.6 | F79: =4.5*F78*10^3 -> 15390 | G79: =4.4*G78*10^3 -> 17107.2 | H79: =4.4*H78*10^3 -> 22176 | I79: =4.4*I78*10^3 -> 25977.6 | J79: =4.4*J78*10^3 -> 30650.4 | K79: =4.4*K78*10^3 -> 33858 | L79: =4.3*L78*10^3 -> 32508 | M79: =4.3*M78*10^3 -> 30650.4 | N79: =4.3*N78*10^3 -> 33823.8 | O79: =4.2*O78*10^3 -> 36288 | P79: =4.2*P78*10^3 -> 39690 | Q79: =4.2*Q78*10^3 -> 43243.2
A80: growth (%) | E80: =(E79/D79-1)*100 -> 22.33409611 | F80: -20.03367003 | G80: 11.15789474 | H80: 29.62962963 | I80: 17.14285714 | J80: 17.98780488 | K80: 10.46511628 | L80: -3.987240829 | M80: -5.714285714 | N80: 10.35353535 | O80: 7.285402586 | P80: 9.375 | Q80: 8.952380952
A82: Imported np (%) | D82: 80 | E82: 80 | F82: 80 | G82: 80 | H82: =G82-10 -> 70 | I82: =H82 -> 70 | J82: =I82+10 -> 80 | K82: =J82 -> 80 | L82: =K82-10 -> 70 | M82: 70 | N82: 70 | O82: =N82+10 -> 80 | P82: 80 | Q82: 80
A83: Domestic np (%) | D83: =100-D82 -> 20 | E83: 20 | F83: 20 | G83: 20 | H83: 30 | I83: 30 | J83: 20 | K83: 20 | L83: 30 | M83: 30 | N83: 30 | O83: 20 | P83: 20 | Q83: 20
A84: Average newsprint price (Rs/ton) | D84: =D82%*'cons expenses'!D39+D83%*'cons expenses'!D43 -> 32517.18142 | E84: =E82%*'cons expenses'!E39+E83%*'cons expenses'!E43 -> 27944.64814 | F84: =F82%*'cons expenses'!F39+F83%*'cons expenses'!F43 -> 32681.6904 | G84: =G82%*'cons expenses'!G39+G83%*'cons expenses'!G43 -> 28712.88 | H84: =H82%*'cons expenses'!H39+H83%*'cons expenses'!H43 -> 28288.36 | I84: =I82%*'cons expenses'!I39+I83%*'cons expenses'!I43 -> 31691.595 | J84: =J82%*'cons expenses'!J39+J83%*'cons expenses'!J43 -> 34755.36 | K84: =K82%*'cons expenses'!K39+K83%*'cons expenses'!K43 -> 35011.4136 | L84: =L82%*'cons expenses'!L39+L83%*'cons expenses'!L43 -> 34821.9454 | M84: =M82%*'cons expenses'!M39+M83%*'cons expenses'!M43 -> 35537.66431 | N84: =N82%*'cons expenses'!N39+N83%*'cons expenses'!N43 -> 36265.76959 | O84: =O82%*'cons expenses'!O39+O83%*'cons expenses'!O43 -> 37467.17092 | P84: =P82%*'cons expenses'!P39+P83%*'cons expenses'!P43 -> 38230.17834 | Q84: =Q82%*'cons expenses'!Q39+Q83%*'cons expenses'!Q43 -> 39006.49391
A85: growth (%)
A87: Newsprint costs (Rs mn) | D87: =+D79*D84/10^6 -> 511.5602982 | E87: 537.8115202 | F87: 502.9712153 | G87: 491.1969807 | H87: 627.3226714 | I87: 823.2715783 | J87: 1065.265686 | K87: 1185.416442 | L87: 1131.991801 | M87: 1089.243626 | N87: 1226.646138 | O87: 1359.608698 | P87: 1517.355778 | Q87: 1686.765617
A88: Newsprint growth (%) | E88: =(E87/D87-1)*100 -> 5.131598777 | F88: -6.478162628 | G88: -2.340936054 | H88: 27.71305524 | I88: 31.23574452 | J88: 29.39420165 | K88: 11.27894732 | L88: -4.506824667 | M88: -3.776367896 | N88: 12.61448846 | O88: 10.83952061 | P88: 11.60238825 | Q88: 11.16480666
A90: Employee costs
A91: Year-end employees (#) | C91: 350 | D91: 350 | E91: 400 | F91: 450 | G91: 400 | H91: 450 | I91: =H91+50 -> 500 | J91: =I91+25 -> 525 | K91: 550 | L91: =K91 -> 550 | M91: =L91 -> 550 | N91: =M91 -> 550 | O91: 575 | P91: 600 | Q91: =P91 -> 600
A92: growth (%) | E92: =(E91/D91-1)*100 -> 14.28571429 | F92: 12.5 | G92: -11.11111111 | H92: 12.5 | I92: 11.11111111 | J92: 5 | K92: 4.761904762 | L92: 0 | M92: 0 | N92: 0 | O92: 4.545454545 | P92: 4.347826087 | Q92: 0
A93: Average employees (#) | D93: =AVERAGE(C91:D91) -> 350 | E93: 375 | F93: 425 | G93: 425 | H93: =AVERAGE(G91:H91)+25 -> 450 | I93: 475 | J93: 512.5 | K93: 537.5 | L93: 550 | M93: 550 | N93: 550 | O93: 562.5 | P93: 587.5 | Q93: 600
A94: Employee cost (Rs/month) | D94: ='HT Delhi-NCR'!D94*(1+10%) -> 55000 | E94: ='HT Delhi-NCR'!E94*(1+10%) -> 60500 | F94: ='HT Delhi-NCR'!F94*(1+10%) -> 66000 | G94: ='HT Delhi-NCR'!G94*(1+10%) -> 66000 | H94: ='HT Delhi-NCR'!H94*(1+10%) -> 72600 | I94: ='HT Delhi-NCR'!I94*(1+10%) -> 79860 | J94: ='HT Delhi-NCR'!J94*(1+10%) -> 89443.2 | K94: ='HT Delhi-NCR'!K94*(1+10%) -> 100176.384 | L94: ='HT Delhi-NCR'!L94*(1+10%) -> 110194.0224 | M94: ='HT Delhi-NCR'!M94*(1+10%) -> 110194.0224 | N94: ='HT Delhi-NCR'!N94*(1+10%) -> 119009.5442 | O94: ='HT Delhi-NCR'!O94*(1+10%) -> 128530.3077 | P94: ='HT Delhi-NCR'!P94*(1+10%) -> 136242.1262 | Q94: ='HT Delhi-NCR'!Q94*(1+10%) -> 144416.6538
A95: growth (%) | E95: =(E94/D94-1)*100 -> 10 | F95: =(F94/E94-1)*100 -> 9.090909091 | G95: 0 | H95: 10 | I95: 10 | J95: 12 | K95: 12 | L95: 10 | M95: 0 | N95: 8 | O95: 8 | P95: 6 | Q95: 6
A97: Employee costs (Rs mn) | D97: =+D93*D94*12/10^6 -> 231 | E97: 272.25 | F97: 336.6 | G97: 336.6 | H97: 392.04 | I97: 455.202 | J97: 550.07568 | K97: 646.1376768 | L97: 727.2805478 | M97: 727.2805478 | N97: 785.4629917 | O97: 867.5795772 | P97: 960.5069896 | Q97: 1039.799907
A98: Employee growth (%) | E98: =(E97/D97-1)*100 -> 17.85714286 | F98: 23.63636364 | G98: 0 | H98: 16.47058824 | I98: 16.11111111 | J98: 20.84210526 | K98: 17.46341463 | L98: 12.55813953 | M98: 0 | N98: 8 | O98: 10.45454545 | P98: 10.71111111 | Q98: 8.255319149

Sheet HT Others
A1: Derivation of financials of HT English Others, March fiscal year-ends, 2007-20E (Rs mn)
B3: 2005 | C3: 2006 | D3: 2007 | E3: 2008 | F3: 2009 | G3: 2010 | H3: 2011 | I3: 2012E | J3: 2013E | K3: 2014E | L3: 2015E | M3: 2016E | N3: 2017E | O3: 2018E | P3: 2019E | Q3: 2020E
A4: Revenues from advertising
A5: Total advertising revenues | D5: =D41 -> 750 | E5: 907.2 | F5: 1000.09728 | G5: 1050.502183 | H5: 1256.400611 | I5: 1411.189166 | J5: 1614.400406 | K5: 1899.503518 | L5: 1987.640481 | M5: 2106.89891 | N5: 2367.311615 | O5: 2659.91133 | P5: 2932.286251 | Q5: 3232.552363
A6: growth (%) | E6: =(E5/D5-1)*100 -> 20.96 | F6: 10.24 | G6: 5.04 | H6: 19.6 | I6: 12.32 | J6: 14.4 | K6: 17.66 | L6: 4.64 | M6: 6 | N6: 12.36 | O6: 12.36 | P6: 10.24 | Q6: 10.24
A7: actual | D7: 750 | E7: 900 | F7: 1000 | G7: 1050
A9: Revenues from circulation
A10: Total circulation revenues | D10: =D72 -> 121.824 | E10: 152.28 | F10: 150.66 | G10: 178.092 | H10: 195.858 | I10: 189.504 | J10: 230.85 | K10: 259.92 | L10: 273.6 | M10: 290.304 | N10: 323.136 | O10: 342.144 | P10: 393.984 | Q10: 449.28
A11: growth (%) | E11: =(E10/D10-1)*100 -> 25 | F11: -1.063829787 | G11: 18.2078853 | H11: 9.975742874 | I11: -3.244187115 | J11: 21.81800912 | K11: 12.59259259 | L11: 5.263157895 | M11: 6.105263158 | N11: 11.30952381 | O11: 5.882352941 | P11: 15.15151515 | Q11: 14.03508772
A12: actual | D12: 130 | E12: 150 | F12: 150 | G12: 180
A14: Other operating revenue | D14: =+'cons revenues'!D17*15% -> 39.88635 | E14: =+'cons revenues'!E17*15% -> 42.291 | F14: =+'cons revenues'!F17*15% -> 53.115 | G14: =+'cons revenues'!G17*15% -> 55.395 | H14: =+'cons revenues'!H17*15% -> 88.8 | I14: =+'cons revenues'!I17*15% -> 103.68225 | J14: =+'cons revenues'!J17*10% -> 76.03365 | K14: =+'cons revenues'!K17*10% -> 83.637015 | L14: =+'cons revenues'!L17*10% -> 92.0007165 | M14: =+'cons revenues'!M17*10% -> 96.60075233 | N14: =+'cons revenues'!N17*10% -> 101.4307899 | O14: =+'cons revenues'!O17*10% -> 106.5023294 | P14: =+'cons revenues'!P17*10% -> 111.8274459 | Q14: =+'cons revenues'!Q17*10% -> 117.4188182
A16: Operating expenses
A17: Newsprint costs | D17: =-D87 -> -435.4351208 | E17: -422.0759654 | F17: -456.6449191 | G17: -411.4645033 | H17: -474.0671707 | I17: -607.4291223 | J17: -724.9329965 | K17: -822.2342094 | L17: -714.8480135 | M17: -772.4549291 | N17: -895.3653748 | O17: -994.6317733 | P17: -1124.833251 | Q17: -1265.60598
A18: Employee costs | D18: =-D97 -> -213.75 | E18: -259.875 | F18: -310.5 | G18: -310.5 | H18: -356.4 | I18: -408.375 | J18: -484.8228 | K18: -563.49216 | L18: -631.1112192 | M18: -642.3810624 | N18: -718.1144087 | O18: -801.8538516 | P18: -877.8327903 | Q18: -945.2726428
A19: SG&A and other costs | D19: =-'cons expenses'!D74 -> -187.1545 | E19: =-'cons expenses'!E74 -> -292.6728078 | F19: =-'cons expenses'!F74 -> -349.1157441 | G19: =-'cons expenses'!G74 -> -334.8543436 | H19: =-'cons expenses'!H74 -> -408.0252047 | I19: =-'cons expenses'!I74 -> -503.4750629 | J19: =-'cons expenses'!J74 -> -575.0038313 | K19: =-'cons expenses'!K74 -> -645.2684028 | L19: =-'cons expenses'!L74 -> -711.2945885 | M19: =-'cons expenses'!M74 -> -762.4027852 | N19: =-'cons expenses'!N74 -> -851.3886114 | O19: =-'cons expenses'!O74 -> -943.0641195 | P19: =-'cons expenses'!P74 -> -1031.406818 | Q19: =-'cons expenses'!Q74 -> -1135.915715
A20: Total operating expenses | D20: =SUM(D17:D19) -> -836.3396208 | E20: -974.6237733 | F20: -1116.260663 | G20: -1056.818847 | H20: -1238.492375 | I20: -1519.279185 | J20: -1784.759628 | K20: -2030.994772 | L20: -2057.253821 | M20: -2177.238777 | N20: -2464.868395 | O20: -2739.549744 | P20: -3034.07286 | Q20: -3346.794338
A21: growth (%) | E21: =(E20/D20-1)*100 -> 16.53444953 | F21: 14.53246821 | G21: -5.325083855 | H21: 17.19060264 | I21: 22.67166236 | J21: 17.47410516 | K21: 13.79654384 | L21: 1.292915632 | M21: 5.832287409 | N21: 13.21075213 | O21: 11.14385458 | P21: 10.75078545 | Q21: 10.30698644
A23: Total EBITDA | D23: =D5+D10+D14+D20 -> 75.37072921 | E23: 127.1472267 | F23: 87.61161677 | G23: 227.170336 | H23: 302.5662353 | I23: 185.0962308 | J23: 136.5244282 | K23: 212.0657603 | L23: 295.9873762 | M23: 316.5648852 | N23: 327.0100099 | O23: 369.0079155 | P23: 404.024837 | Q23: 452.4568432
A24: growth (%) | E24: =(E23/D23-1)*100 -> 68.69576303 | F24: -31.09435493 | G24: 159.2924825 | H24: 33.1891481 | I24: -38.82455833 | J24: -26.24137857 | K24: 55.33173308 | L24: 39.57339256 | M24: 6.952157673 | N24: 3.29952094 | O24: 12.84300307 | P24: 9.489477053 | Q24: 11.9873834
A25: EBITDA margin (%) | D25: =D23/(D5+D10+D14)*100 -> 8.266959918 | E25: 11.54025898 | F25: 7.27748435 | G25: 17.69254282 | H25: 19.63366177 | I25: 10.86006223 | J25: 7.105895026 | K25: 9.454303941 | L25: 12.5778597 | M25: 12.69405808 | N25: 11.71290302 | O25: 11.87071163 | P25: 11.75140652 | Q25: 11.90910581
A27: Source: Company data, Kotak Institutional Equities estimates
A30: Key assumptions
A32: Advertising revenues
A33: Pagination (#) | D33: 28 | E33: 32 | F33: 30 | G33: 32 | H33: =G33+2 -> 34 | I33: =H33+1 -> 35 | J33: =I33+1 -> 36 | K33: =J33+2 -> 38 | L33: =K33-4 -> 34 | M33: =L33+2 -> 36 | N33: =M33+2 -> 38 | O33: =N33+2 -> 40 | P33: =O33+2 -> 42 | Q33: =P33+2 -> 44
A34: Ad:Total ratio (%) | D34: 35 | E34: 35 | F34: 40 | G34: 40 | H34: 40 | I34: =H34+1 -> 41 | J34: =I34+1 -> 42 | K34: =J34+1 -> 43 | L34: =K34+2 -> 45 | M34: =L34+1 -> 46 | N34: =M34+1 -> 47 | O34: =N34+1 -> 48 | P34: =O34+1 -> 49 | Q34: =P34+1 -> 50
A35: Volume growth (%) | E35: =(E33-D33)*2+(E34-D34)*2 -> 8 | F35: 6 | G35: 4 | H35: 4 | I35: 4 | J35: 4 | K35: 6 | L35: -4 | M35: 6 | N35: 6 | O35: 6 | P35: 6 | Q35: 6
A37: Color:BW ratio (%) | D37: 80 | E37: =D37+2 -> 82 | F37: =E37+2 -> 84 | G37: =F37-4 -> 80 | H37: =G37+2 -> 82 | I37: =H37+2 -> 84 | J37: =I37+2 -> 86 | K37: =J37+2 -> 88 | L37: =K37+2 -> 90 | M37: =L37-4 -> 86 | N37: =M37+2 -> 88 | O37: =N37+2 -> 90 | P37: =O37 -> 90 | Q37: =P37 -> 90
A38: Rate increase (%) | E38: 11.5 | F38: 3.5 | G38: 2 | H38: 14.5 | I38: 7.5 | J38: 9.5 | K38: 10.5 | L38: 8.5 | M38: 1 | N38: 5.5 | O38: 5.5 | P38: 4 | Q38: 4
A39: Yield growth (%) | E39: =(E37-D37)/4+E38 -> 12 | F39: 4 | G39: 1 | H39: 15 | I39: 8 | J39: 10 | K39: 11 | L39: 9 | M39: 0 | N39: 6 | O39: 6 | P39: 4 | Q39: 4
A41: Advertising revenues (Rs mn) | D41: 750 | E41: =D41*(1+E35%)*(1+E39%) -> 907.2 | F41: 1000.09728 | G41: 1050.502183 | H41: 1256.400611 | I41: 1411.189166 | J41: 1614.400406 | K41: 1899.503518 | L41: 1987.640481 | M41: 2106.89891 | N41: 2367.311615 | O41: 2659.91133 | P41: 2932.286251 | Q41: 3232.552363
A42: Advertising growth (%) | E42: =(E41/D41-1)*100 -> 20.96 | F42: 10.24 | G42: 5.04 | H42: 19.6 | I42: 12.32 | J42: 14.4 | K42: 17.66 | L42: 4.64 | M42: 6 | N42: 12.36 | O42: 12.36 | P42: 10.24 | Q42: 10.24
E43: 20 | F43: 10 | G43: 5
A44: Readership
A45: IRS Round | E45: R1 2007 | F45: R1 2008 | G45: R1 2009 | H45: Q1 2010 | I45: Q1 2011 | J45: Q1 2012
A46: Tribune CPH (mn) | E46: 483 | F46: 392 | G46: 463 | H46: 532 | I46: 507 | J46: 539
A47: HT CPH (mn) | E47: 357 | F47: 305 | G47: 368 | H47: 376 | I47: 415 | J47: 439
A48: TOI CPH (mn) | E48: 253 | F48: 216 | G48: 249 | H48: 238 | I48: 240 | J48: 248
A51: Total ( mn) | E51: =SUM(E46:E50) -> 1093 | F51: 913 | G51: 1080 | H51: 1146 | I51: 1162 | J51: 1226 | K51: =SUM(K48:K48) -> 0 | L51: 0 | M51: 0 | N51: 0 | O51: 0 | P51: 0 | Q51: 0
A52: Tribune CPH (mn) | E52: =E46/E$51*100 -> 44.19030192 | F52: 42.93537788 | G52: 42.87037037 | H52: 46.42233857 | I52: =I46/I$51*100 -> 43.63166954 | J52: 43.96411093
A53: HT CPH (mn) | E53: 32.66239707 | F53: 33.40635268 | G53: 34.07407407 | H53: 32.80977312 | I53: 35.71428571 | J53: 35.80750408
A54: TOI CPH (mn) | E54: 23.14730101 | F54: 23.65826944 | G54: 23.05555556 | H54: 20.76788831 | I54: 20.65404475 | J54: 20.22838499
A57: Total (%) | E57: =SUM(E52:E56) -> 100 | F57: 100 | G57: 100 | H57: 100 | I57: =SUM(I52:I56) -> 100 | J57: =SUM(J52:J56) -> 100 | K57: 0 | L57: 0 | M57: =SUM(M54:M54) -> 0 | N57: =SUM(N54:N54) -> 0 | O57: =SUM(O54:O54) -> 0 | P57: =SUM(P54:P54) -> 0 | Q57: =SUM(Q54:Q54) -> 0
A59: Circulation revenues
A60: Print order (mn) | D60: 0.3 | E60: 0.3 | F60: 0.3 | G60: 0.3 | H60: =G60+0.025 -> 0.325 | I60: =H60+0.025 -> 0.35 | J60: =I60+0.025 -> 0.375 | K60: =J60+0.025 -> 0.4 | L60: =K60 -> 0.4 | M60: =L60 -> 0.4 | N60: =M60+0.025 -> 0.425 | O60: =N60+0.025 -> 0.45 | P60: =O60+0.025 -> 0.475 | Q60: =P60+0.025 -> 0.5
A61: growth (%) | E61: =(E60/D60-1)*100 -> 0 | F61: 0 | G61: 0 | H61: 8.333333333 | I61: 7.692307692 | J61: 7.142857143 | K61: 6.666666667 | L61: 0 | M61: 0 | N61: 6.25 | O61: 5.882352941 | P61: 5.555555556 | Q61: 5.263157895
A62: Unsold copies (%) | D62: 6 | E62: 6 | F62: 7 | G62: 3 | H62: 7 | I62: 6 | J62: 5 | K62: =J62 -> 5 | L62: =K62 -> 5 | M62: =L62-1 -> 4 | N62: =M62 -> 4 | O62: =N62 -> 4 | P62: =O62 -> 4 | Q62: =P62 -> 4
A63: Circulation (mn) | D63: =D60*(1-D62%) -> 0.282 | E63: 0.282 | F63: 0.279 | G63: 0.291 | H63: 0.30225 | I63: 0.329 | J63: 0.35625 | K63: 0.38 | L63: 0.38 | M63: 0.384 | N63: 0.408 | O63: 0.432 | P63: 0.456 | Q63: 0.48
A64: growth (%) | E64: =(E63/D63-1)*100 -> 0 | F64: -1.063829787 | G64: 4.301075269 | H64: 3.865979381 | I64: 8.850289495 | J64: 8.282674772 | K64: 6.666666667 | L64: 0 | M64: 1.052631579 | N64: 6.25 | O64: 5.882352941 | P64: 5.555555556 | Q64: 5.263157895
A66: Cover price (Rs/day) | D66: 2.2 | E66: 2.5 | F66: 2.5 | G66: 2.8 | H66: 2.9 | I66: =H66-0.1 -> 2.8 | J66: =I66+0.2 -> 3 | K66: =J66+0.1 -> 3.1 | L66: =K66+0.2 -> 3.3 | M66: =L66+0.1 -> 3.4 | N66: =M66+0.1 -> 3.5 | O66: =N66+0.1 -> 3.6 | P66: 3.8 | Q66: 4
A67: growth (%) | E67: =(E66/D66-1)*100 -> 13.63636364 | F67: 0 | G67: 12 | H67: 3.571428571 | I67: -3.448275862 | J67: 7.142857143 | K67: 3.333333333 | L67: 6.451612903 | M67: 3.03030303 | N67: 2.941176471 | O67: 2.857142857 | P67: 5.555555556 | Q67: 5.263157895
A68: Commission (Rs/day) | D68: 1 | E68: 1 | F68: 1 | G68: =F68+0.1 -> 1.1 | H68: =G68 -> 1.1 | I68: =H68+0.1 -> 1.2 | J68: =I68 -> 1.2 | K68: =J68 -> 1.2 | L68: =K68+0.1 -> 1.3 | M68: =L68 -> 1.3 | N68: =M68 -> 1.3 | O68: =N68+0.1 -> 1.4 | P68: =O68 -> 1.4 | Q68: =P68 -> 1.4
A69: Net realization (Rs/day) | D69: =D66-D68 -> 1.2 | E69: 1.5 | F69: 1.5 | G69: 1.7 | H69: 1.8 | I69: 1.6 | J69: 1.8 | K69: 1.9 | L69: 2 | M69: 2.1 | N69: 2.2 | O69: 2.2 | P69: 2.4 | Q69: 2.6
A70: growth (%) | E70: =(E69/D69-1)*100 -> 25 | F70: 0 | G70: 13.33333333 | H70: 5.882352941 | I70: -11.11111111 | J70: 12.5 | K70: 5.555555556 | L70: 5.263157895 | M70: 5 | N70: 4.761904762 | O70: 0 | P70: 9.090909091 | Q70: 8.333333333
A72: Circulation revenues (Rs mn) | D72: =D63*10^3*360*D69/10^3 -> 121.824 | E72: 152.28 | F72: 150.66 | G72: 178.092 | H72: 195.858 | I72: 189.504 | J72: 230.85 | K72: 259.92 | L72: 273.6 | M72: 290.304 | N72: 323.136 | O72: 342.144 | P72: 393.984 | Q72: 449.28
A73: Circulation growth (%) | E73: =(E72/D72-1)*100 -> 25 | F73: -1.063829787 | G73: 18.2078853 | H73: 9.975742874 | I73: -3.244187115 | J73: 21.81800912 | K73: 12.59259259 | L73: 5.263157895 | M73: 6.105263158 | N73: 11.30952381 | O73: 5.882352941 | P73: 15.15151515 | Q73: 14.03508772
A75: Newsprint costs
A76: Pagination (#) | D76: =D33 -> 28 | E76: 32 | F76: 30 | G76: 32 | H76: 34 | I76: 35 | J76: 36 | K76: 38 | L76: 34 | M76: 36 | N76: 38 | O76: 40 | P76: 42 | Q76: 44
A77: Print order ('000) | D77: =D60 -> 0.3 | E77: 0.3 | F77: 0.3 | G77: 0.3 | H77: 0.325 | I77: 0.35 | J77: 0.375 | K77: 0.4 | L77: 0.4 | M77: 0.4 | N77: 0.425 | O77: 0.45 | P77: 0.475 | Q77: 0.5
A78: Total pagination (bn #) | D78: =D76*D77*360/10^3 -> 3.024 | E78: 3.456 | F78: 3.24 | G78: 3.456 | H78: 3.978 | I78: 4.41 | J78: 4.86 | K78: 5.472 | L78: 4.896 | M78: 5.184 | N78: 5.814 | O78: 6.48 | P78: 7.182 | Q78: 7.92
A79: Newsprint quantity (tons) | D79: =4.6*D78*10^3 -> 13910.4 | E79: =4.5*E78*10^3 -> 15552 | F79: =4.5*F78*10^3 -> 14580 | G79: =4.4*G78*10^3 -> 15206.4 | H79: =4.4*H78*10^3 -> 17503.2 | I79: =4.4*I78*10^3 -> 19404 | J79: =4.4*J78*10^3 -> 21384 | K79: =4.4*K78*10^3 -> 24076.8 | L79: =4.3*L78*10^3 -> 21052.8 | M79: =4.3*M78*10^3 -> 22291.2 | N79: =4.3*N78*10^3 -> 25000.2 | O79: =4.2*O78*10^3 -> 27216 | P79: =4.2*P78*10^3 -> 30164.4 | Q79: =4.2*Q78*10^3 -> 33264
A80: growth (%) | E80: =(E79/D79-1)*100 -> 11.80124224 | F80: -6.25 | G80: 4.296296296 | H80: 15.10416667 | I80: 10.85972851 | J80: 10.20408163 | K80: 12.59259259 | L80: -12.55980861 | M80: 5.882352941 | N80: 12.15277778 | O80: 8.863129095 | P80: 10.83333333 | Q80: 10.27568922
A82: Imported np (%) | D82: 60 | E82: 60 | F82: 60 | G82: 40 | H82: =G82+10 -> 50 | I82: =H82 -> 50 | J82: =I82+10 -> 60 | K82: =J82 -> 60 | L82: =K82-10 -> 50 | M82: =L82 -> 50 | N82: =M82+10 -> 60 | O82: =N82 -> 60 | P82: =O82 -> 60 | Q82: =P82 -> 60
A83: Domestic np (%) | D83: =100-D82 -> 40 | E83: 40 | F83: 40 | G83: 60 | H83: 50 | I83: 50 | J83: 40 | K83: 40 | L83: 50 | M83: 50 | N83: 40 | O83: 40 | P83: 40 | Q83: 40
A84: Average newsprint price (Rs/ton) | D84: =D82%*'cons expenses'!D39+D83%*'cons expenses'!D43 -> 31302.84685 | E84: =E82%*'cons expenses'!E39+E83%*'cons expenses'!E43 -> 27139.65827 | F84: =F82%*'cons expenses'!F39+F83%*'cons expenses'!F43 -> 31319.9533 | G84: =G82%*'cons expenses'!G39+G83%*'cons expenses'!G43 -> 27058.64 | H84: =H82%*'cons expenses'!H39+H83%*'cons expenses'!H43 -> 27084.6 | I84: =I82%*'cons expenses'!I39+I83%*'cons expenses'!I43 -> 31304.325 | J84: =J82%*'cons expenses'!J39+J83%*'cons expenses'!J43 -> 33900.72 | K84: =K82%*'cons expenses'!K39+K83%*'cons expenses'!K43 -> 34150.4772 | L84: =L82%*'cons expenses'!L39+L83%*'cons expenses'!L43 -> 33955.009 | M84: =M82%*'cons expenses'!M39+M83%*'cons expenses'!M43 -> 34652.90918 | N84: =N82%*'cons expenses'!N39+N83%*'cons expenses'!N43 -> 35814.32848 | O84: =O82%*'cons expenses'!O39+O83%*'cons expenses'!O43 -> 36545.84705 | P84: =P82%*'cons expenses'!P39+P83%*'cons expenses'!P43 -> 37290.09199 | Q84: =Q82%*'cons expenses'!Q39+Q83%*'cons expenses'!Q43 -> 38047.31783
A85: growth (%)
A87: Newsprint costs (Rs mn) | D87: =+D79*D84/10^6 -> 435.4351208 | E87: 422.0759654 | F87: 456.6449191 | G87: 411.4645033 | H87: 474.0671707 | I87: 607.4291223 | J87: 724.9329965 | K87: 822.2342094 | L87: 714.8480135 | M87: 772.4549291 | N87: 895.3653748 | O87: 994.6317733 | P87: 1124.833251 | Q87: 1265.60598
A88: Newsprint growth (%) | E88: =(E87/D87-1)*100 -> -3.068001342 | F88: 8.190220837 | G88: -9.893992887 | H88: 15.21459735 | I88: 28.1314463 | J88: 19.34445845 | K88: 13.42209741 | L88: -13.06029289 | M88: 8.058624288 | N88: 15.91166566 | O88: 11.08669167 | P88: 13.0904201 | Q88: 12.5149865
A90: Employee costs
A91: Year-end employees (#) | C91: 450 | D91: 500 | E91: 550 | F91: 600 | G91: 550 | H91: 600 | I91: =H91+50 -> 650 | J91: =I91+25 -> 675 | K91: =J91+25 -> 700 | L91: =K91 -> 700 | M91: =L91+25 -> 725 | N91: =M91+25 -> 750 | O91: =N91+25 -> 775 | P91: =O91+25 -> 800 | Q91: =P91 -> 800
A92: growth (%) | E92: =(E91/D91-1)*100 -> 10 | F92: 9.090909091 | G92: -8.333333333 | H92: 9.090909091 | I92: 8.333333333 | J92: 3.846153846 | K92: 3.703703704 | L92: 0 | M92: 3.571428571 | N92: 3.448275862 | O92: 3.333333333 | P92: 3.225806452 | Q92: 0
A93: Average employees (#) | D93: =AVERAGE(C91:D91) -> 475 | E93: 525 | F93: 575 | G93: 575 | H93: =AVERAGE(G91:H91)+25 -> 600 | I93: 625 | J93: 662.5 | K93: 687.5 | L93: 700 | M93: 712.5 | N93: 737.5 | O93: 762.5 | P93: 787.5 | Q93: 800
A94: Employee cost (Rs/month) | D94: ='HT Delhi-NCR'!D94*(1-25%) -> 37500 | E94: ='HT Delhi-NCR'!E94*(1-25%) -> 41250 | F94: ='HT Delhi-NCR'!F94*(1-25%) -> 45000 | G94: ='HT Delhi-NCR'!G94*(1-25%) -> 45000 | H94: ='HT Delhi-NCR'!H94*(1-25%) -> 49500 | I94: ='HT Delhi-NCR'!I94*(1-25%) -> 54450 | J94: ='HT Delhi-NCR'!J94*(1-25%) -> 60984 | K94: ='HT Delhi-NCR'!K94*(1-25%) -> 68302.08 | L94: ='HT Delhi-NCR'!L94*(1-25%) -> 75132.288 | M94: ='HT Delhi-NCR'!M94*(1-25%) -> 75132.288 | N94: ='HT Delhi-NCR'!N94*(1-25%) -> 81142.87104 | O94: ='HT Delhi-NCR'!O94*(1-25%) -> 87634.30072 | P94: ='HT Delhi-NCR'!P94*(1-25%) -> 92892.35877 | Q94: ='HT Delhi-NCR'!Q94*(1-25%) -> 98465.90029
A95: growth (%) | E95: =(E94/D94-1)*100 -> 10 | F95: 9.090909091 | G95: 0 | H95: 10 | I95: 10 | J95: 12 | K95: 12 | L95: 10 | M95: 0 | N95: 8 | O95: 8 | P95: 6 | Q95: 6
A97: Employee costs (Rs mn) | D97: =+D93*D94*12/10^6 -> 213.75 | E97: 259.875 | F97: 310.5 | G97: 310.5 | H97: 356.4 | I97: 408.375 | J97: 484.8228 | K97: 563.49216 | L97: 631.1112192 | M97: 642.3810624 | N97: 718.1144087 | O97: 801.8538516 | P97: 877.8327903 | Q97: 945.2726428
A98: Employee growth (%) | E98: =(E97/D97-1)*100 -> 21.57894737 | F98: 19.48051948 | G98: 0 | H98: 14.7826087 | I98: 14.58333333 | J98: 18.72 | K98: 16.22641509 | L98: 12 | M98: 1.785714286 | N98: 11.78947368 | O98: 11.66101695 | P98: 9.475409836 | Q98: 7.682539683

Sheet HTO DCF
A1: Discounted cash flow analysis of HT Others (Rs mn)
B3: 2012E | C3: 2013E | D3: 2014E | E3: 2015E | F3: 2016E | G3: 2017E | H3: 2018E | I3: 2019E | J3: 2020E | K3: 2021E | L3: 2022E | M3: 2023E | N3: 2024E
A4: EBIT | B4: ='HT Others'!I23+'cons revenues'!I24%*'profit model'!I11 -> 120.2234763 | C4: ='HT Others'!J23+'cons revenues'!J24%*'profit model'!J11 -> 68.1843199 | D4: ='HT Others'!K23+'cons revenues'!K24%*'profit model'!K11 -> 138.0506786 | E4: ='HT Others'!L23+'cons revenues'!L24%*'profit model'!L11 -> 218.4277423 | F4: ='HT Others'!M23+'cons revenues'!M24%*'profit model'!M11 -> 233.4354546 | G4: ='HT Others'!N23+'cons revenues'!N24%*'profit model'!N11 -> 236.7351766 | H4: ='HT Others'!O23+'cons revenues'!O24%*'profit model'!O11 -> 266.1474501 | I4: ='HT Others'!P23+'cons revenues'!P24%*'profit model'!P11 -> 288.0909599 | J4: ='HT Others'!Q23+'cons revenues'!Q24%*'profit model'!Q11 -> 322.0215897 | K4: =J4*(1+$B$16%) -> 341.342885 | L4: =K4*(1+$B$16%) -> 361.8234581 | M4: =L4*(1+$B$16%) -> 383.5328656 | N4: =M4*(1+$B$16%) -> 406.5448376
A5: Tax expense | B5: =-'profit model'!I35%*B4 -> -34.04533118 | C5: =-'profit model'!J35%*C4 -> -20.56813088 | D5: =-'profit model'!K35%*D4 -> -43.9566138 | E5: =-'profit model'!L35%*E4 -> -71.74159828 | F5: =-'profit model'!M35%*F4 -> -78.32562634 | G5: =-'profit model'!N35%*G4 -> -79.8946923 | H5: =-'profit model'!O35%*H4 -> -90.27300557 | I5: =-'profit model'!P35%*I4 -> -98.72896062 | J5: =-'profit model'!Q35%*J4 -> -111.4491305
A6: Changes in working capital | B6: ='cons revenues'!I24%*'cash model'!I11 -> -60.67250301 | C6: ='cons revenues'!J24%*'cash model'!J11 -> -21.75713672 | D6: ='cons revenues'!K24%*'cash model'!K11 -> -25.03956811 | E6: ='cons revenues'!L24%*'cash model'!L11 -> -1.112710945 | F6: ='cons revenues'!M24%*'cash model'!M11 -> -9.207456686 | G6: ='cons revenues'!N24%*'cash model'!N11 -> -23.83623576 | H6: ='cons revenues'!O24%*'cash model'!O11 -> -22.39726549 | I6: ='cons revenues'!P24%*'cash model'!P11 -> -19.41043108 | J6: ='cons revenues'!Q24%*'cash model'!Q11 -> -16.15533881
A7: Cash flow from operations | B7: =SUM(B4:B6) -> 25.50564209 | C7: 25.85905229 | D7: 69.05449664 | E7: 145.5734331 | F7: 145.9023716 | G7: 133.0042486 | H7: 153.4771791 | I7: 169.9515682 | J7: 194.4171204
A8: Capital expenditure | B8: =-20%*'capex est'!I14 -> -42 | C8: =-20%*'capex est'!J14 -> -44.1 | D8: =-20%*'capex est'!K14 -> -46.305 | E8: =-20%*'capex est'!L14 -> -48.62025 | F8: =-20%*'capex est'!M14 -> -51.0512625 | G8: =-20%*'capex est'!N14 -> -120.6086077 | H8: =-20%*'capex est'!O14 -> -126.639038 | I8: =-20%*'capex est'!P14 -> -132.9709899 | J8: =-20%*'capex est'!Q14 -> -139.6195394
A9: Cash flows for minority interest | B9: =0 -> 0 | C9: =0 -> 0 | D9: =0 -> 0 | E9: =0 -> 0 | F9: =0 -> 0 | G9: =0 -> 0 | H9: =0 -> 0 | I9: =0 -> 0 | J9: =0 -> 0
A10: Free cash flow to the firm | B10: =SUM(B7:B9) -> -16.49435791 | C10: -18.24094771 | D10: 22.74949664 | E10: 96.95318307 | F10: 94.8511091 | G10: 12.39564091 | H10: 26.83814102 | I10: 36.98057826 | J10: 54.79758093 | K10: =J10*(1+$B$16%) -> 58.08543578 | L10: =K10*(1+$B$16%) -> 61.57056193 | M10: =L10*(1+$B$16%) -> 65.26479565 | N10: =M10*(1+$B$16%) -> 69.18068339
A11: Dicounted cash flow-now | B11: =B10*B22 -> -14.59677691 | C11: -14.2853377 | D11: 15.76654234 | E11: 59.46320288 | F11: 51.46414662 | G11: 5.951862714 | H11: 11.4040183 | I11: 13.90595212 | J11: 18.22907176 | K11: 17.09983723
A12: Discounted cash flow-1 year forward | C12: =C10*B22 -> -16.1424316 | D12: 17.81619284 | E12: 67.19341926 | F12: 58.17396155 | G12: 6.725604867 | H12: 12.88654068 | I12: 15.71372589 | J12: 20.60574962 | K12: 19.32281607 | L12: 18.12582746
A13: Discounted cash flow-2 year forward | D13: =D10*B22 -> 20.13229791 | E13: 75.92856376 | F13: 65.73657655 | G13: 7.602478709 | H13: 14.56179097 | I13: 17.75651026 | J13: 23.28449707 | K13: 21.8420946 | L13: 20.48218503 | M13: 19.21337711
A15: Discount rate (%) | B15: 13
A16: Growth from 2020E to perpetuity (%) | B16: 6
A18: Fiscal year-end (March 31, XXXX) | B18: ='cons DCF'!B18 -> 2012-03-31 | C18: ='cons DCF'!C18 -> 2013-03-31 | D18: ='cons DCF'!D18 -> 2014-03-31 | E18: ='cons DCF'!E18 -> 2015-03-31 | F18: ='cons DCF'!F18 -> 2016-03-31 | G18: ='cons DCF'!G18 -> 2017-03-31 | H18: ='cons DCF'!H18 -> 2018-03-31 | I18: ='cons DCF'!I18 -> 2019-03-31 | J18: ='cons DCF'!J18 -> 2020-03-31 | K18: ='cons DCF'!K18 -> 2021-03-31 | L18: ='cons DCF'!L18 -> 2022-03-31 | M18: ='cons DCF'!M18 -> 2023-03-31 | N18: ='cons DCF'!N18 -> 2024-03-31
A19: Today | B19: ='cons DCF'!B19 -> 2011-04-01 | C19: =B19 -> 2011-04-01 | D19: =+C19 -> 2011-04-01 | E19: 2011-04-01 | F19: 2011-04-01 | G19: 2011-04-01 | H19: 2011-04-01 | I19: 2011-04-01 | J19: 2011-04-01 | K19: 2011-04-01 | L19: 2011-04-01 | M19: 2011-04-01 | N19: 2011-04-01
A20: Days left | B20: =B18-B19 -> 365 | C20: 730 | D20: 1095 | E20: 1460 | F20: 1826 | G20: 2191 | H20: 2556 | I20: 2921 | J20: 3287 | K20: 3652 | L20: 4017 | M20: 4382 | N20: 4748
A21: Years left | B21: =B20/365 -> 1 | C21: 2 | D21: 3 | E21: 4 | F21: 5.002739726 | G21: 6.002739726 | H21: 7.002739726 | I21: 8.002739726 | J21: 9.005479452 | K21: 10.00547945 | L21: 11.00547945 | M21: 12.00547945 | N21: 13.00821918
A22: Discount factor at WACC | B22: =1/(1+$B$15%)^B21 -> 0.8849557522 | C22: 0.7831466834 | D22: 0.6930501623 | E22: 0.6133187277 | F22: 0.5425782272 | G22: 0.4801577231 | H22: 0.4249183391 | I22: 0.3760339284 | J22: 0.3326619798 | K22: 0.2943911326 | L22: 0.2605231262 | M22: 0.2305514391 | N22: 0.2039595164
B24: + 1-year | D24: + 2-years | G24: Sensitivity of share price to different levels of WACC and growth rate (Rs)
A25: Total PV of free cash flow (a) | B25: =+SUM(B11:K11) -> 164.4025194 | C25: =B25/$B$30 -> 0.3883436213 | D25: =+SUM(C12:L12) -> 220.4214066 | E25: =D25/$D$30 -> 0.4453873476 | H25: WACC (%)
A26: FCF in terminal year | B26: =L10 -> 61.57056193 | D26: =M10 -> 65.26479565 | G26: =B34 -> 1.801459199 | H26: 10.5 | I26: 11 | J26: 11.5 | K26: 12 | L26: 12.5 | M26: 13 | N26: 13.5
A27: Exit FCF multiple (X) | B27: =1/($B$15%-$B$16%) -> 14.28571429 | D27: =1/($B$15%-$B$16%) -> 14.28571429 | G27: 2 | H27: 1.856314877 | I27: 1.730851961 | J27: 1.618962463 | K27: 1.518597367 | L27: 1.428098608 | M27: 1.346110183 | N27: 1.271512454
A28: Terminal value | B28: =B26*B27 -> 879.5794562 | D28: =D26*D27 -> 932.3542235 | F28: Growth rate (%) | G28: 3 | H28: 2.020781399 | I28: 1.87130426 | J28: 1.739769718 | K28: 1.6231746 | L28: 1.51914865 | M28: 1.425796261 | N28: 1.341583426
A29: PV of terminal value (b) | B29: =B28*K22 -> 258.9403923 | C29: =B29/$B$30 -> 0.6116563787 | D29: =D28*K22 -> 274.4768158 | E29: =D29/$D$30 -> 0.5546126524 | G29: 4 | H29: 2.235853006 | I29: 2.051885788 | J29: 1.89279224 | K29: 1.753896141 | L29: 1.631622232 | M29: 1.523190356 | N29: 1.426406183
A30: EV (a) + (b) | B30: =B29+B25 -> 423.3429116 | D30: =D29+D25 -> 494.8982225 | G30: 5 | H30: 2.529132469 | I30: 2.292661157 | J30: 2.092898615 | K30: 1.921966693 | L30: 1.774088769 | M30: 1.644932974 | N30: 1.531187234
A31: EV (US$ mn) | B31: =+B30/46 -> 9.203106775 | D31: =+D30/46 -> 10.75865701 | G31: 6 | H31: 2.95275836 | I31: 2.629746675 | J31: 2.365770945 | K31: 2.146060764 | L31: 1.960391164 | M31: 1.801459199 | N31: 1.6639099
A32: Net debt/ (cash) | B32: =0 -> 0 | D32: =0 -> 0 | G32: 7 | H32: 3.618456189 | I32: 3.135374952 | J32: 2.759919866 | K32: 2.459792462 | L32: 2.214439883 | M32: 2.010160831 | N32: 1.837470309
A33: Equity value | B33: =+B30-B32 -> 423.3429116 | D33: =+D30-D32 -> 494.8982225 | G33: 8 | H33: 4.816712281 | I33: 3.978088747 | J33: 3.379296741 | K33: 2.93039001 | L33: 2.581399146 | M33: 2.302343116 | N33: 2.074143594
A34: Implied share price (Rs) | B34: =+B33/'profit model'!F24 -> 1.801459199 | D34: =+D33/'profit model'!G24 -> 2.105054115 | G34: 9 | H34: 7.612643163 | I34: 5.663516336 | J34: 4.494175117 | K34: 3.714719256 | L34: 3.158049415 | M34: 2.740616543 | N34: 2.416005006
A35: Exit EV/EBITDA multiple (X) | B35: =B28/L4 -> 2.430963047 | D35: =D28/M4 -> 2.430963047 | G35: 10 | H35: 21.59229757 | I35: 10.7197991 | J35: 7.095557994 | K35: 5.283377748 | L35: 4.196019899 | M35: 3.471072255 | N35: 2.953215796

Sheet HT Mint
A1: Derivation of financials of HT Mint business, March fiscal year-ends, 2007-20E (Rs mn)
B3: 2005 | C3: 2006 | D3: 2007 | E3: 2008 | F3: 2009 | G3: 2010 | H3: 2011 | I3: 2012E | J3: 2013E | K3: 2014E | L3: 2015E | M3: 2016E | N3: 2017E | O3: 2018E | P3: 2019E | Q3: 2020E
A4: Revenues from advertising
A5: Total advertising revenues | D5: =D41 -> 50 | E5: 200 | F5: 300 | G5: 450 | H5: 630.99 | I5: 745.767081 | J5: 926.9884817 | K5: 1161.33117 | L5: 1215.216936 | M5: 1251.916488 | N5: 1391.880751 | O5: 1608.17902 | P5: 1823.996644 | Q5: 2068.776994
A6: growth (%) | E6: =(E5/D5-1)*100 -> 300 | F6: 50 | G6: 50 | H6: 40.22 | I6: 18.19 | J6: 24.3 | K6: 25.28 | L6: 4.64 | M6: 3.02 | N6: 11.18 | O6: 15.54 | P6: 13.42 | Q6: 13.42
A7: actual | D7: 750 | E7: 900 | F7: 1000 | G7: 1050
A9: Revenues from circulation
A10: Total circulation revenues | D10: =D72 -> 0 | E10: 12.1824 | F10: 12.0528 | G10: 16.7616 | H10: 23.436 | I10: 37.9008 | J10: 55.404 | K10: 75.24 | L10: 90.288 | M10: 114.048 | N10: 135.1296 | O10: 149.2992 | P10: 172.8 | Q10: 190.08
A11: growth (%) | E11: =(E10/D10-1)*100 ->  | F11: -1.063829787 | G11: 39.06810036 | H11: 39.81958763 | I11: 61.72043011 | J11: 46.18161094 | K11: 35.80246914 | L11: 20 | M11: 26.31578947 | N11: 18.48484848 | O11: 10.4859335 | P11: 15.74074074 | Q11: 10
A12: actual | D12: 130 | E12: 150 | F12: 150 | G12: 180
A14: Other operating revenue | D14: =+'cons revenues'!D17*0% -> 0 | E14: =+'cons revenues'!E17*0% -> 0 | F14: =+'cons revenues'!F17*0% -> 0 | G14: =+'cons revenues'!G17*0% -> 0 | H14: =+'cons revenues'!H17*0% -> 0 | I14: =+'cons revenues'!I17*0% -> 0 | J14: =+'cons revenues'!J17*5% -> 38.016825 | K14: =+'cons revenues'!K17*5% -> 41.8185075 | L14: =+'cons revenues'!L17*5% -> 46.00035825 | M14: =+'cons revenues'!M17*5% -> 48.30037616 | N14: =+'cons revenues'!N17*5% -> 50.71539497 | O14: =+'cons revenues'!O17*5% -> 53.25116472 | P14: =+'cons revenues'!P17*5% -> 55.91372296 | Q14: =+'cons revenues'!Q17*5% -> 58.7094091
A16: Operating expenses
A17: Newsprint costs | D17: =-D87 -> -92.16799432 | E17: -184.4346777 | F17: -218.3953961 | G17: -197.6467046 | H17: -256.9353494 | I17: -305.8999258 | J17: -402.0636787 | K17: -475.0302681 | L17: -460.0883491 | M17: -469.544855 | N17: -500.9452451 | O17: -551.6445129 | P17: -618.9058503 | Q17: -664.7090233
A18: Employee costs | D18: =-D97 -> -18 | E18: -59.4 | F18: -108 | G18: -129.6 | H18: -190.08 | I18: -222.156 | J18: -278.08704 | K18: -327.849984 | L18: -360.6349824 | M18: -360.6349824 | N18: -389.485781 | O18: -441.6768756 | P18: -512.7658204 | Q18: -567.1635857
A19: SG&A and other costs | D19: =-'cons expenses'!D75 -> -68.62331667 | E19: =-'cons expenses'!E75 -> -168.9717248 | F19: =-'cons expenses'!F75 -> -220.3237489 | G19: =-'cons expenses'!G75 -> -197.1581612 | H19: =-'cons expenses'!H75 -> -270.8691079 | I19: =-'cons expenses'!I75 -> -266.0700189 | J19: =-'cons expenses'!J75 -> -330.1671175 | K19: =-'cons expenses'!K75 -> -394.5085135 | L19: =-'cons expenses'!L75 -> -434.8760447 | M19: =-'cons expenses'!M75 -> -453.0187057 | N19: =-'cons expenses'!N75 -> -500.5810863 | O19: =-'cons expenses'!O75 -> -570.1753715 | P19: =-'cons expenses'!P75 -> -641.5753493 | Q19: =-'cons expenses'!Q75 -> -726.9661969
A20: Total operating expenses | D20: =SUM(D17:D19) -> -178.791311 | E20: -412.8064025 | F20: -546.719145 | G20: -524.4048659 | H20: -717.8844573 | I20: -794.1259446 | J20: -1010.317836 | K20: -1197.388766 | L20: -1255.599376 | M20: -1283.198543 | N20: -1391.012112 | O20: -1563.49676 | P20: -1773.24702 | Q20: -1958.838806
A21: growth (%) | E21: =(E20/D20-1)*100 -> 130.8872843 | F21: 32.43959921 | G21: -4.081488525 | H21: 36.89507937 | I21: 10.62030059 | J21: 27.22387967 | K21: 18.51604739 | L21: 4.8614629 | M21: 2.198087017 | N21: 8.401939818 | O21: 12.39993859 | P21: 13.41545856 | Q21: 10.46621163
A23: Total EBITDA | D23: =D5+D10+D14+D20 -> -128.791311 | E23: -200.6240025 | F23: -234.666345 | G23: -57.64326587 | H23: -63.45845735 | I23: -10.45806363 | J23: 10.09147046 | K23: 81.00091179 | L23: 95.90591822 | M23: 131.0663207 | N23: 186.7136335 | O23: 247.2326242 | P23: 279.463347 | Q23: 358.727597
A24: growth (%) | E24: =(E23/D23-1)*100 -> 55.77448586 | F24: 16.96823016 | G24: -75.43607463 | H24: 10.08824082 | I24: -83.51982688 | J24: -196.4946362 | K24: 702.6670853 | L24: 18.40103537 | M24: 36.66134808 | N24: 42.45737004 | O24: 32.41273257 | P24: 13.03659777 | Q24: 28.36302177
A25: EBITDA margin (%) | D25: =D23/(D5+D10+D14)*100 -> -257.582622 | E25: -94.55261253 | F25: -75.20084583 | G25: -12.34961614 | H25: -9.696811763 | I25: -1.334502011 | J25: 0.9889629968 | K25: 6.336167542 | L25: 7.096229561 | M25: 9.267452235 | N25: 11.83435296 | O25: 13.65375889 | P25: 13.61435844 | Q25: 15.47863296
A27: Source: Company data, Kotak Institutional Equities estimates
A30: Key assumptions
A32: Advertising revenues
A33: Pagination (#) | D33: 30 | E33: 30 | F33: 30 | G33: 32 | H33: =G33+3 -> 35 | I33: =H33-1 -> 34 | J33: =I33+2 -> 36 | K33: =J33+2 -> 38 | L33: =K33-4 -> 34 | M33: =L33 -> 34 | N33: =M33 -> 34 | O33: =N33+2 -> 36 | P33: =O33+2 -> 38 | Q33: =P33+2 -> 40
A34: Ad:Total ratio (%) | G34: 20 | H34: 24 | I34: =H34+4 -> 28 | J34: =I34+3 -> 31 | K34: =J34+2 -> 33 | L34: =K34+2 -> 35 | M34: =L34+1 -> 36 | N34: =M34+1 -> 37 | O34: =N34+1 -> 38 | P34: =O34+1 -> 39 | Q34: =P34+1 -> 40
A35: Volume growth (%) | H35: =(H33-G33)*2+(H34-G34)*2 -> 14 | I35: 6 | J35: 10 | K35: 8 | L35: -4 | M35: 2 | N35: 2 | O35: 6 | P35: 6 | Q35: 6
A37: Color:BW ratio (%) | D37: 80 | E37: =D37+2 -> 82 | F37: =E37+2 -> 84 | G37: =F37-4 -> 80 | H37: =G37+2 -> 82 | I37: =H37+2 -> 84 | J37: =I37+2 -> 86 | K37: =J37+2 -> 88 | L37: =K37+2 -> 90 | M37: =L37-4 -> 86 | N37: =M37+2 -> 88 | O37: =N37+2 -> 90 | P37: =O37 -> 90 | Q37: =P37 -> 90
A38: Rate increase (%) | H38: 22.5 | I38: 11 | J38: 12.5 | K38: 15.5 | L38: 8.5 | M38: 2 | N38: 8.5 | O38: 8.5 | P38: 7 | Q38: 7
A39: Yield growth (%) | H39: =(H37-G37)/4+H38 -> 23 | I39: 11.5 | J39: 13 | K39: 16 | L39: 9 | M39: 1 | N39: 9 | O39: 9 | P39: 7 | Q39: 7
A41: Advertising revenues (Rs mn) | D41: 50 | E41: 200 | F41: 300 | G41: 450 | H41: =G41*(1+H35%)*(1+H39%) -> 630.99 | I41: 745.767081 | J41: 926.9884817 | K41: 1161.33117 | L41: 1215.216936 | M41: 1251.916488 | N41: 1391.880751 | O41: 1608.17902 | P41: 1823.996644 | Q41: 2068.776994
A42: Advertising growth (%) | E42: =(E41/D41-1)*100 -> 300 | F42: 50 | G42: 50 | H42: 40.22 | I42: 18.19 | J42: 24.3 | K42: 25.28 | L42: 4.64 | M42: 3.02 | N42: 11.18 | O42: 15.54 | P42: 13.42 | Q42: 13.42
A44: Readership
A45: IRS Round | E45: R1 2007 | F45: R1 2008 | G45: R1 2009 | H45: Q1 2010 | I45: Q1 2011 | J45: Q1 2012
A46: Economic Times ('000) | E46: 774 | F46: 743 | G46: 783 | H46: 760 | I46: 769 | J46: 792
A47: HT Mint ('000) | F47: 0 | G47: 175 | H47: 158 | I47: 222 | J47: 246
A48: Business Standard ('000) | F48: 0 | G48: 0 | H48: 131 | I48: 151 | J48: 158
A49: Hindu Business Line ('000) | F49: 88 | G49: 113 | H49: 124 | I49: 91 | J49: 133
A50: Financial Express ('000) | F50: 25 | G50: 38 | H50: 46 | I50: 46 | J50: 38
A51: Total ('000) | E51: =SUM(E46:E50) -> 774 | F51: =SUM(F46:F50) -> 856 | G51: =SUM(G46:G50) -> 1109 | H51: =SUM(H46:H50) -> 1219 | I51: =SUM(I46:I50) -> 1279 | J51: =SUM(J46:J50) -> 1367 | K51: 0 | L51: 0 | M51: 0 | N51: 0 | O51: 0 | P51: 0 | Q51: 0
A52: Economic Times (%) | G52: =G46/G$51*100 -> 70.60414788 | H52: 62.3461854 | I52: =I46/I$51*100 -> 60.12509773 | J52: 57.93708851 | K52: =J52-3 -> 54.93708851 | L52: =K52-2 -> 52.93708851
A53: HT Mint (%) | G53: 15.77998197 | H53: 12.96144381 | I53: 17.3573104 | J53: 17.99561083 | K53: =J53+3 -> 20.99561083 | L53: =K53+2 -> 22.99561083
A54: Business Standard (%) | G54: 0 | H54: 10.74651354 | I54: 11.80609851 | J54: 11.55815655 | K54: =J54 -> 11.55815655 | L54: 11.55815655
A55: Hindu Business Line (%) | G55: =G49/G$51*100 -> 10.18935978 | H55: =H49/H$51*100 -> 10.17227235 | I55: 7.114933542 | J55: 9.729334309 | K55: 9.729334309 | L55: 9.729334309
A56: Financial Express (%) | G56: =G50/G$51*100 -> 3.42651037 | H56: =H50/H$51*100 -> 3.773584906 | I56: 3.596559812 | J56: 2.779809802 | K56: 2.779809802 | L56: 2.779809802
A57: Total (%) | G57: =SUM(G52:G56) -> 100 | H57: 100 | I57: =SUM(I52:I56) -> 100 | J57: =SUM(J52:J56) -> 100 | K57: 100 | L57: 100 | M57: =SUM(M54:M54) -> 0 | N57: =SUM(N54:N54) -> 0 | O57: =SUM(O54:O54) -> 0 | P57: =SUM(P54:P54) -> 0 | Q57: =SUM(Q54:Q54) -> 0
A59: Circulation revenues
A60: Print order (mn) | D60: 0.05 | E60: 0.12 | F60: 0.12 | G60: 0.12 | H60: =G60+0.02 -> 0.14 | I60: =H60+0.02 -> 0.16 | J60: =I60+0.02 -> 0.18 | K60: =J60+0.02 -> 0.2 | L60: =K60+0.02 -> 0.22 | M60: =L60 -> 0.22 | N60: =M60+0.01 -> 0.23 | O60: =N60+0.01 -> 0.24 | P60: =O60+0.01 -> 0.25 | Q60: =P60 -> 0.25
A61: growth (%) | E61: =(E60/D60-1)*100 -> 140 | F61: 0 | G61: 0 | H61: 16.66666667 | I61: 14.28571429 | J61: 12.5 | K61: 11.11111111 | L61: 10 | M61: 0 | N61: 4.545454545 | O61: 4.347826087 | P61: 4.166666667 | Q61: 0
A62: Unsold copies (%) | D62: 6 | E62: 6 | F62: 7 | G62: 3 | H62: 7 | I62: 6 | J62: 5 | K62: =J62 -> 5 | L62: =K62 -> 5 | M62: =L62-1 -> 4 | N62: =M62 -> 4 | O62: =N62 -> 4 | P62: =O62 -> 4 | Q62: =P62 -> 4
A63: Circulation (mn) | D63: =D60*(1-D62%) -> 0.047 | E63: 0.1128 | F63: 0.1116 | G63: 0.1164 | H63: 0.1302 | I63: 0.1504 | J63: 0.171 | K63: 0.19 | L63: 0.209 | M63: 0.2112 | N63: 0.2208 | O63: 0.2304 | P63: 0.24 | Q63: 0.24
A64: growth (%) | E64: =(E63/D63-1)*100 -> 140 | F64: -1.063829787 | G64: 4.301075269 | H64: 11.8556701 | I64: 15.51459293 | J64: 13.69680851 | K64: 11.11111111 | L64: 10 | M64: 1.052631579 | N64: 4.545454545 | O64: 4.347826087 | P64: 4.166666667 | Q64: 0
A66: Cover price (Rs/day) | D66: 1.5 | E66: 1.8 | F66: 1.8 | G66: 2 | H66: 2.1 | I66: =H66+0.2 -> 2.3 | J66: =I66+0.2 -> 2.5 | K66: =J66+0.2 -> 2.7 | L66: =K66+0.2 -> 2.9 | M66: =L66+0.3 -> 3.2 | N66: =M66+0.2 -> 3.4 | O66: =N66+0.2 -> 3.6 | P66: =O66+0.2 -> 3.8 | Q66: =P66+0.2 -> 4
A67: growth (%) | E67: =(E66/D66-1)*100 -> 20 | F67: 0 | G67: 11.11111111 | H67: 5 | I67: 9.523809524 | J67: 8.695652174 | K67: 8 | L67: 7.407407407 | M67: 10.34482759 | N67: 6.25 | O67: 5.882352941 | P67: 5.555555556 | Q67: 5.263157895
A68: Commission (Rs/day) | D68: 1.5 | E68: 1.5 | F68: 1.5 | G68: =F68+0.1 -> 1.6 | H68: =G68 -> 1.6 | I68: =H68 -> 1.6 | J68: =I68 -> 1.6 | K68: =J68 -> 1.6 | L68: =K68+0.1 -> 1.7 | M68: =L68 -> 1.7 | N68: =M68 -> 1.7 | O68: =N68+0.1 -> 1.8 | P68: =O68 -> 1.8 | Q68: =P68 -> 1.8
A69: Net realization (Rs/day) | D69: =D66-D68 -> 0 | E69: 0.3 | F69: 0.3 | G69: 0.4 | H69: 0.5 | I69: 0.7 | J69: 0.9 | K69: 1.1 | L69: 1.2 | M69: 1.5 | N69: 1.7 | O69: 1.8 | P69: 2 | Q69: 2.2
A70: growth (%) | F70: =(F69/E69-1)*100 -> 0 | G70: 33.33333333 | H70: 25 | I70: 40 | J70: 28.57142857 | K70: 22.22222222 | L70: 9.090909091 | M70: 25 | N70: 13.33333333 | O70: 5.882352941 | P70: 11.11111111 | Q70: 10
A72: Circulation revenues (Rs mn) | D72: =D63*10^3*360*D69/10^3 -> 0 | E72: 12.1824 | F72: 12.0528 | G72: 16.7616 | H72: 23.436 | I72: 37.9008 | J72: 55.404 | K72: 75.24 | L72: 90.288 | M72: 114.048 | N72: 135.1296 | O72: 149.2992 | P72: 172.8 | Q72: 190.08
A73: Circulation growth (%) | F73: =(F72/E72-1)*100 -> -1.063829787 | G73: 39.06810036 | H73: 39.81958763 | I73: 61.72043011 | J73: 46.18161094 | K73: 35.80246914 | L73: 20 | M73: 26.31578947 | N73: 18.48484848 | O73: 10.4859335 | P73: 15.74074074 | Q73: 10
A75: Newsprint costs
A76: Pagination (#) | D76: =D33 -> 30 | E76: 30 | F76: 30 | G76: 32 | H76: 35 | I76: 34 | J76: 36 | K76: 38 | L76: 34 | M76: 34 | N76: 34 | O76: 36 | P76: 38 | Q76: 40
A77: Print order ('000) | D77: =D60 -> 0.05 | E77: 0.12 | F77: 0.12 | G77: 0.12 | H77: 0.14 | I77: 0.16 | J77: 0.18 | K77: 0.2 | L77: 0.22 | M77: 0.22 | N77: 0.23 | O77: 0.24 | P77: 0.25 | Q77: 0.25
A78: Total pagination (bn #) | D78: =D76*D77*360/10^3 -> 0.54 | E78: 1.296 | F78: 1.296 | G78: 1.3824 | H78: 1.764 | I78: 1.9584 | J78: 2.3328 | K78: 2.736 | L78: 2.6928 | M78: 2.6928 | N78: 2.8152 | O78: 3.1104 | P78: 3.42 | Q78: 3.6
A79: Newsprint quantity (tons) | D79: =4.6*D78*10^3 -> 2484 | E79: =4.5*E78*10^3 -> 5832 | F79: =4.5*F78*10^3 -> 5832 | G79: =4.4*G78*10^3 -> 6082.56 | H79: =4.4*H78*10^3 -> 7761.6 | I79: =4.4*I78*10^3 -> 8616.96 | J79: =4.4*J78*10^3 -> 10264.32 | K79: =4.4*K78*10^3 -> 12038.4 | L79: =4.3*L78*10^3 -> 11579.04 | M79: =4.3*M78*10^3 -> 11579.04 | N79: =4.3*N78*10^3 -> 12105.36 | O79: =4.2*O78*10^3 -> 13063.68 | P79: =4.2*P78*10^3 -> 14364 | Q79: =4.2*Q78*10^3 -> 15120
A80: growth (%) | E80: =(E79/D79-1)*100 -> 134.7826087 | F80: 0 | G80: 4.296296296 | H80: 27.60416667 | I80: 11.02040816 | J80: 19.11764706 | K80: 17.28395062 | L80: -3.815789474 | M80: 0 | N80: 4.545454545 | O80: 7.91649319 | P80: 9.953703704 | Q80: 5.263157895
A82: Imported np (%) | D82: 100 | E82: 100 | F82: 100 | G82: 100 | H82: 100 | I82: 100 | J82: 100 | K82: 100 | L82: 100 | M82: 100 | N82: 100 | O82: 100 | P82: 100 | Q82: 100
A83: Domestic np (%) | D83: =100-D82 -> 0 | E83: 0 | F83: 0 | G83: 0 | H83: 0 | I83: 0 | J83: 0 | K83: 0 | L83: 0 | M83: 0 | N83: 0 | O83: 0 | P83: 0 | Q83: 0
A84: Average newsprint price (Rs/ton) | D84: =(D82%*'cons expenses'!D39+D83%*'cons expenses'!D43)*(1+10%) -> 37104.6676 | E84: =(E82%*'cons expenses'!E39+E83%*'cons expenses'!E43)*(1+10%) -> 31624.6018 | F84: =(F82%*'cons expenses'!F39+F83%*'cons expenses'!F43)*(1+10%) -> 37447.77025 | G84: =(G82%*'cons expenses'!G39+G83%*'cons expenses'!G43)*(1+10%) -> 32494 | H84: =(H82%*'cons expenses'!H39+H83%*'cons expenses'!H43)*(1+10%) -> 33103.4 | I84: =(I82%*'cons expenses'!I39+I83%*'cons expenses'!I43)*(1+10%) -> 35499.75 | J84: =(J82%*'cons expenses'!J39+J83%*'cons expenses'!J43)*(1+10%) -> 39171 | K84: =(K82%*'cons expenses'!K39+K83%*'cons expenses'!K43)*(1+10%) -> 39459.585 | L84: =(L82%*'cons expenses'!L39+L83%*'cons expenses'!L43)*(1+10%) -> 39734.585 | M84: =(M82%*'cons expenses'!M39+M83%*'cons expenses'!M43)*(1+10%) -> 40551.2767 | N84: =(N82%*'cons expenses'!N39+N83%*'cons expenses'!N43)*(1+10%) -> 41382.10223 | O84: =(O82%*'cons expenses'!O39+O83%*'cons expenses'!O43)*(1+10%) -> 42227.34428 | P84: =(P82%*'cons expenses'!P39+P83%*'cons expenses'!P43)*(1+10%) -> 43087.29116 | Q84: =(Q82%*'cons expenses'!Q39+Q83%*'cons expenses'!Q43)*(1+10%) -> 43962.23699
A85: growth (%)
A87: Newsprint costs (Rs mn) | D87: =+D79*D84/10^6 -> 92.16799432 | E87: 184.4346777 | F87: 218.3953961 | G87: 197.6467046 | H87: 256.9353494 | I87: 305.8999258 | J87: 402.0636787 | K87: 475.0302681 | L87: 460.0883491 | M87: 469.544855 | N87: 500.9452451 | O87: 551.6445129 | P87: 618.9058503 | Q87: 664.7090233
A88: Newsprint growth (%) | E88: =(E87/D87-1)*100 -> 100.1070752 | F88: 18.41341272 | G88: -9.500516874 | H88: 29.99728476 | I88: 19.05715832 | J88: 31.436344 | K88: 18.14801814 | L88: -3.145466714 | M88: 2.055367383 | N88: 6.687410118 | O88: 10.12072044 | P88: 12.19287708 | Q88: 7.40066893
A90: Employee costs
A91: Year-end employees (#) | C91: 0 | D91: 50 | E91: 100 | F91: 150 | G91: 150 | H91: 200 | I91: =H91+25 -> 225 | J91: =I91+25 -> 250 | K91: =J91 -> 250 | L91: =K91 -> 250 | M91: =L91 -> 250 | N91: =M91 -> 250 | O91: =N91+25 -> 275 | P91: =O91+25 -> 300 | Q91: =P91 -> 300
A92: growth (%) | E92: =(E91/D91-1)*100 -> 100 | F92: 50 | G92: 0 | H92: 33.33333333 | I92: 12.5 | J92: 11.11111111 | K92: 0 | L92: 0 | M92: 0 | N92: 0 | O92: 10 | P92: 9.090909091 | Q92: 0
A93: Average employees (#) | D93: =AVERAGE(C91:D91) -> 25 | E93: =AVERAGE(D91:E91) -> 75 | F93: =AVERAGE(E91:F91) -> 125 | G93: =AVERAGE(F91:G91) -> 150 | H93: =AVERAGE(G91:H91)+25 -> 200 | I93: =AVERAGE(H91:I91) -> 212.5 | J93: 237.5 | K93: 250 | L93: 250 | M93: 250 | N93: 250 | O93: 262.5 | P93: 287.5 | Q93: 300
A94: Employee cost (Rs/month) | D94: ='HT Delhi-NCR'!D94*(1+20%) -> 60000 | E94: ='HT Delhi-NCR'!E94*(1+20%) -> 66000 | F94: ='HT Delhi-NCR'!F94*(1+20%) -> 72000 | G94: ='HT Delhi-NCR'!G94*(1+20%) -> 72000 | H94: ='HT Delhi-NCR'!H94*(1+20%) -> 79200 | I94: ='HT Delhi-NCR'!I94*(1+20%) -> 87120 | J94: ='HT Delhi-NCR'!J94*(1+20%) -> 97574.4 | K94: ='HT Delhi-NCR'!K94*(1+20%) -> 109283.328 | L94: ='HT Delhi-NCR'!L94*(1+20%) -> 120211.6608 | M94: ='HT Delhi-NCR'!M94*(1+20%) -> 120211.6608 | N94: ='HT Delhi-NCR'!N94*(1+20%) -> 129828.5937 | O94: ='HT Delhi-NCR'!O94*(1+20%) -> 140214.8812 | P94: ='HT Delhi-NCR'!P94*(1+20%) -> 148627.774 | Q94: ='HT Delhi-NCR'!Q94*(1+20%) -> 157545.4405
A95: growth (%) | E95: =(E94/D94-1)*100 -> 10 | F95: 9.090909091 | G95: 0 | H95: 10 | I95: 10 | J95: 12 | K95: 12 | L95: 10 | M95: 0 | N95: 8 | O95: 8 | P95: 6 | Q95: 6
A97: Employee costs (Rs mn) | D97: =+D93*D94*12/10^6 -> 18 | E97: 59.4 | F97: 108 | G97: 129.6 | H97: 190.08 | I97: 222.156 | J97: 278.08704 | K97: 327.849984 | L97: 360.6349824 | M97: 360.6349824 | N97: 389.485781 | O97: 441.6768756 | P97: 512.7658204 | Q97: 567.1635857
A98: Employee growth (%) | E98: =(E97/D97-1)*100 -> 230 | F98: 81.81818182 | G98: 20 | H98: 46.66666667 | I98: 16.875 | J98: 25.17647059 | K98: 17.89473684 | L98: 10 | M98: 0 | N98: 8 | O98: 13.4 | P98: 16.0952381 | Q98: 10.60869565

Sheet HTM DCF
A1: Discounted cash flow analysis of HT Mint (Rs mn)
B3: 2012E | C3: 2013E | D3: 2014E | E3: 2015E | F3: 2016E | G3: 2017E | H3: 2018E | I3: 2019E | J3: 2020E | K3: 2021E | L3: 2022E | M3: 2023E | N3: 2024E
A4: EBITDA | B4: ='HT Mint'!I23+'cons revenues'!I25%*'profit model'!I11 -> -44.74118168 | C4: ='HT Mint'!J23+'cons revenues'!J25%*'profit model'!J11 -> -29.14940991 | D4: ='HT Mint'!K23+'cons revenues'!K25%*'profit model'!K11 -> 35.74907587 | E4: ='HT Mint'!L23+'cons revenues'!L25%*'profit model'!L11 -> 48.48699034 | F4: ='HT Mint'!M23+'cons revenues'!M25%*'profit model'!M11 -> 81.6709253 | G4: ='HT Mint'!N23+'cons revenues'!N25%*'profit model'!N11 -> 133.6357869 | H4: ='HT Mint'!O23+'cons revenues'!O25%*'profit model'!O11 -> 185.0433172 | I4: ='HT Mint'!P23+'cons revenues'!P25%*'profit model'!P11 -> 207.3479447 | J4: ='HT Mint'!Q23+'cons revenues'!Q25%*'profit model'!Q11 -> 275.2513152 | K4: =J4*(1+$B$16%) -> 286.2613679 | L4: =K4*(1+$B$16%) -> 297.7118226 | M4: =L4*(1+$B$16%) -> 309.6202955 | N4: =M4*(1+$B$16%) -> 322.0051073
A5: Tax expense | B5: =-'profit model'!I35%*B4 -> 12.66997424 | C5: =-'profit model'!J35%*C4 -> 8.793060911 | D5: =-'profit model'!K35%*D4 -> -11.38283664 | E5: =-'profit model'!L35%*E4 -> -15.9253314 | F5: =-'profit model'!M35%*F4 -> -27.40340531 | G5: =-'profit model'!N35%*G4 -> -45.10014197 | H5: =-'profit model'!O35%*H4 -> -62.76376646 | I5: =-'profit model'!P35%*I4 -> -71.05827642 | J5: =-'profit model'!Q35%*J4 -> -95.26230766
A6: Changes in working capital | B6: ='cons revenues'!I25%*'cash model'!I11 -> -32.06342322 | C6: ='cons revenues'!J25%*'cash model'!J11 -> -12.49294479 | D6: ='cons revenues'!K25%*'cash model'!K11 -> -15.30885869 | E6: ='cons revenues'!L25%*'cash model'!L11 -> -0.6802966624 | F6: ='cons revenues'!M25%*'cash model'!M11 -> -5.471058332 | G6: ='cons revenues'!N25%*'cash model'!N11 -> -14.01471505 | H6: ='cons revenues'!O25%*'cash model'!O11 -> -13.54135833 | I6: ='cons revenues'!P25%*'cash model'!P11 -> -12.0740467 | J6: ='cons revenues'!Q25%*'cash model'!Q11 -> -10.33913437
A7: Cash flow from operations | B7: =SUM(B4:B6) -> -64.13463065 | C7: -32.84929379 | D7: 9.057380541 | E7: 31.88136228 | F7: 48.79646165 | G7: 74.52092989 | H7: 108.7381924 | I7: 124.2156215 | J7: 169.6498732
A8: Capital expenditure | B8: =-10%*'capex est'!I14 -> -21 | C8: =-10%*'capex est'!J14 -> -22.05 | D8: =-10%*'capex est'!K14 -> -23.1525 | E8: =-10%*'capex est'!L14 -> -24.310125 | F8: =-10%*'capex est'!M14 -> -25.52563125 | G8: =-5%*'capex est'!N14 -> -30.15215191 | H8: =-5%*'capex est'!O14 -> -31.65975951 | I8: =-5%*'capex est'!P14 -> -33.24274749 | J8: =-5%*'capex est'!Q14 -> -34.90488486
A9: Cash flows for minority interest | B9: =0 -> 0 | C9: =0 -> 0 | D9: =0 -> 0 | E9: =0 -> 0 | F9: =0 -> 0 | G9: =0 -> 0 | H9: =0 -> 0 | I9: =0 -> 0 | J9: =0 -> 0
A10: Free cash flow to the firm | B10: =SUM(B7:B9) -> -85.13463065 | C10: -54.89929379 | D10: -14.09511946 | E10: 7.571237276 | F10: 23.2708304 | G10: 44.36877798 | H10: 77.07843289 | I10: 90.97287406 | J10: 134.7449883 | K10: =J10*(1+$B$16%) -> 140.1347879 | L10: =K10*(1+$B$16%) -> 145.7401794 | M10: =L10*(1+$B$16%) -> 151.5697866 | N10: =M10*(1+$B$16%) -> 157.632578
A11: Dicounted cash flow-now | B11: =B10*B22 -> -75.34038111 | C11: -42.99419985 | D11: -9.768624828 | E11: 4.643581613 | F11: 12.6262459 | G11: 21.30401141 | H11: 32.75203968 | I11: 34.20888721 | J11: 44.82453459 | K11: 41.25443892
A12: Discounted cash flow-1 year forward | C12: =C10*B22 -> -48.58344583 | D12: -11.03854606 | E12: 5.247247223 | F12: 14.27243609 | G12: 24.0735329 | H12: 37.00980484 | I12: 38.65604254 | J12: 50.6686873 | K12: 46.61751598 | L12: 42.90461648
A13: Discounted cash flow-2 year forward | D13: =D10*B22 -> -12.47355704 | E13: 5.929389362 | F13: 16.12785279 | G13: 27.21220246 | H13: 41.82107947 | I13: 43.68132808 | J13: 57.25561665 | K13: 52.69543479 | L13: 48.48221662 | M13: 44.62080113
A15: Discount rate (%) | B15: 13
A16: Growth from 2020E to perpetuity (%) | B16: 4
A18: Fiscal year-end (March 31, XXXX) | B18: ='cons DCF'!B18 -> 2012-03-31 | C18: ='cons DCF'!C18 -> 2013-03-31 | D18: ='cons DCF'!D18 -> 2014-03-31 | E18: ='cons DCF'!E18 -> 2015-03-31 | F18: ='cons DCF'!F18 -> 2016-03-31 | G18: ='cons DCF'!G18 -> 2017-03-31 | H18: ='cons DCF'!H18 -> 2018-03-31 | I18: ='cons DCF'!I18 -> 2019-03-31 | J18: ='cons DCF'!J18 -> 2020-03-31 | K18: ='cons DCF'!K18 -> 2021-03-31 | L18: ='cons DCF'!L18 -> 2022-03-31 | M18: ='cons DCF'!M18 -> 2023-03-31 | N18: ='cons DCF'!N18 -> 2024-03-31
A19: Today | B19: ='cons DCF'!B19 -> 2011-04-01 | C19: =B19 -> 2011-04-01 | D19: =+C19 -> 2011-04-01 | E19: 2011-04-01 | F19: 2011-04-01 | G19: 2011-04-01 | H19: 2011-04-01 | I19: 2011-04-01 | J19: 2011-04-01 | K19: 2011-04-01 | L19: 2011-04-01 | M19: 2011-04-01 | N19: 2011-04-01
A20: Days left | B20: =B18-B19 -> 365 | C20: 730 | D20: 1095 | E20: 1460 | F20: 1826 | G20: 2191 | H20: 2556 | I20: 2921 | J20: 3287 | K20: 3652 | L20: 4017 | M20: 4382 | N20: 4748
A21: Years left | B21: =B20/365 -> 1 | C21: 2 | D21: 3 | E21: 4 | F21: 5.002739726 | G21: 6.002739726 | H21: 7.002739726 | I21: 8.002739726 | J21: 9.005479452 | K21: 10.00547945 | L21: 11.00547945 | M21: 12.00547945 | N21: 13.00821918
A22: Discount factor at WACC | B22: =1/(1+$B$15%)^B21 -> 0.8849557522 | C22: 0.7831466834 | D22: 0.6930501623 | E22: 0.6133187277 | F22: 0.5425782272 | G22: 0.4801577231 | H22: 0.4249183391 | I22: 0.3760339284 | J22: 0.3326619798 | K22: 0.2943911326 | L22: 0.2605231262 | M22: 0.2305514391 | N22: 0.2039595164
B24: + 1-year | D24: + 2-years | G24: Sensitivity of share price to different levels of WACC and growth rate (Rs)
A25: Total PV of free cash flow (a) | B25: =+SUM(B11:K11) -> 63.51053354 | C25: =B25/$B$30 -> 0.1175623541 | D25: =+SUM(C12:L12) -> 199.8278915 | E25: =D25/$D$30 -> 0.2872681221 | H25: WACC (%)
A26: FCF in terminal year | B26: =L10 -> 145.7401794 | D26: =M10 -> 151.5697866 | G26: =B34 -> 2.298844657 | H26: 11.5 | I26: 12 | J26: 12.5 | K26: 13 | L26: 13.5 | M26: 14 | N26: 14.5
A27: Exit FCF multiple (X) | B27: =1/($B$15%-$B$16%) -> 11.11111111 | D27: =1/($B$15%-$B$16%) -> 11.11111111 | G27: 1 | H27: 2.220002055 | I27: 2.028470594 | J27: 1.855999613 | K27: 1.700124514 | L27: 1.558778325 | M27: 1.430215088 | N27: 1.312950272
A28: Terminal value | B28: =B26*B27 -> 1619.335327 | D28: =D26*D27 -> 1684.10874 | F28: Growth rate (%) | G28: 2 | H28: 2.460479238 | I28: 2.238866945 | J28: 2.040950812 | K28: 1.863411826 | L28: 1.703511693 | M28: 1.558971701 | N28: 1.427880657
A29: PV of terminal value (b) | B29: =B28*K22 -> 476.7179608 | C29: =B29/$B$30 -> 0.8824376459 | D29: =D28*K22 -> 495.7866793 | E29: =D29/$D$30 -> 0.7127318779 | G29: 3 | H29: 2.757539287 | I29: 2.496018042 | J29: 2.264839107 | K29: 2.0593566 | L29: 1.87581332 | M29: 1.711138606 | N29: 1.562798935
A30: EV (a) + (b) | B30: =B29+B25 -> 540.2284944 | D30: =D29+D25 -> 695.6145707 | G30: 4 | H30: 3.133815349 | I30: 2.817456912 | J30: 2.541406999 | K30: 2.298844657 | L30: 2.084388975 | M30: 1.893738893 | N30: 1.723415933
A31: EV (US$ mn) | B31: =+B30/46 -> 11.7440977 | D31: =+D30/46 -> 15.12205589 | G31: 5 | H31: 3.625868661 | I31: 3.23073546 | J31: 2.89172633 | K31: 2.598204728 | L31: 2.342041254 | M31: 2.116917022 | N31: 1.917847036
A32: Net debt/ (cash) | B32: =0 -> 0 | D32: =0 -> 0 | G32: 6 | H32: 4.29685045 | I32: 3.781773524 | J32: 3.349836224 | K32: 2.983096249 | L32: 2.668400807 | M32: 2.395889682 | N32: 2.158026634
A33: Equity value | B33: =+B30-B32 -> 540.2284944 | D33: =+D30-D32 -> 695.6145707 | G33: 7 | H33: 5.266046368 | I33: 4.553226813 | J33: 3.974531534 | K33: 3.496284943 | L33: 3.095178685 | M33: 2.754568817 | N33: 2.462254124
A34: Implied share price (Rs) | B34: =+B33/'profit model'!F24 -> 2.298844657 | D34: =+D33/'profit model'!G24 -> 2.958802938 | G34: 8 | H34: 6.789068524 | I34: 5.710406746 | J34: 4.876869204 | K34: 4.214749114 | L34: 3.677148518 | M34: 3.232807664 | N34: 2.860090072
A35: Exit EV/EBITDA multiple (X) | B35: =B28/L4 -> 5.439271147 | D35: =D28/M4 -> 5.439271147 | G35: 9 | H35: 9.530508406 | I35: 7.639039969 | J35: 6.294828399 | K35: 5.292445372 | L35: 4.517771611 | M35: 3.90234205 | N35: 3.402593639

Sheet Hindustan
A1: Derivation of financials of Hindustan Dainik, March fiscal year-ends, 2007-20E (Rs mn)
B3: 2005 | C3: 2006 | D3: 2007 | E3: 2008 | F3: 2009 | G3: 2010 | H3: 2011 | I3: 2012E | J3: 2013E | K3: 2014E | L3: 2015E | M3: 2016E | N3: 2017E | O3: 2018E | P3: 2019E | Q3: 2020E
A4: Revenues from advertising
A5: Total advertising revenues | D5: 1273.6 | E5: 1651.7 | F5: 2439.9 | G5: 2979.9936 | H5: 3772.9548 | I5: 4402.504143 | J5: 5252.698853 | K5: 6379.559859 | L5: 7402.594239 | M5: 7921.978248 | N5: 9567.186461 | O5: 10928.5583 | P5: 12321.1615 | Q5: 13884.02915
A6: growth (%) | E6: =(E5/D5-1)*100 -> 29.6875 | F6: 47.72053036 | G6: 22.13589082 | H6: 26.60949339 | I6: 16.68584377 | J6: 19.31161634 | K6: 21.45299089 | L6: 16.03612792 | M6: 7.016243122 | N6: 20.76764366 | O6: 14.22959452 | P6: 12.74278968 | Q6: 12.68441815
A7: actual | D7: 750 | E7: 900 | F7: 1000 | G7: 1050
A9: Revenues from circulation
A10: Total circulation revenues | D10: 883.1 | E10: 972.6 | F10: 1050.7 | G10: 1267.09632 | H10: 1216.5525 | I10: 1346.769 | J10: 1467.026775 | K10: 1461.58128 | L10: 1460.50434 | M10: 1529.88885 | N10: 1633.4703 | O10: 1759.2696 | P10: 1842.03 | Q10: 1862.982
A11: growth (%) | E11: =(E10/D10-1)*100 -> 10.13475258 | F11: 8.03002262 | G11: 20.59544304 | H11: -3.988948528 | I11: 10.70373042 | J11: 8.929354255 | K11: -0.3711926117 | L11: -0.07368320974 | M11: 4.750722617 | N11: 6.77052127 | O11: 7.701352146 | P11: 4.704247717 | Q11: 1.137440758
A12: actual | D12: 130 | E12: 150 | F12: 150 | G12: 180
A14: Other operating revenue | D14: =+'cons revenues'!D17*0% -> 0 | E14: =+'cons revenues'!E17*0% -> 0 | F14: =+'cons revenues'!F17*0% -> 0 | G14: =+'cons revenues'!G17*0% -> 0 | H14: =+'cons revenues'!H17*0% -> 0 | I14: =+'cons revenues'!I17*0% -> 0 | J14: =+'cons revenues'!J17*0% -> 0 | K14: =+'cons revenues'!K17*0% -> 0 | L14: =+'cons revenues'!L17*0% -> 0 | M14: =+'cons revenues'!M17*0% -> 0 | N14: =+'cons revenues'!N17*0% -> 0 | O14: =+'cons revenues'!O17*0% -> 0 | P14: =+'cons revenues'!P17*0% -> 0 | Q14: =+'cons revenues'!Q17*0% -> 0
A16: Operating expenses
A17: Newsprint costs | D17: -1207.9 | E17: -1315.4 | F17: -1737.9 | G17: -1718.091499 | H17: -2249.702143 | I17: -2557.735256 | J17: -3087.772564 | K17: -3433.259857 | L17: -3732.894277 | M17: -3979.405432 | N17: -4393.838331 | O17: -4885.268357 | P17: -5402.13103 | Q17: -5873.754578
A18: Employee costs | D18: -313.6 | E18: -348.4 | F18: -463.6 | G18: -537.3 | H18: -632.952 | I18: -738.34872 | J18: -886.1372688 | K18: -1127.235936 | L18: -1383.771318 | M18: -1623.791665 | N18: -1855.227271 | O18: -2099.623995 | P18: -2386.179767 | Q18: -2722.735239
A19: SG&A and other costs | D19: -718.6 | E19: -850.4 | F19: -1154.8 | G19: -1130 | H19: -1216.7 | I19: -1495.614571 | J19: -1588.800881 | K19: -1812.337982 | L19: -2104.882012 | M19: -2276.528271 | N19: -2540.343231 | O19: -2859.044357 | P19: -3209.614046 | Q19: -3601.787457
A20: Total operating expenses | D20: =SUM(D17:D19) -> -2240.1 | E20: -2514.2 | F20: -3356.3 | G20: -3385.391499 | H20: -4099.354143 | I20: -4791.698547 | J20: -5562.710714 | K20: -6372.833774 | L20: -7221.547607 | M20: -7879.725367 | N20: -8789.408832 | O20: -9843.936709 | P20: -10997.92484 | Q20: -12198.27727
A21: growth (%) | E21: =(E20/D20-1)*100 -> 12.23606089 | F21: 33.49375547 | G21: 0.8667728914 | H21: 21.0895149 | I21: 16.88910936 | J21: 16.09058165 | K21: 14.56345839 | L21: 13.3176835 | M21: 9.114081868 | N21: 11.54460876 | O21: 11.99771107 | P21: 11.72283171 | Q21: 10.91435383
A23: Total EBITDA | D23: =D5+D10+D14+D20 -> -83.4 | E23: 110.1 | F23: 134.3 | G23: 861.6984214 | H23: 890.1531571 | I23: 957.5745963 | J23: 1157.014914 | K23: 1468.307365 | L23: 1641.550972 | M23: 1572.141731 | N23: 2411.247929 | O23: 2843.891193 | P23: 3165.266659 | Q23: 3548.733873
A24: growth (%) | E24: =(E23/D23-1)*100 -> -232.0143885 | F24: 21.98001817 | G24: 541.6220562 | H24: 3.302168707 | I24: 7.574139204 | J24: 20.82765334 | K24: 26.9047916 | L24: 11.79886526 | M24: -4.228272105 | N24: 53.37344478 | O24: 17.94271168 | P24: 11.30055422 | Q24: 12.11484704
A25: EBITDA margin (%) | D25: =D23/(D5+D10+D14)*100 -> -3.867019057 | E25: 4.195404489 | F25: 3.847476079 | G25: 20.28914946 | H25: 17.84050215 | I25: 16.65557667 | J25: 17.21818684 | K25: 18.72568468 | L25: 18.52118599 | M25: 16.63313411 | N25: 21.52773699 | O25: 22.41432667 | P25: 22.348541 | Q25: 22.53592025
A27: Other income | H27: 83.2 | I27: 176.5453865 | J27: 174.2072808 | K27: 161.8868794 | L27: 179.8055348 | M27: 189.5770732 | N27: 206.4466305 | O27: 227.9950952 | P27: 248.2929259 | Q27: 272.9324126
A28: Interest expense | H28: -43.3 | I28: -20 | J28: 0 | K28: 0 | L28: 0 | M28: 0 | N28: 0 | O28: 0 | P28: 0 | Q28: 0
A29: D&A expenses | H29: -164.4 | I29: -193.6039212 | J29: -235.6918679 | K29: -280.3842119 | L29: -327.8484313 | M29: -367.7231197 | N29: -409.5915425 | O29: -465.0865056 | P29: -534.8893359 | Q29: -608.1823077
A30: Pretax profit | H30: =H23+SUM(H27:H29) -> 765.6531571 | I30: =I23+SUM(I27:I29) -> 920.5160616 | J30: 1095.530327 | K30: 1349.810032 | L30: 1493.508076 | M30: 1393.995684 | N30: 2208.103017 | O30: 2606.799783 | P30: 2878.670249 | Q30: 3213.483978
A31: Tax provision | H31: -225.8 | I31: -264.7216481 | J31: -334.9741345 | K31: -432.2407153 | L31: -487.1470096 | M31: -463.0505164 | N31: -733.4766197 | O31: -865.9137178 | P31: -956.2222901 | Q31: -1067.439041
A32: Net income | H32: =SUM(H30:H31) -> 539.8531571 | I32: =SUM(I30:I31) -> 655.7944135 | J32: 760.5561921 | K32: 917.5693172 | L32: 1006.361066 | M32: 930.9451677 | N32: 1474.626397 | O32: 1740.886065 | P32: 1922.447959 | Q32: 2146.044938
A35: Source: Company data, Kotak Institutional Equities estimates
A37: Print order (mn) | D37: 1.27 | E37: 1.37 | F37: 1.6 | G37: 1.8 | H37: 2.05 | I37: 2.25 | J37: 2.425 | K37: 2.6 | L37: 2.725 | M37: 2.725 | N37: 2.825 | O37: 2.95 | P37: 3.05 | Q37: 3.1
A38: Circulation (mn) | D38: 1.233 | E38: 1.3249 | F38: 1.5465 | G38: 1.7535 | H38: 1.99075 | I38: 2.17925 | J38: 2.340125 | K38: 2.509 | L38: 2.629625 | M38: 2.64325 | N38: 2.74025 | O38: 2.8615 | P38: 2.9585 | Q38: 3.007
A39: Unsold copies (%) | D39: =(1-D38/D37)*100 -> 2.913385827 | E39: =(1-E38/E37)*100 -> 3.291970803 | F39: 3.34375 | G39: 2.583333333 | H39: 2.890243902 | I39: 3.144444444 | J39: 3.5 | K39: 3.5 | L39: 3.5 | M39: 3 | N39: 3 | O39: 3 | P39: 3 | Q39: 3
A41: Pagination (#) | D41: 20.72834646 | E41: 21.70072993 | F41: 21.03125 | G41: 20.48611111 | H41: 21.3902439 | I41: 21.11111111 | J41: 21.81958763 | K41: 22.51923077 | L41: 23.24311927 | M41: 23.95412844 | N41: 24.9380531 | O41: 25.94915254 | P41: 26.6557377 | Q41: 27.38709677
D43: 41884.875 | E43: 48395.88 | F43: 53028 | G43: 59737.5 | H43: 71037 | I43: 76950 | J43: 85718.25 | K43: 94851 | L43: 102606.75 | M43: 105745.5 | N43: 114129 | O43: 124011 | P43: 131706 | Q43: 137538
E44: =(E43/D43-1)*100 -> 15.54500282 | F44: =(F43/E43-1)*100 -> 9.571310616 | G44: 12.65274949 | H44: 18.91525424 | I44: 8.323831243 | J44: 11.39473684 | K44: 10.65438223 | L44: 8.17677199 | M44: 3.059009276 | N44: 7.927996936 | O44: 8.658623137 | P44: 6.205094709 | Q44: 4.42804428

Sheet M-Now
A1: Derivation of Metro Now revenues and costs, March fiscal year-ends, 2008-10 (Rs mn)
C3: 2006 | D3: 2007 | E3: 2008 | F3: 2009 | G3: 2010 | H3: 2011E | I3: 2012E | J3: 2013E | K3: 2014E | L3: 2015E | M3: 2016E | N3: 2017E | O3: 2018E | P3: 2019E | Q3: 2020E
A4: Total revenues | E4: =65.5*2 -> 131 | F4: =93.5*2 -> 187 | G4: =2.9*2 -> 5.8
A5: Raw material costs | E5: =-58*2 -> -116 | F5: =-159.5*2 -> -319 | G5: =-2.2*2 -> -4.4
A6: Employee costs | E6: =-21*2 -> -42 | F6: =-22.5*2 -> -45 | G6: =-5.8*2 -> -11.6
A7: SG&A expenses | E7: =-81*2 -> -162 | F7: =-66.5*2 -> -133 | G7: =-3.6*2 -> -7.2
A8: EBITDA | E8: =SUM(E4:E7) -> -189 | F8: =SUM(F4:F7) -> -310 | G8: =SUM(G4:G7) -> -17.4
A9: D&A expenses | E9: =-1.5*2 -> -3 | F9: =-1.5*2 -> -3 | G9: =-1.7*2 -> -3.4
A10: EBIT | E10: =SUM(E8:E9) -> -192 | F10: =SUM(F8:F9) -> -313 | G10: =SUM(G8:G9) -> -20.8
A11: EBITDA margin (%) | E11: =E8/E4*100 -> -144.2748092 | F11: =F8/F4*100 -> -165.7754011 | G11: =G8/G4*100 -> -300
A13: Source: Company data, Kotak Institutional Equities

Sheet HT-Burda
A1: Derivation of HT Burda revenues and costs, March fiscal year-ends, 2010-20E (Rs mn)
C3: 2006 | D3: 2007 | E3: 2008 | F3: 2009 | G3: 2010 | H3: 2011E | I3: 2012E | J3: 2013E | K3: 2014E | L3: 2015E | M3: 2016E | N3: 2017E | O3: 2018E | P3: 2019E | Q3: 2020E
A4: Total revenues | G4: 90 | H4: =-H5*(1+10%) -> 645.5163 | I4: =-I5*(1+25%) -> 1113.40125 | J4: =-J5*(1+30%) -> 1833.2028 | K4: =-K5*(1+35%) -> 2324.52828 | L4: =-L5*(1+40%) -> 2730.84966 | M4: 3096.642948 | N4: 3476.096588 | O4: 3869.560276 | P4: 4277.392905 | Q4: 4364.251163
A5: Raw material costs | G5: -70 | H5: =-H18 -> -586.833 | I5: =-I18 -> -890.721 | J5: -1410.156 | K5: -1721.8728 | L5: -1950.6069 | M5: -2211.88782 | N5: -2482.926134 | O5: -2763.971626 | P5: -3055.280646 | Q5: -3117.322259
A6: Employee costs | G6: -25 | H6: =-H24 -> -137.5 | I6: =-I24 -> -193.6 | J6: -237.16 | K6: -280.79744 | L6: -325.573248 | M6: -333.92128 | N6: -360.6349824 | O6: -389.485781 | P6: -412.8549279 | Q6: -437.6262235
A7: SG&A expenses | G7: -15 | H7: =-15%*H4 -> -96.827445 | I7: =-10%*I4 -> -111.340125 | J7: =-8%*J4 -> -146.656224 | K7: =-6.5%*K4 -> -151.0943382 | L7: =-6%*L4 -> -163.8509796 | M7: =-5.5%*M4 -> -170.3153621 | N7: =-5.5%*N4 -> -191.1853123 | O7: =-5%*O4 -> -193.4780138 | P7: =-5%*P4 -> -213.8696452 | Q7: =-5%*Q4 -> -218.2125581
A8: EBITDA | G8: =SUM(G4:G7) -> -20 | H8: =SUM(H4:H7) -> -175.644145 | I8: -82.259875 | J8: 39.230576 | K8: 170.7637018 | L8: 290.8185324 | M8: 380.5184859 | N8: 441.3501589 | O8: 522.6248554 | P8: 595.3876854 | Q8: 591.090122
A9: D&A expenses | G9: -10 | H9: =-5%*800 -> -40 | I9: =H9 -> -40 | J9: =I9 -> -40 | K9: -40 | L9: -40 | M9: -40 | N9: -40 | O9: -40 | P9: -40 | Q9: -40
A10: EBIT | G10: =SUM(G8:G9) -> -30 | H10: =SUM(H8:H9) -> -215.644145 | I10: -122.259875 | J10: -0.769424 | K10: 130.7637018 | L10: 250.8185324 | M10: 340.5184859 | N10: 401.3501589 | O10: 482.6248554 | P10: 555.3876854 | Q10: 551.090122
A11: EBITDA margin (%) | G11: =G8/G4*100 -> -22.22222222 | H11: =H8/H4*100 -> -27.20986984 | I11: -7.388160827 | J11: 2.140001968 | K11: 7.346165812 | L11: 10.64937908 | M11: 12.28809689 | N11: 12.69671736 | O11: 13.50605284 | P11: 13.91940602 | Q11: 13.54390707
A13: Source: Company data, Kotak Institutional Equities
A15: Computation of raw material costs
A16: Raw material quantity (tons) | H16: 13000 | I16: 23000 | J16: 33000 | K16: 40000 | L16: 45000 | M16: =L16+5000 -> 50000 | N16: =M16+5000 -> 55000 | O16: =N16+5000 -> 60000 | P16: =O16+5000 -> 65000 | Q16: =P16 -> 65000
A17: Raw material price (Rs/ton) | H17: ='cons expenses'!H39*(1+50%) -> 45141 | I17: ='cons expenses'!I39*(1+20%) -> 38727 | J17: ='cons expenses'!J39*(1+20%) -> 42732 | K17: ='cons expenses'!K39*(1+20%) -> 43046.82 | L17: ='cons expenses'!L39*(1+20%) -> 43346.82 | M17: ='cons expenses'!M39*(1+20%) -> 44237.7564 | N17: ='cons expenses'!N39*(1+20%) -> 45144.11153 | O17: ='cons expenses'!O39*(1+20%) -> 46066.19376 | P17: ='cons expenses'!P39*(1+20%) -> 47004.31763 | Q17: ='cons expenses'!Q39*(1+20%) -> 47958.80399
A18: Raw material costs (Rs mn) | H18: =H16*H17/10^6 -> 586.833 | I18: =I16*I17/10^6 -> 890.721 | J18: 1410.156 | K18: 1721.8728 | L18: 1950.6069 | M18: 2211.88782 | N18: 2482.926134 | O18: 2763.971626 | P18: 3055.280646 | Q18: 3117.322259
A20: Computation of employee costs
A21: # of employees | F21: 0 | G21: =F21+100 -> 100 | H21: =G21+50 -> 150 | I21: =H21+20 -> 170 | J21: =I21+10 -> 180 | K21: =J21+10 -> 190 | L21: =K21+10 -> 200 | M21: =L21 -> 200 | N21: =M21 -> 200 | O21: =N21 -> 200 | P21: =O21 -> 200 | Q21: =P21 -> 200
A22: Average # of employees | G22: =AVERAGE(F21:G21)/2 -> 25 | H22: =AVERAGE(G21:H21) -> 125 | I22: 160 | J22: 175 | K22: 185 | L22: 195 | M22: 200 | N22: 200 | O22: 200 | P22: =AVERAGE(O21:P21) -> 200 | Q22: =AVERAGE(P21:Q21) -> 200
A23: Average cost of employee | G23: 1 | H23: =G23*(1+'HT Delhi-NCR'!H95%) -> 1.1 | I23: =H23*(1+'HT Delhi-NCR'!I95%) -> 1.21 | J23: =I23*(1+'HT Delhi-NCR'!J95%) -> 1.3552 | K23: =J23*(1+'HT Delhi-NCR'!K95%) -> 1.517824 | L23: =K23*(1+'HT Delhi-NCR'!L95%) -> 1.6696064 | M23: =L23*(1+'HT Delhi-NCR'!M95%) -> 1.6696064 | N23: =M23*(1+'HT Delhi-NCR'!N95%) -> 1.803174912 | O23: =N23*(1+'HT Delhi-NCR'!O95%) -> 1.947428905 | P23: =O23*(1+'HT Delhi-NCR'!P95%) -> 2.064274639 | Q23: =P23*(1+'HT Delhi-NCR'!Q95%) -> 2.188131118
A24: Employee cost | G24: =G22*G23 -> 25 | H24: 137.5 | I24: 193.6 | J24: 237.16 | K24: 280.79744 | L24: 325.573248 | M24: 333.92128 | N24: 360.6349824 | O24: 389.485781 | P24: =P22*P23 -> 412.8549279 | Q24: =Q22*Q23 -> 437.6262235

Sheet Fever-FM
A1: Derivation of Radio (Fever FM) revenues and costs, March fiscal year-ends, 2007-20E (Rs mn)
C3: 2006 | D3: 2007 | E3: 2008 | F3: 2009 | G3: 2010 | H3: 2011 | I3: 2012E | J3: 2013E | K3: 2014E | L3: 2015E | M3: 2016E | N3: 2017E | O3: 2018E | P3: 2019E | Q3: 2020E
A4: Advertisement revenues | D4: 19.3 | E4: 206.1 | F4: =F35*F61 -> 294.5385095 | G4: 349.7399242 | H4: 505.534848 | I4: 539.2505664 | J4: 628.0683067 | K4: 690.8751374 | L4: 816.305735 | M4: 897.9363085 | N4: 802.5305758 | O4: 218.123695 | P4: 0 | Q4: 0
A5: Other operational revenues | D5: 2.1 | E5: 51.8 | F5: =15%*F4 -> 44.18077642 | G5: =25%*G4 -> 87.43498105 | H5: =25%*H4 -> 126.383712 | I5: 134.8126416 | J5: 157.0170767 | K5: 172.7187844 | L5: 204.0764338 | M5: 224.4840771 | N5: 200.6326439 | O5: 54.53092374 | P5: =25%*P4 -> 0 | Q5: =25%*Q4 -> 0
A6: Total revenues | D6: =SUM(D4:D5) -> 21.4 | E6: =SUM(E4:E5) -> 257.9 | F6: 338.7192859 | G6: 437.1749053 | H6: 631.91856 | I6: 674.063208 | J6: 785.0853834 | K6: 863.5939218 | L6: 1020.382169 | M6: 1122.420386 | N6: 1003.16322 | O6: 272.6546187 | P6: 0 | Q6: 0
A7: Programming costs | D7: -9.7 | E7: -48.4 | F7: =E7 -> -48.4 | G7: =F7 -> -48.4 | H7: =-H68 -> -48.8936448 | I7: -51.82726349 | J7: -54.9368993 | K7: -58.23311326 | L7: -61.72710005 | M7: -65.43072605 | N7: -56.35221281 | O7: -15.31624246 | P7: 0 | Q7: 0
A8: License fees | D8: -5.7 | E8: -22.8 | F8: =E8 -> -22.8 | G8: =F8 -> -22.8 | H8: =-H71 -> -25.2767424 | I8: -26.96252832 | J8: -31.40341534 | K8: -34.54375687 | L8: -40.81528675 | M8: -44.89681543 | N8: -40.12652879 | O8: -15.66666667 | P8: 0 | Q8: 0
A9: Employee costs | D9: -48.8 | E9: -116.3 | F9: =-F81 -> -156.28 | G9: -174.287744 | H9: -200.4309056 | I9: -230.4955414 | J9: -265.0698727 | K9: -304.8303536 | L9: -350.5549066 | M9: -403.1381426 | N9: -373.0602577 | O9: -104.2516287 | P9: 0 | Q9: 0
A10: A&P expenses | D10: -100 | E10: -250 | F10: -250 | G10: -100 | H10: -125 | I10: -150 | J10: -125 | K10: -125 | L10: -125 | M10: -125 | N10: -125 | O10: 0 | P10: =O10 -> 0 | Q10: =P10 -> 0
A11: SG&A expenses | D11: =-165.2-D10 -> -65.2 | E11: =-383.9-E10 -> -133.9 | F11: =E11*(1+20%) -> -160.68 | G11: =F11*(1-10%) -> -144.612 | H11: =-30%*H6 -> -189.575568 | I11: =-28%*I6 -> -188.7376982 | J11: =-24%*J6 -> -188.420492 | K11: =-23%*K6 -> -198.626602 | L11: =-22%*L6 -> -224.4840771 | M11: =-21%*M6 -> -235.708281 | N11: =-20%*N6 -> -200.6326439 | O11: =-20%*O6 -> -54.53092374 | P11: =-25%*P6 -> 0 | Q11: =-25%*Q6 -> 0
A12: EBITDA | D12: =SUM(D6:D11) -> -208 | E12: =SUM(E6:E11) -> -313.5 | F12: -299.4407141 | G12: -52.92483874 | H12: 42.7416992 | I12: 26.04017651 | J12: 120.2547041 | K12: 142.3600961 | L12: 217.8007983 | M12: 248.2464206 | N12: 207.9915764 | O12: 82.88915717 | P12: 0 | Q12: 0
A13: Depreciation | D13: =-27.2-D14 -> -8.4 | E13: =-107.5-E14 -> -32.3 | F13: =E13 -> -32.3 | G13: =F13 -> -32.3 | H13: =G13 -> -32.3 | I13: -32.3 | J13: -32.3 | K13: -32.3 | L13: -32.3 | M13: -32.3 | N13: -32.3 | O13: =N13/2 -> -16.15 | P13: 0 | Q13: 0
A14: Amortization | D14: =-D73 -> -18.8 | E14: -75.2 | F14: -75.2 | G14: -75.2 | H14: -75.2 | I14: -75.2 | J14: -75.2 | K14: -75.2 | L14: -75.2 | M14: -75.2 | N14: -42.3 | O14: -14.1 | P14: 0 | Q14: 0
A15: EBIT | D15: =SUM(D12:D14) -> -235.2 | E15: -421 | F15: -406.9407141 | G15: -160.4248387 | H15: -64.7583008 | I15: -81.45982349 | J15: 12.75470412 | K15: 34.86009609 | L15: 110.3007983 | M15: 140.7464206 | N15: 133.3915764 | O15: 52.63915717 | P15: =SUM(P12:P14) -> 0 | Q15: =SUM(Q12:Q14) -> 0
A17: EBITDA margin (%) | D17: =D12/D6*100 -> -971.9626168 | E17: -121.5587437 | F17: -88.40379824 | G17: -12.10610172 | H17: 6.763798677 | I17: 3.863165383 | J17: 15.31740453 | K17: 16.48461071 | L17: 21.34502199 | M17: 22.11706272 | N17: 20.7335728 | O17: 30.40078968 | P17: 0 | Q17: 0
A18: EBIT margin (%) | D18: =D15/D6*100 -> -1099.065421 | E18: =E15/E6*100 -> -163.2415665 | F18: -120.1409932 | G18: -36.69580225 | H18: -10.24788713 | I18: -12.0848939 | J18: 1.624626364 | K18: 4.036630552 | L18: 10.80975361 | M18: 12.53954601 | N18: 13.29709601 | O18: 19.30616742 | P18: 0 | Q18: 0
A20: Source: Company data, Kotak Institutional Equities estimates
A30: Calculation of revenues of a radio station
A31: Number of stations
A32: Legacy stations (full-year) | D32: 0 | E32: 3 | F32: 4 | G32: =F32 -> 4 | H32: 4 | I32: 4 | J32: 4 | K32: 4 | L32: 4 | M32: 4 | N32: 1 | O32: 0 | P32: 0 | Q32: =P32 -> 0
A33: New stations (mid-year) | D33: 3 | E33: 1 | F33: 0 | G33: 0 | H33: 0 | I33: 0 | J33: 0 | K33: 0 | L33: 0 | M33: 0 | N33: =D33 -> 3 | O33: =E33 -> 1 | P33: =F33 -> 0 | Q33: =G33 -> 0
A34: Months of operation | D34: 3 | E34: 2 | F34: 0 | G34: 0 | H34: 0 | I34: 0 | J34: 0 | K34: 0 | L34: 0 | M34: 0 | N34: =12-D34 -> 9 | O34: =12-E34 -> 10 | P34: 0 | Q34: 0
A35: Average number of stations | D35: =D32+D33*(D34-2)/12 -> 0.25 | E35: 3 | F35: 4 | G35: 4 | H35: 4 | I35: 4 | J35: 4 | K35: 4 | L35: 4 | M35: 4 | N35: =N32+N33*N34/12 -> 3.25 | O35: =O32+O33*O34/12 -> 0.8333333333 | P35: =P32+P33*P34/12 -> 0 | Q35: =Q32+Q33*Q34/12 -> 0
A37: Total one hour slots available per week for FCT
A38: Prime time | D38: =7*8 -> 56 | E38: =7*8 -> 56 | F38: 56 | G38: 56 | H38: 56 | I38: 56 | J38: 56 | K38: 56 | L38: 56 | M38: 56 | N38: 56 | O38: 56 | P38: 56 | Q38: 56
A39: Non prime time | D39: =7*24-D38 -> 112 | E39: =7*24-E38 -> 112 | F39: 112 | G39: 112 | H39: 112 | I39: 112 | J39: 112 | K39: 112 | L39: 112 | M39: 112 | N39: 112 | O39: 112 | P39: 112 | Q39: 112
A41: FCT available per one hour slot (Seconds)
A42: Prime time | D42: =10*60 -> 600 | E42: =11*60 -> 660 | F42: =12*60 -> 720 | G42: =12*60 -> 720 | H42: =12*60 -> 720 | I42: 720 | J42: 720 | K42: 720 | L42: 720 | M42: 720 | N42: 720 | O42: 720 | P42: 720 | Q42: 720
A43: Non-prime time | D43: =10*60 -> 600 | E43: =11*60 -> 660 | F43: =12*60 -> 720 | G43: =12*60 -> 720 | H43: 720 | I43: 720 | J43: 720 | K43: 720 | L43: 720 | M43: 720 | N43: 720 | O43: 720 | P43: 720 | Q43: 720
A45: No. of seconds of FCT sold per week
A46: Prime time | D46: =D38*D42 -> 33600 | E46: 36960 | F46: 40320 | G46: 40320 | H46: 40320 | I46: 40320 | J46: 40320 | K46: 40320 | L46: 40320 | M46: 40320 | N46: 40320 | O46: =O38*O42 -> 40320 | P46: 40320 | Q46: 40320
A47: Non-prime time | D47: =D39*D43 -> 67200 | E47: 73920 | F47: 80640 | G47: 80640 | H47: 80640 | I47: 80640 | J47: 80640 | K47: 80640 | L47: 80640 | M47: 80640 | N47: 80640 | O47: 80640 | P47: 80640 | Q47: 80640
A49: % sales assumed
A50: Prime time | D50: 0.5 | E50: 0.6 | F50: 0.6 | G50: 0.7 | H50: 0.85 | I50: 0.85 | J50: 0.9 | K50: 0.9 | L50: 0.95 | M50: =L50 -> 0.95 | N50: =M50 -> 0.95 | O50: =N50 -> 0.95 | P50: =O50 -> 0.95 | Q50: =P50 -> 0.95
A51: Non-prime time | D51: =D50/2 -> 0.25 | E51: =E50/2 -> 0.3 | F51: =F50/1.9 -> 0.3157894737 | G51: =G50/1.9 -> 0.3684210526 | H51: =H50/1.8 -> 0.4722222222 | I51: =I50/1.7 -> 0.5 | J51: =J50/1.7 -> 0.5294117647 | K51: =K50/1.7 -> 0.5294117647 | L51: =L50/1.6 -> 0.59375 | M51: 0.59375 | N51: 0.59375 | O51: 0.59375 | P51: 0.59375 | Q51: 0.59375
A53: Selling price of FCT (Rs/10 second)
A54: Prime time | D54: 450 | E54: 450 | F54: =E54 -> 450 | G54: =F54*(1+G56%) -> 450 | H54: 517.5 | I54: 543.375 | J54: 597.7125 | K54: 657.48375 | L54: 723.232125 | M54: 795.5553375 | N54: 875.1108713 | O54: =N54*(1+O56%) -> 927.6175235 | P54: =O54*(1+P56%) -> 983.2745749 | Q54: =P54*(1+Q56%) -> 1042.271049
A55: Non-prime time | D55: =D54/4 -> 112.5 | E55: =E54/4 -> 112.5 | F55: =F54/3.5 -> 128.5714286 | G55: =G54/3.25 -> 138.4615385 | H55: =H54/3 -> 172.5 | I55: 181.125 | J55: 199.2375 | K55: 219.16125 | L55: 241.077375 | M55: 265.1851125 | N55: 291.7036238 | O55: 309.2058412 | P55: 327.7581916 | Q55: 347.4236831
A56: Increase in prime time rate (%) | E56: =(E54/D54-1)*100 -> 0 | F56: =(F54/E54-1)*100 -> 0 | G56: 0 | H56: 15 | I56: 5 | J56: 10 | K56: =J56 -> 10 | L56: =K56 -> 10 | M56: =L56 -> 10 | N56: =M56 -> 10 | O56: 6 | P56: =O56 -> 6 | Q56: =P56 -> 6
A58: Revenues of a station from sales of FCT (Rs mn)
A59: Prime time | D59: =(D46/10)*D50*D54*52/10^6 -> 39.312 | E59: =(E46/10)*E50*E54*52/10^6 -> 51.89184 | F59: 56.60928 | G59: 66.04416 | H59: 92.225952 | I59: 96.8372496 | J59: 112.7869142 | K59: 124.0656057 | L59: 144.0539532 | M59: 158.4593486 | N59: 174.3052834 | O59: 184.7636004 | P59: 195.8494165 | Q59: 207.6003814
A60: Non-prime time | D60: =(D47/10)*D51*D55*52/10^6 -> 9.828 | E60: =(E47/10)*E51*E55*52/10^6 -> 12.97296 | F60: 17.02534737 | G60: 21.39082105 | H60: 34.15776 | I60: 37.975392 | J60: 44.23016245 | K60: 48.65317869 | L60: 60.02248052 | M60: 66.02472857 | N60: 72.62720143 | O60: 76.98483351 | P60: 81.60392352 | Q60: 86.50015893
A61: Total | D61: =SUM(D59:D60) -> 49.14 | E61: 64.8648 | F61: 73.63462737 | G61: 87.43498105 | H61: 126.383712 | I61: 134.8126416 | J61: 157.0170767 | K61: 172.7187844 | L61: 204.0764338 | M61: 224.4840771 | N61: 246.9324849 | O61: 261.7484339 | P61: 277.45334 | Q61: 294.1005404
A63: Calculation of costs of a radio station
A64: Programming cost
A65: Total one hour slots of programming per week | D65: =24*7 -> 168 | E65: =24*7 -> 168 | F65: 168 | G65: 168 | H65: 168 | I65: 168 | J65: 168 | K65: 168 | L65: 168 | M65: 168 | N65: 168 | O65: 168 | P65: 168 | Q65: 168
A66: Cost of programming per one hour slot (Rs) | D66: 1320 | E66: =D66 -> 1320 | F66: =E66 -> 1320 | G66: =F66 -> 1320 | H66: =G66*(1+H67%) -> 1399.2 | I66: 1483.152 | J66: 1572.14112 | K66: 1666.469587 | L66: 1766.457762 | M66: 1872.445228 | N66: 1984.791942 | O66: =N66*(1+O67%) -> 2103.879458 | P66: =O66*(1+P67%) -> 2230.112226 | Q66: =P66*(1+Q67%) -> 2363.918959
A67: Increase in programming cost (%) | E67: =(E66/D66-1)*100 -> 0 | F67: =(F66/E66-1)*100 -> 0 | G67: =(G66/F66-1)*100 -> 0 | H67: 6 | I67: =H67 -> 6 | J67: 6 | K67: 6 | L67: 6 | M67: 6 | N67: 6 | O67: 6 | P67: 6 | Q67: 6
A68: Radio programming cost | D68: =D35*(D65*52)*D66/10^6 -> 2.88288 | E68: =E35*(E65*52)*E66/10^6 -> 34.59456 | F68: 46.12608 | G68: 46.12608 | H68: 48.8936448 | I68: 51.82726349 | J68: 54.9368993 | K68: 58.23311326 | L68: 61.72710005 | M68: 65.43072605 | N68: 56.35221281 | O68: 15.31624246 | P68: 0 | Q68: 0
A70: Entry and licence fees (Rs mn)
A71: Licence fees | D71: =MAX(4%*D6,2.5%*$D$72)*2/12 -> 3.133333333 | E71: =MAX(4%*E6,2.5%*$D$72) -> 18.8 | F71: 18.8 | G71: 18.8 | H71: 25.2767424 | I71: 26.96252832 | J71: 31.40341534 | K71: 34.54375687 | L71: 40.81528675 | M71: 44.89681543 | N71: 40.12652879 | O71: =MAX(4%*O6,2.5%*$D$72)*10/12 -> 15.66666667 | P71: 0 | Q71: 0
A72: Entry fees | D72: 752
A73: Amortization of entry fees | D73: =MIN($D$72*10%,C74)*3/12 -> 18.8 | E73: =MIN($D$72*10%,D74) -> 75.2 | F73: 75.2 | G73: 75.2 | H73: 75.2 | I73: 75.2 | J73: 75.2 | K73: 75.2 | L73: 75.2 | M73: 75.2 | N73: =MIN($D$72*10%,M74)*9/12 -> 42.3 | O73: =MIN($D$72*10%,N74) -> 14.1 | P73: =MIN($D$72*10%,O74) -> 0 | Q73: =MIN($D$72*10%,P74) -> 0
A74: Unamortized radio costs | D74: =$D$72-SUM($D$73:D73) -> 733.2 | E74: =$D$72-SUM($D$73:E73) -> 658 | F74: =$D$72-SUM($D$73:F73) -> 582.8 | G74: =$D$72-SUM($D$73:G73) -> 507.6 | H74: =$D$72-SUM($D$73:H73) -> 432.4 | I74: =$D$72-SUM($D$73:I73) -> 357.2 | J74: =$D$72-SUM($D$73:J73) -> 282 | K74: =$D$72-SUM($D$73:K73) -> 206.8 | L74: =$D$72-SUM($D$73:L73) -> 131.6 | M74: =$D$72-SUM($D$73:M73) -> 56.4 | N74: =$D$72-SUM($D$73:N73) -> 14.1 | O74: =$D$72-SUM($D$73:O73) -> 0 | P74: =$D$72-SUM($D$73:P73) -> 0 | Q74: =$D$72-SUM($D$73:Q73) -> 0
A76: Computation of employee costs
A77: # of employees | D77: =35*3+15*1 -> 120 | E77: =35*4 -> 140 | F77: =40*F35 -> 160 | G77: =F77 -> 160 | H77: 160 | I77: 160 | J77: 160 | K77: 160 | L77: 160 | M77: =40*M35 -> 160 | N77: =30*N35 -> 97.5 | O77: =40*O35 -> 33.33333333 | P77: =40*P35 -> 0 | Q77: =40*Q35 -> 0
A78: Average # of employees | D78: =AVERAGE(C77:D77)*6/12 -> 60 | E78: =AVERAGE(D77:E77) -> 130 | F78: 150 | G78: 160 | H78: 160 | I78: 160 | J78: 160 | K78: 160 | L78: 160 | M78: 160 | N78: 128.75 | O78: =AVERAGE(N77:O77) -> 65.41666667 | P78: 0 | Q78: 0
A79: Average salary of employee (Rs mn) | D79: 0.8 | E79: =D79*(1+E80%) -> 0.92 | F79: 0.9752 | G79: 1.0892984 | H79: 1.25269316 | I79: 1.440597134 | J79: 1.656686704 | K79: 1.90518971 | L79: 2.190968166 | M79: 2.519613391 | N79: 2.8975554 | O79: =N79*(1+O80%) -> 3.18731094 | P79: =O79*(1+P80%) -> 3.506042034 | Q79: =P79*(1+Q80%) -> 3.856646237
A80: Increase in average salary (%) | E80: 15 | F80: 6 | G80: 11.7 | H80: 15 | I80: =H80 -> 15 | J80: 15 | K80: 15 | L80: 15 | M80: 15 | N80: 15 | O80: 10 | P80: =O80 -> 10 | Q80: =P80 -> 10
A81: Employee cost | D81: =D78*D79 -> 48 | E81: 119.6 | F81: =F78*F79+10 -> 156.28 | G81: 174.287744 | H81: 200.4309056 | I81: 230.4955414 | J81: 265.0698727 | K81: 304.8303536 | L81: 350.5549066 | M81: 403.1381426 | N81: =N78*N79 -> 373.0602577 | O81: =O78*O79*6/12 -> 104.2516287 | P81: =P78*P79*5/12 -> 0 | Q81: =Q78*Q79*5/12 -> 0

Sheet Internet
A1: Derivation of Internet (Shine.com) revenues and costs, March fiscal year-ends, 2008-20E (Rs mn)
C3: 2006 | D3: 2007 | E3: 2008 | F3: 2009 | G3: 2010 | H3: 2011E | I3: 2012E | J3: 2013E | K3: 2014E | L3: 2015E | M3: 2016E | N3: 2017E | O3: 2018E | P3: 2019E | Q3: 2020E
A4: Advertising revenues | E4: 0 | F4: 10 | G4: 20 | H4: 40 | I4: =H4*(1+150%) -> 100 | J4: =I4*(1+50%) -> 150 | K4: =J4*(1+30%) -> 195 | L4: =K4*(1+20%) -> 234 | M4: =L4*(1+15%) -> 269.1 | N4: 309.465 | O4: 355.88475 | P4: 409.2674625 | Q4: 470.6575819
A5: Transaction revenues | E5: 0 | F5: 0 | G5: 20 | H5: 40 | I5: =H5*(1+150%) -> 100 | J5: =I5*(1+50%) -> 150 | K5: =J5*(1+30%) -> 195 | L5: =K5*(1+20%) -> 234 | M5: 269.1 | N5: 309.465 | O5: 355.88475 | P5: 409.2674625 | Q5: 470.6575819
A6: Total revenues | E6: =SUM(E4:E5) -> 0 | F6: 10 | G6: 40 | H6: 80 | I6: 200 | J6: 300 | K6: 390 | L6: 468 | M6: 538.2 | N6: 618.93 | O6: 711.7695 | P6: =SUM(P4:P5) -> 818.534925 | Q6: =SUM(Q4:Q5) -> 941.3151637
A7: Operating costs | E7: -20 | F7: -100 | G7: -100 | H7: =G7*(1+25%) -> -125 | I7: =H7*(1+20%) -> -150 | J7: =I7*(1+15%) -> -172.5 | K7: =J7*(1+12%) -> -193.2 | L7: =K7*(1+12%) -> -216.384 | M7: =L7*(1+10%) -> -238.0224 | N7: =M7*(1+10%) -> -261.82464 | O7: =N7*(1+10%) -> -288.007104 | P7: =O7*(1+10%) -> -316.8078144 | Q7: =P7*(1+10%) -> -348.4885958
A8: Employee costs | E8: =-E21 -> -50 | F8: =-F21 -> -115 | G8: -126 | H8: -151.8 | I8: -232.32 | J8: -333.3792 | K8: -391.598592 | L8: -450.793728 | M8: -451.5951391 | N8: -477.9682952 | O8: -505.8816436 | P8: =-P21 -> -525.5098514 | Q8: =-Q21 -> -545.8996336
A9: SG&A and other costs | E9: -10 | F9: -150 | G9: -100 | H9: -120 | I9: =-70%*I6 -> -140 | J9: =-50%*J6 -> -150 | K9: =-40%*K6 -> -156 | L9: =-35%*L6 -> -163.8 | M9: =-30%*M6 -> -161.46 | N9: =-25%*N6 -> -154.7325 | O9: =-22%*O6 -> -156.58929 | P9: =-20%*P6 -> -163.706985 | Q9: =-18%*Q6 -> -169.4367295
A10: EBITDA | E10: =SUM(E6:E9) -> -80 | F10: -355 | G10: -286 | H10: -316.8 | I10: -322.32 | J10: -355.8792 | K10: -350.798592 | L10: -362.977728 | M10: -312.8775391 | N10: -275.5954352 | O10: -238.7085376 | P10: =SUM(P6:P9) -> -187.4897258 | Q10: =SUM(Q6:Q9) -> -122.5097952
A11: D&A expenses | E11: =-3/12*6%*(capex!AL10) -> 0 | F11: =-6/12*6%*(capex!AL10+capex!AQ10) -> -15 | G11: =-8/12*6%*(capex!AL10+capex!AQ10+capex!AV10) -> -36 | H11: =-6%*(capex!AL10+capex!AQ10+capex!AV10) -> -54 | I11: =H11 -> -54 | J11: -54 | K11: -54 | L11: -54 | M11: -54 | N11: -54 | O11: -54 | P11: =O11 -> -54 | Q11: =P11 -> -54
A12: EBIT | E12: =SUM(E10:E11) -> -80 | F12: -370 | G12: -322 | H12: -370.8 | I12: -376.32 | J12: -409.8792 | K12: -404.798592 | L12: -416.977728 | M12: -366.8775391 | N12: -329.5954352 | O12: -292.7085376 | P12: =SUM(P10:P11) -> -241.4897258 | Q12: =SUM(Q10:Q11) -> -176.5097952
A13: EBITDA margin (%) | G13: =G10/G6*100 -> -715 | H13: -396 | I13: -161.16 | J13: -118.6264 | K13: -89.94835692 | L13: -77.55934359 | M13: -58.13406523 | N13: -44.52772288 | O13: -33.53733725 | P13: =P10/P6*100 -> -22.90552548 | Q13: =Q10/Q6*100 -> -13.01474787
A15: Source: Company data, Kotak Institutional Equities estimates
A17: Computation of employee costs
A18: # of employees | E18: 50 | F18: =E18+50 -> 100 | G18: =F18+10 -> 110 | H18: 120 | I18: =H18+80 -> 200 | J18: 210 | K18: 220 | L18: 230 | M18: =L18 -> 230 | N18: =M18 -> 230 | O18: =N18 -> 230 | P18: =O18 -> 230 | Q18: =P18 -> 230
A19: Average # of employees | E19: =E18 -> 50 | F19: =AVERAGE(E18:F18) -> 75 | G19: 105 | H19: 115 | I19: 160 | J19: 205 | K19: 215 | L19: 225 | M19: 230 | N19: 230 | O19: 230 | P19: =AVERAGE(O18:P18) -> 230 | Q19: =AVERAGE(P18:Q18) -> 230
A20: Average cost of employee (Rs mn) | E20: 1 | F20: 1.2 | G20: 1.2 | H20: =G20*(1+'HT Delhi-NCR'!H95%) -> 1.32 | I20: =H20*(1+'HT Delhi-NCR'!I95%) -> 1.452 | J20: =I20*(1+'HT Delhi-NCR'!J95%) -> 1.62624 | K20: =J20*(1+'HT Delhi-NCR'!K95%) -> 1.8213888 | L20: =K20*(1+'HT Delhi-NCR'!L95%) -> 2.00352768 | M20: =L20*(1+'HT Delhi-NCR'!M95%)*0.98 -> 1.963457126 | N20: =M20*(1+'HT Delhi-NCR'!N95%)*0.98 -> 2.078123023 | O20: =N20*(1+'HT Delhi-NCR'!O95%)*0.98 -> 2.199485407 | P20: =O20*(1+'HT Delhi-NCR'!P95%)*0.98 -> 2.284825441 | Q20: =P20*(1+'HT Delhi-NCR'!Q95%)*0.98 -> 2.373476668
A21: Employee cost (Rs mn) | E21: =E19*E20 -> 50 | F21: =F19*F20+25 -> 115 | G21: 126 | H21: 151.8 | I21: 232.32 | J21: 333.3792 | K21: 391.598592 | L21: 450.793728 | M21: 451.5951391 | N21: 477.9682952 | O21: 505.8816436 | P21: =P19*P20 -> 525.5098514 | Q21: =Q19*Q20 -> 545.8996336

Sheet interim_saln_qtr
A2: HT Media standalone quarterly interim results (Rs mn)
B4: 1QFY07 | C4: 2QFY07 | D4: 3QFY07 | E4: 4QFY07 | F4: 1QFY08 | G4: 2QFY08 | H4: 3QFY08 | I4: 4QFY08 | J4: 1QFY09 | K4: 2QFY09 | L4: 3QFY09 | M4: 4QFY09 | N4: 1QFY10 | O4: 2QFY10 | P4: 3QFY10 | Q4: 4QFY10 | R4: 1QFY11 | S4: 2QFY11 | T4: 3QFY11 | U4: 4QFY11 | V4: 1QFY12 | W4: 2QFY12 | X4: 3QFY12 | Y4: 4QFY12 | AN4: 1QFY10E | AO4: 2QFY10E | AP4: 3QFY10E | AX4: 3QFY12E | AY4: 4QFY12E | BU4: 3QFY09 | BV4: 3QFY10 | BW4: 4QFY09 | BX4: 4QFY10 | BY4: 1QFY10 | BZ4: 1QFY11
A5: Total revenues | B5: =B6+B7+B8 -> 2391.3 | C5: 2499.3 | D5: 2752.1 | E5: 2750.1 | F5: 2763.4 | G5: 2827.7 | H5: 3219.5 | I5: 3171.8 | J5: 3272.2 | K5: 3339.7 | L5: 3338.1 | M5: 3338.2 | N5: 3280.5 | O5: 3470.5 | P5: 3227.1 | Q5: 2642.5 | R5: 2738.4 | S5: 2836 | T5: 3240.5 | U5: 3267.7 | V5: 3286 | W5: 3112 | X5: 3595 | Y5: 3172.2 | AN5: =AN6+AN7+AN8 -> 3425 | AO5: =AO6+AO7+AO8 -> 3375 | AP5: =AP6+AP7+AP8 -> 3600 | AX5: =AX6+AX7+AX8 -> 3400 | AY5: =AY6+AY7+AY8 -> 3450 | BU5: =BU6+BU7+BU8 -> 3457.4 | BV5: 3661.4 | BW5: 3423.7 | BX5: 3851 | BY5: 3366.1 | BZ5: 4042.1 | CA5: =Y5/U5*100 -> 97.07745509 | CB5: =Y5/X5*100 -> 88.23922114 | CC5: Has HT Edge started to be monetized
A6: Advertising revenue | B6: 1972.5 | C6: 2073.5 | D6: 2360 | E6: 2344 | F6: 2350 | G6: 2393 | H6: 2739 | I6: 2655 | J6: 2805 | K6: 2831 | L6: 2866 | M6: 2797 | N6: 2781 | O6: 2821 | P6: 2208 | Q6: 2231 | R6: 2326 | S6: 2380 | T6: =interim_cons_qtr!T6-942 -> 2744 | U6: 2696 | V6: 2736 | W6: 2572 | X6: 3049 | Y6: 2600 | AN6: 2850 | AO6: 2800 | AP6: 2900 | AX6: 2800 | AY6: 2950 | BU6: 2780 | BV6: 2855 | BW6: 2797 | BX6: 3017 | BY6: 2694 | BZ6: 3286 | CA6: =Y6/U6*100 -> 96.43916914 | CB6: =Y6/X6*100 -> 85.27386028 | CC6: English is up qoq but Hindi is down? | CG6: Nothing specific as such
A7: Circulation revenue | B7: 332 | C7: 350 | D7: 350 | E7: 330 | F7: 330 | G7: 360 | H7: 390 | I7: 370 | J7: 358 | K7: 373 | L7: 390 | M7: 410 | N7: 444 | O7: 479 | P7: =interim_cons_qtr!P7-306 -> 175 | Q7: =interim_cons_qtr!Q7-287 -> 142 | R7: =interim_cons_qtr!R7-323 -> 145 | S7: =interim_cons_qtr!S7-288 -> 130 | T7: =interim_cons_qtr!T7-306 -> 165 | U7: =interim_cons_qtr!U7-307 -> 162 | V7: =interim_cons_qtr!V7-331 -> 154 | W7: 174 | X7: 165 | Y7: 137 | AN7: 400 | AO7: 450 | AP7: 500 | AX7: 200 | AY7: 150 | BU7: 390 | BV7: 508 | BW7: 410 | BX7: 429 | BY7: 444 | BZ7: 468 | CA7: 84.56790123 | CB7: 83.03030303 | CC7: Why is circulation revenue down again? | CG7: This will be on account
A8: Other operating revenue | B8: 86.8 | C8: 75.8 | D8: 42.1 | E8: 76.1 | F8: 83.4 | G8: 74.7 | H8: 90.5 | I8: 146.8 | J8: 109.2 | K8: 135.7 | L8: =3338.1-L6-L7 -> 82.1 | M8: =3338.2-M6-M7 -> 131.2 | N8: =3280.5-N6-N7 -> 55.5 | O8: =3470.5-O6-O7 -> 170.5 | P8: =3227.1-P6-P7 -> 844.1 | Q8: =2642.5-Q6-Q7 -> 269.5 | R8: =2738.4-R6-R7 -> 267.4 | S8: =2836-S6-S7 -> 326 | T8: =3240.5-T6-T7 -> 331.5 | U8: =3267.7-U6-U7 -> 409.7 | V8: =3286-V6-V7 -> 396 | W8: =3112-W6-W7 -> 366 | X8: =3595-X6-X7 -> 381 | Y8: =3172.2-Y6-Y7 -> 435.2 | AN8: 175 | AO8: 125 | AP8: 200 | AX8: 400 | AY8: 350 | BU8: =3457.4-BU6-BU7 -> 287.4 | BV8: =3661.4-BV6-BV7 -> 298.4 | BW8: =3423.7-BW6-BW7 -> 216.7 | BX8: =3851-BX6-BX7 -> 405 | BY8: =3366.1-BY6-BY7 -> 228.1 | BZ8: =4042.1-BZ6-BZ7 -> 288.1 | CA8: 106.2240664 | CB8: 114.2257218
A9: Total expenditure | B9: =B10+B11+B12 -> -1872.4 | C9: -2022.7 | D9: -2261.3 | E9: -2330.5 | F9: -2177.7 | G9: -2324.1 | H9: -2601.8 | I9: -2532.3 | J9: -2584.1 | K9: -2943 | L9: -2914.1 | M9: -2936.3 | N9: -2660.3 | O9: -2824.3 | P9: -2525.2 | Q9: -1942.8 | R9: -2181.4 | S9: -2240.2 | T9: -2425.4 | U9: -2451.3 | V9: -2544.6 | W9: -2628 | X9: -2914.3 | Y9: -2772.4 | AN9: =AN10+AN11+AN12 -> -2825 | AO9: =AO10+AO11+AO12 -> -2700 | AP9: =AP10+AP11+AP12 -> -2700 | AX9: =AX10+AX11+AX12 -> -2700 | AY9: =AY10+AY11+AY12 -> -2800 | BU9: =BU10+BU11+BU12 -> -3238.8 | BV9: -2916.9 | BW9: -3173 | BX9: -2922.1 | BY9: -2788 | BZ9: -3242.9 | CA9: 113.0991719 | CB9: 95.13090622
A10: Raw material costs | B10: =-953.1+1.2 -> -951.9 | C10: -1076 | D10: =-1170.3+1.5 -> -1168.8 | E10: =-1124.3+3.5 -> -1120.8 | F10: =-1086.8+0.9 -> -1085.9 | G10: =-1126.7-2.7 -> -1129.4 | H10: =-1226.4+0.7 -> -1225.7 | I10: =-1118.3-2.4 -> -1120.7 | J10: =-1196.9+5.6 -> -1191.3 | K10: =-1459.7-3.4 -> -1463.1 | L10: =-1462.8+1.1 -> -1461.7 | M10: =-1282.5-2.4 -> -1284.9 | N10: =-1228.9+3.3 -> -1225.6 | O10: =-1227.8-1.9 -> -1229.7 | P10: =-975.9+4.3 -> -971.6 | Q10: =-670.6-0.8 -> -671.4 | R10: =-771.9+0.6 -> -771.3 | S10: =-863.7+1.1 -> -862.6 | T10: =-964.8+0.1 -> -964.7 | U10: =-954.2-1.5 -> -955.7 | V10: =-959.2+0.5 -> -958.7 | W10: =-1006.7+1.2 -> -1005.5 | X10: =-1061.7-0.9 -> -1062.6 | Y10: =-985.4-0.9 -> -986.3 | AN10: -1250 | AO10: -1175 | AP10: -1100 | AX10: -1050 | AY10: -1050 | BU10: =-1493.9+1.1 -> -1492.8 | BV10: =-1135.9+0.9 -> -1135 | BW10: =-1355.3-2.3 -> -1357.6 | BX10: =-1152.9-1.9 -> -1154.8 | BY10: =-1240.2+3.3 -> -1236.9 | BZ10: =-1344.4+41.5 -> -1302.9 | CA10: 103.2018416 | CB10: 92.81949934 | CC10: How much volume and price? | CG10: Ovreall 5% price increase | CJ10: Consumption due to Mumbai | CM10: 40-50K increase in circulation
A11: Employee expenses | B11: -354.8 | C11: -348.2 | D11: -388.2 | E11: -391.3 | F11: -402.2 | G11: -423.3 | H11: -432.9 | I11: -497.4 | J11: -450.7 | K11: -495.5 | L11: -495.4 | M11: -594.2 | N11: -573 | O11: -548.8 | P11: -512.2 | Q11: -447.8 | R11: -548 | S11: -500 | T11: -520.5 | U11: -526.7 | V11: -619 | W11: -590.9 | X11: -654.5 | Y11: -607.8 | AN11: -550 | AO11: -550 | AP11: -550 | AX11: -600 | AY11: -650 | BU11: -588.1 | BV11: -620.9 | BW11: -670.1 | BX11: -630.6 | BY11: -646.1 | BZ11: -749.2 | CA11: 115.3977596 | CB11: 92.86478228 | CC11: Was there any one-off in 1QFY11? | CG11: Let me check on this side
A12: SG&A and other costs | B12: =-84.6-481.1 -> -565.7 | C12: =-106.3-492.2 -> -598.5 | D12: =-178.7-525.6 -> -704.3 | E12: =-268.2-550.2 -> -818.4 | F12: =-144.6-545 -> -689.6 | G12: =-198.2-573.2 -> -771.4 | H12: =-317.5-625.7 -> -943.2 | I12: =-259.9-654.3 -> -914.2 | J12: =-265.1-677 -> -942.1 | K12: =-318-666.4 -> -984.4 | L12: =-274.7-682.3 -> -957 | M12: =-289.6-767.6 -> -1057.2 | N12: =-175.8-685.9 -> -861.7 | O12: =-316.3-729.5 -> -1045.8 | P12: =-311.5-729.9 -> -1041.4 | Q12: =-190-633.6 -> -823.6 | R12: =-203.3-658.8 -> -862.1 | S12: =-252.7-624.9 -> -877.6 | T12: -940.2 | U12: -968.9 | V12: =-206.4-760.5 -> -966.9 | W12: =-201.3-830.3 -> -1031.6 | X12: -1197.2 | Y12: -1178.3 | AN12: =-300-725 -> -1025 | AO12: -975 | AP12: -1050 | AX12: -1050 | AY12: -1100 | BU12: =-390.5-767.4 -> -1157.9 | BV12: =-350.6-810.4 -> -1161 | BW12: =-332.3-813 -> -1145.3 | BX12: =-270.4-866.3 -> -1136.7 | BY12: =-195.2-709.8 -> -905 | BZ12: =-285.4-905.4 -> -1190.8 | CA12: 121.6121375 | CB12: 98.4213164
A13: Operating profits | B13: =B5+B9 -> 518.9 | C13: 476.6 | D13: 490.8 | E13: 419.6 | F13: 585.7 | G13: 503.6 | H13: 617.7 | I13: 639.5 | J13: 688.1 | K13: 396.7 | L13: 424 | M13: 401.9 | N13: 620.2 | O13: 646.2 | P13: 701.9 | Q13: 699.7 | R13: 557 | S13: 595.8 | T13: 815.1 | U13: 816.4 | V13: 741.4 | W13: 484 | X13: 680.7 | Y13: 399.8 | AN13: =AN5+AN9 -> 600 | AO13: =AO5+AO9 -> 675 | AP13: =AP5+AP9 -> 900 | AX13: =AX5+AX9 -> 700 | AY13: =AY5+AY9 -> 650 | BU13: =BU5+BU9 -> 218.6 | BV13: 744.5 | BW13: 250.7 | BX13: 928.9 | BY13: 578.1 | BZ13: 799.2 | CA13: 48.9710926 | CB13: 58.73365653
A14: Other income | B14: 87.3 | C14: 75.8 | D14: 148.9 | E14: 90.7 | F14: 73.2 | G14: 67 | H14: 61.8 | I14: 84.8 | J14: 56.7 | K14: 51.6 | L14: =45.6+33 -> 78.6 | M14: =64.2+36.7 -> 100.9 | N14: =65.6+70.1 -> 135.7 | O14: =29+10 -> 39 | P14: =24+62.7 -> 86.7 | Q14: =79.7+29.6 -> 109.3 | R14: =30.5+48 -> 78.5 | S14: =148+47 -> 195 | T14: =20.8+54.2 -> 75 | U14: 115.1 | V14: =168+21.4 -> 189.4 | W14: =29+171 -> 200 | X14: =57.4+126.2 -> 183.6 | Y14: 149.9 | AN14: 75 | AO14: 50 | AP14: 25 | AX14: 175 | AY14: 150 | BU14: 49.8 | BV14: 19.1 | BW14: 54 | BX14: 45.3 | BY14: 65.7 | BZ14: 58 | CA14: 130.2345786 | CB14: 81.64488017 | CC14: Any large ad-for-equity gains in here | CG14: There is an FX element and ad-for-equity
A15: Interest expense | B15: -33.8 | C15: -37.9 | D15: -36.2 | E15: -36 | F15: -41.8 | G15: -44.8 | H15: -44.5 | I15: -43.2 | J15: -50.9 | K15: -73.6 | L15: -101.4 | M15: -91 | N15: -77.6 | O15: -74.8 | P15: -59.5 | Q15: -45.3 | R15: -38 | S15: -45 | T15: -40.4 | U15: -70.6 | V15: -44.3 | W15: -56.7 | X15: -63.3 | Y15: -81.5 | AN15: -100 | AO15: -75 | AP15: -50 | AX15: -50 | AY15: -75 | BU15: -103.6 | BV15: -71.6 | BW15: -91.2 | BX15: -70.9 | BY15: -78.7 | BZ15: -64 | CA15: 115.4390935 | CB15: 128.7519747
A16: D&A expense | B16: -96.2 | C16: -95.9 | D16: -97.6 | E16: -107.4 | F16: -106.4 | G16: -109.6 | H16: -113.6 | I16: -117.1 | J16: -128.6 | K16: -128.2 | L16: -138 | M16: -155.3 | N16: -163.6 | O16: -174.9 | P16: -160.5 | Q16: -138.9 | R16: -140.5 | S16: -139.8 | T16: -141.6 | U16: -141 | V16: -139 | W16: -158.3 | X16: -141.3 | Y16: -164.3 | AN16: -150 | AO16: -175 | AP16: -175 | AX16: -175 | AY16: -175 | BU16: -180.8 | BV16: -164.8 | BW16: -166.8 | BX16: -180.6 | BY16: -174.8 | BZ16: -194.2 | CA16: 116.5248227 | CB16: 116.2774239 | CC16: That depreciation point previously
A17: Pretax profits | B17: =B13+B14+B15+B16 -> 476.2 | C17: 418.6 | D17: 505.9 | E17: 366.9 | F17: 510.7 | G17: 416.2 | H17: 521.4 | I17: 564 | J17: 565.3 | K17: 246.5 | L17: 263.2 | M17: 256.5 | N17: 514.7 | O17: 435.5 | P17: 568.6 | Q17: 624.8 | R17: 457 | S17: 606 | T17: =T13+T14+T15+T16 -> 708.1 | U17: 719.9 | V17: 747.5 | W17: 469 | X17: 659.7 | Y17: 303.9 | AN17: =AN13+AN14+AN15+AN16 -> 425 | AO17: =AO13+AO14+AO15+AO16 -> 475 | AP17: =AP13+AP14+AP15+AP16 -> 700 | AX17: =AX13+AX14+AX15+AX16 -> 650 | AY17: =AY13+AY14+AY15+AY16 -> 550 | BU17: =BU13+BU14+BU15+BU16 -> -16 | BV17: 527.2 | BW17: 46.7 | BX17: 722.7 | BY17: 390.3 | BZ17: 599 | CA17: 42.21419642 | CB17: 46.06639382
A18: Extraordinaries | B18: -2.6 | C18: 0 | D18: 0 | E18: 0 | F18: 0 | G18: 0 | H18: 0 | I18: 0 | J18: 0 | K18: 0 | L18: -127.9 | M18: -60.3 | N18: -45 | O18: -40 | P18: -258.7 | Q18: 0 | R18: 0 | S18: 0 | T18: 0 | U18: 0 | V18: 0 | W18: 0 | X18: 0 | Y18: 0 | AN18: 0 | AO18: -50 | AP18: -50 | AX18: 0 | AY18: 0 | BU18: -127.9 | BV18: -14.3 | BW18: -61.6 | BX18: -15 | BY18: 0 | BZ18: 0
A19: Tax provision | B19: =-159.8-7.5 -> -167.3 | C19: =-142.1-7.5 -> -149.6 | D19: =-161.2-9 -> -170.2 | E19: =-114.8-12.5 -> -127.3 | F19: =-161.3-7.8 -> -169.1 | G19: =-89-7.8 -> -96.8 | H19: =-145-7.8 -> -152.8 | I19: =-138.5-9.6 -> -148.1 | J19: =-178.1-10 -> -188.1 | K19: =-75.7-10 -> -85.7 | L19: =-46.6-10.5 -> -57.1 | M19: =42-3.9 -> 38.1 | N19: -145.7 | O19: =-91.6+10.2 -> -81.4 | P19: -125.7 | Q19: -199.1 | R19: -140.3 | S19: -153.5 | T19: 154 | U19: -575.1 | V19: -219.4 | W19: -113 | X19: -162.3 | Y19: -87.4 | AN19: -125 | AO19: -125 | AP19: -200 | AX19: -200 | AY19: -150 | BU19: -24.4 | BV19: =-159.9+0.2 -> -159.7 | BW19: =-4+71.5 -> 67.5 | BX19: -222.3 | BY19: =-99.8-10.8 -> -110.6 | BZ19: -197.5 | CA19: 15.19735698 | CB19: 53.85089341
A20: Minority interest | B20: 0 | C20: 0 | D20: 0 | E20: 0 | F20: 0 | G20: 0 | H20: 0 | I20: 0 | J20: 0 | K20: 0 | L20: 0 | M20: 0 | N20: 0 | O20: 0 | P20: 0 | Q20: 0 | R20: 0 | S20: 0 | T20: 0 | U20: 0 | V20: 0 | W20: 0 | X20: 0 | Y20: 0 | AN20: 0 | AO20: 0 | AP20: 0 | AX20: 0 | AY20: 0 | BU20: 40 | BV20: 4.7 | BW20: 23.3 | BX20: -5.5 | BY20: 7.3 | BZ20: 12.2
A21: Net income | B21: =B17+B18+B19+B20 -> 306.3 | C21: 269 | D21: 335.7 | E21: 239.6 | F21: 341.6 | G21: 319.4 | H21: 368.6 | I21: 415.9 | J21: 377.2 | K21: 160.8 | L21: 78.2 | M21: 234.3 | N21: 324 | O21: 314.1 | P21: 184.2 | Q21: 425.7 | R21: 316.7 | S21: 452.5 | T21: =T17+T18+T19+T20 -> 862.1 | U21: 144.8 | V21: 528.1 | W21: 356 | X21: 497.4 | Y21: 216.5 | AN21: =AN17+AN18+AN19+AN20 -> 300 | AO21: =AO17+AO18+AO19+AO20 -> 300 | AP21: =AP17+AP18+AP19+AP20 -> 450 | AX21: =AX17+AX18+AX19+AX20 -> 450 | AY21: =AY17+AY18+AY19+AY20 -> 400 | BU21: =BU17+BU18+BU19+BU20 -> -128.3 | BV21: 357.9 | BW21: 75.9 | BX21: 479.9 | BY21: 287 | BZ21: 413.7 | CA21: 149.5165746 | CB21: 43.52633695
A22: Adj. net income | B22: =B17+B19+B20 -> 308.9 | C22: 269 | D22: 335.7 | E22: 239.6 | F22: 341.6 | G22: 319.4 | H22: 368.6 | I22: 415.9 | J22: 377.2 | K22: 160.8 | L22: 206.1 | M22: 294.6 | N22: 369 | O22: 354.1 | P22: 442.9 | Q22: 425.7 | R22: 316.7 | S22: 452.5 | T22: =T17+T19+T20 -> 862.1 | U22: 144.8 | V22: 528.1 | W22: 356 | X22: 497.4 | Y22: 216.5 | AN22: =AN17+AN19+AN20 -> 300 | AO22: =AO17+AO19+AO20 -> 350 | AP22: =AP17+AP19+AP20 -> 500 | AX22: =AX17+AX19+AX20 -> 450 | AY22: =AY17+AY19+AY20 -> 400 | BU22: =BU17+BU19+BU20 -> -0.4 | BV22: 372.2 | BW22: 137.5 | BX22: 494.9 | BY22: 287 | BZ22: 413.7 | CA22: 149.5165746 | CB22: 43.52633695 | CC22: Talk about the merger of Firefly | CG22: Take the benefit of tax - DTC
A24: Source: Company data, Kotak Institutional Equities
A26: Important data
A27: Ratios
A28: OPM (%) | B28: =B13/B5*100 -> 21.699494 | C28: 19.06933942 | D28: 17.8336543 | E28: 15.257627 | F28: 21.19490483 | G28: 17.80952718 | H28: 19.18620904 | I28: 20.16205309 | J28: 21.02866573 | K28: 11.87831242 | L28: 12.70183637 | M28: 12.03942244 | N28: 18.90565463 | O28: 18.61979542 | P28: 21.75017818 | Q28: 26.47871334 | R28: 20.34034473 | S28: 21.00846262 | T28: 25.15352569 | U28: 24.98393365 | V28: 22.56238588 | W28: 15.55269923 | X28: 18.93463143 | Y28: 12.60324065 | AN28: 17.51824818 | AO28: 20 | AP28: 25 | AX28: =AX13/AX5*100 -> 20.58823529 | AY28: =AY13/AY5*100 -> 18.84057971 | BU28: =BU13/BU5*100 -> 6.322670215 | BV28: 20.33375212 | BW28: 7.322487367 | BX28: 24.12100753 | BY28: 17.17417783 | BZ28: 19.77190074
A29: Tax rate (%) | B29: =-B19/(B17+B18)*100 -> 35.32516892 | C29: 35.73817487 | D29: 33.64301245 | E29: 34.69610248 | F29: 33.1114157 | G29: 23.25804901 | H29: 29.30571538 | I29: 26.25886525 | J29: =-J19/(J17)*100 -> 33.27436759 | K29: =-K19/(K17)*100 -> 34.76673428 | L29: =-L19/(L17+L18)*100 -> 42.20251293 | M29: -19.41896024 | N29: 31.01979987 | O29: 20.58154235 | P29: 40.56147144 | Q29: 31.86619718 | R29: 30.70021882 | S29: 25.330033 | T29: -21.74834063 | U29: 79.88609529 | V29: 29.35117057 | W29: 24.09381663 | X29: 24.60209186 | Y29: 28.75946035 | AN29: 29.41176471 | AO29: 29.41176471 | AP29: 30.76923077 | AX29: =-AX19/(AX17+AX18)*100 -> 30.76923077 | AY29: =-AY19/(AY17+AY18)*100 -> 27.27272727 | BU29: =-BU19/(BU17+BU18)*100 -> -16.9562196 | BV29: 31.13667382 | BW29: 453.0201342 | BX29: 31.41161509 | BY29: 28.33717653 | BZ29: 32.97161937 | CC29: Why is the tax rate so low? | CG29: Let me check on this side
A30: Print
A31: Total revenues | J31: =J5 -> 3272.2 | K31: =K5 -> 3339.7 | L31: 3371.1 | M31: 3301.5 | N31: 3262.3 | O31: 3379.5 | P31: 3188.3 | Q31: 2563.4 | R31: 2597 | S31: 2684 | T31: 3036.2 | U31: 2975.4 | V31: 3060.3 | W31: 2935.8 | X31: 3382.4 | Y31: 2930.5 | BU31: =3398.7-10.9 -> 3387.8 | BV31: =3566.4-17 -> 3549.4 | BW31: 3349.1 | BX31: 3721.4 | BY31: =3276.5-6.2 -> 3270.3 | BZ31: =3919-20 -> 3899 | CA31: =Y31/U31*100 -> 98.4909592
A32: Operating profit | J32: =J13+J16 -> 559.5 | K32: =K13+K16 -> 268.5 | L32: 319.1 | M32: 319 | N32: 570.7 | O32: 524.8 | P32: 617 | Q32: 645.8 | R32: 519 | S32: 496 | T32: 682.6 | U32: 661 | V32: 655.1 | W32: 475 | X32: 647.7 | Y32: 297.8 | BU32: 312.2 | BV32: 672.3 | BW32: 210.6 | BX32: 847.2 | BY32: 543.9 | BZ32: 777 | CA32: =Y32/U32*100 -> 45.05295008
A33: Radio | CA33: =Y33/U33*100 -> 
A34: Total revenues | L34: 67.9 | M34: 73.4 | N34: 88.3 | O34: 97 | P34: 101.5 | Q34: 129.9 | R34: 122.7 | S34: 141.4 | T34: 179.6 | U34: 252.2 | V34: 212.6 | W34: 157.4 | X34: 172.7 | Y34: 196.5 | AX34: 200 | BU34: 67.9 | BV34: 101.5 | BW34: 76.3 | BX34: 135.3 | BY34: 88.4 | BZ34: 123.1 | CA34: =Y34/U34*100 -> 77.91435369
A35: Operating profit | L35: -174.3 | M35: -20.9 | N35: -26.8 | O35: -23.7 | P35: -12.9 | Q35: 4.5 | R35: -11.5 | S35: 5.8 | T35: 30.3 | U35: 53.6 | V35: 25.1 | W35: -44.9 | X35: -9.4 | Y35: -13.3 | AX35: 0 | BU35: -174.3 | BV35: -12.9 | BW35: -20.7 | BX35: 5.1 | BY35: -27.3 | BZ35: -12.2 | CA35: =Y35/U35*100 -> -24.81343284
A36: Unallocated
U37: 41 | X37: 71.1 | Y37: 45.2
U38: -39.2 | X38: -49.4 | Y38: -49
BV39: =(BV31/BU31-1)*100 -> 4.770057264
BV40: 15
CC43: =9333/7734*100 -> 120.6749418
CC44: =22235/18219*(100) -> 122.0429222
CC45: =32258/25251*100 -> 127.7493961

Sheet interim_saln_cum
A2: HT Media standalone quarterly interim results (Rs mn)
AR3: Cons. | AS3: Cons. | AT3: Cons. | AU3: Cons. | AV3: Cons.
B4: 1QFY07 | C4: 2QFY07 | D4: 3QFY07 | E4: 4QFY07 | F4: 1QFY08 | G4: 1HFY08 | H4: 9MFY08 | I4: FY2008 | J4: 1QFY09 | K4: 1HFY09 | L4: 9MFY09 | M4: FY2009 | N4: 1QFY10 | O4: 1HFY10 | P4: 9MFY10 | Q4: FY2010 | R4: 1QFY11 | S4: 1HFY11 | T4: 9MFY11 | U4: FY2011 | V4: 1QFY12 | W4: 1HFY12 | X4: 9MFY12 | Y4: FY2012 | AQ4: FY2010E | AR4: FY2010E | AS4: 9MFY09 | AT4: 9MFY10 | AU4: FY2009 | AV4: FY2010 | BC4: yoy (%)
A5: Total revenues | B5: =B6+B7+B8 -> 2391.3 | C5: 2499.3 | D5: 2752.1 | E5: 2750.1 | F5: 2763.4 | G5: 5591.1 | H5: 8810.6 | I5: 11982.4 | J5: 3272.2 | K5: 6611.9 | L5: 9950 | M5: 13288.2 | N5: 3280.5 | O5: 6751 | P5: 9978.1 | Q5: 12620.6 | R5: 2738.4 | S5: 5574.4 | T5: =T6+T7+T8 -> 8814.9 | U5: 12082.6 | V5: 3286 | W5: 6398 | X5: 9993 | Y5: 13165.2 | AQ5: =AQ6+AQ7+AQ8 -> 12631.1 | AR5: 14365.20825 | AS5: 10166.9 | AT5: 10527.7 | AU5: 13590.7 | AV5: 14378.6 | BC5: =(Y5/U5-1)*100 -> 8.959992055
A6: Advertising revenue | B6: 1972.5 | C6: 2073.5 | D6: 2360 | E6: 2344 | F6: =SUM(interim_saln_qtr!$F6:F6) -> 2350 | G6: =SUM(interim_saln_qtr!$F6:G6) -> 4743 | H6: =SUM(interim_saln_qtr!$F6:H6) -> 7482 | I6: =SUM(interim_saln_qtr!$F6:I6) -> 10137 | J6: =SUM(interim_saln_qtr!$J6:J6) -> 2805 | K6: =SUM(interim_saln_qtr!$J6:K6) -> 5636 | L6: =SUM(interim_saln_qtr!$J6:L6) -> 8502 | M6: =SUM(interim_saln_qtr!$J6:M6) -> 11299 | N6: =SUM(interim_saln_qtr!$N6:N6) -> 2781 | O6: =SUM(interim_saln_qtr!$N6:O6) -> 5602 | P6: =SUM(interim_saln_qtr!$N6:P6) -> 7810 | Q6: =SUM(interim_saln_qtr!$N6:Q6) -> 10041 | R6: =SUM(interim_saln_qtr!$R6:R6) -> 2326 | S6: =SUM(interim_saln_qtr!$R6:S6) -> 4706 | T6: =SUM(interim_saln_qtr!$R6:T6) -> 7450 | U6: =SUM(interim_saln_qtr!$R6:U6) -> 10146 | V6: =SUM(interim_saln_qtr!$V6:V6) -> 2736 | W6: =SUM(interim_saln_qtr!$V6:W6) -> 5308 | X6: =SUM(interim_saln_qtr!$V6:X6) -> 8357 | Y6: =SUM(interim_saln_qtr!$V6:Y6) -> 10957 | AQ6: 10409.6 | AR6: 11438.81992 | AU6: 11299 | AV6: 11439 | BC6: =(Y6/U6-1)*100 -> 7.993297851
A7: Circulation revenue | B7: 332 | C7: 350 | D7: 350 | E7: 330 | F7: =SUM(interim_saln_qtr!$F7:F7) -> 330 | G7: =SUM(interim_saln_qtr!$F7:G7) -> 690 | H7: =SUM(interim_saln_qtr!$F7:H7) -> 1080 | I7: =SUM(interim_saln_qtr!$F7:I7) -> 1450 | J7: =SUM(interim_saln_qtr!$J7:J7) -> 358 | K7: =SUM(interim_saln_qtr!$J7:K7) -> 731 | L7: =SUM(interim_saln_qtr!$J7:L7) -> 1121 | M7: =SUM(interim_saln_qtr!$J7:M7) -> 1531 | N7: =SUM(interim_saln_qtr!$N7:N7) -> 444 | O7: =SUM(interim_saln_qtr!$N7:O7) -> 923 | P7: =SUM(interim_saln_qtr!$N7:P7) -> 1098 | Q7: =SUM(interim_saln_qtr!$N7:Q7) -> 1240 | R7: =SUM(interim_saln_qtr!$R7:R7) -> 145 | S7: =SUM(interim_saln_qtr!$R7:S7) -> 275 | T7: =SUM(interim_saln_qtr!$R7:T7) -> 440 | U7: =SUM(interim_saln_qtr!$R7:U7) -> 602 | V7: =SUM(interim_saln_qtr!$V7:V7) -> 154 | W7: =SUM(interim_saln_qtr!$V7:W7) -> 328 | X7: =SUM(interim_saln_qtr!$V7:X7) -> 493 | Y7: =SUM(interim_saln_qtr!$V7:Y7) -> 630 | AQ7: 1442.5 | AR7: 1832.966687 | AU7: 1531 | AV7: 1833 | BC7: =(Y7/U7-1)*100 -> 4.651162791
A8: Other operating revenue | B8: 86.8 | C8: 75.8 | D8: 42.1 | E8: 76.1 | F8: =SUM(interim_saln_qtr!$F8:F8) -> 83.4 | G8: =SUM(interim_saln_qtr!$F8:G8) -> 158.1 | H8: =SUM(interim_saln_qtr!$F8:H8) -> 248.6 | I8: =SUM(interim_saln_qtr!$F8:I8) -> 395.4 | J8: =SUM(interim_saln_qtr!$J8:J8) -> 109.2 | K8: =SUM(interim_saln_qtr!$J8:K8) -> 244.9 | L8: =SUM(interim_saln_qtr!$J8:L8) -> 327 | M8: =SUM(interim_saln_qtr!$J8:M8) -> 458.2 | N8: =SUM(interim_saln_qtr!$N8:N8) -> 55.5 | O8: =SUM(interim_saln_qtr!$N8:O8) -> 226 | P8: =SUM(interim_saln_qtr!$N8:P8) -> 1070.1 | Q8: =SUM(interim_saln_qtr!$N8:Q8) -> 1339.6 | R8: =SUM(interim_saln_qtr!$R8:R8) -> 267.4 | S8: =SUM(interim_saln_qtr!$R8:S8) -> 593.4 | T8: =SUM(interim_saln_qtr!$R8:T8) -> 924.9 | U8: =SUM(interim_saln_qtr!$R8:U8) -> 1334.6 | V8: =SUM(interim_saln_qtr!$V8:V8) -> 396 | W8: =SUM(interim_saln_qtr!$V8:W8) -> 762 | X8: =SUM(interim_saln_qtr!$V8:X8) -> 1143 | Y8: =SUM(interim_saln_qtr!$V8:Y8) -> 1578.2 | AQ8: 779 | AR8: 1093.421637 | AS8: =10166.9-AS6-AS7 -> 10166.9 | AT8: =10527.7-AT6-AT7 -> 10527.7 | AU8: =13590.7-AU6-AU7 -> 760.7 | AV8: =14378.6-AV6-AV7 -> 1106.6 | BC8: 18.25265997
A9: Total expenditure | B9: =B10+B11+B12 -> -1872.4 | C9: -2022.7 | D9: -2261.3 | E9: -2330.5 | F9: -2177.7 | G9: -4501.8 | H9: -7103.6 | I9: -9635.9 | J9: -2584.1 | K9: -5527.1 | L9: -8441.2 | M9: -11377.5 | N9: -2660.3 | O9: -5484.6 | P9: -8009.8 | Q9: -9952.6 | R9: -2181.4 | S9: -4421.6 | T9: =T10+T11+T12 -> -6847 | U9: -9298.3 | V9: -2544.6 | W9: -5172.6 | X9: -8086.9 | Y9: -10859.3 | AQ9: =AQ10+AQ11+AQ12 -> -9937.7 | AR9: -11552.44903 | AS9: -9414.1 | AT9: -8653.3 | AU9: -12587.2 | AV9: -11575.4 | BC9: 16.78801501
A10: Raw material costs | B10: =-953.1+1.2 -> -951.9 | C10: -1076 | D10: =-1170.3+1.5 -> -1168.8 | E10: =-1124.3+3.5 -> -1120.8 | F10: =SUM(interim_saln_qtr!$F10:F10) -> -1085.9 | G10: =SUM(interim_saln_qtr!$F10:G10) -> -2215.3 | H10: =SUM(interim_saln_qtr!$F10:H10) -> -3441 | I10: =SUM(interim_saln_qtr!$F10:I10) -> -4561.7 | J10: =SUM(interim_saln_qtr!$J10:J10) -> -1191.3 | K10: =SUM(interim_saln_qtr!$J10:K10) -> -2654.4 | L10: =SUM(interim_saln_qtr!$J10:L10) -> -4116.1 | M10: =SUM(interim_saln_qtr!$J10:M10) -> -5401 | N10: =SUM(interim_saln_qtr!$N10:N10) -> -1225.6 | O10: =SUM(interim_saln_qtr!$N10:O10) -> -2455.3 | P10: =SUM(interim_saln_qtr!$N10:P10) -> -3426.9 | Q10: =SUM(interim_saln_qtr!$N10:Q10) -> -4098.3 | R10: =SUM(interim_saln_qtr!$R10:R10) -> -771.3 | S10: =SUM(interim_saln_qtr!$R10:S10) -> -1633.9 | T10: =SUM(interim_saln_qtr!$R10:T10) -> -2598.6 | U10: =SUM(interim_saln_qtr!$R10:U10) -> -3554.3 | V10: =SUM(interim_saln_qtr!$V10:V10) -> -958.7 | W10: =SUM(interim_saln_qtr!$V10:W10) -> -1964.2 | X10: =SUM(interim_saln_qtr!$V10:X10) -> -3026.8 | Y10: =SUM(interim_saln_qtr!$V10:Y10) -> -4013.1 | AQ10: -4098.3 | AR10: -4744.278849 | AS10: =-4233.4+3.3 -> -4230.1 | AT10: =-3607.8+2.3 -> -3605.5 | AU10: =-5588.7+1 -> -5587.7 | AV10: =-4760.7+0.4 -> -4760.3 | BC10: 12.90830825
A11: Employee expenses | B11: -354.8 | C11: -348.2 | D11: -388.2 | E11: -391.3 | F11: =SUM(interim_saln_qtr!$F11:F11) -> -402.2 | G11: =SUM(interim_saln_qtr!$F11:G11) -> -825.5 | H11: =SUM(interim_saln_qtr!$F11:H11) -> -1258.4 | I11: =SUM(interim_saln_qtr!$F11:I11) -> -1755.8 | J11: =SUM(interim_saln_qtr!$J11:J11) -> -450.7 | K11: =SUM(interim_saln_qtr!$J11:K11) -> -946.2 | L11: =SUM(interim_saln_qtr!$J11:L11) -> -1441.6 | M11: =SUM(interim_saln_qtr!$J11:M11) -> -2035.8 | N11: =SUM(interim_saln_qtr!$N11:N11) -> -573 | O11: =SUM(interim_saln_qtr!$N11:O11) -> -1121.8 | P11: =SUM(interim_saln_qtr!$N11:P11) -> -1634 | Q11: =SUM(interim_saln_qtr!$N11:Q11) -> -2081.8 | R11: =SUM(interim_saln_qtr!$R11:R11) -> -548 | S11: =SUM(interim_saln_qtr!$R11:S11) -> -1048 | T11: =SUM(interim_saln_qtr!$R11:T11) -> -1568.5 | U11: =SUM(interim_saln_qtr!$R11:U11) -> -2095.2 | V11: =SUM(interim_saln_qtr!$V11:V11) -> -619 | W11: =SUM(interim_saln_qtr!$V11:W11) -> -1209.9 | X11: =SUM(interim_saln_qtr!$V11:X11) -> -1864.4 | Y11: =SUM(interim_saln_qtr!$V11:Y11) -> -2472.2 | AQ11: -2081.8 | AR11: -2513.71287 | AS11: -1749.1 | AT11: -1889.2 | AU11: -2419.2 | AV11: -2519.8 | BC11: 17.99350897
A12: SG&A and other costs | B12: =-84.6-481.1 -> -565.7 | C12: =-106.3-492.2 -> -598.5 | D12: =-178.7-525.6 -> -704.3 | E12: =-268.2-550.2 -> -818.4 | F12: =SUM(interim_saln_qtr!$F12:F12) -> -689.6 | G12: =SUM(interim_saln_qtr!$F12:G12) -> -1461 | H12: =SUM(interim_saln_qtr!$F12:H12) -> -2404.2 | I12: =SUM(interim_saln_qtr!$F12:I12) -> -3318.4 | J12: =SUM(interim_saln_qtr!$J12:J12) -> -942.1 | K12: =SUM(interim_saln_qtr!$J12:K12) -> -1926.5 | L12: =SUM(interim_saln_qtr!$J12:L12) -> -2883.5 | M12: =SUM(interim_saln_qtr!$J12:M12) -> -3940.7 | N12: =SUM(interim_saln_qtr!$N12:N12) -> -861.7 | O12: =SUM(interim_saln_qtr!$N12:O12) -> -1907.5 | P12: =SUM(interim_saln_qtr!$N12:P12) -> -2948.9 | Q12: =SUM(interim_saln_qtr!$N12:Q12) -> -3772.5 | R12: =SUM(interim_saln_qtr!$R12:R12) -> -862.1 | S12: =SUM(interim_saln_qtr!$R12:S12) -> -1739.7 | T12: =SUM(interim_saln_qtr!$R12:T12) -> -2679.9 | U12: =SUM(interim_saln_qtr!$R12:U12) -> -3648.8 | V12: =SUM(interim_saln_qtr!$V12:V12) -> -966.9 | W12: =SUM(interim_saln_qtr!$V12:W12) -> -1998.5 | X12: =SUM(interim_saln_qtr!$V12:X12) -> -3195.7 | Y12: =SUM(interim_saln_qtr!$V12:Y12) -> -4374 | AQ12: -3757.6 | AR12: -4294.457311 | AS12: =-1208.6-2226.3 -> -3434.9 | AT12: =-888.4-2270.2 -> -3158.6 | AU12: =-1540.9-3039.4 -> -4580.3 | AV12: =-1158.8-3136.5 -> -4295.3 | BC12: 19.87502741
A13: Operating profits | B13: =B5+B9 -> 518.9 | C13: 476.6 | D13: 490.8 | E13: 419.6 | F13: 585.7 | G13: 1089.3 | H13: 1707 | I13: 2346.5 | J13: 688.1 | K13: 1084.8 | L13: 1508.8 | M13: 1910.7 | N13: 620.2 | O13: 1266.4 | P13: 1968.3 | Q13: 2668 | R13: 557 | S13: 1152.8 | T13: =T5+T9 -> 1967.9 | U13: 2784.3 | V13: 741.4 | W13: 1225.4 | X13: 1906.1 | Y13: 2305.9 | AQ13: =AQ5+AQ9 -> 2693.4 | AR13: 2812.759216 | AS13: 752.8 | AT13: 1874.4 | AU13: 1003.5 | AV13: 2803.2 | BC13: -17.18205653
A14: Other income | B14: 87.3 | C14: 75.8 | D14: 148.9 | E14: 90.7 | F14: =SUM(interim_saln_qtr!$F14:F14) -> 73.2 | G14: =SUM(interim_saln_qtr!$F14:G14) -> 140.2 | H14: =SUM(interim_saln_qtr!$F14:H14) -> 202 | I14: =SUM(interim_saln_qtr!$F14:I14) -> 286.8 | J14: =SUM(interim_saln_qtr!$J14:J14) -> 56.7 | K14: =SUM(interim_saln_qtr!$J14:K14) -> 108.3 | L14: =SUM(interim_saln_qtr!$J14:L14) -> 186.9 | M14: =SUM(interim_saln_qtr!$J14:M14) -> 287.8 | N14: =SUM(interim_saln_qtr!$N14:N14) -> 135.7 | O14: =SUM(interim_saln_qtr!$N14:O14) -> 174.7 | P14: =SUM(interim_saln_qtr!$N14:P14) -> 261.4 | Q14: =SUM(interim_saln_qtr!$N14:Q14) -> 370.7 | R14: =SUM(interim_saln_qtr!$R14:R14) -> 78.5 | S14: =SUM(interim_saln_qtr!$R14:S14) -> 273.5 | T14: =SUM(interim_saln_qtr!$R14:T14) -> 348.5 | U14: =SUM(interim_saln_qtr!$R14:U14) -> 463.6 | V14: =SUM(interim_saln_qtr!$V14:V14) -> 189.4 | W14: =SUM(interim_saln_qtr!$V14:W14) -> 389.4 | X14: =SUM(interim_saln_qtr!$V14:X14) -> 573 | Y14: =SUM(interim_saln_qtr!$V14:Y14) -> 722.9 | AQ14: 360.2 | AR14: 160.3870456 | AS14: 151.8 | AT14: 114.2 | AU14: 205.8 | AV14: 159.4 | BC14: 55.93183779
A15: Interest expense | B15: -33.8 | C15: -37.9 | D15: -36.2 | E15: -36 | F15: =SUM(interim_saln_qtr!$F15:F15) -> -41.8 | G15: =SUM(interim_saln_qtr!$F15:G15) -> -86.6 | H15: =SUM(interim_saln_qtr!$F15:H15) -> -131.1 | I15: =SUM(interim_saln_qtr!$F15:I15) -> -174.3 | J15: =SUM(interim_saln_qtr!$J15:J15) -> -50.9 | K15: =SUM(interim_saln_qtr!$J15:K15) -> -124.5 | L15: =SUM(interim_saln_qtr!$J15:L15) -> -225.9 | M15: =SUM(interim_saln_qtr!$J15:M15) -> -316.9 | N15: =SUM(interim_saln_qtr!$N15:N15) -> -77.6 | O15: =SUM(interim_saln_qtr!$N15:O15) -> -152.4 | P15: =SUM(interim_saln_qtr!$N15:P15) -> -211.9 | Q15: =SUM(interim_saln_qtr!$N15:Q15) -> -257.2 | R15: =SUM(interim_saln_qtr!$R15:R15) -> -38 | S15: =SUM(interim_saln_qtr!$R15:S15) -> -83 | T15: =SUM(interim_saln_qtr!$R15:T15) -> -123.4 | U15: =SUM(interim_saln_qtr!$R15:U15) -> -194 | V15: =SUM(interim_saln_qtr!$V15:V15) -> -44.3 | W15: =SUM(interim_saln_qtr!$V15:W15) -> -101 | X15: =SUM(interim_saln_qtr!$V15:X15) -> -164.3 | Y15: =SUM(interim_saln_qtr!$V15:Y15) -> -245.8 | AQ15: -257.3 | AR15: -295.12 | AS15: -231.6 | AT15: -224.2 | AU15: -322.8 | AV15: -295.1 | BC15: 26.70103093
A16: D&A expense | B16: -96.2 | C16: -95.9 | D16: -97.6 | E16: -107.4 | F16: =SUM(interim_saln_qtr!$F16:F16) -> -106.4 | G16: =SUM(interim_saln_qtr!$F16:G16) -> -216 | H16: =SUM(interim_saln_qtr!$F16:H16) -> -329.6 | I16: =SUM(interim_saln_qtr!$F16:I16) -> -446.7 | J16: =SUM(interim_saln_qtr!$J16:J16) -> -128.6 | K16: =SUM(interim_saln_qtr!$J16:K16) -> -256.8 | L16: =SUM(interim_saln_qtr!$J16:L16) -> -394.8 | M16: =SUM(interim_saln_qtr!$J16:M16) -> -550.1 | N16: =SUM(interim_saln_qtr!$N16:N16) -> -163.6 | O16: =SUM(interim_saln_qtr!$N16:O16) -> -338.5 | P16: =SUM(interim_saln_qtr!$N16:P16) -> -499 | Q16: =SUM(interim_saln_qtr!$N16:Q16) -> -637.9 | R16: =SUM(interim_saln_qtr!$R16:R16) -> -140.5 | S16: =SUM(interim_saln_qtr!$R16:S16) -> -280.3 | T16: =SUM(interim_saln_qtr!$R16:T16) -> -421.9 | U16: =SUM(interim_saln_qtr!$R16:U16) -> -562.9 | V16: =SUM(interim_saln_qtr!$V16:V16) -> -139 | W16: =SUM(interim_saln_qtr!$V16:W16) -> -297.3 | X16: =SUM(interim_saln_qtr!$V16:X16) -> -438.6 | Y16: =SUM(interim_saln_qtr!$V16:Y16) -> -602.9 | AQ16: -637.9 | AR16: -706.8195262 | AS16: -521.3 | AT16: -526.2 | AU16: -688.1 | AV16: -706.8 | BC16: 7.106057914
A17: Pretax profits | B17: =B13+B14+B15+B16 -> 476.2 | C17: 418.6 | D17: 505.9 | E17: 366.9 | F17: 510.7 | G17: 926.9 | H17: 1448.3 | I17: 2012.3 | J17: 565.3 | K17: 811.8 | L17: 1075 | M17: 1331.5 | N17: 514.7 | O17: 950.2 | P17: 1518.8 | Q17: 2143.6 | R17: 457 | S17: 1063 | T17: =T13+T14+T15+T16 -> 1771.1 | U17: 2491 | V17: 747.5 | W17: 1216.5 | X17: 1876.2 | Y17: 2180.1 | AQ17: =AQ13+AQ14+AQ15+AQ16 -> 2158.4 | AR17: 1971.206736 | AS17: 151.7 | AT17: 1238.2 | AU17: 198.4 | AV17: 1960.7 | BC17: -12.48093135
A18: Extraordinaries | B18: -2.6 | C18: 0 | D18: 0 | E18: 0 | F18: =SUM(interim_saln_qtr!$F18:F18) -> 0 | G18: =SUM(interim_saln_qtr!$F18:G18) -> 0 | H18: =SUM(interim_saln_qtr!$F18:H18) -> 0 | I18: =SUM(interim_saln_qtr!$F18:I18) -> 0 | J18: =SUM(interim_saln_qtr!$J18:J18) -> 0 | K18: =SUM(interim_saln_qtr!$J18:K18) -> 0 | L18: =SUM(interim_saln_qtr!$J18:L18) -> -127.9 | M18: =SUM(interim_saln_qtr!$J18:M18) -> -188.2 | N18: =SUM(interim_saln_qtr!$N18:N18) -> -45 | O18: =SUM(interim_saln_qtr!$N18:O18) -> -85 | P18: =SUM(interim_saln_qtr!$N18:P18) -> -343.7 | Q18: =SUM(interim_saln_qtr!$N18:Q18) -> -343.7 | R18: =SUM(interim_saln_qtr!$R18:R18) -> 0 | S18: =SUM(interim_saln_qtr!$R18:S18) -> 0 | T18: =SUM(interim_saln_qtr!$R18:T18) -> 0 | U18: =SUM(interim_saln_qtr!$R18:U18) -> 0 | V18: =SUM(interim_saln_qtr!$V18:V18) -> 0 | W18: =SUM(interim_saln_qtr!$V18:W18) -> 0 | X18: =SUM(interim_saln_qtr!$V18:X18) -> 0 | Y18: =SUM(interim_saln_qtr!$V18:Y18) -> 0 | AQ18: -358.7 | AR18: -75.8 | AS18: -127.9 | AT18: -54.3 | AU18: -189.5 | AV18: =-69.3-6.5 -> -75.8
A19: Tax provision | B19: =-159.8-7.5 -> -167.3 | C19: =-142.1-7.5 -> -149.6 | D19: =-161.2-9 -> -170.2 | E19: =-114.8-12.5 -> -127.3 | F19: =SUM(interim_saln_qtr!$F19:F19) -> -169.1 | G19: =SUM(interim_saln_qtr!$F19:G19) -> -265.9 | H19: =SUM(interim_saln_qtr!$F19:H19) -> -418.7 | I19: =SUM(interim_saln_qtr!$F19:I19) -> -566.8 | J19: =SUM(interim_saln_qtr!$J19:J19) -> -188.1 | K19: =SUM(interim_saln_qtr!$J19:K19) -> -273.8 | L19: =SUM(interim_saln_qtr!$J19:L19) -> -330.9 | M19: =SUM(interim_saln_qtr!$J19:M19) -> -292.8 | N19: =SUM(interim_saln_qtr!$N19:N19) -> -145.7 | O19: =SUM(interim_saln_qtr!$N19:O19) -> -227.1 | P19: =SUM(interim_saln_qtr!$N19:P19) -> -352.8 | Q19: =SUM(interim_saln_qtr!$N19:Q19) -> -551.9 | R19: =SUM(interim_saln_qtr!$R19:R19) -> -140.3 | S19: =SUM(interim_saln_qtr!$R19:S19) -> -293.8 | T19: =SUM(interim_saln_qtr!$R19:T19) -> -139.8 | U19: =SUM(interim_saln_qtr!$R19:U19) -> -714.9 | V19: =SUM(interim_saln_qtr!$V19:V19) -> -219.4 | W19: =SUM(interim_saln_qtr!$V19:W19) -> -332.4 | X19: =SUM(interim_saln_qtr!$V19:X19) -> -494.7 | Y19: =SUM(interim_saln_qtr!$V19:Y19) -> -582.1 | AQ19: -515.6 | AR19: -540.7879278 | AS19: =-157-35.4 -> -192.4 | AT19: -314.1 | AU19: =-85.5-39.4 -> -124.9 | AV19: -536.5 | BC19: -18.57602462
A20: Minority interest | B20: 0 | C20: 0 | D20: 0 | E20: 0 | F20: =SUM(interim_saln_qtr!$F20:F20) -> 0 | G20: =SUM(interim_saln_qtr!$F20:G20) -> 0 | H20: =SUM(interim_saln_qtr!$F20:H20) -> 0 | I20: =SUM(interim_saln_qtr!$F20:I20) -> 0 | J20: =SUM(interim_saln_qtr!$J20:J20) -> 0 | K20: =SUM(interim_saln_qtr!$J20:K20) -> 0 | L20: =SUM(interim_saln_qtr!$J20:L20) -> 0 | M20: =SUM(interim_saln_qtr!$J20:M20) -> 0 | N20: =SUM(interim_saln_qtr!$N20:N20) -> 0 | O20: =SUM(interim_saln_qtr!$N20:O20) -> 0 | P20: =SUM(interim_saln_qtr!$N20:P20) -> 0 | Q20: =SUM(interim_saln_qtr!$N20:Q20) -> 0 | R20: =SUM(interim_saln_qtr!$R20:R20) -> 0 | S20: =SUM(interim_saln_qtr!$R20:S20) -> 0 | T20: =SUM(interim_saln_qtr!$R20:T20) -> 0 | U20: =SUM(interim_saln_qtr!$R20:U20) -> 0 | V20: =SUM(interim_saln_qtr!$V20:V20) -> 0 | W20: =SUM(interim_saln_qtr!$V20:W20) -> 0 | X20: =SUM(interim_saln_qtr!$V20:X20) -> 0 | Y20: =SUM(interim_saln_qtr!$V20:Y20) -> 0 | AQ20: =0 -> 0 | AR20: 10.9 | AS20: =103.2-1.5 -> 101.7 | AT20: 16.4 | AU20: =1.5+126.5 -> 128 | AV20: 10.9
A21: Net income | B21: =B17+B18+B19+B20 -> 306.3 | C21: 269 | D21: 335.7 | E21: 239.6 | F21: 341.6 | G21: 661 | H21: 1029.6 | I21: 1445.5 | J21: 377.2 | K21: 538 | L21: 616.2 | M21: 850.5 | N21: 324 | O21: 638.1 | P21: 822.3 | Q21: 1248 | R21: 316.7 | S21: 769.2 | T21: =T17+T18+T19+T20 -> 1631.3 | U21: 1776.1 | V21: 528.1 | W21: 884.1 | X21: 1381.5 | Y21: 1598 | AQ21: =AQ17+AQ18+AQ19+AQ20 -> 1284.1 | AR21: 1365.518808 | AS21: -66.9 | AT21: 886.2 | AU21: 12 | AV21: 1359.3 | BC21: -10.02758854
A22: Adj. net income | B22: =B17+B19+B20 -> 308.9 | C22: 269 | D22: 335.7 | E22: 239.6 | F22: 341.6 | G22: 661 | H22: 1029.6 | I22: 1445.5 | J22: 377.2 | K22: 538 | L22: 744.1 | M22: 1038.7 | N22: 369 | O22: 723.1 | P22: 1166 | Q22: 1591.7 | R22: 316.7 | S22: 769.2 | T22: =T17+T19+T20 -> 1631.3 | U22: 1776.1 | V22: 528.1 | W22: 884.1 | X22: 1381.5 | Y22: 1598 | AQ22: =AQ17+AQ19+AQ20 -> 1642.8 | AR22: 1441.318808 | AS22: 61 | AT22: 940.5 | AU22: 201.5 | AV22: 1435.1 | BC22: -10.02758854
A24: Source: Company data, Kotak Institutional Equities
A26: Important data
A27: Ratios
A28: OPM (%) | B28: =B13/B5*100 -> 21.699494 | C28: 19.06933942 | D28: 17.8336543 | E28: 15.257627 | F28: 21.19490483 | G28: 19.48274937 | H28: 19.37438994 | I28: 19.58288824 | J28: 21.02866573 | K28: 16.40678171 | L28: 15.1638191 | M28: 14.37892265 | N28: 18.90565463 | O28: 18.75870241 | P28: 19.72620038 | Q28: 21.14004089 | R28: 20.34034473 | S28: 20.68025258 | T28: =T13/T5*100 -> 22.32470022 | U28: 23.04388128 | V28: 22.56238588 | W28: 19.15286027 | X28: 19.07435205 | Y28: 17.51511561 | AQ28: =AQ13/AQ5*100 -> 21.32355852 | AR28: 19.5803581 | AS28: 7.404420226 | AT28: 17.80445871 | AU28: 7.383725636 | AV28: 19.49563935
A29: Tax rate (%) | B29: =-B19/(B17+B18)*100 -> 35.32516892 | C29: 35.73817487 | D29: 33.64301245 | E29: 34.69610248 | F29: 33.1114157 | G29: 28.68702125 | H29: 28.90975627 | I29: 28.16677434 | J29: =-J19/(J17)*100 -> 33.27436759 | K29: =-K19/(K17)*100 -> 33.72751909 | L29: =-L19/(L17+L18)*100 -> 34.9382325 | M29: 25.6100761 | N29: 31.01979987 | O29: 26.2482663 | P29: 30.02297677 | Q29: 30.6628146 | R29: 30.70021882 | S29: 27.63875823 | T29: =-T19/(T17+T18)*100 -> 7.893399582 | U29: 28.69931754 | V29: 29.35117057 | W29: 27.324291 | X29: 26.36712504 | Y29: 26.70061006 | AQ29: =-AQ19/(AQ17+AQ18)*100 -> 28.64921931 | AR29: 28.53149763 | AS29: 808.4033613 | AT29: 26.53095701 | AU29: 1403.370787 | AV29: 28.46304844
A30: Print
A31: Total revenues | N31: =SUM(interim_saln_qtr!$N31:N31) -> 3262.3 | O31: =SUM(interim_saln_qtr!$N31:O31) -> 6641.8 | P31: =SUM(interim_saln_qtr!$N31:P31) -> 9830.1 | Q31: =SUM(interim_saln_qtr!$N31:Q31) -> 12393.5 | R31: =SUM(interim_saln_qtr!$R31:R31) -> 2597 | S31: =SUM(interim_saln_qtr!$R31:S31) -> 5281 | T31: =SUM(interim_saln_qtr!$R31:T31) -> 8317.2 | U31: =SUM(interim_saln_qtr!$R31:U31) -> 11292.6 | V31: =SUM(interim_saln_qtr!$V31:V31) -> 3060.3 | W31: =SUM(interim_saln_qtr!$V31:W31) -> 5996.1 | X31: =SUM(interim_saln_qtr!$V31:X31) -> 9378.5 | Y31: =SUM(interim_saln_qtr!$V31:Y31) -> 12309 | AS31: =10015.8-75.6 -> 9940.2 | AT31: =10242.6-30.2 -> 10212.4 | AU31: 13381.7 | AV31: 13967.2
A32: Operating profit | N32: =SUM(interim_saln_qtr!$N32:N32) -> 570.7 | O32: =SUM(interim_saln_qtr!$N32:O32) -> 1095.5 | P32: =SUM(interim_saln_qtr!$N32:P32) -> 1712.5 | Q32: =SUM(interim_saln_qtr!$N32:Q32) -> 2358.3 | R32: =SUM(interim_saln_qtr!$R32:R32) -> 519 | S32: =SUM(interim_saln_qtr!$R32:S32) -> 1015 | T32: =SUM(interim_saln_qtr!$R32:T32) -> 1697.6 | U32: =SUM(interim_saln_qtr!$R32:U32) -> 2358.6 | V32: =SUM(interim_saln_qtr!$V32:V32) -> 655.1 | W32: =SUM(interim_saln_qtr!$V32:W32) -> 1130.1 | X32: =SUM(interim_saln_qtr!$V32:X32) -> 1777.8 | Y32: =SUM(interim_saln_qtr!$V32:Y32) -> 2075.6 | AS32: 1001.4 | AT32: 1669 | AU32: 1304.6 | AV32: 2620.5
A33: Radio
A34: Total revenues | N34: =SUM(interim_saln_qtr!$N34:N34) -> 88.3 | O34: =SUM(interim_saln_qtr!$N34:O34) -> 185.3 | P34: =SUM(interim_saln_qtr!$N34:P34) -> 286.8 | Q34: =SUM(interim_saln_qtr!$N34:Q34) -> 416.7 | R34: =SUM(interim_saln_qtr!$R34:R34) -> 122.7 | S34: =SUM(interim_saln_qtr!$R34:S34) -> 264.1 | T34: =SUM(interim_saln_qtr!$R34:T34) -> 443.7 | U34: =SUM(interim_saln_qtr!$R34:U34) -> 695.9 | V34: =SUM(interim_saln_qtr!$V34:V34) -> 212.6 | W34: =SUM(interim_saln_qtr!$V34:W34) -> 370 | X34: =SUM(interim_saln_qtr!$V34:X34) -> 542.7 | Y34: =SUM(interim_saln_qtr!$V34:Y34) -> 739.2 | AS34: 223.4 | AT34: 287.7 | AU34: 283.3 | AV34: 430.5
A35: Operating profit | N35: =SUM(interim_saln_qtr!$N35:N35) -> -26.8 | O35: =SUM(interim_saln_qtr!$N35:O35) -> -50.5 | P35: =SUM(interim_saln_qtr!$N35:P35) -> -63.4 | Q35: =SUM(interim_saln_qtr!$N35:Q35) -> -58.9 | R35: =SUM(interim_saln_qtr!$R35:R35) -> -11.5 | S35: =SUM(interim_saln_qtr!$R35:S35) -> -5.7 | T35: =SUM(interim_saln_qtr!$R35:T35) -> 24.6 | U35: =SUM(interim_saln_qtr!$R35:U35) -> 78.2 | V35: =SUM(interim_saln_qtr!$V35:V35) -> 25.1 | W35: =SUM(interim_saln_qtr!$V35:W35) -> -19.8 | X35: =SUM(interim_saln_qtr!$V35:X35) -> -29.2 | Y35: =SUM(interim_saln_qtr!$V35:Y35) -> -42.5 | AS35: -395.1 | AT35: -62.5 | AU35: -414.8 | AV35: -58.6

Sheet interim_cons_qtr
A2: HT Media consolidated quarterly interim results (Rs mn)
B4: 1QFY07 | C4: 2QFY07 | D4: 3QFY07 | E4: 4QFY07 | F4: 1QFY08 | G4: 2QFY08 | H4: 3QFY08 | I4: 4QFY08 | J4: 1QFY09 | K4: 2QFY09 | L4: 3QFY09 | M4: 4QFY09 | N4: 1QFY10 | O4: 2QFY10 | P4: 3QFY10 | Q4: 4QFY10 | R4: 1QFY11 | S4: 2QFY11 | T4: 3QFY11 | U4: 4QFY11 | V4: 1QFY12 | W4: 2QFY12 | X4: 3QFY12 | Y4: 4QFY12 | AN4: 1QFY10E | AO4: 2QFY10E | AP4: 3QFY10E | AQ4: 4QFY10E | AR4: 1QFY11E | AS4: 2QFY11E | AT4: 3QFY11E | AU4: 4QFY11E | AV4: 1QFY12E | AW4: 2QFY12E | AX4: 3QFY12E | AY4: 4QFY12E | BA4: yoy | BB4: qoq
A5: Total revenues | L5: =L6+L7+L8 -> 3435.3 | M5: 3380.9 | N5: 3295.5 | O5: 3496.3 | P5: 3594.4 | Q5: 3743 | R5: 4028.4 | S5: 4310 | T5: 4621.5 | U5: 4672.7 | V5: 4944.2 | W5: 4889 | X5: 5238.1 | Y5: 4941 | AN5: =AN6+AN7+AN8 -> 3425 | AO5: =AO6+AO7+AO8 -> 3375 | AP5: =AP6+AP7+AP8 -> 3600 | AQ5: 3753.327203 | AR5: =AR6+AR7+AR8 -> 4000 | AS5: 4050 | AT5: 0 | AU5: 4675 | AV5: 4800 | AW5: 4800 | AX5: 5225 | AY5: 5150 | BA5: =Y5/U5*100 -> 105.7418623 | BB5: =Y5/X5*100 -> 94.32809607
A6: Advertising revenue | L6: 2780 | M6: 2797 | N6: 2694 | O6: 2821 | P6: 2908 | Q6: 3017 | R6: 3286 | S6: 3294 | T6: 3686 | U6: 3620 | V6: 3844 | W6: 3705 | X6: 4073 | Y6: 3736 | AN6: 2850 | AO6: 2800 | AP6: 2900 | AR6: 3200 | AS6: 3300 | AU6: 3600 | AV6: 3800 | AW6: 3600 | AX6: 3950 | AY6: 4000 | BA6: =Y6/U6*100 -> 103.2044199 | BB6: =Y6/X6*100 -> 91.72600049
A7: Circulation revenue | L7: 390 | M7: 410 | N7: 444 | O7: 479 | P7: 481 | Q7: 429 | R7: 468 | S7: 418 | T7: 471 | U7: 469 | V7: 485 | W7: 507 | X7: 503 | Y7: 483 | AN7: 400 | AO7: 450 | AP7: 500 | AR7: 425 | AS7: 450 | AU7: 500 | AV7: 475 | AW7: 500 | AX7: 525 | AY7: 500 | BA7: 102.9850746 | BB7: 96.02385686
A8: Other operating revenue | L8: =3435.3-L6-L7 -> 265.3 | M8: =3380.9-M6-M7 -> 173.9 | N8: =3295.5-N6-N7 -> 157.5 | O8: =3496.3-O6-O7 -> 196.3 | P8: =3594.4-P6-P7 -> 205.4 | Q8: =3743-Q6-Q7 -> 297 | R8: =4028.4-R6-R7 -> 274.4 | S8: =4310-S6-S7 -> 598 | T8: =4621.5-T6-T7 -> 464.5 | U8: =4672.7-U6-U7 -> 583.7 | V8: =4944.2-V6-V7 -> 615.2 | W8: =4889-W6-W7 -> 677 | X8: =5238.1-X6-X7 -> 662.1 | Y8: =4941-Y6-Y7 -> 722 | AN8: 175 | AO8: 125 | AP8: 200 | AQ8: =AQ5 -> 3753.327203 | AR8: 375 | AS8: 300 | AU8: 575 | AV8: 525 | AW8: 700 | AX8: 750 | AY8: 650 | BA8: 123.6936783 | BB8: 109.0469718 | BC8: Check on other operating income; Burda | BH8: Rs29cr of revenue and Rs3cr of EBITDA loss
A9: Total expenditure | L9: =L10+L11+L12 -> -3238.8 | M9: -3173 | N9: -2788 | O9: -2988.5 | P9: -2916.9 | Q9: -2937.1 | R9: -3242.9 | S9: -3664.8 | T9: -3753.4 | U9: -3810.4 | V9: -4066.5 | W9: -4218 | X9: -4466.5 | Y9: -4459.1 | AN9: =AN10+AN11+AN12 -> -2825 | AO9: -2700 | AP9: -2700 | AQ9: -2998.354592 | AR9: -3100 | AS9: -3300 | AT9: 0 | AU9: -3850 | AV9: -3950 | AW9: -4050 | AX9: -4400 | AY9: -4450 | BA9: 117.0244594 | BB9: 99.83432218 | BH9: Breakeven in FY2011E - some time to stablize
A10: Raw material costs | L10: =-1493.9+1.1 -> -1492.8 | M10: =-1355.3-2.3 -> -1357.6 | N10: =-1240.2+3.3 -> -1236.9 | O10: =-1231.6-1.9 -> -1233.5 | P10: =-1135.9+0.9 -> -1135 | Q10: =-1152.9-1.9 -> -1154.8 | R10: =-1344.4+41.5 -> -1302.9 | S10: =-1624-25.1 -> -1649.1 | T10: =-1658.5+10.4 -> -1648.1 | U10: =-1637.4+3.6 -> -1633.8 | V10: =-1737.6+13.3 -> -1724.3 | W10: =-1842-19 -> -1861 | X10: =-1859.6+2.9 -> -1856.7 | Y10: =-1856.5+29.1 -> -1827.4 | AN10: -1250 | AO10: -1175 | AP10: -1100 | AQ10: -1065.24295 | AR10: -1250 | AS10: -1400 | AU10: -1750 | AV10: -1700 | AW10: -1750 | AX10: -1950 | AY10: -1900 | BA10: 111.8496756 | BB10: 98.42193138 | BC10: Higher RM costs despite inventories having risen | BH10: Rs22cr of raw material cost increase in Burda
A11: Employee expenses | L11: -588.1 | M11: -670.1 | N11: -646.1 | O11: -622.3 | P11: -620.9 | Q11: -630.6 | R11: -749.2 | S11: -734.4 | T11: -759.5 | U11: -765.9 | V11: -880 | W11: -849 | X11: -935.6 | Y11: -897.1 | AN11: -550 | AO11: -550 | AP11: -550 | AQ11: -626.327126 | AR11: -700 | AS11: -750 | AU11: -800 | AV11: -850 | AW11: -900 | AX11: -900 | AY11: -950 | BA11: 117.1301737 | BB11: 95.88499359 | BC11: Was there any one-off in 1QFY11 employee costs?
A12: SG&A and other costs | L12: =-390.5-767.4 -> -1157.9 | M12: =-332.3-813 -> -1145.3 | N12: =-195.2-709.8 -> -905 | O12: =-342.6-790.1 -> -1132.7 | P12: =-350.6-810.4 -> -1161 | Q12: =-270.4-881.3 -> -1151.7 | R12: =-285.4-905.4 -> -1190.8 | S12: =-322.5-958.8 -> -1281.3 | T12: -1345.8 | U12: -1410.7 | V12: =-330.6-1131.6 -> -1462.2 | W12: =-242-1266 -> -1508 | X12: -1674.2 | Y12: -1734.6 | AN12: =-300-725 -> -1025 | AO12: -975 | AP12: -1050 | AQ12: -1306.784516 | AR12: -1150 | AS12: -1150 | AU12: -1300 | AV12: -1400 | AW12: -1400 | AX12: -1550 | AY12: -1600 | BA12: 122.9602325 | BB12: 103.6076932
A13: EBITDA | L13: =L5+L9 -> 196.5 | M13: 207.9 | N13: 507.5 | O13: 507.8 | P13: 677.5 | Q13: 805.9 | R13: 785.5 | S13: 645.2 | T13: 868.1 | U13: 862.3 | V13: 877.7 | W13: 671 | X13: 771.6 | Y13: 481.9 | AN13: =AN5+AN9 -> 600 | AO13: 675 | AP13: 900 | AQ13: 754.9726107 | AR13: 900 | AS13: 750 | AT13: 0 | AU13: 825 | AV13: 850 | AW13: 750 | AX13: 825 | AY13: 700 | BA13: 55.88542271 | BB13: 62.45463971
A14: Other income | L14: =49.8+22.1 -> 71.9 | M14: =54+42.8 -> 96.8 | N14: =65.7+70.6 -> 136.3 | O14: =29.4+3.9 -> 33.3 | P14: =19.1+67 -> 86.1 | Q14: =121.5+31.6 -> 153.1 | R14: =58+13.7 -> 71.7 | S14: =61.1+145.4 -> 206.5 | T14: =63.9+15.2 -> 79.1 | U14: 138.1 | V14: =25.3+145.7 -> 171 | W14: =204+42 -> 246 | X14: 195.7 | Y14: 178.5 | AN14: 75 | AO14: 50 | AP14: 25 | AQ14: 96.67718355 | AR14: 50 | AS14: 150 | AU14: 125 | AV14: 150 | AW14: 200 | AX14: 225 | AY14: 225 | BA14: 129.2541636 | BB14: 91.2110373 | BC14: Any large ad-for-equity gains in this quarter
A15: Interest expense | L15: -103.6 | M15: -91.2 | N15: -78.7 | O15: -73.9 | P15: -71.6 | Q15: -70.9 | R15: -64 | S15: -54.7 | T15: -46.3 | U15: -78.6 | V15: -52.8 | W15: -75 | X15: -106.1 | Y15: -103.6 | AN15: -100 | AO15: -75 | AP15: -50 | AQ15: -64.358 | AR15: -75 | AS15: -50 | AU15: -25 | AV15: -75 | AW15: -75 | AX15: -75 | AY15: -100 | BA15: 131.8066158 | BB15: 97.64373233
A16: D&A expense | L16: -180.8 | M16: -166.8 | N16: -174.8 | O16: -186.6 | P16: -164.8 | Q16: -180.7 | R16: -194.2 | S16: -211 | T16: -217.2 | U16: -219.6 | V16: -213.6 | W16: -233 | X16: -219.7 | Y16: -249.3 | AN16: -150 | AO16: -175 | AP16: -175 | AQ16: -179.1195262 | AR16: -175 | AS16: -200 | AU16: -225 | AV16: -225 | AW16: -225 | AX16: -250 | AY16: -225 | BA16: 113.5245902 | BB16: 113.4729176
A17: PBT | L17: =L13+L14+L15+L16 -> -16 | M17: 46.7 | N17: 390.3 | O17: 280.6 | P17: 527.2 | Q17: 707.4 | R17: 599 | S17: 586 | T17: =T13+T14+T15+T16 -> 683.7 | U17: 702.2 | V17: 782.3 | W17: 609 | X17: 641.5 | Y17: 307.5 | AN17: =AN13+AN14+AN15+AN16 -> 425 | AO17: 475 | AP17: 700 | AQ17: 608.1722681 | AR17: 700 | AS17: 650 | AT17: 0 | AU17: 700 | AV17: 700 | AW17: 650 | AX17: 725 | AY17: 600 | BA17: 43.79094275 | BB17: 47.93452845 | BC17: Largely would be driven; other are not meaningful
A18: Extraordinaries | L18: -127.9 | M18: -61.6 | N18: 0 | O18: 0 | P18: -14.3 | Q18: 0 | R18: 0 | S18: 0 | T18: 0 | U18: 0 | V18: 0 | W18: 0 | X18: 0 | Y18: 0 | AN18: 0 | AO18: -50 | AP18: -50 | AQ18: -45.7 | AR18: -25 | AS18: 0 | AU18: 0 | AV18: 0 | AW18: 0 | AX18: 0 | AY18: 0 | BC18: Mint and Mumbai are growing at higher numbers
A19: Tax provision | L19: -24.4 | M19: =-4+71.5 -> 67.5 | N19: =-99.8-10.8 -> -110.6 | O19: =-54.5+10.6 -> -43.9 | P19: =-159.9+0.2 -> -159.7 | Q19: -222.3 | R19: -197.5 | S19: -165.5 | T19: -183.5 | U19: -166.4 | V19: -242.8 | W19: -140 | X19: -160.9 | Y19: -81.3 | AN19: -125 | AO19: -125 | AP19: -200 | AQ19: =-240.355511268832+40 -> -200.3555113 | AR19: -225 | AS19: -200 | AU19: -200 | AV19: -200 | AW19: -225 | AX19: -225 | AY19: -175 | BA19: 48.85817308 | BB19: 50.52827843 | BC19: Largely yields, volumes were flat-to-negative
A20: Minority interest | L20: 40 | M20: 23.3 | N20: 7.3 | O20: 4.4 | P20: 4.7 | Q20: -5.5 | R20: 12.2 | S20: -32.5 | T20: -22.3 | U20: -6.4 | V20: -24.6 | W20: -31 | X20: 1 | Y20: -6.3 | AN20: 0 | AO20: 0 | AP20: 0 | AQ20: -16.4 | AR20: 0 | AS20: -50 | AU20: -25 | AV20: -25 | AW20: -25 | AX20: -25 | AY20: 0 | BA20: 98.4375 | BB20: -630
A21: Reported PAT | L21: =L17+L18+L19+L20 -> -128.3 | M21: 75.9 | N21: 287 | O21: 241.1 | P21: 357.9 | Q21: 479.6 | R21: 413.7 | S21: 388 | T21: =T17+T18+T19+T20 -> 477.9 | U21: 529.4 | V21: 514.9 | W21: 438 | X21: 481.6 | Y21: 219.9 | AN21: =AN17+AN18+AN19+AN20 -> 300 | AO21: 300 | AP21: 450 | AQ21: 345.7167568 | AR21: 450 | AS21: 400 | AT21: 0 | AU21: 475 | AV21: 475 | AW21: 400 | AX21: 475 | AY21: 425 | BA21: 41.53758972 | BB21: 45.660299
A22: Adjusted PAT | L22: =L17+L19+L20 -> -0.4 | M22: 137.5 | N22: 287 | O22: 241.1 | P22: 372.2 | Q22: 479.6 | R22: 413.7 | S22: 388 | T22: =T17+T19+T20 -> 477.9 | U22: 529.4 | V22: 514.9 | W22: 438 | X22: 481.6 | Y22: 219.9 | AN22: =AN17+AN19+AN20 -> 300 | AO22: 350 | AP22: 500 | AQ22: 391.4167568 | AR22: 475 | AS22: 400 | AT22: 0 | AU22: 475 | AV22: =AV17+AV19+AV20 -> 475 | AW22: =AW17+AW19+AW20 -> 400 | AX22: =AX17+AX19+AX20 -> 475 | AY22: =AY17+AY19+AY20 -> 425 | BA22: 41.53758972 | BB22: 45.660299
A24: Source: Company data, Kotak Institutional Equities
A26: Important data
A27: Ratios
A28: OPM (%) | B28: =B13/B5*100 ->  | L28: 5.720024452 | M28: 6.1492502 | N28: 15.39978759 | O28: 14.52392529 | P28: 18.84876475 | Q28: 21.5308576 | R28: 19.4990567 | S28: 14.96983759 | T28: 18.78394461 | U28: 18.45399876 | V28: 17.75211359 | W28: 13.72468808 | X28: 14.73053206 | Y28: 9.75308642 | AN28: 17.51824818 | AO28: 20 | AP28: 25 | AQ28: 20.11475605 | AR28: 22.5 | AS28: 18.51851852 | AU28: =AU13/AU5*100 -> 17.64705882 | AV28: 17.70833333 | AW28: 15.625 | AX28: 15.78947368 | AY28: 13.59223301
A29: Tax rate (%) | B29: =-B19/(B17+B18)*100 ->  | J29: =-J19/(J17)*100 ->  | K29: =-K19/(K17)*100 ->  | L29: =-L19/(L17+L18)*100 -> -16.9562196 | M29: 453.0201342 | N29: 28.33717653 | O29: 15.64504633 | P29: 31.13667382 | Q29: 31.42493639 | R29: 32.97161937 | S29: 28.24232082 | T29: 26.83925698 | U29: 23.69695244 | V29: 31.03668669 | W29: 22.98850575 | X29: 25.08183944 | Y29: 26.43902439 | AN29: 29.41176471 | AO29: 29.41176471 | AP29: 30.76923077 | AQ29: 35.62051369 | AR29: 33.33333333 | AS29: 30.76923077 | AU29: =-AU19/(AU17+AU18)*100 -> 28.57142857 | AV29: 28.57142857 | AW29: 34.61538462 | AX29: 31.03448276 | AY29: 29.16666667 | BC29: Consol tax rate low due to IPO expenses | BH29: Gets deducted from the share premium account
A30: Print
A31: Total revenues | L31: =3398.7-10.9 -> 3387.8 | M31: =3349.1-9 -> 3340.1 | N31: =3276.5-6.2 -> 3270.3 | O31: =3395.7-7 -> 3388.7 | P31: =3566.4-17 -> 3549.4 | Q31: =3687.7-45 -> 3642.7 | R31: =3873.8-20 -> 3853.8 | S31: 4135 | T31: 4398.6 | U31: 4335.7 | V31: =4669.8-7.6 -> 4662.2 | W31: 4678 | X31: 4936.7 | Y31: =4625.5 -> 4625.5 | AY31: 3721.4 | AZ31: =3276.5-6.2 -> 3270.3 | BA31: =Y31/U31*100 -> 106.6840418
A32: Operating profit | L32: 312.2 | M32: 210.6 | N32: 543.9 | O32: 509.2 | P32: 672.3 | Q32: 874.3 | R32: 796.5 | S32: 566 | T32: 774.7 | U32: 740.4 | V32: 894.1 | W32: 728 | X32: 755.7 | Y32: 435.4 | AY32: 847.2 | AZ32: 543.9 | BA32: =Y32/U32*100 -> 58.80605078
A33: Radio
A34: Total revenues | L34: 67.9 | M34: 76.3 | N34: 88.4 | O34: 98.4 | P34: 101.5 | Q34: 142.8 | R34: 123.1 | S34: 141 | T34: 179.6 | U34: 257.4 | V34: 214.9 | W34: 157 | X34: 173.5 | Y34: 196.2 | AV34: 220 | AY34: 135.3 | AZ34: 88.4 | BA34: 76.22377622
A35: Operating profit | L35: -174.3 | M35: -20.7 | N35: -27.3 | O35: -24.2 | P35: -12.9 | Q35: 3.7 | R35: -12.2 | S35: 3 | T35: 29.9 | U35: 53.3 | V35: 25.5 | W35: -45 | X35: -9.3 | Y35: -14.6 | AV35: 40 | AY35: 5.1 | AZ35: -27.3 | BA35: -27.39212008
A36: Internet
A37: Total revenues | L37: 1.7 | M37: 7.3 | N37: 7.4 | O37: 9.7 | P37: 10.5 | Q37: 28.5 | R37: 61.6 | S37: 64 | T37: 82.7 | U37: 107.2 | V37: 85.6 | W37: 100 | X37: 116.7 | Y37: 134 | AY37: 28.6 | AZ37: 7.4 | BA37: 125
A38: Operating profit | L38: -100.1 | M38: -91.2 | N38: -95.4 | O38: -99.7 | P38: -79.7 | Q38: -84.3 | R38: -98.4 | S38: -99 | T38: -105.5 | U38: -102.5 | V38: -119.9 | W38: -106 | X38: -93.4 | Y38: -81.2 | AY38: -84.3 | AZ38: -95.4 | BA38: 79.2195122
A39: Unallocated
A40: Total revenues | U40: 3.9 | X40: 33.4 | Y40: 11.8 | AZ40: 7.4 | BA40: 302.5641026
A41: Inter-segment | U41: -31.5 | X41: -22.2 | Y41: -25.5 | BA41: 80.95238095
A42: Operating profit | U42: -48.5 | X42: -101.1 | Y42: -107 | AZ42: -95.4 | BA42: 220.6185567
A43: Burda
A44: Total revenues | R44: 24 | S44: 295 | T44: 149 | U44: 140 | V44: 245 | W44: 315 | X44: 226 | Y44: 258 | BA44: 184.2857143
A45: EBITDA | R45: -13 | S45: -33 | T45: -49 | U45: -43 | V45: 0 | W45: 5 | X45: -17 | Y45: -36 | BA45: 83.72093023

Sheet interim_cons_cum
A2: HT Media consolidated quarterly interim results (Rs mn)
B4: 1QFY07 | C4: 2QFY07 | D4: 3QFY07 | E4: 4QFY07 | F4: 1QFY08 | G4: 1HFY08 | H4: 9MFY08 | I4: FY2008 | J4: 1QFY09 | K4: 1HFY09 | L4: 9MFY09 | M4: FY2009 | N4: 1QFY10 | O4: 1HFY10 | P4: 9MFY10 | Q4: FY2010 | R4: 1QFY11 | S4: 1HFY11 | T4: 9MFY11 | U4: FY2011 | V4: 1QFY12 | W4: 1HFY12 | X4: 9MFY12 | Y4: FY2012 | AQ4: FY2010E | AU4: FY2011E | AY4: FY2012E | BA4: yoy (%)
A5: Total revenues | B5: =B6+B7+B8 -> 2391.3 | C5: 2499.3 | D5: 2752.1 | E5: 2750.1 | F5: 0 | G5: 0 | H5: 0 | I5: 0 | J5: 0 | K5: 0 | L5: 3435.3 | M5: 6816.2 | N5: 3295.5 | O5: 6791.8 | P5: 10386.2 | Q5: 14129.2 | R5: 4028.4 | S5: 8338.4 | T5: =T6+T7+T8 -> 12959.9 | U5: 17632.6 | V5: 4944.2 | W5: 9833.2 | X5: 15071.3 | Y5: 20012.3 | AQ5: =AQ6+AQ7+AQ8 -> 14129.2 | AU5: =AU6+AU7+AU8 -> 17673.9 | AY5: =AY6+AY7+AY8 -> 20010.08639 | BA5: =(Y5/U5-1)*100 -> 13.49602441 | BB5: =AY5-Y5 -> -2.213613177
A6: Advertising revenue | B6: 1972.5 | C6: 2073.5 | D6: 2360 | E6: 2344 | F6: =SUM(interim_cons_qtr!$F6:F6) -> 0 | G6: =SUM(interim_cons_qtr!$F6:G6) -> 0 | H6: =SUM(interim_cons_qtr!$F6:H6) -> 0 | I6: =SUM(interim_cons_qtr!$F6:I6) -> 0 | J6: =SUM(interim_cons_qtr!$J6:J6) -> 0 | K6: =SUM(interim_cons_qtr!$J6:K6) -> 0 | L6: =SUM(interim_cons_qtr!$J6:L6) -> 2780 | M6: =SUM(interim_cons_qtr!$J6:M6) -> 5577 | N6: =SUM(interim_cons_qtr!$N6:N6) -> 2694 | O6: =SUM(interim_cons_qtr!$N6:O6) -> 5515 | P6: =SUM(interim_cons_qtr!$N6:P6) -> 8423 | Q6: =SUM(interim_cons_qtr!$N6:Q6) -> 11440 | R6: =SUM(interim_cons_qtr!$R6:R6) -> 3286 | S6: =SUM(interim_cons_qtr!$R6:S6) -> 6580 | T6: =SUM(interim_cons_qtr!$R6:T6) -> 10266 | U6: =SUM(interim_cons_qtr!$R6:U6) -> 13886 | V6: =SUM(interim_cons_qtr!$V6:V6) -> 3844 | W6: =SUM(interim_cons_qtr!$V6:W6) -> 7549 | X6: =SUM(interim_cons_qtr!$V6:X6) -> 11622 | Y6: =SUM(interim_cons_qtr!$V6:Y6) -> 15358 | AQ6: ='cons finstats'!G6 -> 11409.7 | AU6: ='cons finstats'!H6 -> 13947.7 | AY6: ='cons finstats'!I6 -> 15349.67713 | BA6: =(Y6/U6-1)*100 -> 10.60060493 | BB6: -8.322871177
A7: Circulation revenue | B7: 332 | C7: 350 | D7: 350 | E7: 330 | F7: =SUM(interim_cons_qtr!$F7:F7) -> 0 | G7: =SUM(interim_cons_qtr!$F7:G7) -> 0 | H7: =SUM(interim_cons_qtr!$F7:H7) -> 0 | I7: =SUM(interim_cons_qtr!$F7:I7) -> 0 | J7: =SUM(interim_cons_qtr!$J7:J7) -> 0 | K7: =SUM(interim_cons_qtr!$J7:K7) -> 0 | L7: =SUM(interim_cons_qtr!$J7:L7) -> 390 | M7: =SUM(interim_cons_qtr!$J7:M7) -> 800 | N7: =SUM(interim_cons_qtr!$N7:N7) -> 444 | O7: =SUM(interim_cons_qtr!$N7:O7) -> 923 | P7: =SUM(interim_cons_qtr!$N7:P7) -> 1404 | Q7: =SUM(interim_cons_qtr!$N7:Q7) -> 1833 | R7: =SUM(interim_cons_qtr!$R7:R7) -> 468 | S7: =SUM(interim_cons_qtr!$R7:S7) -> 886 | T7: =SUM(interim_cons_qtr!$R7:T7) -> 1357 | U7: =SUM(interim_cons_qtr!$R7:U7) -> 1826 | V7: =SUM(interim_cons_qtr!$V7:V7) -> 485 | W7: =SUM(interim_cons_qtr!$V7:W7) -> 992 | X7: =SUM(interim_cons_qtr!$V7:X7) -> 1495 | Y7: =SUM(interim_cons_qtr!$V7:Y7) -> 1978 | AQ7: ='cons finstats'!G7 -> 1832.9 | AU7: ='cons finstats'!H7 -> 1827.7 | AY7: ='cons finstats'!I7 -> 1981.7298 | BA7: 8.324205915 | BB7: 3.7298
A8: Other operating revenue | B8: 86.8 | C8: 75.8 | D8: 42.1 | E8: 76.1 | F8: =SUM(interim_cons_qtr!$F8:F8) -> 0 | G8: =SUM(interim_cons_qtr!$F8:G8) -> 0 | H8: =SUM(interim_cons_qtr!$F8:H8) -> 0 | I8: =SUM(interim_cons_qtr!$F8:I8) -> 0 | J8: =SUM(interim_cons_qtr!$J8:J8) -> 0 | K8: =SUM(interim_cons_qtr!$J8:K8) -> 0 | L8: =SUM(interim_cons_qtr!$J8:L8) -> 265.3 | M8: =SUM(interim_cons_qtr!$J8:M8) -> 439.2 | N8: =SUM(interim_cons_qtr!$N8:N8) -> 157.5 | O8: =SUM(interim_cons_qtr!$N8:O8) -> 353.8 | P8: =SUM(interim_cons_qtr!$N8:P8) -> 559.2 | Q8: =SUM(interim_cons_qtr!$N8:Q8) -> 856.2 | R8: =SUM(interim_cons_qtr!$R8:R8) -> 274.4 | S8: =SUM(interim_cons_qtr!$R8:S8) -> 872.4 | T8: =SUM(interim_cons_qtr!$R8:T8) -> 1336.9 | U8: =SUM(interim_cons_qtr!$R8:U8) -> 1920.6 | V8: =SUM(interim_cons_qtr!$V8:V8) -> 615.2 | W8: =SUM(interim_cons_qtr!$V8:W8) -> 1292.2 | X8: =SUM(interim_cons_qtr!$V8:X8) -> 1954.3 | Y8: =SUM(interim_cons_qtr!$V8:Y8) -> 2676.3 | AQ8: =SUM('cons finstats'!G8:G13) -> 886.6 | AU8: =SUM('cons finstats'!H8:H13) -> 1898.5 | AY8: =SUM('cons finstats'!I8:I13) -> 2678.679458 | BA8: 39.34707904 | BB8: 2.379458
A9: Total expenditure | B9: =B10+B11+B12 -> -1872.4 | C9: -2022.7 | D9: -2261.3 | E9: -2330.5 | F9: 0 | G9: 0 | H9: 0 | I9: 0 | J9: 0 | K9: 0 | L9: -3238.8 | M9: -6411.8 | N9: -2788 | O9: -5776.5 | P9: -8693.4 | Q9: -11630.5 | R9: -3242.9 | S9: -6907.7 | T9: =T10+T11+T12 -> -10661.1 | U9: -14471.5 | V9: -4066.5 | W9: -8284.5 | X9: -12751 | Y9: -17210.1 | AQ9: =AQ10+AQ11+AQ12 -> -11630.4 | AU9: =AU10+AU11+AU12 -> -14502.7 | AY9: =AY10+AY11+AY12 -> -17211.89572 | BA9: 18.92409218 | BB9: -1.795722572
A10: Raw material costs | B10: =-953.1+1.2 -> -951.9 | C10: -1076 | D10: =-1170.3+1.5 -> -1168.8 | E10: =-1124.3+3.5 -> -1120.8 | F10: =SUM(interim_cons_qtr!$F10:F10) -> 0 | G10: =SUM(interim_cons_qtr!$F10:G10) -> 0 | H10: =SUM(interim_cons_qtr!$F10:H10) -> 0 | I10: =SUM(interim_cons_qtr!$F10:I10) -> 0 | J10: =SUM(interim_cons_qtr!$J10:J10) -> 0 | K10: =SUM(interim_cons_qtr!$J10:K10) -> 0 | L10: =SUM(interim_cons_qtr!$J10:L10) -> -1492.8 | M10: =SUM(interim_cons_qtr!$J10:M10) -> -2850.4 | N10: =SUM(interim_cons_qtr!$N10:N10) -> -1236.9 | O10: =SUM(interim_cons_qtr!$N10:O10) -> -2470.4 | P10: =SUM(interim_cons_qtr!$N10:P10) -> -3605.4 | Q10: =SUM(interim_cons_qtr!$N10:Q10) -> -4760.2 | R10: =SUM(interim_cons_qtr!$R10:R10) -> -1302.9 | S10: =SUM(interim_cons_qtr!$R10:S10) -> -2952 | T10: =SUM(interim_cons_qtr!$R10:T10) -> -4600.1 | U10: =SUM(interim_cons_qtr!$R10:U10) -> -6233.9 | V10: =SUM(interim_cons_qtr!$V10:V10) -> -1724.3 | W10: =SUM(interim_cons_qtr!$V10:W10) -> -3585.3 | X10: =SUM(interim_cons_qtr!$V10:X10) -> -5442 | Y10: =SUM(interim_cons_qtr!$V10:Y10)-63-100 -> -7432.4 | AQ10: =-'cons finstats'!G17 -> -4760.3 | AU10: =-'cons finstats'!H17 -> -6248.9 | AY10: =-'cons finstats'!I17 -> -7444.033774 | BA10: 19.22552495 | BB10: -11.63377352
A11: Employee expenses | B11: -354.8 | C11: -348.2 | D11: -388.2 | E11: -391.3 | F11: =SUM(interim_cons_qtr!$F11:F11) -> 0 | G11: =SUM(interim_cons_qtr!$F11:G11) -> 0 | H11: =SUM(interim_cons_qtr!$F11:H11) -> 0 | I11: =SUM(interim_cons_qtr!$F11:I11) -> 0 | J11: =SUM(interim_cons_qtr!$J11:J11) -> 0 | K11: =SUM(interim_cons_qtr!$J11:K11) -> 0 | L11: =SUM(interim_cons_qtr!$J11:L11) -> -588.1 | M11: =SUM(interim_cons_qtr!$J11:M11) -> -1258.2 | N11: =SUM(interim_cons_qtr!$N11:N11) -> -646.1 | O11: =SUM(interim_cons_qtr!$N11:O11) -> -1268.4 | P11: =SUM(interim_cons_qtr!$N11:P11) -> -1889.3 | Q11: =SUM(interim_cons_qtr!$N11:Q11) -> -2519.9 | R11: =SUM(interim_cons_qtr!$R11:R11) -> -749.2 | S11: =SUM(interim_cons_qtr!$R11:S11) -> -1483.6 | T11: =SUM(interim_cons_qtr!$R11:T11) -> -2243.1 | U11: =SUM(interim_cons_qtr!$R11:U11) -> -3009 | V11: =SUM(interim_cons_qtr!$V11:V11) -> -880 | W11: =SUM(interim_cons_qtr!$V11:W11) -> -1729 | X11: =SUM(interim_cons_qtr!$V11:X11) -> -2664.6 | Y11: =SUM(interim_cons_qtr!$V11:Y11) -> -3561.7 | AQ11: =-'cons finstats'!G21 -> -2519.8 | AU11: =-'cons finstats'!H21 -> -3009 | AY11: =-'cons finstats'!I21 -> -3547.717261 | BA11: 18.36822865 | BB11: 13.98273856
A12: SG&A and other costs | B12: =-84.6-481.1 -> -565.7 | C12: =-106.3-492.2 -> -598.5 | D12: =-178.7-525.6 -> -704.3 | E12: =-268.2-550.2 -> -818.4 | F12: =SUM(interim_cons_qtr!$F12:F12) -> 0 | G12: =SUM(interim_cons_qtr!$F12:G12) -> 0 | H12: =SUM(interim_cons_qtr!$F12:H12) -> 0 | I12: =SUM(interim_cons_qtr!$F12:I12) -> 0 | J12: =SUM(interim_cons_qtr!$J12:J12) -> 0 | K12: =SUM(interim_cons_qtr!$J12:K12) -> 0 | L12: =SUM(interim_cons_qtr!$J12:L12) -> -1157.9 | M12: =SUM(interim_cons_qtr!$J12:M12) -> -2303.2 | N12: =SUM(interim_cons_qtr!$N12:N12) -> -905 | O12: =SUM(interim_cons_qtr!$N12:O12) -> -2037.7 | P12: =SUM(interim_cons_qtr!$N12:P12) -> -3198.7 | Q12: =SUM(interim_cons_qtr!$N12:Q12) -> -4350.4 | R12: =SUM(interim_cons_qtr!$R12:R12) -> -1190.8 | S12: =SUM(interim_cons_qtr!$R12:S12) -> -2472.1 | T12: =SUM(interim_cons_qtr!$R12:T12) -> -3817.9 | U12: =SUM(interim_cons_qtr!$R12:U12) -> -5228.6 | V12: =SUM(interim_cons_qtr!$V12:V12) -> -1462.2 | W12: =SUM(interim_cons_qtr!$V12:W12) -> -2970.2 | X12: =SUM(interim_cons_qtr!$V12:X12) -> -4644.4 | Y12: =SUM(interim_cons_qtr!$V12:Y12)+63+100 -> -6216 | AQ12: =-'cons finstats'!G37 -> -4350.3 | AU12: =-'cons finstats'!H37 -> -5244.8 | AY12: =-'cons finstats'!I37 -> -6220.144688 | BA12: 18.88459626 | BB12: -4.144687616
A13: Operating profits | B13: =B5+B9 -> 518.9 | C13: 476.6 | D13: 490.8 | E13: 419.6 | F13: 0 | G13: 0 | H13: 0 | I13: 0 | J13: 0 | K13: 0 | L13: 196.5 | M13: 404.4 | N13: 507.5 | O13: 1015.3 | P13: 1692.8 | Q13: 2498.7 | R13: 785.5 | S13: 1430.7 | T13: =T5+T9 -> 2298.8 | U13: 3161.1 | V13: 877.7 | W13: 1548.7 | X13: 2320.3 | Y13: 2802.2 | AQ13: =AQ5+AQ9 -> 2498.8 | AU13: =AU5+AU9 -> 3171.2 | AY13: =AY5+AY9 -> 2798.190664 | BA13: -11.35364272 | BB13: -4.009335749
A14: Other income | B14: 87.3 | C14: 75.8 | D14: 148.9 | E14: 90.7 | F14: =SUM(interim_cons_qtr!$F14:F14) -> 0 | G14: =SUM(interim_cons_qtr!$F14:G14) -> 0 | H14: =SUM(interim_cons_qtr!$F14:H14) -> 0 | I14: =SUM(interim_cons_qtr!$F14:I14) -> 0 | J14: =SUM(interim_cons_qtr!$J14:J14) -> 0 | K14: =SUM(interim_cons_qtr!$J14:K14) -> 0 | L14: =SUM(interim_cons_qtr!$J14:L14) -> 71.9 | M14: =SUM(interim_cons_qtr!$J14:M14) -> 168.7 | N14: =SUM(interim_cons_qtr!$N14:N14) -> 136.3 | O14: =SUM(interim_cons_qtr!$N14:O14) -> 169.6 | P14: =SUM(interim_cons_qtr!$N14:P14) -> 255.7 | Q14: =SUM(interim_cons_qtr!$N14:Q14) -> 408.8 | R14: =SUM(interim_cons_qtr!$R14:R14) -> 71.7 | S14: =SUM(interim_cons_qtr!$R14:S14) -> 278.2 | T14: =SUM(interim_cons_qtr!$R14:T14) -> 357.3 | U14: =SUM(interim_cons_qtr!$R14:U14) -> 495.4 | V14: =SUM(interim_cons_qtr!$V14:V14) -> 171 | W14: =SUM(interim_cons_qtr!$V14:W14) -> 417 | X14: =SUM(interim_cons_qtr!$V14:X14) -> 612.7 | Y14: =SUM(interim_cons_qtr!$V14:Y14) -> 791.2 | AQ14: ='cons finstats'!G44 -> 408.8 | AU14: ='cons finstats'!H44 -> 477.7 | AY14: ='cons finstats'!I44 -> 796.7584558 | BA14: 59.7093258 | BB14: 5.558455799
A15: Interest expense | B15: -33.8 | C15: -37.9 | D15: -36.2 | E15: -36 | F15: =SUM(interim_cons_qtr!$F15:F15) -> 0 | G15: =SUM(interim_cons_qtr!$F15:G15) -> 0 | H15: =SUM(interim_cons_qtr!$F15:H15) -> 0 | I15: =SUM(interim_cons_qtr!$F15:I15) -> 0 | J15: =SUM(interim_cons_qtr!$J15:J15) -> 0 | K15: =SUM(interim_cons_qtr!$J15:K15) -> 0 | L15: =SUM(interim_cons_qtr!$J15:L15) -> -103.6 | M15: =SUM(interim_cons_qtr!$J15:M15) -> -194.8 | N15: =SUM(interim_cons_qtr!$N15:N15) -> -78.7 | O15: =SUM(interim_cons_qtr!$N15:O15) -> -152.6 | P15: =SUM(interim_cons_qtr!$N15:P15) -> -224.2 | Q15: =SUM(interim_cons_qtr!$N15:Q15) -> -295.1 | R15: =SUM(interim_cons_qtr!$R15:R15) -> -64 | S15: =SUM(interim_cons_qtr!$R15:S15) -> -118.7 | T15: =SUM(interim_cons_qtr!$R15:T15) -> -165 | U15: =SUM(interim_cons_qtr!$R15:U15) -> -243.6 | V15: =SUM(interim_cons_qtr!$V15:V15) -> -52.8 | W15: =SUM(interim_cons_qtr!$V15:W15) -> -127.8 | X15: =SUM(interim_cons_qtr!$V15:X15) -> -233.9 | Y15: =SUM(interim_cons_qtr!$V15:Y15) -> -337.5 | AQ15: =-'cons finstats'!G48 -> -295.1 | AU15: =-'cons finstats'!H48 -> -236 | AY15: =-'cons finstats'!I48 -> -331.025 | BA15: 38.54679803 | BB15: 6.475
A16: D&A expense | B16: -96.2 | C16: -95.9 | D16: -97.6 | E16: -107.4 | F16: =SUM(interim_cons_qtr!$F16:F16) -> 0 | G16: =SUM(interim_cons_qtr!$F16:G16) -> 0 | H16: =SUM(interim_cons_qtr!$F16:H16) -> 0 | I16: =SUM(interim_cons_qtr!$F16:I16) -> 0 | J16: =SUM(interim_cons_qtr!$J16:J16) -> 0 | K16: =SUM(interim_cons_qtr!$J16:K16) -> 0 | L16: =SUM(interim_cons_qtr!$J16:L16) -> -180.8 | M16: =SUM(interim_cons_qtr!$J16:M16) -> -347.6 | N16: =SUM(interim_cons_qtr!$N16:N16) -> -174.8 | O16: =SUM(interim_cons_qtr!$N16:O16) -> -361.4 | P16: =SUM(interim_cons_qtr!$N16:P16) -> -526.2 | Q16: =SUM(interim_cons_qtr!$N16:Q16) -> -706.9 | R16: =SUM(interim_cons_qtr!$R16:R16) -> -194.2 | S16: =SUM(interim_cons_qtr!$R16:S16) -> -405.2 | T16: =SUM(interim_cons_qtr!$R16:T16) -> -622.4 | U16: =SUM(interim_cons_qtr!$R16:U16) -> -842 | V16: =SUM(interim_cons_qtr!$V16:V16) -> -213.6 | W16: =SUM(interim_cons_qtr!$V16:W16) -> -446.6 | X16: =SUM(interim_cons_qtr!$V16:X16) -> -666.3 | Y16: =SUM(interim_cons_qtr!$V16:Y16) -> -915.6 | AQ16: =-'cons finstats'!G52 -> -706.9 | AU16: =-'cons finstats'!H52 -> -841.9 | AY16: =-'cons finstats'!I52 -> -919.8691806 | BA16: 8.741092637 | BB16: -4.269180611
A17: Pretax profits | B17: =B13+B14+B15+B16 -> 476.2 | C17: 418.6 | D17: 505.9 | E17: 366.9 | F17: 0 | G17: 0 | H17: 0 | I17: 0 | J17: 0 | K17: 0 | L17: -16 | M17: 30.7 | N17: 390.3 | O17: 670.9 | P17: 1198.1 | Q17: 1905.5 | R17: 599 | S17: 1185 | T17: =T13+T14+T15+T16 -> 1868.7 | U17: 2570.9 | V17: 782.3 | W17: 1391.3 | X17: 2032.8 | Y17: 2340.3 | AQ17: =AQ13+AQ14+AQ15+AQ16 -> 1905.6 | AU17: =AU13+AU14+AU15+AU16 -> 2571 | AY17: =AY13+AY14+AY15+AY16 -> 2344.054939 | BA17: -8.969621533 | BB17: 3.754939439
A18: Extraordinaries | B18: -2.6 | C18: 0 | D18: 0 | E18: 0 | F18: =SUM(interim_cons_qtr!$F18:F18) -> 0 | G18: =SUM(interim_cons_qtr!$F18:G18) -> 0 | H18: =SUM(interim_cons_qtr!$F18:H18) -> 0 | I18: =SUM(interim_cons_qtr!$F18:I18) -> 0 | J18: =SUM(interim_cons_qtr!$J18:J18) -> 0 | K18: =SUM(interim_cons_qtr!$J18:K18) -> 0 | L18: =SUM(interim_cons_qtr!$J18:L18) -> -127.9 | M18: =SUM(interim_cons_qtr!$J18:M18) -> -189.5 | N18: =SUM(interim_cons_qtr!$N18:N18) -> 0 | O18: =SUM(interim_cons_qtr!$N18:O18) -> 0 | P18: =SUM(interim_cons_qtr!$N18:P18) -> -14.3 | Q18: =SUM(interim_cons_qtr!$N18:Q18) -> -14.3 | R18: =SUM(interim_cons_qtr!$R18:R18) -> 0 | S18: =SUM(interim_cons_qtr!$R18:S18) -> 0 | T18: =SUM(interim_cons_qtr!$R18:T18) -> 0 | U18: =SUM(interim_cons_qtr!$R18:U18) -> 0 | V18: =SUM(interim_cons_qtr!$V18:V18) -> 0 | W18: =SUM(interim_cons_qtr!$V18:W18) -> 0 | X18: =SUM(interim_cons_qtr!$V18:X18) -> 0 | Y18: =SUM(interim_cons_qtr!$V18:Y18) -> 0 | AQ18: ='cons finstats'!G51 -> -20.8 | AU18: ='cons finstats'!H51 -> 0 | AY18: ='cons finstats'!I51 -> 0 | BB18: 0
A19: Tax provision | B19: =-159.8-7.5 -> -167.3 | C19: =-142.1-7.5 -> -149.6 | D19: =-161.2-9 -> -170.2 | E19: =-114.8-12.5 -> -127.3 | F19: =SUM(interim_cons_qtr!$F19:F19) -> 0 | G19: =SUM(interim_cons_qtr!$F19:G19) -> 0 | H19: =SUM(interim_cons_qtr!$F19:H19) -> 0 | I19: =SUM(interim_cons_qtr!$F19:I19) -> 0 | J19: =SUM(interim_cons_qtr!$J19:J19) -> 0 | K19: =SUM(interim_cons_qtr!$J19:K19) -> 0 | L19: =SUM(interim_cons_qtr!$J19:L19) -> -24.4 | M19: =SUM(interim_cons_qtr!$J19:M19) -> 43.1 | N19: =SUM(interim_cons_qtr!$N19:N19) -> -110.6 | O19: =SUM(interim_cons_qtr!$N19:O19) -> -154.5 | P19: =SUM(interim_cons_qtr!$N19:P19) -> -314.2 | Q19: =SUM(interim_cons_qtr!$N19:Q19) -> -536.5 | R19: =SUM(interim_cons_qtr!$R19:R19) -> -197.5 | S19: =SUM(interim_cons_qtr!$R19:S19) -> -363 | T19: =SUM(interim_cons_qtr!$R19:T19) -> -546.5 | U19: =SUM(interim_cons_qtr!$R19:U19) -> -712.9 | V19: =SUM(interim_cons_qtr!$V19:V19) -> -242.8 | W19: =SUM(interim_cons_qtr!$V19:W19) -> -382.8 | X19: =SUM(interim_cons_qtr!$V19:X19) -> -543.7 | Y19: =SUM(interim_cons_qtr!$V19:Y19) -> -625 | AQ19: =-SUM('cons finstats'!G57:G58) -> -536.5 | AU19: =-SUM('cons finstats'!H57:H58) -> -712.8 | AY19: =-SUM('cons finstats'!I57:I58) -> -622.5348848 | BA19: -12.32992004 | BB19: 2.465115189
A20: Minority interest | B20: 0 | C20: 0 | D20: 0 | E20: 0 | F20: =SUM(interim_cons_qtr!$F20:F20) -> 0 | G20: =SUM(interim_cons_qtr!$F20:G20) -> 0 | H20: =SUM(interim_cons_qtr!$F20:H20) -> 0 | I20: =SUM(interim_cons_qtr!$F20:I20) -> 0 | J20: =SUM(interim_cons_qtr!$J20:J20) -> 0 | K20: =SUM(interim_cons_qtr!$J20:K20) -> 0 | L20: =SUM(interim_cons_qtr!$J20:L20) -> 40 | M20: =SUM(interim_cons_qtr!$J20:M20) -> 63.3 | N20: =SUM(interim_cons_qtr!$N20:N20) -> 7.3 | O20: =SUM(interim_cons_qtr!$N20:O20) -> 11.7 | P20: =SUM(interim_cons_qtr!$N20:P20) -> 16.4 | Q20: =SUM(interim_cons_qtr!$N20:Q20) -> 10.9 | R20: =SUM(interim_cons_qtr!$R20:R20) -> 12.2 | S20: =SUM(interim_cons_qtr!$R20:S20) -> -20.3 | T20: =SUM(interim_cons_qtr!$R20:T20) -> -42.6 | U20: =SUM(interim_cons_qtr!$R20:U20) -> -49 | V20: =SUM(interim_cons_qtr!$V20:V20) -> -24.6 | W20: =SUM(interim_cons_qtr!$V20:W20) -> -55.6 | X20: =SUM(interim_cons_qtr!$V20:X20) -> -54.6 | Y20: =SUM(interim_cons_qtr!$V20:Y20) -> -60.9 | AQ20: =-'cons finstats'!G61 -> 10.9 | AU20: =-'cons finstats'!H61 -> -49.1 | AY20: =-'cons finstats'!I61 -> -64.36743222 | BA20: 24.28571429 | BB20: -3.467432218
A21: Net income | B21: =B17+B18+B19+B20 -> 306.3 | C21: 269 | D21: 335.7 | E21: 239.6 | F21: 0 | G21: 0 | H21: 0 | I21: 0 | J21: 0 | K21: 0 | L21: -128.3 | M21: -52.4 | N21: 287 | O21: 528.1 | P21: 886 | Q21: 1365.6 | R21: 413.7 | S21: 801.7 | T21: =T17+T18+T19+T20 -> 1279.6 | U21: 1809 | V21: 514.9 | W21: 952.9 | X21: 1434.5 | Y21: 1654.4 | AQ21: =AQ17+AQ18+AQ19+AQ20 -> 1359.2 | AU21: =AU17+AU18+AU19+AU20 -> 1809.1 | AY21: =AY17+AY18+AY19+AY20 -> 1657.152622 | BA21: -8.546158098 | BB21: 2.75262241
A22: Adj. net income | B22: =B17+B19+B20 -> 308.9 | C22: 269 | D22: 335.7 | E22: 239.6 | F22: 0 | G22: 0 | H22: 0 | I22: 0 | J22: 0 | K22: 0 | L22: -0.4 | M22: 137.1 | N22: 287 | O22: 528.1 | P22: 900.3 | Q22: 1379.9 | R22: 413.7 | S22: 801.7 | T22: =T17+T19+T20 -> 1279.6 | U22: 1809 | V22: 514.9 | W22: 952.9 | X22: 1434.5 | Y22: 1654.4 | AQ22: =AQ17+AQ19+AQ20 -> 1380 | AU22: =AU17+AU19+AU20 -> 1809.1 | AY22: =AY17+AY19+AY20 -> 1657.152622 | BA22: -8.546158098 | BB22: 2.75262241
A24: Source: Company data, Kotak Institutional Equities
A26: Important data
A27: Ratios
A28: OPM (%) | B28: =B13/B5*100 -> 21.699494 | C28: =C13/C5*100 -> 19.06933942 | D28: =D13/D5*100 -> 17.8336543 | E28: =E13/E5*100 -> 15.257627 | L28: =L13/L5*100 -> 5.720024452 | M28: 5.932924503 | N28: 15.39978759 | O28: 14.94890898 | P28: 16.29855 | Q28: 17.68465306 | R28: 19.4990567 | S28: 17.15796796 | T28: =T13/T5*100 -> 17.73779119 | U28: 17.92758867 | V28: 17.75211359 | W28: 15.74970508 | X28: 15.39548679 | Y28: 14.00238853 | AQ28: =AQ13/AQ5*100 -> 17.68536081 | AU28: =AU13/AU5*100 -> 17.94284227
A29: Tax rate (%) | B29: =-B19/(B17+B18)*100 -> 35.32516892 | C29: =-C19/(C17+C18)*100 -> 35.73817487 | D29: =-D19/(D17+D18)*100 -> 33.64301245 | E29: =-E19/(E17+E18)*100 -> 34.69610248 | L29: =-L19/(L17+L18)*100 -> -16.9562196 | M29: 27.14105793 | N29: 28.33717653 | O29: 23.02876733 | P29: 26.54164555 | Q29: 28.36823181 | R29: 32.97161937 | S29: 30.63291139 | T29: =-T19/(T17+T18)*100 -> 29.24492963 | U29: 27.72958886 | V29: 31.03668669 | W29: 27.51383598 | X29: 26.7463597 | Y29: 26.70597787 | AQ29: =-AQ19/(AQ17+AQ18)*100 -> 28.46455857 | AU29: =-AU19/(AU17+AU18)*100 -> 27.72462077
A30: Print
A31: Total revenues | N31: =SUM(interim_cons_qtr!$N31:N31) -> 3270.3 | O31: =SUM(interim_cons_qtr!$N31:O31) -> 6659 | P31: =SUM(interim_cons_qtr!$N31:P31) -> 10208.4 | Q31: =SUM(interim_cons_qtr!$N31:Q31) -> 13851.1 | R31: =SUM(interim_cons_qtr!$R31:R31) -> 3853.8 | S31: =SUM(interim_cons_qtr!$R31:S31) -> 7988.8 | T31: =SUM(interim_cons_qtr!$R31:T31) -> 12387.4 | U31: =SUM(interim_cons_qtr!$R31:U31) -> 16723.1 | V31: =SUM(interim_cons_qtr!$V31:V31) -> 4662.2 | W31: =SUM(interim_cons_qtr!$V31:W31) -> 9340.2 | X31: =SUM(interim_cons_qtr!$V31:X31) -> 14276.9 | Y31: =SUM(interim_cons_qtr!$V31:Y31) -> 18902.4
A32: Operating profit | N32: =SUM(interim_cons_qtr!$N32:N32) -> 543.9 | O32: =SUM(interim_cons_qtr!$N32:O32) -> 1053.1 | P32: =SUM(interim_cons_qtr!$N32:P32) -> 1725.4 | Q32: =SUM(interim_cons_qtr!$N32:Q32) -> 2599.7 | R32: =SUM(interim_cons_qtr!$R32:R32) -> 796.5 | S32: =SUM(interim_cons_qtr!$R32:S32) -> 1362.5 | T32: =SUM(interim_cons_qtr!$R32:T32) -> 2137.2 | U32: =SUM(interim_cons_qtr!$R32:U32) -> 2877.6 | V32: =SUM(interim_cons_qtr!$V32:V32) -> 894.1 | W32: =SUM(interim_cons_qtr!$V32:W32) -> 1622.1 | X32: =SUM(interim_cons_qtr!$V32:X32) -> 2377.8 | Y32: =SUM(interim_cons_qtr!$V32:Y32) -> 2813.2
A33: Radio
A34: Total revenues | N34: =SUM(interim_cons_qtr!$N34:N34) -> 88.4 | O34: =SUM(interim_cons_qtr!$N34:O34) -> 186.8 | P34: =SUM(interim_cons_qtr!$N34:P34) -> 288.3 | Q34: =SUM(interim_cons_qtr!$N34:Q34) -> 431.1 | R34: =SUM(interim_cons_qtr!$R34:R34) -> 123.1 | S34: =SUM(interim_cons_qtr!$R34:S34) -> 264.1 | T34: =SUM(interim_cons_qtr!$R34:T34) -> 443.7 | U34: =SUM(interim_cons_qtr!$R34:U34) -> 701.1 | V34: =SUM(interim_cons_qtr!$V34:V34) -> 214.9 | W34: =SUM(interim_cons_qtr!$V34:W34) -> 371.9 | X34: =SUM(interim_cons_qtr!$V34:X34) -> 545.4 | Y34: =SUM(interim_cons_qtr!$V34:Y34) -> 741.6
A35: Operating profit | N35: =SUM(interim_cons_qtr!$N35:N35) -> -27.3 | O35: =SUM(interim_cons_qtr!$N35:O35) -> -51.5 | P35: =SUM(interim_cons_qtr!$N35:P35) -> -64.4 | Q35: =SUM(interim_cons_qtr!$N35:Q35) -> -60.7 | R35: =SUM(interim_cons_qtr!$R35:R35) -> -12.2 | S35: =SUM(interim_cons_qtr!$R35:S35) -> -9.2 | T35: =SUM(interim_cons_qtr!$R35:T35) -> 20.7 | U35: =SUM(interim_cons_qtr!$R35:U35) -> 74 | V35: =SUM(interim_cons_qtr!$V35:V35) -> 25.5 | W35: =SUM(interim_cons_qtr!$V35:W35) -> -19.5 | X35: =SUM(interim_cons_qtr!$V35:X35) -> -28.8 | Y35: =SUM(interim_cons_qtr!$V35:Y35) -> -43.4
A36: Internet
A37: Total revenues | N37: =SUM(interim_cons_qtr!$N37:N37) -> 7.4 | O37: =SUM(interim_cons_qtr!$N37:O37) -> 17.1 | P37: =SUM(interim_cons_qtr!$N37:P37) -> 27.6 | Q37: =SUM(interim_cons_qtr!$N37:Q37) -> 56.1 | R37: =SUM(interim_cons_qtr!$R37:R37) -> 61.6 | S37: =SUM(interim_cons_qtr!$R37:S37) -> 125.6 | T37: =SUM(interim_cons_qtr!$R37:T37) -> 208.3 | U37: =SUM(interim_cons_qtr!$R37:U37) -> 315.5 | V37: =SUM(interim_cons_qtr!$V37:V37) -> 85.6 | W37: =SUM(interim_cons_qtr!$V37:W37) -> 185.6 | X37: =SUM(interim_cons_qtr!$V37:X37) -> 302.3 | Y37: =SUM(interim_cons_qtr!$V37:Y37) -> 436.3
A38: Operating profit | N38: =SUM(interim_cons_qtr!$N38:N38) -> -95.4 | O38: =SUM(interim_cons_qtr!$N38:O38) -> -195.1 | P38: =SUM(interim_cons_qtr!$N38:P38) -> -274.8 | Q38: =SUM(interim_cons_qtr!$N38:Q38) -> -359.1 | R38: =SUM(interim_cons_qtr!$R38:R38) -> -98.4 | S38: =SUM(interim_cons_qtr!$R38:S38) -> -197.4 | T38: =SUM(interim_cons_qtr!$R38:T38) -> -302.9 | U38: =SUM(interim_cons_qtr!$R38:U38) -> -405.4 | V38: =SUM(interim_cons_qtr!$V38:V38) -> -119.9 | W38: =SUM(interim_cons_qtr!$V38:W38) -> -225.9 | X38: =SUM(interim_cons_qtr!$V38:X38) -> -319.3 | Y38: =SUM(interim_cons_qtr!$V38:Y38) -> -400.5
A39: Burda
A40: Total revenues | N40: =SUM(interim_cons_qtr!$N44:N44) -> 0 | O40: =SUM(interim_cons_qtr!$N44:O44) -> 0 | P40: =SUM(interim_cons_qtr!$N44:P44) -> 0 | Q40: =SUM(interim_cons_qtr!$N44:Q44) -> 0 | R40: =SUM(interim_cons_qtr!$R44:R44) -> 24 | S40: =SUM(interim_cons_qtr!$R44:S44) -> 319 | T40: =SUM(interim_cons_qtr!$R44:T44) -> 468 | U40: =SUM(interim_cons_qtr!$R44:U44) -> 608 | V40: =SUM(interim_cons_qtr!$V44:V44) -> 245 | W40: =SUM(interim_cons_qtr!$V44:W44) -> 560 | X40: =SUM(interim_cons_qtr!$V44:X44) -> 786 | Y40: =SUM(interim_cons_qtr!$V44:Y44) -> 1044
A41: Operating profit | N41: =SUM(interim_cons_qtr!$N45:N45) -> 0 | O41: =SUM(interim_cons_qtr!$N45:O45) -> 0 | P41: =SUM(interim_cons_qtr!$N45:P45) -> 0 | Q41: =SUM(interim_cons_qtr!$N45:Q45) -> 0 | R41: =SUM(interim_cons_qtr!$R45:R45) -> -13 | S41: =SUM(interim_cons_qtr!$R45:S45) -> -46 | T41: =SUM(interim_cons_qtr!$R45:T45) -> -95 | U41: =SUM(interim_cons_qtr!$R45:U45) -> -138 | V41: =SUM(interim_cons_qtr!$V45:V45) -> 0 | W41: =SUM(interim_cons_qtr!$V45:W45) -> 5 | X41: =SUM(interim_cons_qtr!$V45:X45) -> -12 | Y41: =SUM(interim_cons_qtr!$V45:Y45) -> -48

Sheet sotp valuation
A1: SOTP valuation of HT Media, March fiscal year-end, 2013E
B3: Financials (Rs bn) | E3: Multiple (X) | H3: Valuation
A4: Business | B4: Sales | C4: EBITDA | E4: Sales | F4: EBITDA | H4: (Rs bn) | I4: (Rs/share) | K4: Comments/Assumptions
A5: HT Delhi-NCR | B5: =('HT Delhi-NCR'!J5+'HT Delhi-NCR'!J10+'HT Delhi-NCR'!J14)/10^3 -> 8.848270557 | C5: ='HT Delhi-NCR'!J23/10^3 -> 2.477423403 | E5: =H5/B5 -> 1.7501533 | F5: =H5/C5 -> 6.250780507 | H5: ='HTD DCF'!D33/10^3 -> 15.48582991 | I5: =H5*10^3/235 -> 65.89714857 | K5: Based on DCF valuation with 2% terminal growth
A6: Hindustan | B6: =(Hindustan!J5+Hindustan!J10)/10^3 -> 6.719725628 | C6: =Hindustan!J23/10^3 -> 1.157014914 | E6: =M6/B6 -> 1.847068701 | F6: =M6/C6 -> 10.72742861 | H6: =83.5%*78%*M6 -> 8.08380201 | I6: 34.39915749 | K6: Based on 16.5% holding discount to DCF valuation | M6: 12.41179489
A7: HT Others | B7: =('HT Others'!J5+'HT Others'!J10+'HT Others'!J14)/10^3 -> 1.921284056 | C7: ='HT Others'!J23/10^3 -> 0.1365244282 | E7: =H7/B7 -> 0.2575872219 | F7: =H7/C7 -> 3.624979274 | H7: ='HTO DCF'!D33/10^3 -> 0.4948982225 | I7: 2.105949883 | K7: Based on DCF valuation
A8: HT Mint | B8: =('HT Mint'!J5+'HT Mint'!J10)/10^3 -> 0.9823924817 | C8: ='HT Mint'!K23/10^3 -> 0.08100091179 | E8: =H8/B8 -> 0.70808214 | F8: =H8/C8 -> 8.587737537 | H8: ='HTM DCF'!D33/10^3 -> 0.6956145707 | I8: 2.960062003 | K8: Based on DCF valuation
A9: Fever FM | B9: ='Fever-FM'!J6/10^3 -> 0.7850853834 | C9: ='Fever-FM'!J12/10^3 -> 0.1202547041 | E9: =H9/B9 -> 1.331807917 | F9: =H9/C9 -> 8.694736201 | H9: =SUM('Fever-FM'!I12:O12)/10^3 -> 1.045582929 | I9: 4.449289061 | K9: Based on DCF valuation limited up to FY2018E
A10: HT-Burda JV | B10: ='HT-Burda'!J4/10^3 -> 1.8332028 | C10: ='HT-Burda'!K8/10^3 -> 0.1707637018 | E10: =M10/B10 -> 0.7452037573 | F10: =M10/C10 -> 8 | H10: =51%*M10 -> 0.6967159033 | I10: 2.964748525 | K10: Based on 8.0X FY2013E EV/EBITDA | M10: =8*'HT-Burda'!K8/10^3 -> 1.366109614
A11: HT Mumbai | B11: =('HT Mumbai'!I5+'HT Mumbai'!I10+'HT Mumbai'!I14)/10^3 -> 1.70858124 | E11: 1 | H11: =B11*E11 -> 1.70858124 | I11: 7.27055847 | K11: Based on 1.0X FY2013E EV/Sales
A12: Internet | B12: =Internet!J6/10^3 -> 0.3 | E12: 0 | H12: =B12*E12 -> 0 | I12: 0
A13: Enterprise value | H13: =SUM(H5:H12) -> 28.21102479 | I13: =H13*10^3/235 -> 120.046914
A14: Net cash/(debt) | H14: 3.1 | I14: =H14*10^3/235 -> 13.19148936 | K14: Based on end-FY2012 standalone financials | M14: =-2515.4-283.6+638.1+450+50+150+100+250+150+7*100+150+4*100+300+650+550+250+153.4+35 -> 2177.5 | N14: =M14+500 -> 2677.5
A15: Equity value | H15: =SUM(H13:H14) -> 31.31102479 | I15: =H15*10^3/235 -> 133.2384034
A17: Source: Kotak Institutional Equities estimates

Sheet earnings changes
A1: Revised and previous earnings estimates for HT Media, FY2012-14E (Rs mn)
B3: Revised estimates | F3: Previous estimates | J3: Change (%)
B4: 2012E | C4: 2013E | D4: 2014E | F4: =B4 -> 2012E | G4: =C4 -> 2013E | H4: =D4 -> 2014E | J4: =B4 -> 2012E | K4: =C4 -> 2013E | L4: =D4 -> 2014E
A5: Advertisement revenues | B5: ='cons finstats'!I6 -> 15349.67713 | C5: ='cons finstats'!J6 -> 17636.10118 | D5: ='cons finstats'!K6 -> 20903.0487 | F5: 15349.67713 | G5: 17636.10118 | H5: 20937.27398 | J5: =(B5/F5-1)*100 -> 0 | K5: =(C5/G5-1)*100 -> 0 | L5: =(D5/H5-1)*100 -> -0.1634658296 | N5: =(C5/B5-1)*100 -> 14.89558402 | O5: =(D5/C5-1)*100 -> 18.52420486
A6: Circulation revenues | B6: ='cons finstats'!I7 -> 1981.7298 | C6: ='cons finstats'!J7 -> 2214.980775 | D6: ='cons finstats'!K7 -> 2334.53628 | F6: 1981.7298 | G6: 2214.980775 | H6: 2334.53628 | J6: 0 | K6: 0 | L6: 0 | N6: =(C6/B6-1)*100 -> 11.77006951 | O6: =(D6/C6-1)*100 -> 5.397586577
A7: Other operational revenues | B7: =SUM('cons finstats'!I8:I13) -> 2678.679458 | C7: =SUM('cons finstats'!J8:J13) -> 3678.624683 | D7: =SUM('cons finstats'!K8:K13) -> 4414.492352 | F7: 2678.679458 | G7: 3615.046883 | H7: 4373.678072 | J7: =(B7/F7-1)*100 -> 0 | K7: =(C7/G7-1)*100 -> 1.758699183 | L7: =(D7/H7-1)*100 -> 0.9331797935 | N7: 37.32978287 | O7: 20.00388003
A8: Total revenues | B8: ='cons finstats'!I14 -> 20010.08639 | C8: ='cons finstats'!J14 -> 23529.70664 | D8: ='cons finstats'!K14 -> 27652.07733 | F8: 20010.08639 | G8: 23466.12884 | H8: 27645.48834 | J8: 0 | K8: 0.2709343345 | L8: 0.02383387595 | N8: 17.58923068 | O8: 17.51985585
A9: Production cost | B9: ='cons finstats'!I18 -> 7444.033774 | C9: ='cons finstats'!J18 -> 9266.647469 | D9: ='cons finstats'!K18 -> 10407.94463 | F9: 7444.033774 | G9: 9052.356244 | H9: 10285.48248 | J9: 0 | K9: 2.367242504 | L9: 1.190631096 | N9: 24.4842212 | O9: 12.31618193
A10: Employee cost | B10: ='cons finstats'!I21 -> 3547.717261 | C10: ='cons finstats'!J21 -> 4266.608661 | D10: ='cons finstats'!K21 -> 5048.96499 | F10: 3547.717261 | G10: 4266.608661 | H10: 5048.96499 | J10: 0 | K10: 0 | L10: 0 | N10: 20.2634919 | O10: 18.33672574
A11: SG&A expenses | B11: ='cons finstats'!I37 -> 6220.144688 | C11: ='cons finstats'!J37 -> 6868.336095 | D11: ='cons finstats'!K37 -> 7662.718914 | F11: 6220.144688 | G11: 6868.336095 | H11: 7665.713627 | J11: 0 | K11: 0 | L11: -0.03906632701 | N11: 10.42084131 | O11: 11.56586993
A12: Total expenditure | B12: =SUM(B9:B11) -> 17211.89572 | C12: =SUM(C9:C11) -> 20401.59222 | D12: =SUM(D9:D11) -> 23119.62853 | F12: 17211.89572 | G12: 20187.301 | H12: 23000.16109 | J12: 0 | K12: 1.061514982 | L12: 0.519420014 | N12: 18.5319302 | O12: 13.32266756
A13: EBITDA | B13: ='cons finstats'!I39 -> 2798.190664 | C13: ='cons finstats'!J39 -> 3128.114417 | D13: ='cons finstats'!K39 -> 4532.448794 | F13: 2798.190664 | G13: 3278.827842 | H13: 4645.327243 | J13: 0 | K13: -4.596564134 | L13: -2.429935345 | N13: 11.79061016 | O13: 44.89395814
A14: EPS (Rs) | B14: ='profit model'!I21 -> 7.045716932 | C14: ='profit model'!J21 -> 7.45205047 | D14: ='profit model'!K21 -> 10.93231469 | F14: 7.045716932 | G14: 7.912432362 | H14: 11.29812224 | J14: 0 | K14: -5.818462273 | L14: -3.237773036 | N14: 5.767099956 | O14: 46.70210205
A16: Source: Kotak Institutional Equities estimates
B18: =140/B14 -> 19.87022774 | C18: =140/C14 -> 18.78677561 | D18: =140/D14 -> 12.80607118
B19: =170/B14 -> 24.12813368 | C19: =170/C14 -> 22.81251324 | D19: =170/D14 -> 15.55022929

Sheet saln finstats
A1: Standalone P&L statement of HT Media, March fiscal year-ends, 2007-20E (Rs mn) | AA1: Common size P&L statement of HT Media
C3: 2006 | D3: 2007 | E3: 2008 | F3: 2009 | G3: 2010 | H3: 2011 | I3: 2012E | J3: 2013E | K3: 2014E | L3: 2015E | M3: 2016E | N3: 2017E | O3: 2018E | P3: 2019E | Q3: 2020E | AC3: 2006 | AD3: =D3 -> 2007 | AE3: =E3 -> 2008 | AF3: 2009 | AG3: 2010 | AH3: 2011 | AI3: 2012E | AJ3: 2013E | AK3: 2014E | AL3: 2015E | AM3: 2016E | AN3: 2017E | AO3: 2018E | AP3: 2019E | AQ3: 2020E
A4: P&L statement of HT Media | AA4: P&L statement of HT Media
A5: REVENUES | AA5: REVENUES
A6: Print advertising | C6: 6548.385 | D6: 8731.49 | E6: 10137.1 | F6: 11299 | G6: 10409.6 | H6: 10268.7 | I6: ='cons revenues'!I10-'cons revenues'!I9 -> 10947.17299 | J6: ='cons revenues'!J10-'cons revenues'!J9 -> 12383.40233 | K6: ='cons revenues'!K10-'cons revenues'!K9 -> 14523.48884 | L6: ='cons revenues'!L10-'cons revenues'!L9 -> 14741.57174 | M6: ='cons revenues'!M10-'cons revenues'!M9 -> 15321.07001 | N6: ='cons revenues'!N10-'cons revenues'!N9 -> 16817.93752 | O6: ='cons revenues'!O10-'cons revenues'!O9 -> 18527.67748 | P6: ='cons revenues'!P10-'cons revenues'!P9 -> 19924.82871 | Q6: ='cons revenues'!Q10-'cons revenues'!Q9 -> 21361.05395 | AA6: Print advertising | AC6: =C6/C$11 -> 0.7976006397 | AD6: 0.8401407116 | AE6: 0.8545716646 | AF6: 0.8540180191 | AG6: 0.8241245814 | AH6: 0.8457103796 | AI6: 0.8326485084 | AJ6: 0.8323981276 | AK6: 0.839682373 | AL6: 0.8288203337 | AM6: 0.8221634459 | AN6: 0.8333734208 | AO6: 0.8712642724 | AP6: 0.8820167721 | AQ6: 0.8815966708
A7: Print circulation | C7: 1368.306 | D7: 1397.34 | E7: 1489 | F7: 1531.1 | G7: 1442.5 | H7: 604.3 | I7: ='cons revenues'!I13-Hindustan!I10 -> 634.9608 | J7: ='cons revenues'!J13-Hindustan!J10 -> 747.954 | K7: ='cons revenues'!K13-Hindustan!K10 -> 872.955 | L7: ='cons revenues'!L13-Hindustan!L10 -> 904.248 | M7: ='cons revenues'!M13-Hindustan!M10 -> 1025.568 | N7: ='cons revenues'!N13-Hindustan!N10 -> 1145.1456 | O7: ='cons revenues'!O13-Hindustan!O10 -> 1199.9232 | P7: ='cons revenues'!P13-Hindustan!P10 -> 1346.976 | Q7: ='cons revenues'!Q13-Hindustan!Q10 -> 1494.72 | AA7: Print circulation | AC7: 0.1666612059 | AD7: 0.1344515337 | AE7: 0.1255247762 | AF7: 0.115725904 | AG7: 0.1142022468 | AH7: 0.0497689856 | AI7: 0.04829549727 | AJ7: 0.05027661159 | AK7: 0.05047030601 | AL7: 0.05083983867 | AM7: 0.05503431029 | AN7: 0.05674500246 | AO7: 0.05642640395 | AP7: 0.05962688265 | AQ7: 0.06168891192
A8: Radio revenues | C8: =0 -> 0 | D8: =0 -> 0 | E8: =0 -> 0 | F8: 73.4 | G8: 417.6 | H8: 620.8 | I8: ='Fever-FM'!I6 -> 674.063208 | J8: ='Fever-FM'!J6 -> 785.0853834 | K8: ='Fever-FM'!K6 -> 863.5939218 | L8: ='Fever-FM'!L6 -> 1020.382169 | M8: ='Fever-FM'!M6 -> 1122.420386 | N8: ='Fever-FM'!N6 -> 1003.16322 | O8: ='Fever-FM'!O6 -> 272.6546187 | P8: ='Fever-FM'!P6 -> 0 | Q8: ='Fever-FM'!Q6 -> 0 | AA8: Radio revenues | AC8: 0 | AD8: 0 | AE8: 0 | AF8: 0.005547829242 | AG8: 0.03306125357 | AH8: 0.05112789386 | AI8: 0.05126964975 | AJ8: 0.05277254068 | AK8: 0.04992909085 | AL8: 0.057369289 | AM8: 0.06023162948 | AN8: 0.04970939885 | AO8: 0.01282158696 | AP8: 0 | AQ8: 0
A9: Job revenue | C9: 236.64 | D9: 188.92 | E9: 136.7 | F9: 224.3 | G9: 274 | H9: 557 | I9: ='cons finstats'!I12+200 -> 641.255 | J9: ='cons finstats'!J12+200 -> 685.3805 | K9: ='cons finstats'!K12+200 -> 733.91855 | L9: ='cons finstats'!L12+200 -> 787.310405 | M9: ='cons finstats'!M12+200 -> 816.6759253 | N9: ='cons finstats'!N12+200 -> 847.5097215 | O9: ='cons finstats'!O12+200 -> 879.8852076 | P9: ='cons finstats'!P12+200 -> 913.879468 | Q9: ='cons finstats'!Q12+200 -> 949.5734414 | AA9: Job revenue | AC9: =C9/C$11 -> 0.02882301749 | AD9: 0.01817781195 | AE9: 0.01152400061 | AF9: 0.01695338009 | AG9: 0.02169248917 | AH9: 0.04587344858 | AI9: 0.04877423787 | AJ9: 0.04607049256 | AK9: 0.04243184793 | AL9: 0.04426521703 | AM9: 0.04382468669 | AN9: =N9/N$11 -> 0.04199635508 | AO9: =O9/O$11 -> 0.04137661323 | AP9: =P9/P$11 -> 0.04045490328 | AQ9: =Q9/Q$11 -> 0.03919005057
A10: Sale of waste papers | C10: 56.774 | D10: 75.14 | E10: 99.4 | F10: 102.6 | G10: 87.4 | H10: 91.3 | I10: ='cons finstats'!I13 -> 249.96 | J10: ='cons finstats'!J13 -> 274.956 | K10: ='cons finstats'!K13 -> 302.4516 | L10: ='cons finstats'!L13 -> 332.69676 | M10: ='cons finstats'!M13 -> 349.331598 | N10: ='cons finstats'!N13 -> 366.7981779 | O10: ='cons finstats'!O13 -> 385.1380868 | P10: ='cons finstats'!P13 -> 404.3949911 | Q10: ='cons finstats'!Q13 -> 424.6147407 | AA10: Sale of waste papers | AC10: =C10/C$11 -> 0.006915136895 | AD10: 0.007229942778 | AE10: 0.008379558598 | AF10: 0.007754867578 | AG10: 0.006919429028 | AH10: 0.007519292379 | AI10: 0.01901210673 | AJ10: 0.01848222754 | AK10: 0.01748638224 | AL10: 0.01870532155 | AM10: 0.01874592768 | AN10: =N10/N$11 -> 0.0181758228 | AO10: 0.0181111235 | AP10: 0.01790144196 | AQ10: 0.01752436666
A11: Total revenues | C11: =+SUM(C6:C10) -> 8210.105 | D11: 10392.89 | E11: 11862.2 | F11: 13230.4 | G11: 12631.1 | H11: 12142.1 | I11: 13147.41199 | J11: 14876.77821 | K11: 17296.40791 | L11: 17786.20908 | M11: 18635.06592 | N11: 20180.55424 | O11: 21265.27859 | P11: =+SUM(P6:P10) -> 22590.07917 | Q11: =+SUM(Q6:Q10) -> 24229.96213 | AA11: Total revenues | AC11: 1 | AD11: 1 | AE11: 1 | AF11: 1 | AG11: 1 | AH11: 1 | AI11: 1 | AJ11: 1 | AK11: 1 | AL11: 1 | AM11: 1 | AN11: 1 | AO11: 1 | AP11: 1 | AQ11: 1
D12: =(D11/C11-1)*100 -> 26.58656619 | E12: 14.13764603 | F12: 11.53411677 | G12: -4.529719434 | H12: -3.87139679 | I12: 8.279556201 | J12: 13.15366265 | K12: 16.2644738 | L12: 2.831808613 | M12: 4.772556295 | N12: 8.293441668 | O12: 5.375096931 | P12: =(P11/O11-1)*100 -> 6.229876446 | Q12: =(Q11/P11-1)*100 -> 7.259305943
A13: NEWSPRINT | AA13: NEWSPRINT
A14: RM consumed (incl. chg in stock) | C14: =3417.147-0.329 -> 3416.818 | D14: =4320.09-2.74 -> 4317.35 | E14: =4558.2+3.5 -> 4561.7 | F14: =5402-1 -> 5401 | G14: =4103.2-4.9 -> 4098.3 | H14: =3554.6-0.3 -> 3554.3 | I14: =SUM('cons expenses'!I46:I49) -> 3995.577518 | J14: =SUM('cons expenses'!J46:J49) -> 4768.718905 | K14: =SUM('cons expenses'!K46:K49) -> 5252.811972 | L14: =SUM('cons expenses'!L46:L49) -> 4732.62488 | M14: =SUM('cons expenses'!M46:M49) -> 4834.303258 | N14: =SUM('cons expenses'!N46:N49) -> 5275.543943 | O14: =SUM('cons expenses'!O46:O49) -> 5761.063251 | P14: =SUM('cons expenses'!P46:P49) -> 6308.812343 | Q14: =SUM('cons expenses'!Q46:Q49) -> 6866.758436 | AA14: RM consumed (incl. chg in stock) | AC14: =C14/C$11 -> 0.4161722658 | AD14: 0.4154138069 | AE14: 0.3845576706 | AF14: 0.4082265086 | AG14: 0.3244610525 | AH14: 0.2927253111 | AI14: 0.3039060098 | AJ14: 0.3205478253 | AK14: 0.3036938074 | AL14: 0.2660839564 | AM14: 0.2594197026 | AN14: =N14/N$11 -> 0.261417198 | AO14: 0.2709140737 | AP14: 0.2792735826 | AQ14: 0.2833994704
A15: Total RM costs | C15: =C14 -> 3416.818 | D15: =D14 -> 4317.35 | E15: 4561.7 | F15: 5401 | G15: 4098.3 | H15: 3554.3 | I15: 3995.577518 | J15: 4768.718905 | K15: 5252.811972 | L15: 4732.62488 | M15: 4834.303258 | N15: 5275.543943 | O15: 5761.063251 | P15: 6308.812343 | Q15: 6866.758436 | AA15: Total RM costs | AC15: 0.4161722658 | AD15: 0.4154138069 | AE15: 0.3845576706 | AF15: 0.4082265086 | AG15: 0.3244610525 | AH15: 0.2927253111 | AI15: 0.3039060098 | AJ15: 0.3205478253 | AK15: 0.3036938074 | AL15: 0.2660839564 | AM15: 0.2594197026 | AN15: 0.261417198 | AO15: 0.2709140737 | AP15: 0.2792735826 | AQ15: 0.2833994704
D16: =(D15/C15-1)*100 -> 26.35586677 | E16: 5.65972182 | F16: 18.39884254 | G16: -24.11960748 | H16: -13.27379645 | I16: 12.41531435 | J16: 19.34992834 | K16: 10.15142803 | L16: -9.90302137 | M16: 2.14845631 | N16: 9.127286009 | O16: 9.203208498 | P16: =(P15/O15-1)*100 -> 9.507777776 | Q16: =(Q15/P15-1)*100 -> 8.843916461
A17: EMPLOYEES | AA17: EMPLOYEES
A18: Salary, PF, Staff Welfare | C18: 1183.85 | D18: 1476.32 | E18: 1755.8 | F18: 2035.8 | G18: 2081.8 | H18: 2095.3 | I18: =SUM('cons expenses'!I58:I61)+'cons expenses'!I65 -> 2383.448541 | J18: =SUM('cons expenses'!J58:J61)+'cons expenses'!J65 -> 2809.932193 | K18: =SUM('cons expenses'!K58:K61)+'cons expenses'!K65 -> 3249.333022 | L18: =SUM('cons expenses'!L58:L61)+'cons expenses'!L65 -> 3647.359704 | M18: =SUM('cons expenses'!M58:M61)+'cons expenses'!M65 -> 3741.265698 | N18: =SUM('cons expenses'!N58:N61)+'cons expenses'!N65 -> 4018.809454 | O18: =SUM('cons expenses'!O58:O61)+'cons expenses'!O65 -> 4108.262829 | P18: =SUM('cons expenses'!P58:P61)+'cons expenses'!P65 -> 4376.159021 | Q18: =SUM('cons expenses'!Q58:Q61)+'cons expenses'!Q65 -> 4738.179122 | AA18: Salary, PF, Staff Welfare | AC18: =C18/C$11 -> 0.1441942582 | AD18: 0.1420509598 | AE18: 0.1480163882 | AF18: 0.1538728988 | AG18: 0.1648154159 | AH18: 0.1725648776 | AI18: 0.181286518 | AJ18: 0.1888804251 | AK18: 0.1878617248 | AL18: 0.2050667283 | AM18: 0.2007648223 | AN18: =N18/N$11 -> 0.19914267 | AO18: 0.1931911125 | AP18: 0.1937203933 | AQ18: 0.1955504138
A19: Employee costs | C19: =+C18 -> 1183.85 | D19: 1476.32 | E19: 1755.8 | F19: 2035.8 | G19: 2081.8 | H19: 2095.3 | I19: 2383.448541 | J19: 2809.932193 | K19: 3249.333022 | L19: 3647.359704 | M19: 3741.265698 | N19: 4018.809454 | O19: 4108.262829 | P19: =+P18 -> 4376.159021 | Q19: =+Q18 -> 4738.179122 | AA19: Employee costs | AC19: 0.1441942582 | AD19: 0.1420509598 | AE19: 0.1480163882 | AF19: 0.1538728988 | AG19: 0.1648154159 | AH19: 0.1725648776 | AI19: 0.181286518 | AJ19: 0.1888804251 | AK19: 0.1878617248 | AL19: 0.2050667283 | AM19: 0.2007648223 | AN19: 0.19914267 | AO19: 0.1931911125 | AP19: 0.1937203933 | AQ19: 0.1955504138
D20: =(D19/C19-1)*100 -> 24.70498796 | E20: 18.9308551 | F20: 15.9471466 | G20: 2.259553984 | H20: 0.6484772793 | I20: 13.75213771 | J20: 17.89355397 | K20: 15.63741755 | L20: 12.24948871 | M20: 2.574629376 | N20: 7.418445454 | O20: 2.225867541 | P20: =(P19/O19-1)*100 -> 6.520911732 | Q20: =(Q19/P19-1)*100 -> 8.272553598
A21: SG&A AND OTHER | AA21: SG&A AND OTHER
A22: Radio operating cost | C22: =0 -> 0 | D22: =0 -> 0 | E22: =0 -> 0 | F22: =6+12.9 -> 18.9 | G22: =28.4+47.3 -> 75.7 | H22: =40.2+32.9 -> 73.1 | I22: =-SUM('Fever-FM'!I7:I8) -> 78.78979181 | J22: =-SUM('Fever-FM'!J7:J8) -> 86.34031463 | K22: =-SUM('Fever-FM'!K7:K8) -> 92.77687013 | L22: =-SUM('Fever-FM'!L7:L8) -> 102.5423868 | M22: =-SUM('Fever-FM'!M7:M8) -> 110.3275415 | N22: =-SUM('Fever-FM'!N7:N8) -> 96.4787416 | O22: =-SUM('Fever-FM'!O7:O8) -> 30.98290912 | P22: =-SUM('Fever-FM'!P7:P8) -> 0 | Q22: =-SUM('Fever-FM'!Q7:Q8) -> 0 | AA22: Radio operating cost | AC22: =C22/C$11 -> 0 | AD22: 0 | AE22: 0 | AF22: 0.001428528238 | AG22: 0.005993143907 | AH22: 0.006020375388 | AI22: 0.005992798571 | AJ22: 0.005803697104 | AK22: 0.005363938606 | AL22: 0.005765275015 | AM22: 0.005920426682 | AN22: 0.004780777597 | AO22: 0.001456971701 | AP22: 0 | AQ22: 0
A23: Printing and service charges | C23: 360.536 | D23: 343.85 | E23: 384.1 | F23: 404.9 | G23: 311 | H23: 221.9 | I23: =H23*'cons finstats'!I27/'cons finstats'!H27 -> 246.4922063 | J23: =I23*'cons finstats'!J27/'cons finstats'!I27 -> 279.2365025 | K23: =J23*'cons finstats'!K27/'cons finstats'!J27 -> 310.7520179 | L23: =K23*'cons finstats'!L27/'cons finstats'!K27 -> 324.5217863 | M23: =L23*'cons finstats'!M27/'cons finstats'!L27 -> 334.0521505 | N23: =M23*'cons finstats'!N27/'cons finstats'!M27 -> 359.9089696 | O23: =N23*'cons finstats'!O27/'cons finstats'!N27 -> 387.0078829 | P23: =O23*'cons finstats'!P27/'cons finstats'!O27 -> 414.4274034 | Q23: =P23*'cons finstats'!Q27/'cons finstats'!P27 -> 433.7693239 | AA23: Printing and service charges | AC23: 0.04391368929 | AD23: 0.03308511877 | AE23: 0.03238016557 | AF23: 0.03060376104 | AG23: 0.02462176691 | AH23: 0.01827525716 | AI23: 0.01874834427 | AJ23: 0.01876995802 | AK23: 0.01796627482 | AL23: 0.01824569726 | AM23: 0.01792599779 | AN23: 0.01783444425 | AO23: 0.01819905069 | AP23: 0.01834554896 | AQ23: 0.01790218744
A24: Consumption of stores and spares | C24: 219.13 | D24: 267.16 | E24: 292.2 | F24: 322.9 | G24: 311.9 | H24: 294.8 | I24: =H24*'cons finstats'!I28/'cons finstats'!H28 -> 327.4713944 | J24: =I24*'cons finstats'!J28/'cons finstats'!I28 -> 370.9730551 | K24: =J24*'cons finstats'!K28/'cons finstats'!J28 -> 412.8422482 | L24: =K24*'cons finstats'!L28/'cons finstats'!K28 -> 431.1357485 | M24: =L24*'cons finstats'!M28/'cons finstats'!L28 -> 443.7970886 | N24: =M24*'cons finstats'!N28/'cons finstats'!M28 -> 478.1485545 | O24: =N24*'cons finstats'!O28/'cons finstats'!N28 -> 514.1501752 | P24: =O24*'cons finstats'!P28/'cons finstats'!O28 -> 550.5777311 | Q24: =P24*'cons finstats'!Q28/'cons finstats'!P28 -> 576.2739823 | AA24: Consumption of stores and spares | AC24: 0.02669027984 | AD24: 0.02570603557 | AE24: 0.02463286743 | AF24: 0.02440591365 | AG24: 0.02469301961 | AH24: 0.02427916094 | AI24: 0.02490766963 | AJ24: 0.02493638406 | AK24: 0.02386866975 | AL24: 0.02423988983 | AM24: 0.02381516065 | AN24: 0.02369352936 | AO24: 0.02417791862 | AP24: 0.02437254544 | AQ24: 0.02378352798
A25: News services and dispatches | C25: 131.008 | D25: 151.71 | E25: 230.4 | F25: 241.2 | G25: 205.6 | H25: 172.3 | I25: =H25*'cons finstats'!I29/'cons finstats'!H29 -> 198.145 | J25: =I25*'cons finstats'!J29/'cons finstats'!I29 -> 227.86675 | K25: =J25*'cons finstats'!K29/'cons finstats'!J29 -> 255.21076 | L25: =K25*'cons finstats'!L29/'cons finstats'!K29 -> 285.8360512 | M25: =L25*'cons finstats'!M29/'cons finstats'!L29 -> 308.7029353 | N25: =M25*'cons finstats'!N29/'cons finstats'!M29 -> 333.3991701 | O25: =N25*'cons finstats'!O29/'cons finstats'!N29 -> 360.0711037 | P25: =O25*'cons finstats'!P29/'cons finstats'!O29 -> 388.876792 | Q25: =P25*'cons finstats'!Q29/'cons finstats'!P29 -> 419.9869354 | AA25: News services and dispatches | AC25: 0.01595692138 | AD25: 0.01459747962 | AE25: 0.01942304126 | AF25: 0.01823074132 | AG25: 0.01627728385 | AH25: 0.01419029657 | AI25: 0.01507102691 | AJ25: 0.01531694206 | AK25: 0.01475513074 | AL25: 0.0160706562 | AM25: 0.01656570128 | AN25: 0.01652081336 | AO25: 0.0169323483 | AP25: 0.01721449443 | AQ25: 0.01733337151
A26: Power and fuel | C26: 128.039 | D26: 144.84 | E26: 162.4 | F26: 183 | G26: 197.5 | H26: 198.2 | I26: =H26*'cons finstats'!I30/'cons finstats'!H30 -> 227.93 | J26: =I26*'cons finstats'!J30/'cons finstats'!I30 -> 262.1195 | K26: =J26*'cons finstats'!K30/'cons finstats'!J30 -> 293.57384 | L26: =K26*'cons finstats'!L30/'cons finstats'!K30 -> 328.8027008 | M26: =L26*'cons finstats'!M30/'cons finstats'!L30 -> 355.1069169 | N26: =M26*'cons finstats'!N30/'cons finstats'!M30 -> 383.5154702 | O26: =N26*'cons finstats'!O30/'cons finstats'!N30 -> 414.1967078 | P26: =O26*'cons finstats'!P30/'cons finstats'!O30 -> 447.3324445 | Q26: =P26*'cons finstats'!Q30/'cons finstats'!P30 -> 483.11904 | AA26: Power and fuel | AC26: 0.01559529385 | AD26: 0.01393645079 | AE26: 0.01369054644 | AF26: 0.01383178135 | AG26: 0.01563600953 | AH26: 0.01632337075 | AI26: 0.01733649178 | AJ26: 0.01761937271 | AK26: 0.01697311035 | AL26: 0.01848638456 | AM26: 0.01905584442 | AN26: 0.01900420899 | AO26: 0.01947760553 | AP26: 0.01980216364 | AQ26: 0.01993891024
A27: Repair and maintenance | C27: =75.639+20.494+0.593 -> 96.726 | D27: =86.71+31.36+1.36 -> 119.43 | E27: =91.9+33.5+1.1 -> 126.5 | F27: =103.7+23.4+1.4 -> 128.5 | G27: =133.5+17+3.2 -> 153.7 | H27: =106.9+13.9+4.6 -> 125.4 | I27: =H27*'cons finstats'!I31/'cons finstats'!H31 -> 144.21 | J27: =I27*'cons finstats'!J31/'cons finstats'!I31 -> 165.8415 | K27: =J27*'cons finstats'!K31/'cons finstats'!J31 -> 185.74248 | L27: =K27*'cons finstats'!L31/'cons finstats'!K31 -> 208.0315776 | M27: =L27*'cons finstats'!M31/'cons finstats'!L31 -> 224.6741038 | N27: =M27*'cons finstats'!N31/'cons finstats'!M31 -> 242.6480321 | O27: =N27*'cons finstats'!O31/'cons finstats'!N31 -> 262.0598747 | P27: =O27*'cons finstats'!P31/'cons finstats'!O31 -> 283.0246647 | Q27: =P27*'cons finstats'!Q31/'cons finstats'!P31 -> 305.6666378 | AA27: Repair and maintenance | AC27: =C27/C$11 -> 0.01178133532 | AD27: 0.01149151006 | AE27: 0.01066412638 | AF27: 0.009712480348 | AG27: 0.01216837805 | AH27: 0.01032770279 | AI27: 0.01096869864 | AJ27: 0.01114767577 | AK27: 0.01073878929 | AL27: 0.01169622918 | AM27: 0.01205652316 | AN27: =N27/N$11 -> 0.01202385372 | AO27: =O27/O$11 -> 0.01232336899 | AP27: =P27/P$11 -> 0.01252871504 | AQ27: =Q27/Q$11 -> 0.01261523382
A28: Communication expenses | C28: 82.506 | D28: 91.39 | E28: 96.1 | F28: 108.3 | G28: 101.8 | H28: 85.7 | I28: =H28*'cons finstats'!I32/'cons finstats'!H32 -> 98.555 | J28: =I28*'cons finstats'!J32/'cons finstats'!I32 -> 113.33825 | K28: =J28*'cons finstats'!K32/'cons finstats'!J32 -> 126.93884 | L28: =K28*'cons finstats'!L32/'cons finstats'!K32 -> 142.1715008 | M28: =L28*'cons finstats'!M32/'cons finstats'!L32 -> 153.5452209 | N28: =M28*'cons finstats'!N32/'cons finstats'!M32 -> 165.8288385 | O28: =N28*'cons finstats'!O32/'cons finstats'!N32 -> 179.0951456 | P28: =O28*'cons finstats'!P32/'cons finstats'!O32 -> 193.4227573 | Q28: =P28*'cons finstats'!Q32/'cons finstats'!P32 -> 208.8965778 | AA28: Communication expenses | AC28: 0.01004932336 | AD28: 0.008793511718 | AE28: 0.008101363997 | AF28: 0.008185693554 | AG28: 0.008059472255 | AH28: 0.007058087151 | AI28: 0.007496152098 | AJ28: 0.007618467411 | AK28: 0.007339029044 | AL28: 0.007993355986 | AM28: 0.008239585604 | AN28: 0.00821725888 | AO28: 0.008421951532 | AP28: 0.00856228771 | AQ28: 0.008621415778
A29: Traveling and conveyance | C29: 135.711 | D29: 148.02 | E29: 167 | F29: 178.2 | G29: 170.4 | H29: 173.8 | I29: =H29*'cons finstats'!I33/'cons finstats'!H33 -> 199.87 | J29: =I29*'cons finstats'!J33/'cons finstats'!I33 -> 229.8505 | K29: =J29*'cons finstats'!K33/'cons finstats'!J33 -> 257.43256 | L29: =K29*'cons finstats'!L33/'cons finstats'!K33 -> 288.3244672 | M29: =L29*'cons finstats'!M33/'cons finstats'!L33 -> 311.3904246 | N29: =M29*'cons finstats'!N33/'cons finstats'!M33 -> 336.3016585 | O29: =N29*'cons finstats'!O33/'cons finstats'!N33 -> 363.2057912 | P29: =O29*'cons finstats'!P33/'cons finstats'!O33 -> 392.2622545 | Q29: =P29*'cons finstats'!Q33/'cons finstats'!P33 -> 423.6432349 | AA29: Traveling and conveyance | AC29: =C29/C$11 -> 0.01652975206 | AD29: 0.0142424292 | AE29: 0.01407833286 | AF29: 0.01346898053 | AG29: 0.01349051152 | AH29: 0.01431383369 | AI29: 0.01520223144 | AJ29: 0.01545028747 | AK29: 0.01488358516 | AL29: 0.01621056325 | AM29: 0.01670991806 | AN29: 0.01666463936 | AO29: 0.01707975702 | AP29: 0.01736435944 | AQ29: 0.01748427144
A30: Advertising and sales promotion | C30: 681.567 | D30: 637.8 | E30: 920.2 | F30: 1147.4 | G30: 993.7 | H30: 1004.3 | I30: =8%*I11 -> 1051.792959 | J30: =7.5%*J11 -> 1115.758366 | K30: =7.25%*K11 -> 1253.989573 | L30: =7%*L11 -> 1245.034635 | M30: =6.75%*M11 -> 1257.866949 | N30: =6.5%*N11 -> 1311.736026 | O30: =6%*O11 -> 1275.916715 | P30: =5.5%*P11 -> 1242.454355 | Q30: =5.5%*Q11 -> 1332.647917 | AA30: Advertising and sales promotion | AC30: 0.08301562526 | AD30: 0.06136887815 | AE30: 0.07757414308 | AF30: 0.08672451324 | AG30: 0.0786708996 | AH30: 0.08271221617 | AI30: 0.08 | AJ30: 0.075 | AK30: 0.0725 | AL30: 0.07 | AM30: 0.0675 | AN30: 0.065 | AO30: 0.06 | AP30: 0.055 | AQ30: 0.055
A31: Bad debt w/off, provision for doubtful debts | C31: 21.318 | D31: =18.8 -> 18.8 | E31: =0.3+4 -> 4.3 | F31: =24.3+0.7+101.6 -> 126.6 | G31: =121.3+6.6+55 -> 182.9 | H31: =5.8+61.1+12.7+68.7 -> 148.3 | I31: =1.5%*I6 -> 164.2075948 | J31: =1.5%*J6 -> 185.751035 | K31: =1.25%*K6 -> 181.5436105 | L31: =1.25%*L6 -> 184.2696468 | M31: =1%*M6 -> 153.2107001 | N31: =1%*N6 -> 168.1793752 | O31: =1%*O6 -> 185.2767748 | P31: =1%*P6 -> 199.2482871 | Q31: =1%*Q6 -> 213.6105395 | AA31: Bad debt w/off, provision for doubtful debts | AC31: 0.002596556317 | AD31: 0.001808928989 | AE31: 0.0003624959957 | AF31: 0.009568871689 | AG31: 0.01448013237 | AH31: 0.01221370274 | AI31: 0.01248972763 | AJ31: 0.01248597191 | AK31: 0.01049602966 | AL31: 0.01036025417 | AM31: 0.008221634459 | AN31: 0.008333734208 | AO31: 0.008712642724 | AP31: 0.008820167721 | AQ31: 0.008815966708
A32: Miscellaneous and other expenses | C32: =2425.449-SUM(C22:C31) -> 568.908 | D32: =2688.12-SUM(D22:D31) -> 765.12 | E32: =3315.35-SUM(E22:E31) -> 932.15 | F32: =3940.7-SUM(F22:F31) -> 1080.8 | G32: =3812.6-SUM(G22:G31) -> 1108.4 | H32: =3667.5-SUM(H22:H31) -> 1169.7 | I32: ='cons finstats'!I37-'cons expenses'!I83-'cons expenses'!I81-'cons expenses'!I79-SUM(I22:I31) -> 1585.726044 | J32: ='cons finstats'!J37-'cons expenses'!J83-'cons expenses'!J81-'cons expenses'!J79-SUM(J22:J31) -> 1773.303216 | K32: ='cons finstats'!K37-'cons expenses'!K83-'cons expenses'!K81-'cons expenses'!K79-SUM(K22:K31) -> 1979.283794 | L32: ='cons finstats'!L37-'cons expenses'!L83-'cons expenses'!L81-'cons expenses'!L79-SUM(L22:L31) -> 2186.756775 | M32: ='cons finstats'!M37-'cons expenses'!M83-'cons expenses'!M81-'cons expenses'!M79-SUM(M22:M31) -> 2362.446699 | N32: ='cons finstats'!N37-'cons expenses'!N83-'cons expenses'!N81-'cons expenses'!N79-SUM(N22:N31) -> 2594.431138 | O32: ='cons finstats'!O37-'cons expenses'!O83-'cons expenses'!O81-'cons expenses'!O79-SUM(O22:O31) -> 2682.48696 | P32: ='cons finstats'!P37-'cons expenses'!P83-'cons expenses'!P81-'cons expenses'!P79-SUM(P22:P31) -> 2896.762819 | Q32: ='cons finstats'!Q37-'cons expenses'!Q83-'cons expenses'!Q81-'cons expenses'!Q79-SUM(Q22:Q31) -> 3108.639119 | AA32: Miscellaneous and other expenses | AC32: 0.06929363266 | AD32: 0.07361956107 | AE32: 0.07858154474 | AF32: 0.08169065183 | AG32: 0.08775166058 | AH32: 0.09633424202 | AI32: 0.120611269 | AJ32: 0.119199412 | AK32: 0.1144332282 | AL32: 0.1229467598 | AM32: 0.1267742604 | AN32: 0.1285609457 | AO32: 0.1261439839 | AP32: 0.1282316364 | AQ32: 0.1282973164
A33: SG&A and other costs | C33: =SUM(C22:C32) -> 2425.449 | D33: =SUM(D22:D32) -> 2688.12 | E33: 3315.35 | F33: 3940.7 | G33: 3812.6 | H33: 3667.5 | I33: 4323.189991 | J33: 4810.378989 | K33: 5350.086594 | L33: 5727.427276 | M33: 6015.12073 | N33: 6470.575974 | O33: 6654.45004 | P33: 7008.389508 | Q33: 7506.253308 | AA33: SG&A and other costs | AC33: 0.2954224093 | AD33: 0.2586499039 | AE33: 0.2794886277 | AF33: 0.2978519168 | AG33: 0.3018422782 | AH33: 0.3020482454 | AI33: 0.32882441 | AJ33: 0.3233481685 | AK33: 0.3093177857 | AL33: 0.3220150652 | AM33: 0.3227850525 | AN33: 0.3206342054 | AO33: 0.312925599 | AP33: =P33/P$11 -> 0.3102419188 | AQ33: =Q33/Q$11 -> 0.3097922013
D34: =(D33/C33-1)*100 -> 10.82978863 | E34: 23.33340773 | F34: 18.8622619 | G34: -3.250691502 | H34: -3.805801815 | I34: 17.87839103 | J34: 11.26920165 | K34: 11.21964831 | L34: 7.052982703 | M34: 5.023083499 | N34: 7.571838766 | O34: 2.841695505 | P34: =(P33/O33-1)*100 -> 5.318838751 | Q34: =(Q33/P33-1)*100 -> 7.103826058
A35: EBITDA | C35: =C11-C15-C19-C33 -> 1183.988 | D35: 1911.1 | E35: 2229.35 | F35: 1852.9 | G35: 2638.4 | H35: 2825 | I35: 2445.195943 | J35: 2487.748127 | K35: 3444.176319 | L35: 3678.797217 | M35: 4044.376231 | N35: 4415.624869 | O35: 4741.502471 | P35: 4896.718301 | Q35: 5118.771267 | AA35: EBITDA | AC35: =C35/C$11 -> 0.1442110667 | AD35: 0.1838853293 | AE35: 0.1879373135 | AF35: 0.1400486758 | AG35: 0.2088812534 | AH35: 0.232661566 | AI35: 0.1859830622 | AJ35: 0.167223581 | AK35: 0.1991266821 | AL35: 0.2068342501 | AM35: 0.2170304226 | AN35: =N35/N$11 -> 0.2188059266 | AO35: =O35/O$11 -> 0.2229692148 | AP35: =P35/P$11 -> 0.2167641053 | AQ35: =Q35/Q$11 -> 0.2112579144
E36: =(E35/D35-1)*100 -> 16.6527131 | F36: -16.88608787 | G36: 42.39300556 | H36: 7.072468163 | I36: -13.4443914 | J36: 1.740236176 | K36: 38.44553962 | L36: 6.812104712 | M36: 9.937460339 | N36: 9.179379396 | O36: 7.380101596 | P36: =(P35/O35-1)*100 -> 3.273557938 | Q36: =(Q35/P35-1)*100 -> 4.53473025
A37: OTHER INCOME | AA37: OTHER INCOME
A38: Interest income | C38: =82.164+12.123+0.268+16.8 -> 111.355 | D38: =125.46+38.38+0.23+23.7 -> 187.77 | E38: =19.7+14.8+29.4+42+175.4 -> 281.3 | F38: =1.6+15+14.4+12.3+140.6+33.7 -> 217.6 | G38: =5.4+6.7+7.2+59.1+69.8 -> 148.2 | H38: =18.5+30.1+0.6+6.5+184.6 -> 240.3 | I38: ='cash model'!I45+100 -> 266.2004558 | J38: ='cash model'!J45+100 -> 384.7889322 | K38: ='cash model'!K45+100 -> 438.9843934 | L38: ='cash model'!L45+100 -> 535.1595309 | M38: ='cash model'!M45+100 -> 593.4606367 | N38: ='cash model'!N45+100 -> 611.0582885 | O38: ='cash model'!O45+100 -> 612.1226483 | P38: ='cash model'!P45+100 -> 599.427317 | Q38: ='cash model'!Q45+100 -> 577.1224829 | AA38: Interest income | AC38: =C38/C$11 -> 0.01356316393 | AD38: 0.01806715938 | AE38: 0.02371398223 | AF38: 0.01644697061 | AG38: 0.01173294487 | AH38: 0.01979064577 | AI38: 0.02024736548 | AJ38: 0.0258650715 | AK38: 0.02538009023 | AL38: 0.03008845385 | AM38: 0.03184644687 | AN38: =N38/N$11 -> 0.03027955928 | AO38: 0.02878507543 | AP38: =P38/P$11 -> 0.0265349808 | AQ38: 0.02381854663
A39: Other income | C39: =177.338-SUM(C38:C38) -> 65.983 | D39: =402.81-SUM(D38:D38) -> 215.04 | E39: =406.86-SUM(E38:E38) -> 125.56 | F39: =54.2+75.4 -> 129.6 | G39: =13.6+29.7+73.2+95.5 -> 212 | H39: =415.9-H38 -> 175.6 | I39: =H39 -> 175.6 | J39: =I39*1.05 -> 184.38 | K39: =J39*1.05 -> 193.599 | L39: 203.27895 | M39: 213.4428975 | N39: 224.1150424 | O39: 235.3207945 | P39: 247.0868342 | Q39: 259.4411759 | AA39: Other income | AC39: 0.008036803427 | AD39: 0.02069106861 | AE39: 0.01058488307 | AF39: 0.009795622203 | AG39: 0.01678396973 | AH39: 0.01446207822 | AI39: 0.01335624076 | AJ39: 0.01239381251 | AK39: 0.01119301771 | AL39: 0.0114290206 | AM39: 0.0114538311 | AN39: 0.01110549491 | AO39: 0.0110659634 | AP39: 0.0109378472 | AQ39: 0.0107074528
A40: Total other income | C40: =SUM(C38:C39) -> 177.338 | D40: 402.81 | E40: 406.86 | F40: 347.2 | G40: 360.2 | H40: 415.9 | I40: 441.8004558 | J40: 569.1689322 | K40: 632.5833934 | L40: 738.4384809 | M40: 806.9035342 | N40: 835.1733308 | O40: 847.4434428 | P40: 846.5141513 | Q40: 836.5636588 | AA40: Total other income | AC40: 0.02159996736 | AD40: 0.03875822798 | AE40: 0.0342988653 | AF40: 0.02624259282 | AG40: 0.0285169146 | AH40: 0.03425272399 | AI40: 0.03360360625 | AJ40: 0.03825888401 | AK40: 0.03657310794 | AL40: 0.04151747445 | AM40: 0.04330027797 | AN40: 0.04138505419 | AO40: 0.03985103882 | AP40: 0.03747282799 | AQ40: 0.03452599943
A42: FINANCE CHARGES | AA42: FINANCE CHARGES
A43: Interest expenses | C43: =127+8.4 -> 135.4 | D43: =134.8+7.7+6.1 -> 148.6 | E43: =160.2+11.9+5.3 -> 177.4 | F43: =316.9 -> 316.9 | G43: =257.3 -> 257.3 | H43: 187.3 | I43: =interest!BE8+interest!BE18-50 -> 231.025 | J43: =interest!BJ8+interest!BJ18-50 -> 231.025 | K43: =interest!BO8+interest!BO18-50 -> 231.025 | L43: =interest!BT8+interest!BT18-50 -> 231.025 | M43: =interest!BY8+interest!BY18-50 -> 231.025 | N43: =interest!CD8+interest!CD18-50 -> 231.025 | O43: =interest!CI8+interest!CI18-50 -> 231.025 | P43: =interest!CN8+interest!CN18-50 -> 231.025 | Q43: =interest!CS8+interest!CS18-50 -> 231.025 | AA43: Interest expenses | AC43: =C43/C$11 -> 0.01649187191 | AD43: 0.01429823658 | AE43: 0.01495506736 | AF43: 0.02395241263 | AG43: 0.02037035571 | AH43: 0.01542566772 | AI43: 0.01757189933 | AJ43: 0.01552923601 | AK43: 0.01335681959 | AL43: 0.01298899608 | AM43: 0.01239732669 | AN43: =N43/N$11 -> 0.01144790164 | AO43: =O43/O$11 -> 0.0108639536 | AP43: =P43/P$11 -> 0.01022683445 | AQ43: =Q43/Q$11 -> 0.009534682668
A44: Total finance expenses | C44: =C43 -> 135.4 | D44: =D43 -> 148.6 | E44: 177.4 | F44: 316.9 | G44: 257.3 | H44: 187.3 | I44: 231.025 | J44: 231.025 | K44: 231.025 | L44: 231.025 | M44: 231.025 | N44: 231.025 | O44: 231.025 | P44: 231.025 | Q44: 231.025 | AA44: Total finance expenses | AC44: =SUM(AC43:AC43) -> 0.01649187191 | AD44: 0.01429823658 | AE44: 0.01495506736 | AF44: 0.02395241263 | AG44: 0.02037035571 | AH44: 0.01542566772 | AI44: 0.01757189933 | AJ44: 0.01552923601 | AK44: 0.01335681959 | AL44: 0.01298899608 | AM44: 0.01239732669 | AN44: 0.01144790164 | AO44: 0.0108639536 | AP44: 0.01022683445 | AQ44: 0.009534682668
A46: Gross Profit | C46: =C35-C44+C40 -> 1225.926 | D46: 2165.31 | E46: 2458.81 | F46: 1883.2 | G46: 2741.3 | H46: 3053.6 | I46: 2655.971399 | J46: 2825.892059 | K46: 3845.734713 | L46: 4186.210697 | M46: 4620.254765 | N46: 5019.7732 | O46: 5357.920914 | P46: 5512.207453 | Q46: 5724.309926 | AA46: Gross Profit | AC46: =C46/C$11 -> 0.1493191622 | AD46: 0.2083453207 | AE46: 0.2072811114 | AF46: 0.142338856 | AG46: 0.2170278123 | AH46: 0.2514886222 | AI46: 0.2020147691 | AJ46: 0.189953229 | AK46: 0.2223429705 | AL46: 0.2353627285 | AM46: 0.2479333739 | AN46: =N46/N$11 -> 0.2487430791 | AO46: 0.2519563001 | AP46: =P46/P$11 -> 0.2440100989 | AQ46: 0.2362492312
A47: Add/(Deduct): Exceptional items | C47: =-218.765-10.123 -> -228.888 | D47: =-2.61 -> -2.61 | E47: 0 | F47: -188.2 | G47: -303.7 | H47: ='cons finstats'!H51 -> 0 | I47: ='cons finstats'!I51 -> 0 | J47: ='cons finstats'!J51 -> 0 | K47: ='cons finstats'!K51 -> 0 | L47: ='cons finstats'!L51 -> 0 | M47: ='cons finstats'!M51 -> 0 | N47: ='cons finstats'!N51 -> 0 | O47: ='cons finstats'!O51 -> 0 | P47: ='cons finstats'!P51 -> 0 | Q47: ='cons finstats'!Q51 -> 0 | AA47: Add/(Deduct): Exceptional items | AC47: -0.02787881519 | AD47: -0.0002511332267 | AE47: 0 | AF47: -0.01422481558 | AG47: -0.02404382833 | AH47: 0 | AI47: 0 | AJ47: 0 | AK47: 0 | AL47: 0 | AM47: 0 | AN47: 0 | AO47: 0 | AP47: 0 | AQ47: 0
A48: D&A expenses | C48: 385.364 | D48: 397.14 | E48: 446.6 | F48: 550.1 | G48: 637.9 | H48: 562.9 | I48: =+'cons finstats'!I52+Hindustan!I29+'HT-Burda'!I9+Internet!I11 -> 632.2652595 | J48: =+'cons finstats'!J52+Hindustan!J29+'HT-Burda'!J9+Internet!J11 -> 666.357621 | K48: =+'cons finstats'!K52+Hindustan!K29+'HT-Burda'!K9+Internet!K11 -> 703.0924791 | L48: =+'cons finstats'!L52+Hindustan!L29+'HT-Burda'!L9+Internet!L11 -> 735.0510423 | M48: =+'cons finstats'!M52+Hindustan!M29+'HT-Burda'!M9+Internet!M11 -> 781.9944957 | N48: =+'cons finstats'!N52+Hindustan!N29+'HT-Burda'!N9+Internet!N11 -> 841.6291067 | O48: =+'cons finstats'!O52+Hindustan!O29+'HT-Burda'!O9+Internet!O11 -> 923.3305627 | P48: =+'cons finstats'!P52+Hindustan!P29+'HT-Burda'!P9+Internet!P11 -> 1017.796099 | Q48: =+'cons finstats'!Q52+Hindustan!Q29+'HT-Burda'!Q9+Internet!Q11 -> 1116.922791 | AA48: D&A expenses | AC48: 0.04693776754 | AD48: 0.0382126627 | AE48: 0.03764900271 | AF48: 0.04157848591 | AG48: 0.05050233155 | AH48: 0.04635936123 | AI48: 0.04809047284 | AJ48: 0.04479179641 | AK48: 0.04064962407 | AL48: 0.04132702135 | AM48: 0.04196360234 | AN48: 0.04170495501 | AO48: 0.04341963162 | AP48: 0.04505500364 | AQ48: 0.04609676174
A50: Profit before tax | C50: =C46-C48+C47 -> 611.674 | D50: =D46-D48+D47 -> 1765.56 | E50: 2012.21 | F50: 1144.9 | G50: 1799.7 | H50: 2490.7 | I50: 2023.706139 | J50: 2159.534438 | K50: 3142.642233 | L50: 3451.159655 | M50: 3838.260269 | N50: 4178.144093 | O50: 4434.590351 | P50: 4494.411353 | Q50: 4607.387135 | AA50: Profit before tax | AC50: =C50/C$11 -> 0.07450257944 | AD50: 0.1698815248 | AE50: 0.1696321087 | AF50: 0.08653555448 | AG50: 0.1424816524 | AH50: 0.205129261 | AI50: 0.1539242963 | AJ50: 0.1451614326 | AK50: 0.1816933464 | AL50: 0.1940357071 | AM50: 0.2059697715 | AN50: 0.2070381241 | AO50: 0.2085366684 | AP50: =P50/P$11 -> 0.1989550952 | AQ50: =Q50/Q$11 -> 0.1901524695
A51: Adjusted pre-tax profits | E51: =E50-E40 -> 1605.35 | F51: =F50-1/2*F40 -> 971.3 | G51: 1619.6 | H51: 2282.75 | I51: 1802.805911 | J51: 1874.949972 | K51: 2826.350537 | L51: 3081.940415 | M51: 3434.808502 | N51: 3760.557428 | O51: 4010.868629 | P51: 4071.154278 | Q51: 4189.105305 | AA51: Adjusted pre-tax profits
AC52: =C52/C$11 -> 0
A53: Provision for tax | C53: =SUM(C54:C55) -> 238.968 | D53: =SUM(D54:D55) -> 614.47 | E53: 566.7 | F53: 292.7 | G53: 551.9 | H53: 714.8 | I53: 612.9540099 | J53: 637.4829906 | K53: 960.9591825 | L53: 1047.859741 | M53: 1167.834891 | N53: 1278.589526 | O53: 1363.695334 | P53: 1384.192454 | Q53: 1424.295804 | AA53: Provision for tax | AC53: =C53/C11 -> 0.0291065705 | AD53: =D53/D11 -> 0.05912407425 | AE53: =E53/E11 -> 0.04777360018 | AF53: 0.02212329181 | AG53: 0.04369374005 | AH53: 0.05886955304 | AI53: 0.04662164768 | AJ53: 0.04285087681 | AK53: 0.05555830943 | AL53: 0.05891416976 | AM53: 0.06266867506 | AN53: 0.06335750299 | AO53: 0.06412779067 | AP53: 0.06127435162 | AQ53: 0.05878241972
A54: Current tax | C54: =37+0.07+27.77 -> 64.84 | D54: =614.47-D55 -> 568.62 | E54: =479.7+33.1 -> 512.8 | F54: =0+34.5 -> 34.5 | G54: =381+134.6 -> 515.6 | H54: 758.6 | I54: =IF(I51<0,0,I51*34%) -> 612.9540099 | J54: 637.4829906 | K54: 960.9591825 | L54: 1047.859741 | M54: 1167.834891 | N54: 1278.589526 | O54: 1363.695334 | P54: 1384.192454 | Q54: 1424.295804 | AA54: Current tax | AC54: =C54/C$11 -> 0.007897584745 | AD54: 0.05471240435 | AE54: 0.04322975502 | AF54: 0.002607630911 | AG54: 0.04081988109 | AH54: 0.06247683679 | AI54: 0.04662164768 | AJ54: 0.04285087681 | AK54: 0.05555830943 | AL54: 0.05891416976 | AM54: 0.06266867506 | AN54: =N54/N$11 -> 0.06335750299 | AO54: 0.06412779067 | AP54: =P54/P$11 -> 0.06127435162 | AQ54: 0.05878241972
A55: Deferred tax liability/(asset) | C55: 174.128 | D55: 45.85 | E55: 53.9 | F55: =258.2 -> 258.2 | G55: 36.3 | H55: -43.8 | AA55: Deferred tax liability/(asset) | AC55: 0.02120898576 | AD55: 0.004411669901 | AE55: 0.004543845155 | AF55: 0.0195156609 | AG55: 0.002873858967 | AH55: -0.003607283748 | AI55: 0 | AJ55: 0 | AK55: 0 | AL55: 0 | AM55: 0 | AN55: 0 | AO55: 0 | AP55: 0 | AQ55: 0
A56: Net profit | C56: =C50-C53 -> 372.706 | D56: =D50-D53 -> 1151.09 | E56: 1445.51 | F56: 852.2 | G56: 1247.8 | H56: 1775.9 | I56: 1410.752129 | J56: 1522.051448 | K56: 2181.683051 | L56: 2403.299914 | M56: 2670.425379 | N56: 2899.554568 | O56: 3070.895017 | P56: 3110.218899 | Q56: 3183.091331 | AA56: Net profit | AC56: 0.04539600894 | AD56: 0.1107574505 | AE56: 0.1218585085 | AF56: 0.06441226267 | AG56: 0.09878791238 | AH56: 0.146259708 | AI56: 0.1073026486 | AJ56: 0.1023105558 | AK56: 0.126135037 | AL56: 0.1351215374 | AM56: 0.1433010965 | AN56: 0.1436806211 | AO56: 0.1444088778 | AP56: 0.1376807436 | AQ56: 0.1313700498
A58: Preference dividend | C58: 2 | D58: =1%*D90 -> 0 | E58: 0 | F58: 0 | G58: 0 | H58: 0 | I58: 0 | J58: 0 | K58: 0 | L58: 0 | M58: 0 | N58: 0 | O58: 0 | P58: =1%*P90 -> 0 | Q58: =1%*Q90 -> 0 | AA58: Preference dividend
A59: Preference dividend tax | C59: =14.025%*C58 -> 0.2805 | D59: =16.995%*D58 -> 0 | E59: 0 | F59: 0 | G59: 0 | H59: 0 | I59: 0 | J59: 0 | K59: 0 | L59: 0 | M59: 0 | N59: 0 | O59: 0 | P59: =16.995%*P58 -> 0 | Q59: =16.995%*Q58 -> 0 | AA59: Preference dividend tax
A60: Dividend paid (excl. tax) | C60: 56.215 | D60: =+'profit model'!D37*'profit model'!D24 -> 70.2687 | E60: =+'profit model'!E37*'profit model'!E24 -> 93.7 | F60: =+'profit model'!F37*'profit model'!F24 -> 70.5 | G60: =+'profit model'!G37*'profit model'!G24 -> 82.285 | H60: =+'profit model'!H37*'profit model'!H24 -> 82.32 | I60: =+'profit model'!I37*'profit model'!I24 -> 94.08 | J60: =+'profit model'!J37*'profit model'!J24 -> 470.4 | K60: =+'profit model'!K37*'profit model'!K24 -> 940.8 | L60: =+'profit model'!L37*'profit model'!L24 -> 1881.6 | M60: =+'profit model'!M37*'profit model'!M24 -> 2822.4 | N60: =+'profit model'!N37*'profit model'!N24 -> 3292.8 | O60: =+'profit model'!O37*'profit model'!O24 -> 3763.2 | P60: =+'profit model'!#REF!*'profit model'!#REF! ->  | Q60: =+'profit model'!#REF!*'profit model'!#REF! ->  | AA60: Dividend paid (excl. tax) | AC60: =C60/C$11 -> 0.006847050068 | AD60: 0.006761228109 | AE60: 0.00789904065 | AF60: 0.005328637078 | AG60: 0.006514476174 | AH60: 0.006779716853 | AI60: 0.007155780928 | AJ60: 0.03161974947 | AK60: 0.05439279676 | AL60: 0.1057898281 | AM60: 0.1514564001 | AN60: =N60/N$11 -> 0.1631669755 | AO60: 0.1769645285 | AP60: =P60/P$11 -> 
A61: Dividend tax | C61: 8.165 | D61: =16.995%*D60 -> 11.94216556 | E61: 15.924315 | F61: 11.981475 | G61: 13.98433575 | H61: 13.990284 | I61: 15.988896 | J61: 79.94448 | K61: 159.88896 | L61: 319.77792 | M61: 479.66688 | N61: 559.61136 | O61: 639.55584 | P61: =16.995%*P60 ->  | Q61: =16.995%*Q60 ->  | AA61: Dividend tax | AC61: 0.0009945061604 | AD61: 0.001149070717 | AE61: 0.001342441958 | AF61: 0.0009056018714 | AG61: 0.001107135226 | AH61: 0.001152212879 | AI61: 0.001216124969 | AJ61: 0.005373776422 | AK61: 0.009244055809 | AL61: 0.01797898128 | AM61: 0.0257400152 | AN61: 0.02773022749 | AO61: 0.03007512162
A62: Other non-cash items | AA62: Other non-cash items | AC62: 0 | AD62: 0 | AE62: 0 | AF62: 0 | AG62: 0 | AH62: 0 | AI62: 0 | AJ62: 0 | AK62: 0 | AL62: 0 | AM62: 0 | AN62: 0 | AO62: 0 | AP62: 0 | AQ62: 0
A65: Balance sheet
A66: SOURCES OF FUNDS
A68: Current Liabilities and provisions
A69: Sundry creditors (Trade) | C69: 1339.517 | D69: 1337.343 | E69: =+E157 -> 1140.425 | F69: 1350.25 | G69: 1024.575 | H69: 888.575 | I69: 998.8943795 | J69: 1192.179726 | K69: 1313.202993 | L69: 1183.15622 | M69: 1208.575815 | N69: 1318.885986 | O69: 1440.265813 | P69: =+P157 -> 1577.203086 | Q69: =+Q157 -> 1716.689609
A70: Customer and agent balances | C70: 60.294 | D70: 37.634 | E70: =+D70*E15/D15 -> 39.76397971 | F70: 47.08009172 | G70: 35.7245584 | H70: 30.98255323 | I70: 34.82913461 | J70: 41.5685472 | K70: 45.78834835 | L70: 41.25391843 | M70: 42.14024085 | N70: 45.98650115 | O70: 50.21873473 | P70: 54.99342043 | Q70: 59.8569926
A71: Interest accrued but not due | C71: =+#REF! ->  | D71: 0.791 | E71: =+D71 -> 0.791 | F71: 0.791 | G71: 0.791 | H71: 0.791 | I71: 0.791 | J71: 0.791 | K71: 0.791 | L71: 0.791 | M71: 0.791 | N71: 0.791 | O71: 0.791 | P71: =+O71 -> 0.791 | Q71: 0.791
A72: Income received in advance | C72: 136.132 | D72: 249.909 | E72: =+D72 -> 249.909 | F72: 249.909 | G72: 249.909 | H72: 249.909 | I72: 249.909 | J72: 249.909 | K72: 249.909 | L72: 249.909 | M72: 249.909 | N72: 249.909 | O72: 249.909 | P72: 249.909 | Q72: 249.909
A73: Provision for staff benefits | C73: 51.619 | D73: 79.307 | E73: =+D73 -> 79.307 | F73: 79.307 | G73: 79.307 | H73: 79.307 | I73: 79.307 | J73: 79.307 | K73: 79.307 | L73: 79.307 | M73: 79.307 | N73: 79.307 | O73: 79.307 | P73: 79.307 | Q73: 79.307
